{"text_format":"1","workbook":"xlsx","n_sheets":15,"sheets":["Accueil","Mon_evenement","Mes_objectifs","Actions","Empreinte_Carbone","Planning","Budget","Synthese","Synthese_theme","Fiche","Ton_avis","Glossaire","Credits","Paramètres","Feuil2"],"not_rendered":{"charts":6,"images":75,"macros":1,"external_links":2,"defined_names":48,"comments":1,"pivot_tables":0},"unopened":[],"bounds":{"document_bytes":16777216,"sheet_cells":100000,"rows_first":2000,"rows_last":500,"rows_between":2000,"halvings":0,"cell_chars":16384,"cell_head_chars":4096},"cells_cut":0,"cells_raw":0,"read":"whole","date_system":"1900"}

{"sheet":"Accueil","index":0,"n_rows":0,"n_cols":0,"rows_kept":0,"cut":false,"hidden":false,"merged":[]}

{"sheet":"Mon_evenement","index":1,"n_rows":39,"n_cols":34,"rows_kept":39,"cut":false,"hidden":false,"merged":[[29,15,29,18],[27,4,27,11],[29,5,29,11],[31,6,31,11],[11,26,11,29],[11,21,11,24],[25,4,25,7],[16,31,16,35],[25,33,25,36],[14,15,14,17],[22,14,22,18],[14,2,24,11],[38,28,38,32],[31,32,32,35],[34,4,34,11],[37,17,37,20],[34,25,34,26]]}
[]
[]
[]
[]
[]
[]
[]
[]
[]
[]
[]
[null,null,null,null,null,null,null,null,null,null,null,null,null,null,null,null,null,null,null,null,null,10,null,null,null,null,10000]
[]
[]
[null,null,"Afin de vous proposer des mesures adaptées à votre événement, vous pouvez ici préciser les caractéristiques de votre événement. \n\nRemplissez les 11 cases ci-contre et les 4 cases ci-dessous puis passez à l'étape suivante en cliquant sur le bouton \"objectifs\" ci dessus.",null,null,null,null,null,null,null,null,null,null,null,null,"Plusieurs jours"]
[]
[null,null,null,null,null,null,null,null,null,null,null,null,null,null,null,null,null,null,null,null,null,null,null,null,null,null,null,null,null,null,null,10]
[]
[]
[]
[]
[]
[null,null,null,null,null,null,null,null,null,null,null,null,null,null,"Intérieur"]
[]
[]
[null,null,null,null,null,null,null,null,null,null,null,null,null,null,null,null,null,null,null,null,null,null,null,null,null,null,null,null,null,null,null,null,null,"Journée"]
[]
[]
[]
[null,null,null,null,null,null,null,null,null,null,null,null,null,null,null,"Communautaire"]
[]
[null,null,null,null,null,null,null,null,null,null,null,null,null,null,null,null,null,null,null,null,null,null,null,null,null,null,null,null,null,null,null,null,"Pas de déplacements"]
[]
[]
[null,null,null,null,null,null,null,null,null,null,null,null,null,null,null,null,null,null,null,null,null,null,null,null,null,"Non"]
[]
[]
[null,null,null,null,null,null,null,null,null,null,null,null,null,null,null,null,null,"Non"]
[null,null,null,null,null,null,null,null,null,null,null,null,null,null,null,null,null,null,null,null,null,null,null,null,null,null,null,null,"Non"]

{"sheet":"Mes_objectifs","index":2,"n_rows":41,"n_cols":30,"rows_kept":41,"cut":false,"hidden":false,"merged":[[14,13,14,14],[16,6,16,10],[22,4,22,8],[27,3,27,7],[32,5,32,9],[38,6,38,10],[40,13,40,14],[16,16,16,19],[22,18,22,21],[27,19,27,22],[32,17,32,20],[38,16,38,19]]}
[]
[]
[]
[]
[]
[]
[]
[]
[]
[]
[]
[]
[]
[]
[null,null,null,null,null,null,null,null,null,null,null,null,null,"à minima"]
[]
[null,null,null,null,null,null,"à minima",null,null,null,null,null,null,null,null,null,"à minima"]
[]
[null,null,null,null,null,null,null,null,null,null,null,null,null,null,null,null,null,null,null,null,null,null,null,null,null,null,null,null,null,{"$f":"1366/768","v":1.7786458333333333}]
[null,null,null,null,null,null,null,null,null,null,null,null,null,null,null,null,null,null,null,null,null,null,null,null,null,null,null,null,null,{"$f":"16/9","v":1.7777777777777777}]
[]
[]
[null,null,null,null,"à minima",null,null,null,null,null,null,null,null,null,null,null,null,null,"à minima"]
[]
[]
[]
[]
[null,null,null,"à minima",null,null,null,null,null,null,null,null,null,null,null,null,null,null,null,"à minima"]
[]
[]
[]
[]
[null,null,null,null,null,"à minima",null,null,null,null,null,null,null,null,null,null,null,"à minima"]
[]
[]
[]
[]
[]
[null,null,null,null,null,null,"à minima",null,null,null,null,null,null,null,null,null,"à minima"]
[]
[null,null,null,null,null,null,null,null,null,null,null,null,null,"à minima"]

{"sheet":"Actions","index":3,"n_rows":471,"n_cols":62,"rows_kept":471,"cut":false,"hidden":false,"merged":[[4,49,4,61]]}
[]
[]
[]
[]
[]
["id","THEMES","SOUS-THEMES","CATEGORIES","OBJECTIFS","ACTIONS D'AMELIORATIONS","PRIO",".","CHOIX","RESPONSABLE","ETAT","ACTIONS ENTREPRISES","EXEMPLES ET LIENS","Ancrage territorial","Biodiversité","Culture","Economie","Empreinte carbone","Equité","Gestion des ressources","Gouvernance","Respect des participants","Sécurité","Solidarité","Voisinage","Déplacements","Pas de déplacements","Journée","Soirée","< 1 Jour","Plusieurs jours","Intérieur","Extérieur","Communautaire","Ouvert","Oui","Non","Oui","Oui","Sans alimentation","Nécessite un budget","Aucun budget","Organisateurs","Participants","Compliqué","Simple","Applicable","d","A Garder","AT","B","C","Eco","E C","Eq","G R","G","R P","Secu","Soli","V","TOTAL"]
[3,"ANCRAGE TERRITORIAL","Contextualisation de l'événement","Espace naturel","Etudier l'impact local de l'événement","Faire un diagnostic de l'impact local de l'évènement avant et après sa réalisation.",1,null,null,null,null,null,null,"X",null,null,null,null,null,null,"X",null,null,null,null,"X","X","X","X","X","X","O","X","X","X","X","X","X","X","X",null,null,null,null,null,null,null,null,{"$f":"IF(OR(BJ7=0,AU7=\"Non applicable\"),0,1)","v":0},{"$f":"IF(AND(N7=\"X\",$G7>=AX$471),1,0)","v":0},{"$f":"IF(AND(O7=\"X\",$G7>=AY$471),1,0)","v":0},{"$f":"IF(AND(P7=\"X\",$G7>=AZ$471),1,0)","v":0},{"$f":"IF(AND(Q7=\"X\",$G7>=BA$471),1,0)","v":0},{"$f":"IF(AND(R7=\"X\",$G7>=BB$471),1,0)","v":0},{"$f":"IF(AND(S7=\"X\",$G7>=BC$471),1,0)","v":0},{"$f":"IF(AND(T7=\"X\",$G7>=BD$471),1,0)","v":0},{"$f":"IF(AND(U7=\"X\",$G7>=BE$471),1,0)","v":0},{"$f":"IF(AND(V7=\"X\",$G7>=BF$471),1,0)","v":0},{"$f":"IF(AND(W7=\"X\",$G7>=BG$471),1,0)","v":0},{"$f":"IF(AND(X7=\"X\",$G7>=BH$471),1,0)","v":0},{"$f":"IF(AND(Y7=\"X\",$G7>=BI$471),1,0)","v":0},{"$f":"SUM(AX7:BI7)","v":0}]
[4,"ANCRAGE TERRITORIAL","Contextualisation de l'événement","Lieu de vie/décors","Faire découvrir le cadre local","Privilégier le recrutement d'organisateurs ayant vécu sur le territoire d'accueil de l'évènement.",1,null,null,null,null,null,null,"X",null,null,null,null,null,null,null,null,null,null,null,"X","X","X","X","X","X","X","X","X","X","X","X","X","X","X",null,null,null,null,null,null,null,null,0,0,0,0,0,0,0,0,0,0,0,0,0,0]
[5,"ANCRAGE TERRITORIAL","Contextualisation de l'événement","Lieu de vie/décors","Faire découvrir le cadre local","Inviter les participants à découvrir la région dans laquelle s'organise l'évènement.",1,null,null,null,null,null,null,"X",null,null,null,null,null,null,null,null,null,null,null,"X","X","X","X","O","X","X","X","X","X","X","X","X","X","X",null,null,null,null,null,null,null,null,0,0,0,0,0,0,0,0,0,0,0,0,0,0]
[6,"ANCRAGE TERRITORIAL","Contextualisation de l'événement","Lieu de vie/décors","Faire découvrir le cadre local","Intégrer le cadre local de l'évènement dans la stratégie de communication externe.",1,null,null,null,null,null,null,"X",null,null,null,null,null,null,null,null,null,null,null,"X","X","X","O","O","X","X","X","X","X","X","X","X","X","X",null,null,null,null,null,null,null,null,0,0,0,0,0,0,0,0,0,0,0,0,0,0]
[7,"ANCRAGE TERRITORIAL","Contextualisation de l'événement","Lieu de vie/décors","Promouvoir les activités locales","Promouvoir les sports et activités locales. Privilégier l'oganisation de sports et d'activités en partenariat avec des structures locales ou faire découvrir les sports et activités traditionnels locales.",1,null,null,null,null,null,null,"X",null,null,null,null,null,null,null,null,null,null,null,"X","X","X","X","X","X","X","X","X","X","X","X","X","X","X",null,null,null,null,null,null,null,null,0,0,0,0,0,0,0,0,0,0,0,0,0,0]
[8,"ANCRAGE TERRITORIAL","Contextualisation de l'événement","Lieu de vie/décors","Promouvoir les activités locales","Mettre en avant les politiques locales de développement durable.",1,null,null,null,null,null,null,"X",null,null,null,null,null,null,null,null,null,null,null,"X","X","X","X","X","X","X","X","X","X","X","X","X","X","X",null,null,null,null,null,null,null,null,0,0,0,0,0,0,0,0,0,0,0,0,0,0]
[9,"ANCRAGE TERRITORIAL","Economie locale","Lieu de vie/décors","Intégrer l'événement dans l'économie locale","S'assurer de la cohérence du thème de l'évènement avec le contexte économique, politique et social local.",1,null,null,null,null,null,null,"X",null,null,null,null,null,null,null,null,null,null,null,"X","X","X","X","X","X","X","X","X","X","X","X","X","X","X",null,null,null,null,null,null,null,null,0,0,0,0,0,0,0,0,0,0,0,0,0,0]
[10,"ANCRAGE TERRITORIAL","Economie locale","Lieu de vie/décors","Intégrer l'événement dans l'économie locale","Proposer aux participants un hébergement près du lieu de l'évènement / informer les participants sur les lieux d'hébergements locaux.",2,null,null,null,null,null,null,"X",null,null,null,null,null,null,null,null,null,null,null,"X","X","X","X","O","X","X","X","X","X","X","X","X","X","X",null,null,null,null,null,null,null,null,0,0,0,0,0,0,0,0,0,0,0,0,0,0]
[11,"ANCRAGE TERRITORIAL","Economie locale","Lieu de vie/décors","Intégrer l'événement dans l'économie locale","Mettre en place des partenariats avec des acteurs locaux (restauration, transport, conférences, inviter un producteur à vendre sa production de miel, etc).",1,null,null,null,null,null,null,"X",null,null,null,null,null,null,null,null,null,null,null,"X","X","X","X","X","X","X","X","X","X","X","X","X","X","X",null,null,null,null,null,null,null,null,0,0,0,0,0,0,0,0,0,0,0,0,0,0]
[12,"ANCRAGE TERRITORIAL","Economie locale","Lieu de vie/décors","Intégrer l'événement dans l'économie locale","Insérer autant que possible l'évènement dans les circuits économiques courts locaux (exemple : AMAP, Système d'Echange Local, etc.).",3,null,null,null,null,null,null,"X",null,null,null,null,null,null,null,null,null,null,null,"X","X","X","X","X","X","X","X","X","X","X","X","X","X","X",null,null,null,null,null,null,null,null,{"$f":"IF(OR(BJ16=0,AU16=\"Non applicable\"),0,1)","v":1},1,0,0,0,0,0,0,0,0,0,0,0,{"$f":"SUM(AX16:BI16)","v":1}]
[13,"ANCRAGE TERRITORIAL","Economie locale","Lieu de vie/décors","Intégrer l'événement dans l'économie locale","Informer les participants sur les lieux de restauration locaux (ex : annuaires ou guides existants ou à créer, partenariats-réductions).",1,null,null,null,null,null,null,"X",null,null,null,null,null,null,null,null,null,null,null,"X","X","X","X","X","X","X","X","X","X","X","X","X","X","X",null,null,null,null,null,null,null,null,0,0,0,0,0,0,0,0,0,0,0,0,0,0]
[14,"ANCRAGE TERRITORIAL","Economie locale","Loyauté des pratiques","Privilégier les fournisseurs / sous traitants locaux","Privilégier des fournisseurs qui génèrent une production locale.",2,null,null,null,null,null,null,"X",null,null,null,null,null,null,null,null,null,null,null,"X","X","X","X","X","X","X","X","X","X","X","X","X","X","X",null,null,null,null,null,null,null,null,0,0,0,0,0,0,0,0,0,0,0,0,0,0]
[15,"ANCRAGE TERRITORIAL","Identification des enjeux locaux","Attentes des PP","Identifier les besoins du territoire et prendre en compte les attentes locales","Contacter les acteurs locaux tels que les collectivités locales, la presse locale, les offices de tourisme, afin d'identifier les besoins et attentes spécifiques du territoire.",1,null,null,null,null,null,null,"X",null,null,null,null,null,null,null,null,null,null,null,"X","X","X","X","X","X","X","X","X","X","X","X","X","X","X",null,null,null,null,null,null,null,null,0,0,0,0,0,0,0,0,0,0,0,0,0,0]
[16,"ANCRAGE TERRITORIAL","Identification des enjeux locaux","Espace naturel","Veiller à la préservation de territoire local","Vérifier que les activités ne mènent pas à un changement irréversible du territoire (impacts sur la faune et la flore, ressources en eau…).",3,null,null,null,null,null,null,"X",null,null,null,null,null,null,null,null,null,null,null,"X","X","X","X","X","X","O","X","X","X","X","X","X","X","X",null,null,null,null,null,null,null,null,1,1,0,0,0,0,0,0,0,0,0,0,0,1]
[17,"BIODIVERSITE","Education à l'environnement","Espace naturel","Impliquer les participants dans la recherche de solutions","Mettre en place des ateliers sous forme de brainstorming et d'échange autour de la biodiversité.",1,null,null,null,null,null,null,null,"X",null,null,null,null,null,null,null,null,null,null,"X","X","X","X","X","X","X","X","X","X","X","X","X","X","X",null,"X",null,null,null,"X",null,null,0,0,0,0,0,0,0,0,0,0,0,0,0,0]
[18,"BIODIVERSITE","Education à l'environnement","Espace naturel","Impliquer les participants dans la recherche de solutions","Informer sur des notions clés pour comprendre notre rapport au milieu naturel : interdépendance des espèces, résilience locale (brochure, projection de reportage, mise en valeur d'initiatives comme \"Villes en transition\").",1,null,null,null,null,null,null,null,"X",null,null,null,null,null,null,null,null,null,null,"X","X","X","X","X","X","X","X","X","X","X","X","X","X","X",null,"X",null,null,null,"X",null,null,0,0,0,0,0,0,0,0,0,0,0,0,0,0]
[19,"BIODIVERSITE","Education à l'environnement","Espace naturel","Impliquer les participants dans la recherche de solutions","Diffuser de manière informelle des pétitions et des accès web pour les enjeux majeurs de la biodiversité : protection des coraux, des insectes pollinisateurs, etc.",1,null,null,null,null,null,null,null,"X",null,null,null,null,null,null,null,null,null,null,"X","X","X","X","X","X","X","X","X","X","X","X","X","X","X",null,"X",null,null,"X",null,null,null,0,0,0,0,0,0,0,0,0,0,0,0,0,0]
[20,"BIODIVERSITE","Education à l'environnement","Sensibilisation des participants","Informer au sujet des enjeux locaux","Valoriser la biodiversité locale auprès des participants et leur expliquer l'impact que peuvent avoir leurs comportements sur la biodiversité locale.",1,null,null,null,null,null,null,null,"X",null,null,null,null,null,null,null,null,null,null,"X","X","X","X","X","X","X","X","X","X","X","X","X","X","X",null,"X",null,null,null,"X",null,null,0,0,0,0,0,0,0,0,0,0,0,0,0,0]
[21,"BIODIVERSITE","Education à l'environnement","Sensibilisation des participants","Informer au sujet des enjeux locaux","Organiser en parallèle une exposition avec support cadre ou photo montrant la diversité d'une ou plusieurs espèces (abeille, fourmis, mammifères, flore…).",1,null,null,null,null,null,"Contacter des associations de protection de l'environnement ou organisme public.",null,"X",null,null,null,null,null,null,null,null,null,null,"X","X","X","X","X","X","X","X","X","X","X","X","X","X","X","X",null,null,null,"X",null,null,null,0,0,0,0,0,0,0,0,0,0,0,0,0,0]
[22,"BIODIVERSITE","Education à l'environnement","Sensibilisation des participants","Informer au sujet des enjeux locaux","Création de partenariat avec des associations liées à la protection et à la valorisation de la biodiversité  (proposition de stands gratuits, relai des campagnes en cours, conférence, vidéo débat).",1,null,null,null,null,null,"Contacter le Fond Français pour la Nature et l'Environnement, Humanité & Biodiversité, la LPO, pour être redirigé vers des assos locales (en ciblant les thématiques).",null,"X",null,null,null,null,null,null,null,null,null,null,"X","X","X","X","X","X","X","X","X","X","X","X","X","X","X",null,"X",null,null,null,"X",null,null,0,0,0,0,0,0,0,0,0,0,0,0,0,0]
[23,"BIODIVERSITE","Gestion du lieu naturel","Compensation","Contribuer au financement d'une action de protection des éco-systèmes","Inclure une levée de fonds (% du  prix d'entrée d'adhésion pour les évènements payants ou un % des dons pour les évènements à donation) reversée aux organismes de préservation des écosystèmes en fonction du contexte local. Exemple : projet d'apiculture urbain.",1,null,null,null,null,null,null,null,"X",null,null,null,null,null,null,null,null,null,null,"X","X","X","X","X","X","X","X","X","X","X","X","X","X","X","X",null,null,null,null,"X",null,null,0,0,0,0,0,0,0,0,0,0,0,0,0,0]
[24,"BIODIVERSITE","Gestion du lieu naturel","Déchets","Limiter l'impact des déchets sur l'éco système","Rediriger les eaux et boues usées vers des solutions locales intelligentes.",1,null,null,null,null,null,null,null,"X",null,null,null,null,null,null,null,null,null,null,"X","X","X","X","X","X","X","X","X","X","X","X","X","X","X",null,"X",null,null,"X",null,null,null,0,0,0,0,0,0,0,0,0,0,0,0,0,0]
[25,"BIODIVERSITE","Gestion du lieu naturel","Déchets","Limiter l'impact des déchets sur l'éco système","Distribution de cendriers de poches,  d'ustensiles biodégradables et/ou compostables.",3,null,null,null,null,null,null,null,"X",null,null,null,null,null,null,null,null,null,null,"X","X","X","X","X","X","X","X","X","X","X","X","X","X","X",null,"X",null,null,null,"X",null,null,1,0,1,0,0,0,0,0,0,0,0,0,0,1]
[26,"BIODIVERSITE","Gestion du lieu naturel","Déchets","Limiter l'impact des déchets sur l'éco système","Contacter, lorsque l'évènement n'est pas rattaché au système d'assainissement collectif, des organismes pour négocier une prise en charge des eaux usées, excréments.",1,null,null,null,null,null,null,null,"X",null,null,null,null,null,null,null,null,null,null,"X","X","X","X","X","X","X","X","X","X","X","X","X","X","X",null,"X",null,null,"X",null,null,null,0,0,0,0,0,0,0,0,0,0,0,0,0,0]
[27,"BIODIVERSITE","Gestion du lieu naturel","Espace naturel","limiter le déclin d'espèces importantes pour l'éco système en place","Prendre connaissance des espaces protégés à proximité du lieu d'accueil pour ensuite proposer des mesures de respect/protection adéquates.",2,null,null,null,null,null,null,"X","X",null,null,null,null,null,null,null,null,null,null,"X","X","X","X","X","X","X","X","X","X","X","X","X","X","X",null,"X",null,null,null,"X",null,null,0,0,0,0,0,0,0,0,0,0,0,0,0,0]
[28,"BIODIVERSITE","Gestion du lieu naturel","Espace naturel","Mettre en place des mesures destinées à prévenir la modification du paysage du lieu dans lequel s'inscrit l'événement","Prévoir de ne pas induire de perturbation durable du site, et de le remettre en état après l'évènement.",3,null,null,null,null,null,null,"X","X",null,null,null,null,null,null,null,null,null,null,"X","X","X","X","X","X","X","X","X","X","X","X","X","X","X",null,"X",null,null,null,"X",null,null,1,1,1,0,0,0,0,0,0,0,0,0,0,2]
[29,"BIODIVERSITE","Impact dans la chaîne de valeur","Alimentation","Proposer une alimentation responsable et diversifiée","Présence de boissons locales : bières, vins, jus de saison... (originaux si possible, les producteurs à la ferme ont de l'imagination).",3,null,null,null,null,null,null,"X","X",null,null,null,null,null,null,null,null,null,null,"X","X","X","X","X","X","X","X","X","X","X","X","X","X","O","X",null,null,null,null,"X",null,null,1,1,1,0,0,0,0,0,0,0,0,0,0,2]
[30,"BIODIVERSITE","Impact dans la chaîne de valeur","Loyauté des pratiques","Etablir des partenariats entreprises en fonction de l'impact de leur activité sur la biodiversité","Se renseigner sur les engagement des partenaires en faveur de la protection de la biodiversité (type écolabel, chartes d'engagements…)",1,null,null,null,null,null,null,null,"X",null,null,null,null,null,null,null,null,null,null,"X","X","X","X","X","X","X","X","X","X","X","X","X","X","X",null,"X",null,null,null,"X",null,null,0,0,0,0,0,0,0,0,0,0,0,0,0,0]
[31,"BIODIVERSITE","Impact dans la chaîne de valeur","Loyauté des pratiques","Mettre en valeur des solutions urbaines pour la préservation de la biodiversité","Relayer des actions en faveur du bon développement des écosystèmes (mise en place de toits verts, de ruches,…)",1,null,null,null,null,null,"Exemple du service « un toit pour les abeilles » : http://www.untoitpourlesabeilles.fr/ (système de parrainage de ruches, vente de miel/réception).",null,"X",null,null,null,null,null,null,null,null,null,null,"X","X","X","X","X","X","X","X","X","X","X","X","X","X","X",null,"X",null,null,null,"X",null,null,0,0,0,0,0,0,0,0,0,0,0,0,0,0]
[32,"BIODIVERSITE","Impact dans la chaîne de valeur","Loyauté des pratiques","Mettre en valeur des solutions urbaines pour la préservation de la biodiversité","Contacter des porteurs de projets liés à la biodiversité, comme des projets étudiants d'apiculture, afin de reproduire l'initiative.",1,null,null,null,null,null,null,null,"X",null,null,null,null,null,null,null,null,null,null,"X","X","X","X","X","X","X","X","X","X","X","X","X","X","X",null,"X",null,null,null,"X",null,null,0,0,0,0,0,0,0,0,0,0,0,0,0,0]
[33,"BIODIVERSITE","Impact sur l'éco système","Déplacements","limiter le déclin d'espèces importantes pour l'éco système en place","Privilégier les transport en commun et les modes de déplacements doux pour éviter l'utilisation des voitures qui sont responsables de la mort de centaines d'insectes et d'autres problèmes à chaque kilomètre parcouru.",1,null,null,null,null,null,null,null,"X",null,null,null,null,null,null,null,null,null,null,"X","O","X","X","X","X","X","X","X","X","X","X","X","X","X",null,"X",null,null,null,"X",null,null,0,0,0,0,0,0,0,0,0,0,0,0,0,0]
[34,"BIODIVERSITE","Impact sur l'éco système","Espace naturel"," S'informer en tant qu'organisateur","Prendre connaissance des enjeux locaux de préservation grâce à la prise de contact avec les associations locales.",1,null,null,null,null,null,null,null,"X",null,null,null,null,null,null,null,null,null,null,"X","X","X","X","X","X","X","X","X","X","X","X","X","X","X",null,"X",null,null,null,"X",null,null,0,0,0,0,0,0,0,0,0,0,0,0,0,0]
[35,"BIODIVERSITE","Impact sur l'éco système","Espace naturel","Intégrer l'évènement dans son éco système.","Choisir le lieu de l'organisation de l'évènement en fonction de ses effets sur la faune et la flore locales.",2,null,null,null,null,null,null,null,"X",null,null,null,null,null,null,null,null,null,null,"X","X","X","X","X","X","X","X","X","X","X","X","X","X","X",null,"X",null,null,"X",null,null,null,0,0,0,0,0,0,0,0,0,0,0,0,0,0]
[36,"BIODIVERSITE","Impact sur l'éco système","Management/ Gestion","Intégrer l'évènement dans son éco système.","Identifier les impacts indirects de l'évènement sur les écosystèmes d'autres territoires.",1,null,null,null,null,null,null,null,"X",null,null,null,null,null,null,null,null,null,null,"X","X","X","X","X","X","X","X","X","X","X","X","X","X","X",null,"X",null,null,"X",null,null,null,0,0,0,0,0,0,0,0,0,0,0,0,0,0]
[37,"BIODIVERSITE","Impact sur l'éco système","Management/ Gestion","Intégrer l'évènement dans son éco système.","Choisir la date d'organisation de l'évènement de façon à prévenir au mieux les atteintes à la biodiversité locale et en respectant les cycles biologiques.",1,null,null,null,null,null,null,null,"X",null,null,null,null,null,null,null,null,null,null,"X","X","X","X","X","X","X","X","X","X","X","X","X","X","X",null,"X",null,null,"X",null,null,null,0,0,0,0,0,0,0,0,0,0,0,0,0,0]
[38,"BIODIVERSITE","Impact sur l'éco système","Produits / équipements","Intégrer l'évènement dans son éco système.","Utiliser / privilégier les structures bois à la place de bloc de ciment pour structure portante, d'exposition... (empreinte carbone et coût environnemental global moindre).",1,null,null,null,null,null,null,null,"X",null,null,"X",null,null,null,null,null,null,null,"X","X","X","X","X","X","X","X","X","X","X","X","X","X","X","X",null,null,null,"X",null,null,null,0,0,0,0,0,0,0,0,0,0,0,0,0,0]
[39,"BIODIVERSITE","Impact sur l'éco système","Produits / équipements","Intégrer l'évènement dans son éco système.","Ne pas apporter d'éléments qui pourraient nuire à l'équilibre des écosystèmes (ex : plantes décoratives invasives…).",1,null,null,null,null,null,null,null,"X",null,null,null,null,null,null,null,null,null,null,"X","X","X","X","X","X","X","X","X","X","X","X","X","X","X",null,"X",null,null,null,"X",null,null,0,0,0,0,0,0,0,0,0,0,0,0,0,0]
[40,"BIODIVERSITE","Impact sur l'éco système","Respect des règles","Etre en accord avec les régulations et la législation de protection de l'envrionnement","Se renseigner sur la réglementation en vigueur concernant la protection de la biodiversité.",1,null,null,null,null,null,"Renvoyer vers où se renseigner ou s'informer. http://www.developpement-durable.gouv.fr/, site de la ville, de la région,…",null,"X",null,null,null,null,null,null,null,null,null,null,"X","X","X","X","X","X","X","X","X","X","X","X","X","X","X",null,"X",null,null,null,"X",null,null,0,0,0,0,0,0,0,0,0,0,0,0,0,0]
[41,"CULTURE","Apport culturel","Communication","Encourager la curiosité","Utiliser des moyens d'échanges adaptés au public étudiant (boîte à questions, forum/réseau social, questions/réponses en direct sur Twitter,…).",3,null,null,null,null,null,null,null,null,"X",null,null,null,null,null,null,null,null,null,"X","X","X","X","X","X","X","X","X","X","X","X","X","X","X",null,"X",null,null,null,"X",null,null,1,0,0,1,0,0,0,0,0,0,0,0,0,1]
[42,"CULTURE","Apport culturel","Communication","Encourager la curiosité","Privilégier une approche originale en proposant des activités peu communes (ex. : conférences gesticulées, repas insolent,…).",1,null,null,null,null,null,null,null,null,"X",null,null,null,null,null,null,null,null,null,"X","X","X","X","X","X","X","X","X","X","X","X","X","X","X","CA DEPEND",null,null,null,"X",null,null,null,0,0,0,0,0,0,0,0,0,0,0,0,0,0]
[43,"CULTURE","Apport culturel","Communication","Encourager la curiosité","Mettre en œuvre des campagnes de com sexy, accrocheuses.",1,null,null,null,null,null,null,null,null,"X",null,null,null,null,null,null,null,null,null,"X","X","X","X","X","X","X","X","X","X","X","X","X","X","X",null,"X",null,null,null,"X",null,null,0,0,0,0,0,0,0,0,0,0,0,0,0,0]
[44,"CULTURE","Apport culturel","Communication","Mettre en place une démarche pédagogique","Favoriser le partage de connaissances, intégrer les participants dans l'apprentissage de connaissances.",1,null,null,null,null,null,null,null,null,"X",null,null,null,null,null,null,null,null,null,"X","X","X","X","X","X","X","X","X","X","X","X","X","X","X",null,"X",null,null,null,"X",null,null,0,0,0,0,0,0,0,0,0,0,0,0,0,0]
[45,"CULTURE","Apport culturel","Communication","Mettre en place une démarche pédagogique","Définir un/des intérêt(s)/objectif(s) éducatifs pour chaque activité.",1,null,null,null,null,null,null,null,null,"X",null,null,null,null,null,null,null,null,null,"X","X","X","X","X","X","X","X","X","X","X","X","X","X","X",null,"X",null,null,null,"X",null,null,0,0,0,0,0,0,0,0,0,0,0,0,0,0]
[46,"CULTURE","Apport culturel","Communication","Mettre en place une démarche pédagogique","Adapter le discours et les supports aux différents publics (population rurale ≠ population urbaine / enfants ≠ adultes par exemple).",3,null,null,null,null,null,null,"X",null,"X",null,null,null,null,null,null,null,null,null,"X","X","X","X","X","X","X","X","X","X","X","X","X","X","X",null,"X",null,null,null,"X",null,null,1,1,0,1,0,0,0,0,0,0,0,0,0,2]
[47,"CULTURE","Apport culturel","Communication","Mettre en place une démarche pédagogique","Créer une plateforme dédiée à l'évènement et rapporter le contenu des échanges.",1,null,null,null,null,null,null,null,null,"X",null,null,null,null,null,null,null,null,null,"X","X","X","X","X","X","X","X","X","X","X","?","X","X","X","?",null,null,null,"x",null,null,null,0,0,0,0,0,0,0,0,0,0,0,0,0,0]
[48,"CULTURE","Apport culturel","Management/ Gestion","Avoir une richesse dans les débats","Sensibiliser l'équipe d'organisateurs et de bénévoles aux pratiques d'échange avec le public. Prévoir un temps de parole avec les participants, questions / réponses etc.",2,null,null,null,null,null,null,null,null,"X",null,null,null,null,null,"X",null,null,null,"X","X","X","X","X","X","X","X","X","X","X","X","X","X","X",null,null,null,null,null,"X",null,null,0,0,0,0,0,0,0,0,0,0,0,0,0,0]
[49,"CULTURE","Apport culturel","Management/ Gestion","Avoir une richesse dans les débats","Favoriser la diversité des compétences, les feedbacks et  backgrounds des organisateurs",1,null,null,null,null,null,null,null,null,"X",null,null,null,null,"X",null,null,null,null,"X","X","X","X","X","X","X","X","X","X","X","X","X","X","X",null,"X",null,null,"CA DEPEND",null,null,null,0,0,0,0,0,0,0,0,0,0,0,0,0,0]
[50,"CULTURE","Apport culturel","Management/ Gestion","Avoir une richesse dans les débats","En amont de l'évènement, s'assurer d'avoir les connaissances suffisantes, se renseigner et créer un dossier de synthèse à destination des organisateurs (règles de jeu pour un tournoi sportif, histoire pour visite guidée, théories pour un débat,…).",1,null,null,null,null,null,null,null,null,"X",null,null,null,null,null,null,null,null,null,"X","X","X","X","X","X","X","X","X","X","X","X","X","X","X",null,"X",null,null,null,"X",null,null,0,0,0,0,0,0,0,0,0,0,0,0,0,0]
[51,"CULTURE","Apport culturel","Management/ Gestion","Avoir une richesse dans les débats","Assurer la diversité des intervenants, activités et thématiques.",1,null,null,null,null,null,null,null,null,"X",null,null,null,null,null,null,null,null,null,"X","X","X","X","X","X","X","X","X","X","X","X","X","X","X",null,"X",null,null,null,"X",null,null,0,0,0,0,0,0,0,0,0,0,0,0,0,0]
[52,"CULTURE","Echanges culturels","Attentes des PP","Favoriser les échanges avec la population locale","Mettre en valeur la culture locale via des stands sur l'évènement (musique, terroir,…).",1,null,null,null,null,null,null,"X",null,"X",null,null,null,null,null,null,null,null,null,"X","X","X","X","X","X","X","X","X","X","X","X","X","X","X",null,"X",null,null,"X",null,null,null,0,0,0,0,0,0,0,0,0,0,0,0,0,0]
[53,"CULTURE","Echanges culturels","Attentes des PP","Favoriser les échanges avec la population locale","Mettre en valeur la culture locale via des partenariats locaux (musées, réducs, etc.).",1,null,null,null,null,null,null,"X",null,"X",null,null,null,null,null,null,null,null,null,"X","X","X","X","X","X","X","X","X","X","X","X","X","X","X","CA DEPEND",null,null,null,"X",null,null,null,0,0,0,0,0,0,0,0,0,0,0,0,0,0]
[54,"CULTURE","Echanges culturels","Attentes des PP","Favoriser les échanges avec la population locale","Inviter la population locale (communication,…).",1,null,null,null,null,null,null,null,null,"X",null,null,null,null,null,null,null,null,null,"X","X","X","X","X","X","X","X","?","X","X","X","X","X","X",null,"X",null,null,null,"X",null,null,0,0,0,0,0,0,0,0,0,0,0,0,0,0]
[55,"CULTURE","Echanges culturels","Relations humaines","Chercher à attirer sur l'événement un public hétérogène (études poursuivies, situations sociales, culturelles et géographiques)","Favoriser une communication multicanale et intergénérationnelle (réseaux sociaux, porte à porte, flying,…).",1,null,null,null,null,null,null,null,null,"X",null,null,null,null,null,null,null,null,null,"X","X","X","X","X","X","X","X","X","X","X","X","X","X","X","CA DEPEND DES SUPPORTS DE COM",null,null,null,null,null,null,null,0,0,0,0,0,0,0,0,0,0,0,0,0,0]
[56,"CULTURE","Echanges culturels","Relations humaines","Favoriser les échanges entre les participants/participants et participants/organisateurs","Prévoir des jeux brise-glaces, energizers, des jeux coopératifs,…",1,null,null,null,null,null,null,null,null,"X",null,null,null,null,null,null,null,null,null,"X","X","X","X","X","X","X","X","X","X","X","X","X","X","X",null,"X",null,null,null,"X",null,null,0,0,0,0,0,0,0,0,0,0,0,0,0,0]
[57,"CULTURE","Echanges culturels","Relations humaines","Favoriser les échanges entre les participants/participants et participants/organisateurs","Prévoir / concevoir des badges ou des éléments permettant d'identifier des personnes particulières comme les organisateurs.",1,null,null,null,null,null,null,null,null,"X",null,null,null,null,null,null,null,null,null,"X","X","X","X","X","X","X","X","X","X","X","X","X","X","X","X",null,null,null,null,"X",null,null,0,0,0,0,0,0,0,0,0,0,0,0,0,0]
[58,"CULTURE","Echanges culturels","Relations humaines","Favoriser les échanges entre les participants/participants et participants/organisateurs","Diffuser la liste des participants avant l'évènement et/ ou après avec les adresses emails si accord obtenu auprès des participants.",1,null,null,null,null,null,null,null,null,"X",null,null,null,null,null,null,null,null,null,"X","X","X","X","X","X","X","X","X","X","X","X","X","X","X",null,"X",null,null,null,"X",null,null,0,0,0,0,0,0,0,0,0,0,0,0,0,0]
[59,"CULTURE","Echanges culturels","Relations humaines","Favoriser les échanges entre les participants/participants et participants/organisateurs","Définir les interlocuteurs privilégiés et présenter l'équipe organisatrice en amont de l'évènement.",1,null,null,null,null,null,null,null,null,"X",null,null,null,null,null,null,null,null,null,"X","X","X","X","X","X","X","X","X","X","X","X","X","X","X",null,"X",null,null,null,"X",null,null,0,0,0,0,0,0,0,0,0,0,0,0,0,0]
[60,"CULTURE","Echanges culturels","Relations humaines","Favoriser les échanges entre les participants/participants et participants/organisateurs","Aménager des temps de rencontre informels (cocktail, café, jeux,…).",1,null,null,null,null,null,null,null,null,"X",null,null,null,null,null,null,null,null,null,"X","X","X","X","X","X","X","X","X","X","X","X","X","X","X","CA DEPEND",null,null,null,null,"X",null,null,0,0,0,0,0,0,0,0,0,0,0,0,0,0]
[61,"CULTURE","Sensibilisation au DD","Communication","Faire contribuer les participants à la responsabilisation de l'événement","Organiser un concours pour challenger les participants, comme un jeu fil rouge.",1,null,null,null,null,null,null,null,null,"X",null,null,null,null,null,null,null,null,null,"X","X","X","X","X","X","X","X","X","X","X","X","X","X","X","CA DEPEND",null,null,null,"X",null,null,null,0,0,0,0,0,0,0,0,0,0,0,0,0,0]
[62,"CULTURE","Sensibilisation au DD","Communication","Informer les participants sur leur moyen de contribuer à la responsabilisation de l'événement","Invitation/passeport personnalisé, responsabilisant et fun pour les personnes concernées.",1,null,null,null,null,null,"En matière recyclable, bracelet hand made, relayant des campagnes.",null,null,"X",null,null,null,null,null,null,null,null,null,"X","X","X","X","X","X","X","X","X","X","X","X","X","X","X","X",null,null,null,"X",null,null,null,0,0,0,0,0,0,0,0,0,0,0,0,0,0]
[63,"CULTURE","Sensibilisation au DD","Communication","Informer les participants sur leur moyen de contribuer à la responsabilisation de l'événement","Affichage des éco-gestes possibles sur place (tri, consommation d'eau,…).",1,null,null,null,null,null,null,null,null,"X",null,null,null,null,null,null,null,null,null,"X","X","X","X","X","X","X","X","X","X","X","X","X","X","X",null,"X",null,null,null,"X",null,null,0,0,0,0,0,0,0,0,0,0,0,0,0,0]
[64,"CULTURE","Sensibilisation au DD","Communication","Se montrer exemplaire en matière de développement durable","Faire appel à un label ou un logo pour signifier l'évènement comme responsable.",1,null,null,null,null,null,"Ecofest",null,null,"X",null,null,null,null,null,null,null,null,null,"X","X","X","X","X","X","X","X","X","X","X","X","X","X","X",null,"X",null,null,"X",null,null,null,0,0,0,0,0,0,0,0,0,0,0,0,0,0]
[65,"CULTURE","Sensibilisation au DD","Communication","Se montrer exemplaire en matière de développement durable","Dans les articles de presse, mettre en valeur les actions mises en œuvre.",1,null,null,null,null,null,null,null,null,"X",null,null,null,null,null,null,null,null,null,"X","X","X","X","X","X","X","X","X","X","X","X","X","X","X",null,"X",null,null,"CA DEPEND QUELLE TYPE DE PRESSE,PLUS OU MOINS FACILE D Y ACCEDER",null,null,null,0,0,0,0,0,0,0,0,0,0,0,0,0,0]
[66,"CULTURE","Sensibilisation au DD","Communication","Se montrer exemplaire en matière de développement durable","Créer une charte d'engagement ou signer une charte existante de l'évènement et la diffuser.",2,null,null,null,null,null,null,null,null,"X",null,null,null,null,null,null,null,null,null,"X","X","X","X","X","X","X","X","X","X","X","X","X","X","X",null,"X",null,null,null,"X",null,null,0,0,0,0,0,0,0,0,0,0,0,0,0,0]
[67,"CULTURE","Sensibilisation au DD","Compensation","Levée de fonds","Relayer une campagne de levée de fonds d'ONG/association sous forme de contribution libre.",1,null,null,null,null,null,null,null,null,"X","X",null,null,null,null,null,null,null,null,"X","X","X","X","X","X","X","X","X","X","X","X","X","X","X",null,"X",null,null,null,"X",null,null,0,{"$f":"IF(AND(N71=\"X\",$G71>=AX$471),1,0)","v":0},{"$f":"IF(AND(O71=\"X\",$G71>=AY$471),1,0)","v":0},{"$f":"IF(AND(P71=\"X\",$G71>=AZ$471),1,0)","v":0},{"$f":"IF(AND(Q71=\"X\",$G71>=BA$471),1,0)","v":0},{"$f":"IF(AND(R71=\"X\",$G71>=BB$471),1,0)","v":0},{"$f":"IF(AND(S71=\"X\",$G71>=BC$471),1,0)","v":0},{"$f":"IF(AND(T71=\"X\",$G71>=BD$471),1,0)","v":0},{"$f":"IF(AND(U71=\"X\",$G71>=BE$471),1,0)","v":0},{"$f":"IF(AND(V71=\"X\",$G71>=BF$471),1,0)","v":0},{"$f":"IF(AND(W71=\"X\",$G71>=BG$471),1,0)","v":0},{"$f":"IF(AND(X71=\"X\",$G71>=BH$471),1,0)","v":0},{"$f":"IF(AND(Y71=\"X\",$G71>=BI$471),1,0)","v":0},0]
[68,"CULTURE","Sensibilisation au DD","Sensibilisation des participants","Familiariser les participants avec les enjeux généraux du développement durable","Prévoir des animations et jeux sur les thématiques du développement durable (éco-gestes, alimentation responsable, biodiversité, gouvernance,…), des jeux de rôles.",1,null,null,null,null,null,null,null,null,"X",null,null,null,null,null,null,null,null,null,"X","X","X","X","X","X","X","X","X","X","X","X","X","X","X",null,"X",null,null,null,"X",null,null,0,0,0,0,0,0,0,0,0,0,0,0,0,0]
[69,"CULTURE","Sensibilisation au DD","Sensibilisation des participants","Familiariser les participants avec les enjeux généraux du développement durable","Organiser un village associatif.",1,null,null,null,null,null,null,null,null,"X",null,null,null,null,null,null,null,"X",null,"X","X","X","X","X","X","X","X","X","X","X","X","X","X","X",null,"X",null,null,"X",null,null,null,0,0,0,0,0,0,0,0,0,0,0,0,0,0]
[70,"CULTURE","Sensibilisation au DD","Sensibilisation des participants","Familiariser les participants avec les enjeux généraux du développement durable","Inviter les acteurs locaux et nationaux du développement durable (ex : conférence, forum, stand…).",1,null,null,null,null,null,null,"X",null,"X",null,null,null,null,null,null,null,null,null,"X","X","X","X","X","X","X","X","X","X","X","X","X","X","X",null,"X",null,null,"X",null,null,null,0,0,0,0,0,0,0,0,0,0,0,0,0,0]
[71,"CULTURE","Sensibilisation au DD","Sensibilisation des participants","Familiariser les participants avec les enjeux généraux du développement durable","Faire appel à une compagnie d'art de rue.",1,null,null,null,null,null,null,null,null,"X",null,null,null,null,null,null,null,null,null,"X","X","X","X","X","X","X","X","X","X","X","X","X","X","X","CA DEPEND",null,null,null,"X",null,null,null,0,0,0,0,0,0,0,0,0,0,0,0,0,0]
[72,"CULTURE","Sensibilisation au DD","Sensibilisation des participants","Familiariser les participants avec les enjeux généraux du développement durable","Créer un \"office du tourisme\" ou un annuaire du développement durable recensant les bons plans DD du territoire.",1,null,null,null,null,null,null,null,null,"X",null,null,null,null,null,null,null,null,null,"X","X","X","X","X","X","X","X","X","X","X","X","X","X","X",null,"X",null,null,"X",null,null,null,0,0,0,0,0,0,0,0,0,0,0,0,0,0]
[73,"ECONOMIE","Gestion du budget","Alimentation","Limiter les coûts","Prévoir les quantités de consommables adéquates.",3,null,null,null,null,null,null,null,null,null,"X",null,null,null,null,null,null,null,null,"X","X","X","X","X","X","X","X","X","X","X","X","X","X","O","X",null,null,null,"X","X",null,null,1,0,0,0,1,0,0,0,0,0,0,0,0,1]
[74,"ECONOMIE","Gestion du budget","Bâtiments/ Structures","Limiter les coûts","Estimer au plus juste le nombre de participants et définir un lieu optimal pour éviter de multiplier les espaces inoccupés.",2,null,null,null,null,null,null,null,null,null,"X","X",null,null,null,null,null,null,null,"X","X","X","X","X","X","X","X","X","X","X","X","X","X","X","X",null,null,null,"X",null,null,null,0,0,0,0,0,0,0,0,0,0,0,0,0,0]
[75,"ECONOMIE","Gestion du budget","Déchets","Créer des recettes pour l'organisation","Revendre les déchets produits durant l'évènement à un prestataire qui pourra les revaloriser.",1,null,null,null,null,null,null,null,null,null,"X",null,null,"X",null,null,null,null,null,"X","X","X","X","X","X","X","X","X","X","X","X","X","X","X",null,null,null,null,null,null,null,null,0,0,0,0,0,0,0,0,0,0,0,0,0,0]
[76,"ECONOMIE","Gestion du budget","Loyauté des pratiques","Limiter les coûts","Négocier des tarifs de groupes pour les transports, l'hébergement et la restauration.",1,null,null,null,null,null,null,null,null,null,"X",null,null,null,null,null,null,null,null,"X","X","X","X","X","X","X","X","x","X","X","X","X","X","X","X",null,null,null,"X",null,null,null,{"$f":"IF(OR(BJ80=0,AU80=\"Non applicable\"),0,1)","v":0},0,0,0,0,0,0,0,0,0,0,0,0,{"$f":"SUM(AX80:BI80)","v":0}]
[77,"ECONOMIE","Gestion du budget","Management/ Gestion","Anticiper et plannifier sa trésorerie","Respecter le budget prévisionnel indiqué aux partenaires financiers de l'évènement.",2,null,null,null,null,null,null,null,null,null,"X",null,null,null,null,null,null,null,null,"X","X","X","X","X","X","X","X","X","X","X","X","X","X","X","X",null,null,null,"X",null,null,null,0,0,0,0,0,0,0,0,0,0,0,0,0,0]
[78,"ECONOMIE","Gestion du budget","Management/ Gestion","Anticiper et plannifier sa trésorerie","Faire un prévisionnel de trésorerie et contrôler ses dépenses.",3,null,null,null,null,null,null,null,null,null,"X",null,null,null,null,null,null,null,null,"X","X","X","X","X","X","X","X","X","X","X","X","X","X","X","X","X",null,null,"X","X",null,null,1,0,0,0,1,0,0,0,0,0,0,0,0,1]
[79,"ECONOMIE","Gestion du budget","Management/ Gestion","Avoir un bilan équilibré","Bien définir son budget prévisionnel et mettre en place des outils de suivi efficaces.",2,null,null,null,null,null,null,null,null,null,"X",null,null,null,null,null,null,null,null,"X","X","X","X","X","X","X","X","X","X","X","X","X","X","X","X",null,null,null,"X","X",null,null,0,0,0,0,0,0,0,0,0,0,0,0,0,0]
[80,"ECONOMIE","Gestion du budget","Management/ Gestion","Limiter les coûts","Privilégier des dépenses bien proportionnées, ne pas faire d'excès.",2,null,null,null,null,null,null,null,null,null,"X",null,null,null,null,null,null,null,null,"X","X","X","X","X","X","X","X","X","X","X","X","X","X","X","X","X",null,null,"X","X",null,null,0,0,0,0,0,0,0,0,0,0,0,0,0,0]
[81,"ECONOMIE","Gestion du budget","Management/ Gestion","Suivre et contrôler ses dépenses","S'intéresser aux coûts globaux (sur l'ensemble du cycle de vie des produits). ",1,null,null,null,null,null,null,null,null,null,"X",null,null,null,null,null,null,null,null,"X","X","X","X","X","X","X","X","X","X","X","X","X","X","X","X",null,null,null,null,null,null,null,0,0,0,0,0,0,0,0,0,0,0,0,0,0]
[82,"ECONOMIE","Impacts économiques indirects","Déplacements","Anticiper les coûts induits","Choisir le lieu de l'évènement de manière à limiter les frais liés au transport et à l'hébergement des participants et organisateurs.",3,null,null,null,null,null,null,null,null,null,"X",null,null,null,null,null,null,null,null,"X","O","X","X","X","X","X","X","X","X","X","X","X","X","X","X",null,null,null,"X",null,null,null,1,0,0,0,1,0,0,0,0,0,0,0,0,1]
[83,"ECONOMIE","Impacts économiques indirects","Management/ Gestion","Gérer le placement de son argent","Ouvrir le ou les comptes associés à l'organisation de l'évènement dans une banque au fonctionnement coopératif, transparent dans l'usage des épargnes, s'appliquant la taxe carbone / financière.",1,null,null,null,null,null,"Exemples : Nef, Crédit Coopératif",null,null,null,"X",null,null,null,null,null,null,"X",null,"X","X","X","X","X","X","X","X","X","X","X","X","X","X","X","X",null,null,null,"X",null,null,null,0,0,0,0,0,0,0,0,0,0,0,0,0,0]
[84,"ECONOMIE","Investissement juste","Management/ Gestion","Choisir des partenaires responsables","Rechercher des subventions auprès d'organismes ou sponsors présentant un réel engagement dans le développement durable.",2,null,null,null,null,null,null,null,null,null,"X",null,null,null,null,null,null,null,null,"X","X","X","X","X","X","X","X","X","X","X","X","X","X","X","X",null,null,null,"X",null,null,null,0,0,0,0,0,0,0,0,0,0,0,0,0,0]
[85,"ECONOMIE","Investissement juste","Management/ Gestion","Créer des recettes pour l'organisation","Lever des fonds en toute transparence.",3,null,null,null,null,null,null,null,null,null,"X",null,null,null,null,null,null,null,null,"X","X","X","X","X","X","X","X","X","X","X","X","X","X","X","X",null,null,null,"X",null,null,null,1,0,0,0,1,0,0,0,0,0,0,0,0,1]
[86,"ECONOMIE","Investissement juste","Management/ Gestion","Créer des recettes pour l'organisation","Envisager les investissements à consentir pour organiser l'évènement sur le long terme.",1,null,null,null,null,null,null,null,null,null,"X",null,null,null,null,null,null,null,null,"X","X","X","X","X","X","X","X","X","X","X","X","X","X","X","X",null,null,null,"X",null,null,null,0,0,0,0,0,0,0,0,0,0,0,0,0,0]
[87,"ECONOMIE","Rémunération et subordination","Conditions de travail","Gérer les bénévoles/organisateurs","Si pertinent, privilégier l'emploi de personnes en situation précaire dans l'organisation de l'évènement pour tout travail rémunéré.",1,null,null,null,null,null,null,null,null,null,"X",null,null,null,null,null,null,"X",null,"X","X","X","X","X","x","X","x","X","X","X","X","X","X","X","X",null,null,null,"X",null,null,null,0,0,0,0,0,0,0,0,0,0,0,0,0,0]
[88,"ECONOMIE","Rémunération et subordination","Conditions de travail","Gérer les bénévoles/organisateurs","Prendre en charge en totalité ou en partie, selon les possibilités, les frais éventuels d'hébergement et de transport des organisateurs.",1,null,null,null,null,null,null,null,null,null,"X",null,null,null,null,null,null,null,null,"X","X","X","X","X","X","X","X","X","X","X","X","X","X","X",null,null,null,null,null,null,null,null,0,0,0,0,0,0,0,0,0,0,0,0,0,0]
[89,"EMPREINTE CARBONE","Communication","Communication","Adapter les supports et les moyens aux cibles","Choisir le moyen de communication le plus adapté au public visé. Il n'est pas nécessaire de multiplier les supports (affiches, flyers, application smartphone…) si vous estimez  qu'ils ne toucheront pas votre cible de manière efficace.",3,null,null,null,null,null,null,null,null,null,null,"X",null,null,null,null,null,null,null,"X","X","X","X","X","X","X","X","X","X","X","X","X","X","X",null,null,null,null,null,null,null,null,1,0,0,0,0,1,0,0,0,0,0,0,0,1]
[90,"EMPREINTE CARBONE","Communication","Communication","Adapter les supports et les moyens aux cibles","Choisir des endroits stratégiques pour poser les affiches : 5 affiches bien placées valent mieux que 30 au fond du couloir ! Proposer un panneau réservé à la communication associative, en respectant un emplacement par association. Ainsi, les étudiants savent où regarder pour connaître vos actualités.",3,null,null,null,null,null,null,null,null,null,null,"X",null,null,null,null,null,null,null,"X","X","X","X","X","X","X","X","X","X","X","X","X","X","X",null,null,null,null,null,null,null,null,1,0,0,0,0,1,0,0,0,0,0,0,0,1]
[91,"EMPREINTE CARBONE","Communication","Communication","Bien concevoir la signalétique","Utiliser des supports intemporels (pas de notion d'année ou de lieu).",1,null,null,null,null,null,null,null,null,null,null,"X",null,null,null,null,null,null,null,"X","X","X","X","X","X","X","X","X","X","X","X","X","X","X",null,null,null,null,null,null,null,null,0,0,0,0,0,0,0,0,0,0,0,0,0,0]
[92,"EMPREINTE CARBONE","Communication","Communication","Utiliser des goodies éco-conçu","Privilégier des matériaux recyclés et/ou recyclables : crayon en bois certifié, stylo en amidon de maïs, bloc notes en papier recyclé… Des exemples sur le site http://www.remarkable.co.uk/",1,null,null,null,null,null,null,null,null,null,null,"X",null,"X",null,null,null,null,null,"X","X","X","X","X","X","X","X","X","X","X","X","X","X","X",null,null,null,null,null,null,null,null,0,0,0,0,0,0,0,0,0,0,0,0,0,0]
[93,"EMPREINTE CARBONE","Communication","Communication","Utiliser des goodies éco-conçu","Elaborer un annuaire des entreprises responsables et travailler en priorité avec celles-ci.",1,null,null,null,null,null,null,null,null,null,null,"X",null,null,null,null,null,"X",null,"X","X","X","X","X","X","X","X","X","X","X","X","X","X","X",null,null,null,null,null,null,null,null,0,0,0,0,0,0,0,0,0,0,0,0,0,0]
[94,"EMPREINTE CARBONE","Communication","Communication","Utiliser des goodies utiles","Sensibiliser les partenaires à ce sujet : prévenez vos partenaires que vous êtes dans une démarche responsable et que vous souhaiteriez sélectionner ensemble un ou deux goodies, les plus utiles aux étudiants.",3,null,null,null,null,null,null,null,null,null,null,"X",null,null,"X",null,null,null,null,"X","X","X","X","X","X","X","X","X","X","X","X","X","X","X",null,null,null,null,null,null,null,null,1,0,0,0,0,1,0,0,1,0,0,0,0,2]
[95,"EMPREINTE CARBONE","Communication","Communication","Utiliser des goodies utiles","Laisser le choix des goodies aux participants : disposer quelques goodies sur une table au lieu de distribuer des sacs tout faits ; rester devant pour expliquer l'utilité des goodies. Ainsi chacun repartira avec ce dont il a besoin et n'accumulera pas les objets inutiles chez soi !",2,null,null,null,null,null,null,null,null,null,null,"X",null,null,null,null,null,null,null,"X","X","X","X","X","X","X","X","X","X","X","X","X","X","X",null,null,null,null,null,null,null,null,0,0,0,0,0,0,0,0,0,0,0,0,0,0]
[96,"EMPREINTE CARBONE","Communication","Communication","Utiliser des goodies utiles","Evaluer les besoins des participants afin de leur proposer des objets qui leur seront utiles lors de l'évènement ou dans leur vie quotidienne.",2,null,null,null,null,null,null,null,null,null,null,"X",null,null,null,null,null,null,null,"X","X","X","X","X","X","X","X","X","X","X","X","X","X","X",null,null,null,null,null,null,null,null,0,0,0,0,0,0,0,0,0,0,0,0,0,0]
[97,"EMPREINTE CARBONE","Communication","Communication","Utiliser des supports de communication réutilisables","Privilégier les supports de type bâches et kakemonos et les récupérer avec soin après chaque évènement afin de les réutiliser.",1,null,null,null,null,null,null,null,null,null,null,"X",null,null,null,null,null,null,null,"X","X","X","X","X","X","X","X","X","X","X","X","X","X","X",null,null,null,null,null,null,null,null,0,0,0,0,0,0,0,0,0,0,0,0,0,0]
[98,"EMPREINTE CARBONE","Communication","Communication","Utiliser des supports d'information responsables","Utiliser du papier recyclé ou issu de forêts gérées durablement : orienter les participants en restant cohérent dans votre démarche responsable. Le papier issu de forêts gérées durablement peut être certifié FSC ou PEFC.",1,null,null,null,null,null,"Commander les supports de com' chez des fournisseurs labellisés « imprim'vert », organiser une réduction graduelle des quantités. ",null,"x",null,null,"X",null,null,null,null,null,null,null,"X","X","X","X","X","X","X","X","X","X","X","X","X","X","X",null,null,null,null,null,null,null,null,0,0,0,0,0,0,0,0,0,0,0,0,0,0]
[99,"EMPREINTE CARBONE","Communication","Communication","Utiliser des supports d'information responsables","Etablir un partenariat de communication avec une autre association vous permet par exemple de partager un flyer (recto/verso). De cette façon, vous réduisez votre consommation de papier ainsi que vos frais d'impression.",1,null,null,null,null,null,null,"X",null,null,null,"X",null,null,null,null,null,"X",null,"X","X","X","X","X","X","X","X","X","X","X","X","X","X","X",null,null,null,null,null,null,null,null,0,0,0,0,0,0,0,0,0,0,0,0,0,0]
[100,"EMPREINTE CARBONE","Communication","Communication","Utiliser des supports d'information responsables","Choisir un imprimeur labellisé Imprim'vert ou mettre en place un accord avec  votre partenaire (souvent une banque en école) afin de produire des impressions qui soient les plus responsables possible.",1,null,null,null,null,null,null,null,null,null,null,"X",null,"X",null,null,null,null,null,"X","X","X","X","X","X","X","X","X","X","X","X","X","X","X",null,null,null,null,null,null,null,null,0,0,0,0,0,0,0,0,0,0,0,0,0,0]
[101,"EMPREINTE CARBONE","Communication","Communication","Utiliser des vêtements et accesoires responsables","Récupérer des vieux t-shirts, casquettes, lunettes… et customiser soi-même à l'aide de matériaux recyclés/recyclables et de produits non toxiques.",1,null,null,null,null,null,null,null,null,null,null,"X",null,null,null,null,null,null,null,"X","X","X","X","X","X","X","X","X","X","X","X","X","X","X",null,null,null,null,null,null,null,null,0,0,0,0,0,0,0,0,0,0,0,0,0,0]
[102,"EMPREINTE CARBONE","Communication","Communication","Utiliser des vêtements et accesoires responsables","Privilégier des vêtements et accessoires en textiles recyclés, en coton bio et/ou issu du commerce équitable.",1,null,null,null,null,null,null,null,null,null,null,"X",null,null,null,null,null,null,null,"X","X","X","X","X","X","X","X","X","X","X","X","X","X","X",null,null,null,null,null,null,null,null,{"$f":"IF(OR(BJ106=0,AU106=\"Non applicable\"),0,1)","v":0},0,0,0,0,0,0,0,0,0,0,0,0,0]
[103,"EMPREINTE CARBONE","Communication","Déchets","Collecter les affiches et la signalétiques et assurer leur fin de vie","Récupérer la signalétique : la garder avec soin si elle peut être réutilisée ou la jeter dans les poubelles prévues à cet effet.",2,null,null,null,null,null,null,null,null,null,null,"X",null,null,null,null,null,null,null,"X","X","X","X","X","X","X","X","X","X","X","X","X","X","X",null,null,null,null,null,null,null,null,0,0,0,0,0,0,0,0,0,0,0,0,0,0]
[104,"EMPREINTE CARBONE","Communication","Déchets","Collecter les affiches et la signalétiques et assurer leur fin de vie","Chercher qui peut reprendre vos affiches : demandez à votre imprimeur s'il reprend les affiches pour les recycler ou jetez ce papier dans les poubelles prévues à cet effet. ",1,null,null,null,null,null,null,null,null,null,null,"X",null,null,null,null,null,null,null,"X","X","X","X","X","X","X","X","X","X","X","X","X","X","X",null,null,null,null,null,null,null,null,0,0,0,0,0,0,0,0,0,0,0,0,0,0]
[105,"EMPREINTE CARBONE","Communication","Déchets","Trier et recycler le papier","Repérer les containers prévus pour accueillir les déchets recyclables sur le lieu de l'évènement et y jeter le papier non récupérable. Si vous n'en avez pas à disposition, prévoir un bac de tri.",2,null,null,null,null,null,null,null,null,null,null,"X",null,"X",null,null,null,null,null,"X","X","X","X","X","X","X","X","X","X","X","X","X","X","X",null,null,null,null,null,null,null,null,0,0,0,0,0,0,0,0,0,0,0,0,0,0]
[106,"EMPREINTE CARBONE","Communication","Déchets","Trier et recycler les cartouches d'encre","Installer des bacs de récupération sur le campus.",1,null,null,null,null,null,null,null,null,null,null,"X",null,"X",null,null,null,null,null,"X","X","X","X","X","X","X","X","X","X","X","X","X","X","X",null,null,null,null,null,null,null,null,0,0,0,0,0,0,0,0,0,0,0,0,0,0]
[107,"EMPREINTE CARBONE","Communication","Déchets","Trier et recycler les cartouches d'encre","Contacter une association locale",1,null,null,null,null,null,"De nombreux réseaux associatifs proposent de récupérer vos cartouches vides afin de les recycler. Ils collectent ainsi des fonds pour soutenir des projets associatifs solidaires. Quelques clics dans un moteur de recherche suffisent pour trouver ce type d'action près de chez vous. Sinon, certaines entreprises de reconditionnement  rachètent les cartouches vides. http://www.eco-collecte.fr/   http://www.amomp.com/recyclage-cartouche-encre.php   http://www.recupcartouches.com/",null,null,null,null,"X",null,null,null,null,null,null,null,"X","X","X","X","X","X","X","X","X","X","X","X","X","X","X",null,null,null,null,null,null,null,null,0,0,0,0,0,0,0,0,0,0,0,0,0,0]
[108,"EMPREINTE CARBONE","Communication","Déchets","Utiliser une billeterie dématérialisée","Réaliser une application smartphone pour communiquer (pas de papier).",1,null,null,null,null,null,null,null,null,null,"X","X",null,null,null,null,null,null,null,"X","X","X","X","X","X","X","X","X","X","X","X","X","X","X",null,null,null,null,null,null,null,null,0,0,0,0,0,0,0,0,0,0,0,0,0,0]
[109,"EMPREINTE CARBONE","Communication","Déchets","Utiliser une billeterie dématérialisée","Utiliser Internet pour la billetterie ou les invitations. Il existe des systèmes de paiement par internet accessibles aux associations (pas de papier).",1,null,null,null,null,null,null,null,null,null,"X","X",null,null,null,null,null,null,null,"X","X","X","X","X","X","X","X","X","X","X","X","X","X","X",null,null,null,null,null,null,null,null,0,0,0,0,0,0,0,0,0,0,0,0,0,0]
[110,"EMPREINTE CARBONE","Communication","Transports","Bien organiser ses déplacements","Si vous avez un véhicule particulier ou un camion, prévoir un lieu de stationnement.",1,null,null,null,null,null,null,null,null,null,null,"X",null,null,null,null,null,null,null,"X","X","X","X","X","X","X","X","X","X","X","X","X","X","X",null,null,null,null,null,null,null,null,0,0,0,0,0,0,0,0,0,0,0,0,0,0]
[111,"EMPREINTE CARBONE","Communication","Transports","Bien organiser ses déplacements","Planifier et optimiser ses déplacements pour éviter les transports à vide .",2,null,null,null,null,null,null,null,null,null,null,"X",null,null,null,null,null,null,null,"X","O","X","X","X","X","X","X","X","X","X","X","X","X","X",null,null,null,null,null,null,null,null,0,0,0,0,0,0,0,0,0,0,0,0,0,0]
[112,"EMPREINTE CARBONE","Communication","Transports","Bien organiser ses déplacements","Dans la mesure du possible, profiter des déplacements de personnes pour faire coïncider le transport de matériel.",2,null,null,null,null,null,null,null,null,null,"X","X",null,null,null,null,null,null,null,"X","O","X","X","X","X","X","X","X","X","X","X","X","X","X",null,null,null,null,null,null,null,null,0,0,0,0,0,0,0,0,0,0,0,0,0,0]
[113,"EMPREINTE CARBONE","Communication","Transports","Diminuer la distance de transport","Travailler avec des partenaires locaux.",1,null,null,null,null,null,null,"X",null,null,null,"X",null,null,null,null,null,null,null,"X","X","X","X","X","X","X","X","X","X","X","X","X","X","X",null,null,null,null,null,null,null,null,0,0,0,0,0,0,0,0,0,0,0,0,0,0]
[114,"EMPREINTE CARBONE","Communication","Transports","Diminuer la distance de transport","Stocker le matériel dans un lieu proche : demander à l'école/université ou à la mairie de vous mettre un local à disposition.",1,null,null,null,null,null,null,null,null,null,null,"X",null,null,null,null,null,null,null,"X","X","X","X","X","X","X","X","X","X","X","X","X","X","X",null,null,null,null,null,null,null,null,0,0,0,0,0,0,0,0,0,0,0,0,0,0]
[115,"EMPREINTE CARBONE","Déplacement de personnes","Déplacements","Donner les bonnes indications pour éviter de se perdre","Proposer des plans afin d'éviter les détours inutiles et de se perdre : vous gagnerez du temps, limiterez vos émissions de CO2 si vous êtes motorisés et arriverez de meilleur humeur !",1,null,null,null,null,null,null,null,null,null,null,"X",null,null,null,null,null,null,null,"X","O","X","X","X","X","X","X","X","X","X","X","X","X","X",null,null,null,null,null,null,null,null,0,0,0,0,0,0,0,0,0,0,0,0,0,0]
[116,"EMPREINTE CARBONE","Déplacement de personnes","Déplacements","Donner les bonnes indications pour éviter de se perdre","Mettre en place une signalisation adaptée.",2,null,null,null,null,null,null,null,null,null,null,"X",null,null,null,null,null,null,null,"X","O","X","X","X","X","X","X","X","X","X","X","X","X","X",null,null,null,null,null,null,null,null,0,0,0,0,0,0,0,0,0,0,0,0,0,0]
[117,"EMPREINTE CARBONE","Déplacement de personnes","Déplacements","Favoriser l'utilisation du train","Prévoir des navettes entre la gare et l'évènement pour encourager les participants à venir en train.",1,null,null,null,null,null,null,null,null,null,null,"X",null,null,null,null,null,null,null,"X","O","X","X","X","X","X","X","X","X","X","X","X","X","X",null,null,null,null,null,null,null,null,0,0,0,0,0,0,0,0,0,0,0,0,0,0]
[118,"EMPREINTE CARBONE","Déplacement de personnes","Déplacements","Favoriser l'utilisation du train","Mettre en place des réductions ou remboursements pour les personnes venant en train et pas pour celles venant en voiture.",1,null,null,null,null,null,"Valoriser les déplacements \"propres\" par des boissons offertes, cadeaux, goodies…",null,null,null,null,"X",null,null,null,null,null,null,null,"X","O","X","X","X","X","X","X","X","X","X","X","X","X","X",null,null,null,null,null,null,null,null,0,0,0,0,0,0,0,0,0,0,0,0,0,0]
[119,"EMPREINTE CARBONE","Déplacement de personnes","Déplacements","Mettre en place des systèmes de visio-conférence","Etudier la possibilité, en fonction du lieu et des moyens techniques, de mettre en placec des visioconférences.",1,null,null,null,null,null,null,null,null,null,null,"X",null,null,null,null,null,null,null,"X","O","X","X","X","X","X","X","X","X","X","X","X","X","X",null,null,null,null,null,null,null,null,0,0,0,0,0,0,0,0,0,0,0,0,0,0]
[120,"EMPREINTE CARBONE","Déplacement de personnes","Déplacements","Optimiser l'organisation des déplacements","Se renseigner sur les réseaux de transports locaux, informer les participants sur les moyens de transports locaux.",3,null,null,null,null,null,"Plans, tarifs, lien vers le site du transporteur local.","X",null,null,null,"X",null,null,null,null,null,null,null,"X","O","X","X","X","X","X","X","X","X","X","X","X","X","X",null,null,null,null,null,null,null,null,1,1,0,0,0,1,0,0,0,0,0,0,0,2]
[121,"EMPREINTE CARBONE","Déplacement de personnes","Déplacements","Optimiser l'organisation des déplacements","Prévoir un planning avec le nombre de voyages à faire pour optimiser les chargements.",1,null,null,null,null,null,null,null,null,null,null,"X",null,null,null,null,null,null,null,"X","O","X","X","X","X","X","X","X","X","X","X","X","X","X",null,null,null,null,null,null,null,null,0,0,0,0,0,0,0,0,0,0,0,0,0,0]
[122,"EMPREINTE CARBONE","Déplacement de personnes","Déplacements","Optimiser l'organisation des déplacements","Demander à l'inscription des renseignements sur les transports : lieu de départ, moyen envisagé…",2,null,null,null,null,null,null,null,null,null,null,"X",null,null,null,null,null,null,null,"X","O","X","X","X","X","X","X","X","X","X","X","X","X","X",null,null,null,null,null,null,null,null,0,0,0,0,0,0,0,0,0,0,0,0,0,0]
[123,"EMPREINTE CARBONE","Déplacement de personnes","Déplacements","Permettre le co-voiturage","Organiser soi-même le covoiturage en prenant les lieux de départ des participants et en proposant à ceux partant d'un même lieu d'envisager un départ commun.",1,null,null,null,null,null,null,null,null,null,null,"X",null,null,null,null,null,"X",null,"X","O","X","X","X","X","X","X","X","X","X","X","X","X","X",null,null,null,null,null,null,null,null,0,0,0,0,0,0,0,0,0,0,0,0,0,0]
[124,"EMPREINTE CARBONE","Déplacement de personnes","Déplacements","Permettre le co-voiturage","Mettre en place une plateforme de covoiturage éventuellement en passant par un site partenaire.",1,null,null,null,null,null,null,null,null,null,null,"X",null,null,null,null,null,"X",null,"X","O","X","X","X","X","X","X","X","X","X","X","X","X","X",null,null,null,null,null,null,null,null,0,0,0,0,0,0,0,0,0,0,0,0,0,0]
[125,"EMPREINTE CARBONE","Déplacement de personnes","Déplacements","Privilégier les moyens de transport doux","Renseigner sur les alternatives possibles : vélo en libre-service, partage de véhicules électriques,…",2,null,null,null,null,null,null,null,null,null,null,"X",null,null,null,null,null,null,null,"X","O","X","X","X","X","X","X","X","X","X","X","X","X","X",null,null,null,null,null,null,null,null,0,0,0,0,0,0,0,0,0,0,0,0,0,0]
[126,"EMPREINTE CARBONE","Déplacement de personnes","Déplacements","Privilégier les moyens de transport doux","Proposer des trajets groupés en vélo pour certaines manifestations.",1,null,null,null,null,null,null,null,null,null,null,"X",null,null,null,null,null,null,null,"X","O","X","X","X","X","X","X","X","X","X","X","X","X","X",null,null,null,null,null,null,null,null,0,0,0,0,0,0,0,0,0,0,0,0,0,0]
[127,"EMPREINTE CARBONE","Déplacement de personnes","Déplacements","Privilégier les moyens de transport doux","Mettre en place un parc à vélos, si possible surveillé.",1,null,null,null,null,null,null,null,null,null,null,"X",null,null,null,null,null,null,null,"X","O","X","X","X","X","X","X","X","X","X","X","X","X","X",null,null,null,null,null,null,null,null,0,0,0,0,0,0,0,0,0,0,0,0,0,0]
[128,"EMPREINTE CARBONE","Déplacement de personnes","Déplacements","Privilégier l'utilisation de transport en commun","Négocier des réductions sur les transports locaux afin d'inciter les étudiants à les emprunter et diminuer les émissions de CO2 liées au transport.",1,null,null,null,null,null,null,null,null,null,null,"X",null,null,null,null,null,null,null,"X","O","X","X","X","X","X","X","X","X","X","X","X","X","X",null,null,null,null,null,null,null,null,0,0,0,0,0,0,0,0,0,0,0,0,0,0]
[129,"EMPREINTE CARBONE","Déplacement de personnes","Déplacements","Privilégier l'utilisation de transport en commun","Indiquer les lignes de transport utiles lors de l'inscription des participants avec un comparatif prévisionnel du temps et des émissions de CO2.",1,null,null,null,null,null,null,null,null,null,null,"X",null,null,null,null,null,null,null,"X","O","X","X","X","X","X","X","X","X","X","X","X","X","X",null,null,null,null,null,null,null,null,0,0,0,0,0,0,0,0,0,0,0,0,0,0]
[130,"EMPREINTE CARBONE","Lieu","Bâtiments/ Structures","Choisir un hébergement proche du lieu","Vérifier le réseau de transports pour être sûr de l'accessibilité entre le lieu de l'évènement et l'hébergement.",2,null,null,null,null,null,null,null,null,null,null,"X",null,null,null,null,null,null,null,"X","X","X","X","O","X","X","X","X","X","X","X","X","X","X",null,null,null,null,null,null,null,null,0,0,0,0,0,0,0,0,0,0,0,0,0,0]
[131,"EMPREINTE CARBONE","Lieu","Bâtiments/ Structures","Choisir un hébergement proche du lieu","Se renseigner au préalable sur les distances avec des sites tels que Google map, Mappy...",1,null,null,null,null,null,null,null,null,null,null,"X",null,null,null,null,null,null,null,"X","X","X","X","O","X","X","X","X","X","X","X","X","X","X",null,null,null,null,null,null,null,null,0,{"$f":"IF(AND(N135=\"X\",$G135>=AX$471),1,0)","v":0},{"$f":"IF(AND(O135=\"X\",$G135>=AY$471),1,0)","v":0},{"$f":"IF(AND(P135=\"X\",$G135>=AZ$471),1,0)","v":0},{"$f":"IF(AND(Q135=\"X\",$G135>=BA$471),1,0)","v":0},{"$f":"IF(AND(R135=\"X\",$G135>=BB$471),1,0)","v":0},{"$f":"IF(AND(S135=\"X\",$G135>=BC$471),1,0)","v":0},{"$f":"IF(AND(T135=\"X\",$G135>=BD$471),1,0)","v":0},{"$f":"IF(AND(U135=\"X\",$G135>=BE$471),1,0)","v":0},{"$f":"IF(AND(V135=\"X\",$G135>=BF$471),1,0)","v":0},{"$f":"IF(AND(W135=\"X\",$G135>=BG$471),1,0)","v":0},{"$f":"IF(AND(X135=\"X\",$G135>=BH$471),1,0)","v":0},{"$f":"IF(AND(Y135=\"X\",$G135>=BI$471),1,0)","v":0},0]
[132,"EMPREINTE CARBONE","Lieu","Bâtiments/ Structures","Choisir un lieu adapté au nombre de participants","Estimer au plus juste le nombre de participants et définir un lieu optimal pour éviter de multiplier les espaces inoccupés.",2,null,null,null,null,null,null,null,null,null,"X","X",null,null,null,null,null,null,null,"X","X","X","X","X","X","X","X","X","X","X","X","X","X","X",null,null,null,null,null,null,null,null,0,0,0,0,0,0,0,0,0,0,0,0,0,0]
[133,"EMPREINTE CARBONE","Lieu","Bâtiments/ Structures","Choisir un lieu possédant les installations adéquates","Evaluer vos besoins précis en terme de structures et d'équipements (nombre de pièces, surface, cuisine, sanitaires,…).",2,null,null,null,null,null,null,null,null,null,null,"X",null,null,null,null,null,null,null,"X","X","X","X","X","X","X","X","X","X","X","X","X","X","X",null,null,null,null,null,null,null,null,0,0,0,0,0,0,0,0,0,0,0,0,0,0]
[134,"EMPREINTE CARBONE","Lieu","Bâtiments/ Structures","Eco-concevoir les lieux d'hébergement provisoires","Faire appel à des entreprises/organismes labellisés ou spécialisés dans la conception de villages écolos (tentes, tipis,…).",1,null,null,null,null,null,null,null,null,null,null,"X",null,null,null,null,null,null,null,"X","X","X","X","X","X","X","X","X","X","X","X","X","X","X",null,null,null,null,null,null,null,null,0,0,0,0,0,0,0,0,0,0,0,0,0,0]
[135,"EMPREINTE CARBONE","Lieu","Bâtiments/ Structures","Eco-concevoir les structures provisoires","Faire appel à des entreprises/organismes labellisés ou spécialisés dans les structures provisoires écologiques.",1,null,null,null,null,null,"Par exemple, voir la marque Mobibois sur le site de l'Office National des Forêts pour les évènements en milieu naturel.  http://www.onf.fr/produits_prestations/sommaire/besoins_reponses/loisirs_nature/espaces_naturels/reponses/20101118-161127-154846/@@index.html",null,null,null,null,"X",null,null,null,null,null,null,null,"X","X","X","X","X","X","X","X","X","X","X","X","X","X","X",null,null,null,null,null,null,null,null,0,0,0,0,0,0,0,0,0,0,0,0,0,0]
[136,"EMPREINTE CARBONE","Lieu","Bâtiments/ Structures","Etudier la consommation énergétique du lieu d'hébergement","Demander le DPE (diagnostic de performance énergétique) du lieu d'hébergement. L'affichage est obligatoire dans les hôtels et bâtiments accueillant du public.",2,null,null,null,null,null,null,null,null,null,null,"X",null,null,null,null,null,null,null,"X","X","X","X","X","X","X","X","X","X","X","X","X","X","X",null,null,null,null,null,null,null,null,0,0,0,0,0,0,0,0,0,0,0,0,0,0]
[137,"EMPREINTE CARBONE","Lieu","Bâtiments/ Structures","Gérer la fin de vie des lieux d'hébergement provisoires","S'assurer de la reprise des structures par le prestataire.",1,null,null,null,null,null,null,null,null,null,null,"X",null,null,null,null,null,null,null,"X","X","X","X","O","X","X","X","X","X","X","X","X","X","X",null,null,null,null,null,null,null,null,0,0,0,0,0,0,0,0,0,0,0,0,0,0]
[138,"EMPREINTE CARBONE","Lieu","Bâtiments/ Structures","Gérer la fin de vie des lieux d'hébergement provisoires","Récupérer le matériel qui peut être laissé sur place après un évènement par les participants (tentes lors de festivals de musique).",2,null,null,null,null,null,null,null,null,null,null,"X",null,null,null,null,null,null,null,"X","X","X","X","O","X","X","X","X","X","X","X","X","X","X",null,null,null,null,null,null,null,null,0,0,0,0,0,0,0,0,0,0,0,0,0,0]
[139,"EMPREINTE CARBONE","Lieu","Bâtiments/ Structures","Gérer la fin de vie des structures provisoires","S'assurer de la reprise de la structure par le prestataire.",1,null,null,null,null,null,null,null,null,null,null,"X",null,null,null,null,null,null,null,"X","X","X","X","X","X","X","X","X","X","X","X","X","X","X",null,null,null,null,null,null,null,null,0,0,0,0,0,0,0,0,0,0,0,0,0,0]
[140,"EMPREINTE CARBONE","Lieu","Bâtiments/ Structures","Gérer la fin de vie des structures provisoires","Prévoir un lieu de stockage pour réutiliser la/les structure(s) lors des prochains évènements.",1,null,null,null,null,null,null,null,null,null,null,"X",null,null,null,null,null,null,null,"X","X","X","X","X","X","X","X","X","X","X","X","X","X","X",null,null,null,null,null,null,null,null,{"$f":"IF(OR(BJ144=0,AU144=\"Non applicable\"),0,1)","v":0},0,0,0,0,0,0,0,0,0,0,0,0,{"$f":"SUM(AX144:BI144)","v":0}]
[141,"EMPREINTE CARBONE","Lieu","Consommation d'énergie","Choisir un lieu à faible consommation","Privilégier un lieu HQE ou BBC qui permette une consommation énergétique moindre par rapport aux lieux classiques.",1,null,null,null,null,null,null,null,null,null,null,"X",null,null,null,null,null,null,null,"X","X","X","X","X","X","X","X","X","X","X","X","X","X","X",null,null,null,null,null,null,null,null,0,0,0,0,0,0,0,0,0,0,0,0,0,0]
[142,"EMPREINTE CARBONE","Lieu","Consommation d'énergie","Choisir un lieu à faible consommation","Privilégier un lieu éclairé naturellement et orienté au Sud : avoir des grandes fenêtres, baies vitrées, velux... permet de laisser passer la lumière du jour et évite ainsi d'utiliser trop de lumière artificielle.",1,null,null,null,null,null,null,null,null,null,null,"X",null,null,null,null,null,null,null,"X","X","X","X","X","X","X","X","X","X","X","X","X","X","X",null,null,null,null,null,null,null,null,0,0,0,0,0,0,0,0,0,0,0,0,0,0]
[143,"EMPREINTE CARBONE","Lieu","Consommation d'énergie","Choisir un lieu à faible consommation","Privilégier un lieu bien isolé : revêtu de matériaux isolants, des habitations mitoyennes…",1,null,null,null,null,null,null,null,null,null,null,"X",null,null,null,null,null,null,null,"X","X","X","X","X","X","X","X","X","X","X","X","X","X","X",null,null,null,null,null,null,null,null,0,0,0,0,0,0,0,0,0,0,0,0,0,0]
[144,"EMPREINTE CARBONE","Lieu","Consommation d'énergie","Contrôler sa consommation","Mettre en place des compteurs de consommation pour mesurer votre consommation électrique en temps réel. ",1,null,null,null,null,null,null,null,null,null,null,"X",null,null,null,null,null,null,null,"X","X","X","X","X","X","X","X","X","X","X","X","X","X","X",null,null,null,null,null,null,null,null,0,0,0,0,0,0,0,0,0,0,0,0,0,0]
[145,"EMPREINTE CARBONE","Lieu","Consommation d'énergie","Contrôler sa consommation","Faire un bilan de votre consommation lors de chaque évènement et repérer les lieux qui vous permettent de moins consommer.",2,null,null,null,null,null,null,null,null,null,null,"X",null,null,null,null,null,null,null,"X","X","X","X","X","X","X","X","X","X","X","X","X","X","X",null,null,null,null,null,null,null,null,0,0,0,0,0,0,0,0,0,0,0,0,0,0]
[146,"EMPREINTE CARBONE","Lieu","Consommation d'énergie","Eviter ou contrôler l'utilisation de groupes électrogènes","Privilégier les groupes électrogènes solaires plutôt que les groupes électrogènes à combustion.",1,null,null,null,null,null,null,null,null,null,null,"X",null,null,null,null,null,null,null,"X","X","X","X","X","X","X","X","X","X","X","X","X","X","X",null,null,null,null,null,null,null,null,0,0,0,0,0,0,0,0,0,0,0,0,0,0]
[147,"EMPREINTE CARBONE","Lieu","Consommation d'énergie","Eviter ou contrôler l'utilisation de groupes électrogènes","Préférer utiliser le groupe électrogène comme source d'alimentation de remplacement, en cas de défaillance de votre source principale.",1,null,null,null,null,null,null,null,null,null,null,"X",null,null,null,null,null,null,null,"X","X","X","X","X","X","X","X","X","X","X","X","X","X","X",null,null,null,null,null,null,null,null,0,0,0,0,0,0,0,0,0,0,0,0,0,0]
[148,"EMPREINTE CARBONE","Lieu","Consommation d'énergie","Gérer de manière responsable l'éclairage","Privilégier l'utilisation d'ampoules basse consommation.",1,null,null,null,null,null,null,null,null,null,null,"X",null,null,null,null,null,null,null,"X","X","X","X","X","X","X","X","X","X","X","X","X","X","X",null,null,null,null,null,null,null,null,0,0,0,0,0,0,0,0,0,0,0,0,0,0]
[149,"EMPREINTE CARBONE","Lieu","Consommation d'énergie","Gérer de manière responsable l'éclairage","Eviter de faire fonctionner l'éclairage artificiel lorsqu'il peut être remplacé par un éclairage naturel.",3,null,null,null,null,null,null,null,null,null,null,"X",null,null,null,null,null,null,null,"X","X","X","X","X","X","X","X","X","X","X","X","X","X","X",null,null,null,null,null,null,null,null,1,0,0,0,0,1,0,0,0,0,0,0,0,1]
[150,"EMPREINTE CARBONE","Lieu","Consommation d'énergie","Gérer de manière responsable l'éclairage","Avoir de bons réflexes : une pièce inoccupée n'a pas besoin d'être éclairée.",2,null,null,null,null,null,null,null,null,null,null,"X",null,null,null,null,null,null,null,"X","X","X","X","X","X","X","X","X","X","X","X","X","X","X",null,null,null,null,null,null,null,null,0,0,0,0,0,0,0,0,0,0,0,0,0,0]
[151,"EMPREINTE CARBONE","Lieu","Consommation d'énergie","Minimiser l'utilisation de la climatisation","Prévoir de l'eau et des boissons fraîches pour minimiser la sensation de chaleur.",1,null,null,null,null,null,null,null,null,null,null,"X",null,null,null,null,null,null,null,"X","X","X","X","X","X","X","X","X","X","X","X","X","X","X",null,null,null,null,null,null,null,null,0,0,0,0,0,0,0,0,0,0,0,0,0,0]
[152,"EMPREINTE CARBONE","Lieu","Consommation d'énergie","Minimiser l'utilisation de la climatisation","Fermer les volets des fenêtres orientées vers le soleil lorsqu'il tape trop fort, cela vous évitera de vous trouvez dans une fournaise.",1,null,null,null,null,null,null,null,null,null,null,"X",null,null,null,null,null,null,null,"X","X","X","X","X","X","X","X","X","X","X","X","X","X","X",null,null,null,null,null,null,null,null,0,0,0,0,0,0,0,0,0,0,0,0,0,0]
[153,"EMPREINTE CARBONE","Lieu","Consommation d'énergie","Minimiser l'utilisation de la climatisation","Aérer le lieu en créant des courants d'air.",1,null,null,null,null,null,null,null,null,null,null,"X",null,null,null,"X",null,null,null,"X","X","X","X","X","X","X","X","X","X","X","X","X","X","X",null,null,null,null,null,null,null,null,0,0,0,0,0,0,0,0,0,0,0,0,0,0]
[154,"EMPREINTE CARBONE","Lieu","Consommation d'énergie","Minimiser l'utilisation du chauffage","Utiliser un thermostat afin de gérer la température du lieu et de pouvoir utiliser le chauffage de manière raisonnée.",1,null,null,null,null,null,null,null,null,null,null,"X",null,null,null,null,null,null,null,"X","X","X","X","X","X","X","X","X","X","X","X","X","X","X",null,null,null,null,null,null,null,null,0,0,0,0,0,0,0,0,0,0,0,0,0,0]
[155,"EMPREINTE CARBONE","Lieu","Consommation d'énergie","Minimiser l'utilisation du chauffage","Etre cohérents. Fermer les fenêtres quand vous allumez le chauffage et éteindre le chauffage quand vous souhaitez aérer.",3,null,null,null,null,null,null,null,null,null,null,"X",null,null,null,null,null,null,null,"X","X","X","X","X","X","X","X","X","X","X","X","X","X","X",null,null,null,null,null,null,null,null,1,0,0,0,0,1,0,0,0,0,0,0,0,1]
[156,"EMPREINTE CARBONE","Lieu","Consommation d'énergie","Minimiser l'utilisation du chauffage","Calfeutrer les aérations afin que la chaleur ne s'échappe pas : au niveau des rebords de fenêtres et des portes notamment.",1,null,null,null,null,null,null,null,null,null,null,"X",null,null,null,null,null,null,null,"X","X","X","X","X","X","X","X","X","X","X","X","X","X","X",null,null,null,null,null,null,null,null,0,0,0,0,0,0,0,0,0,0,0,0,0,0]
[157,"EMPREINTE CARBONE","Lieu","Consommation d'énergie","Minimiser l'utilisation du chauffage","Bien se couvrir : avant de mettre le chauffage, mettre un pull plutôt que rester en t-shirt à l'intérieur. ",1,null,null,null,null,null,null,null,null,null,null,"X",null,null,null,null,null,null,null,"X","X","X","X","X","X","X","X","X","X","X","X","X","X","X",null,null,null,null,null,null,null,null,0,0,0,0,0,0,0,0,0,0,0,0,0,0]
[158,"EMPREINTE CARBONE","Lieu","Consommation d'énergie","Optimiser la consommation des structures montées","Etudier la consommation énergétique des structures montées et mettre en place des actions pour les réduire.",1,null,null,null,null,null,null,null,null,null,null,"X",null,null,null,null,null,null,null,"X","X","X","X","X","X","X","X","X","X","X","X","X","X","X",null,null,null,null,null,null,null,null,0,0,0,0,0,0,0,0,0,0,0,0,0,0]
[159,"EMPREINTE CARBONE","Lieu","Consommation d'énergie","Privilégier un approvisionnement issu d'énergies renouvellables","Proposer à votre école/université de poser des panneaux solaires.",1,null,null,null,null,null,null,null,null,null,null,"X",null,null,null,null,null,null,null,"X","X","X","X","X","X","X","X","X","X","X","X","X","X","X",null,null,null,null,null,null,null,null,0,0,0,0,0,0,0,0,0,0,0,0,0,0]
[160,"EMPREINTE CARBONE","Lieu","Consommation d'énergie","Privilégier un approvisionnement issu d'énergies renouvellables","Proposer à votre école/université de poser des mini éoliennes.",1,null,null,null,null,null,null,null,null,null,null,"X",null,null,null,null,null,null,null,"X","X","X","X","X","X","X","X","X","X","X","X","X","X","X",null,null,null,null,null,null,null,null,0,0,0,0,0,0,0,0,0,0,0,0,0,0]
[161,"EMPREINTE CARBONE","Lieu","Consommation d'énergie","Privilégier un approvisionnement issu d'énergies renouvellables","Privilégier un lieu qui s'alimente avec des énergies renouvelables.",1,null,null,null,null,null,null,null,null,null,null,"X",null,null,null,null,null,null,null,"X","X","X","X","X","X","X","X","X","X","X","X","X","X","X",null,null,null,null,null,null,null,null,0,0,0,0,0,0,0,0,0,0,0,0,0,0]
[162,"EMPREINTE CARBONE","Matériels","Déchets","Privilégier des consommables non jetables","Nettoyer à l'aide de chiffons, éponges, ou serpillières plutôt qu'avec des essuie-tout ou des lingettes qui multiplient vos déchets. Vous pourrez ainsi les laver et les réutiliser. Il existe des serpillères (…) faites en coton recyclé.",3,null,null,null,null,null,null,null,null,null,null,"X",null,null,null,null,null,null,null,"X","X","X","X","X","X","X","X","X","X","X","X","X","X","X",null,null,null,null,null,null,null,null,1,0,0,0,0,1,0,0,0,0,0,0,0,1]
[163,"EMPREINTE CARBONE","Matériels","Déchets","Privilégier des consommables non jetables","Choisir des marques respectueuses de l'environnement.",2,null,null,null,null,null,"Ecover, L'arbre vert, etc.",null,null,null,null,"X",null,null,null,null,null,null,null,"X","X","X","X","X","X","X","X","X","X","X","X","X","X","X",null,null,null,null,null,null,null,null,0,0,0,0,0,0,0,0,0,0,0,0,0,0]
[164,"EMPREINTE CARBONE","Matériels","Déchets","trier les déchets de consommables","Autant que possible, utiliser des consommables qui se recyclent.",2,null,null,null,null,null,null,null,null,null,null,"X",null,null,null,null,null,null,null,"X","X","X","X","X","X","X","X","X","X","X","X","X","X","X",null,null,null,null,null,null,null,null,0,0,0,0,0,0,0,0,0,0,0,0,0,0]
[165,"EMPREINTE CARBONE","Matériels","Déchets","Utiliser des stands démontables ou réutilisables","Penser votre stand pour le construire de manière utile : utiliser des matériaux solides, la structure doit pouvoir être démontée, remontée et stockée facilement. ",1,null,null,null,null,null,null,null,null,null,null,"X",null,null,null,null,null,null,null,"X","X","X","X","X","X","X","X","X","X","X","X","X","X","X",null,null,null,null,null,null,null,null,0,0,0,0,0,0,0,0,0,0,0,0,0,0]
[166,"EMPREINTE CARBONE","Matériels","Lieu de vie/décors","Eco-concevoir les stands et décors","Utiliser des matériaux recyclés et/ou recyclables (papier et carton recyclé, coton, bois, …).",1,null,null,null,null,null,null,null,null,null,null,"X",null,null,null,null,null,null,null,"X","X","X","X","X","X","X","X","X","X","X","X","X","X","X",null,null,null,null,null,null,null,null,0,0,0,0,0,0,0,0,0,0,0,0,0,0]
[167,"EMPREINTE CARBONE","Matériels","Lieu de vie/décors","Eco-concevoir les stands et décors","Se fournir en objet de déco éco-conçus (guirlandes en papier recyclé, ballons biodégradables…).",1,null,null,null,null,null,null,null,null,null,null,"X",null,null,null,null,null,null,null,"X","X","X","X","X","X","X","X","X","X","X","X","X","X","X",null,null,null,null,null,null,null,null,0,0,0,0,0,0,0,0,0,0,0,0,0,0]
[168,"EMPREINTE CARBONE","Matériels","Lieu de vie/décors","Faire de la récupération","Récupérer du matériel déjà utilisé. En regardant autour de soi, dans son appart, à l'école ou dans la rue, on se rend compte que beaucoup d'objets/matériaux peuvent resservir au lieu d'être jetés !",1,null,null,null,null,null,null,null,null,null,null,"X",null,null,null,null,null,null,null,"X","X","X","X","X","X","X","X","X","X","X","X","X","X","X",null,null,null,null,null,null,null,null,0,0,0,0,0,0,0,0,0,0,0,0,0,0]
[169,"EMPREINTE CARBONE","Matériels","Lieu de vie/décors","Faire de la récupération","Démarcher les invendus/chutes auprès des entreprises locales. Privilégier les magasins de bricolage tels que Leroy Merlin et Castorama qui utilisent des matériaux pour leurs démonstrations et animations en magasins puis les jettent ! Ou bien parfois certains produits sont ouverts par mégarde et ne peuvent pas être vendus. Evitons-leur de faire du gâchis et servons-nous de ces produits ! Pour cela, réaliser un partenariat avec une entreprise en rédigeant ensemble les clauses du contrat afin que le don soit formalisé.",1,null,null,null,null,null,null,"X",null,null,null,"X",null,"X",null,null,null,null,null,"X","X","X","X","X","X","X","X","X","X","X","X","X","X","X",null,null,null,null,null,null,null,null,0,0,0,0,0,0,0,0,0,0,0,0,0,0]
[170,"EMPREINTE CARBONE","Matériels","Lieu de vie/décors","Privilégier l'utilisation de stand et décors existants","Nouer des partenariats avec des écoles, collectivités et associations locales pour utiliser leurs locaux, leur matériel,....",1,null,null,null,null,null,null,"X",null,null,null,"X",null,null,null,null,null,null,null,"X","X","X","X","X","X","X","X","X","X","X","X","X","X","X",null,null,null,null,null,null,null,null,0,0,0,0,0,0,0,0,0,0,0,0,0,0]
[171,"EMPREINTE CARBONE","Matériels","Lieu de vie/décors","Privilégier l'utilisation de stand et décors existants","Etudier le lieu : il a peut-être sur place des plantes, panneaux, matériaux naturels que vous pourrez utiliser pour fabriquer les stands/décors.",2,null,null,null,null,null,null,null,null,null,null,"X",null,null,null,null,null,null,null,"X","X","X","X","X","X","X","X","X","X","X","X","X","X","X",null,null,null,null,null,null,null,null,0,0,0,0,0,0,0,0,0,0,0,0,0,0]
[172,"EMPREINTE CARBONE","Matériels","Produits / équipements","Estimer au plus juste les besoins en matériel technique","Se reporter aux bilans de vos évènements précédents ou d'autres associations.",2,null,null,null,null,null,null,null,null,null,null,"X",null,null,"X",null,null,null,null,"X","X","X","X","X","X","X","X","X","X","X","X","X","X","X",null,null,null,null,null,null,null,null,0,0,0,0,0,0,0,0,0,0,0,0,0,0]
[173,"EMPREINTE CARBONE","Matériels","Produits / équipements","Estimer au plus juste les besoins en matériel technique","Demander conseil aux professionnels qui vous entourent (technicien de l'école,…).",1,null,null,null,null,null,null,null,null,null,null,"X",null,null,null,null,null,null,null,"X","X","X","X","X","X","X","X","X","X","X","X","X","X","X",null,null,null,null,null,null,null,null,0,0,0,0,0,0,0,0,0,0,0,0,0,0]
[174,"EMPREINTE CARBONE","Matériels","Produits / équipements","Estimer au plus juste les besoins en matériel technique","Définir avec soin chaque phase de l'évènement et le matériel nécessaire.",1,null,null,null,null,null,null,null,null,null,null,"X",null,null,null,null,null,null,null,"X","X","X","X","X","X","X","X","X","X","X","X","X","X","X",null,null,null,null,null,null,null,null,0,0,0,0,0,0,0,0,0,0,0,0,0,0]
[175,"EMPREINTE CARBONE","Matériels","Produits / équipements","Privilégier du matériel économe en énergie","Utiliser autant que possible du matériel électronique labellisé économe en énergie.",1,null,null,null,null,null,null,null,null,null,null,"X",null,null,null,null,null,null,null,"X","X","X","X","X","X","X","X","X","X","X","X","X","X","X",null,null,null,null,null,null,null,null,0,0,0,0,0,0,0,0,0,0,0,0,0,0]
[176,"EMPREINTE CARBONE","Matériels","Produits / équipements","Privilégier du matériel économe en énergie","Privilégier les lampes, guirlandes, lumières de boule… à LED.",1,null,null,null,null,null,null,null,null,null,null,"X",null,null,null,null,null,null,null,"X","X","X","X","X","X","X","X","X","X","X","X","X","X","X",null,null,null,null,null,null,null,null,0,0,0,0,0,0,0,0,0,0,0,0,0,0]
[177,"EMPREINTE CARBONE","Matériels","Produits / équipements","Privilégier du matériel économe en énergie","Uitliser une piste de danse durable : elle permet de récupérer l'énergie générée par les mouvements des danseurs.",1,null,null,null,null,null,null,null,null,null,null,"X",null,null,null,null,null,null,null,"X","X","O","X","X","X","X","X","X","X","X","X","X","X","X",null,null,null,null,null,null,null,null,0,0,0,0,0,0,0,0,0,0,0,0,0,0]
[178,"EMPREINTE CARBONE","Matériels","Produits / équipements","Privilégier le matériel existant et déjà présent sur le lieu","Voir si le lieu de votre évènement ne possède pas déjà le matériel dont vous avez besoin.",3,null,null,null,null,null,null,null,null,null,null,"X",null,null,null,null,null,null,null,"X","X","X","X","X","X","X","X","X","X","X","X","X","X","X",null,null,null,null,null,null,null,null,1,0,0,0,0,1,0,0,0,0,0,0,0,1]
[179,"EMPREINTE CARBONE","Matériels","Produits / équipements","Privilégier le matériel existant et déjà présent sur le lieu","Mutualiser le matériel utilisé d'une année à l'autre (pour évènement annuel), ou géographiquement faire une base de données d'une année sur l'autre avec les autres associations ou autres écoles.",1,null,null,null,null,null,null,null,null,null,null,"X",null,null,null,null,null,null,null,"X","X","X","X","X","X","X","X","X","X","X","X","X","X","X",null,null,null,null,null,null,null,null,0,0,0,0,0,0,0,0,0,0,0,0,0,0]
[180,"EMPREINTE CARBONE","Matériels","Produits / équipements","Utiliser le matériel de manière adéquat","Régler le volume sonore et l'éclairage en fonction des besoins en temps réel.",2,null,null,null,null,null,"Par exemple, animer un repas ne nécessite pas le même volume sonore que faire danser les participants. ",null,null,null,null,"X",null,null,null,null,null,null,"X","X","X","X","X","X","X","X","X","X","X","X","X","X","X","X",null,null,null,null,null,null,null,null,0,0,0,0,0,0,0,0,0,0,0,0,0,0]
[181,"EMPREINTE CARBONE","Matériels","Produits / équipements","Utiliser le matériel de manière adéquat","Penser a mettre en veille les appareils lorsqu'ils ne sont pas actifs et à les éteindre lorsque vous n'en avez plus besoin.",2,null,null,null,null,null,null,null,null,null,null,"X",null,null,null,null,null,null,null,"X","X","X","X","X","X","X","X","X","X","X","X","X","X","X",null,null,null,null,null,null,null,null,0,0,0,0,0,0,0,0,0,0,0,0,0,0]
[182,"EMPREINTE CARBONE","Matériels","Transports","Bien organiser ses déplacements","Si vous avez un véhicule particulier ou un camion, prévoir un lieu de stationnement.",2,null,null,null,null,null,null,null,null,null,null,"X",null,null,null,null,null,null,null,"X","X","X","X","X","X","X","X","X","X","X","X","X","X","X",null,null,null,null,null,null,null,null,0,0,0,0,0,0,0,0,0,0,0,0,0,0]
[183,"EMPREINTE CARBONE","Matériels","Transports","Bien organiser ses déplacements","Planifier et optimiser ses déplacements pour éviter les transports à vide. ",1,null,null,null,null,null,null,null,null,null,null,"X",null,null,null,null,null,null,null,"X","X","X","X","X","X","X","X","X","X","X","X","X","X","X",null,null,null,null,null,null,null,null,0,0,0,0,0,0,0,0,0,0,0,0,0,0]
[184,"EMPREINTE CARBONE","Restauration","Alimentation","Privilégier des aliments de saison","Faire/trouver un calendrier de récolte des fruits et légumes.",1,null,null,null,null,null,null,null,"X",null,null,"X",null,null,null,null,null,null,null,"X","X","X","X","X","X","X","X","X","X","X","X","X","X","O",null,null,null,null,null,null,null,null,0,0,0,0,0,0,0,0,0,0,0,0,0,0]
[185,"EMPREINTE CARBONE","Restauration","Alimentation","Privilégier une alimentation à faible empreinte carbone","Lire l'affichage environnemental sur les produits de grande consommation.",2,null,null,null,null,null,null,null,null,null,null,"X",null,null,null,null,null,null,null,"X","X","X","X","X","X","X","X","X","X","X","X","X","X","O",null,null,null,null,null,null,null,null,0,0,0,0,0,0,0,0,0,0,0,0,0,0]
[186,"EMPREINTE CARBONE","Restauration","Alimentation","Privilégier une alimentation bio","Se renseigner sur les labels bio existants.",1,null,null,null,null,null,null,null,null,null,null,"X",null,null,null,null,null,null,null,"X","X","X","X","X","X","X","X","X","X","X","X","X","X","O",null,null,null,null,null,null,null,null,0,0,0,0,0,0,0,0,0,0,0,0,0,0]
[187,"EMPREINTE CARBONE","Restauration","Alimentation","Privilégier une alimentation bio","Faire ou trouver un annuaire des commerçants bio de la région.",1,null,null,null,null,null,null,"X","X",null,null,"X",null,null,null,null,null,null,null,"X","X","X","X","X","X","X","X","X","X","X","X","X","X","O",null,null,null,null,null,null,null,null,0,0,0,0,0,0,0,0,0,0,0,0,0,0]
[188,"EMPREINTE CARBONE","Restauration","Alimentation","Privilégier une alimentation décarnée","Proposer des menus végétariens : réduire sa consommation de viande est une action dans la lutte contre le changement climatique !",1,null,null,null,null,null,"L'élevage bovin est un des premiers facteurs d'émissions de méthane, gaz qui contribue fortement à l'effet de serre et au réchauffement climatique. L'industrie bovine et les autres viandes ont un impact sur la biodiversité.",null,"x",null,null,"X",null,"x",null,null,null,null,null,"X","X","X","X","X","X","X","X","X","X","X","X","X","X","O",null,null,null,null,null,null,null,null,0,0,0,0,0,0,0,0,0,0,0,0,0,0]
[189,"EMPREINTE CARBONE","Restauration","Alimentation","Privilégier une alimentation décarnée","Faire une sensibilisation sur la traite des animaux en élevage et sur l'abattage, ainsi que sur les effets sur l'environnement de la consommation de viande (consommation d'énergie, etc.).",1,null,null,null,null,null,null,null,null,null,null,"X",null,null,null,null,null,null,null,"X","X","X","X","X","X","X","X","X","X","X","X","X","X","O",null,null,null,null,null,null,null,null,0,0,0,0,0,0,0,0,0,0,0,0,0,0]
[190,"EMPREINTE CARBONE","Restauration","Alimentation","Privilégier une alimentation décarnée","Faire connaître les aliments qui peuvent remplacer la viande (quinoa...).",1,null,null,null,null,null,null,null,null,null,null,"X",null,null,null,null,null,null,null,"X","X","X","X","X","X","X","X","X","X","X","X","X","X","O",null,null,null,null,null,null,null,null,0,0,0,0,0,0,0,0,0,0,0,0,0,0]
[191,"EMPREINTE CARBONE","Restauration","Alimentation","Privilégier une alimentation locale","Travailler avec des producteurs et/ou des paysans locaux.",1,null,null,null,null,null,null,"x",null,null,null,"X",null,null,null,null,null,null,null,"X","X","X","X","X","X","X","X","X","X","X","X","X","X","O",null,null,null,null,null,null,null,null,0,0,0,0,0,0,0,0,0,0,0,0,0,0]
[192,"EMPREINTE CARBONE","Restauration","Alimentation","Privilégier une alimentation locale","Se renseigner auprès de l'office du tourisme pour connaître les spécialités locales.",1,null,null,null,null,null,null,"x",null,null,null,"X",null,null,null,null,null,null,null,"X","X","X","X","X","X","X","X","X","X","X","X","X","X","O",null,null,null,null,null,null,null,null,0,0,0,0,0,0,0,0,0,0,0,0,0,0]
[193,"EMPREINTE CARBONE","Restauration","Alimentation","Privilégier une alimentation locale","Faire et/ou trouver un annuaire des commerçants locaux.",1,null,null,null,null,null,null,"x",null,null,null,"X",null,null,null,null,null,null,null,"X","X","X","X","X","X","X","X","X","X","X","X","X","X","O",null,null,null,null,null,null,null,null,0,0,0,0,0,0,0,0,0,0,0,0,0,0]
[194,"EMPREINTE CARBONE","Restauration","Alimentation","Privilégier une alimentation locale et de saison","Faire appel aux paniers distribués par les producteurs locaux, ou mettre en place une ou plusieurs AMAP.",1,null,null,null,null,null,null,"x","x",null,null,"X",null,"x",null,null,null,null,null,"X","X","X","X","X","X","X","X","X","X","X","X","X","X","O",null,null,null,null,null,null,null,null,0,0,0,0,0,0,0,0,0,0,0,0,0,0]
[195,"EMPREINTE CARBONE","Restauration","Alimentation","Privilégier une alimentation non industrielle","Cuisiner des plats soi-même.",1,null,null,null,null,null,null,null,null,null,null,"X",null,null,null,"x",null,null,null,"X","X","X","X","X","X","X","X","X","X","X","X","X","X","O",null,null,null,null,null,null,null,null,0,{"$f":"IF(AND(N199=\"X\",$G199>=AX$471),1,0)","v":0},{"$f":"IF(AND(O199=\"X\",$G199>=AY$471),1,0)","v":0},{"$f":"IF(AND(P199=\"X\",$G199>=AZ$471),1,0)","v":0},{"$f":"IF(AND(Q199=\"X\",$G199>=BA$471),1,0)","v":0},{"$f":"IF(AND(R199=\"X\",$G199>=BB$471),1,0)","v":0},{"$f":"IF(AND(S199=\"X\",$G199>=BC$471),1,0)","v":0},{"$f":"IF(AND(T199=\"X\",$G199>=BD$471),1,0)","v":0},{"$f":"IF(AND(U199=\"X\",$G199>=BE$471),1,0)","v":0},{"$f":"IF(AND(V199=\"X\",$G199>=BF$471),1,0)","v":0},{"$f":"IF(AND(W199=\"X\",$G199>=BG$471),1,0)","v":0},{"$f":"IF(AND(X199=\"X\",$G199>=BH$471),1,0)","v":0},{"$f":"IF(AND(Y199=\"X\",$G199>=BI$471),1,0)","v":0},0]
[196,"EMPREINTE CARBONE","Restauration","Alimentation","Privilégier une alimentation non industrielle","Acheter des plats fraîchement cuisinés sur le marché ou chez le traiteur.",1,null,null,null,null,null,null,null,null,null,null,"X",null,null,null,null,null,null,null,"X","X","X","X","X","X","X","X","X","X","X","X","X","X","O",null,null,null,null,null,null,null,null,0,0,0,0,0,0,0,0,0,0,0,0,0,0]
[197,"EMPREINTE CARBONE","Restauration","Consommation d'énergie","Optimiser la préparation et la cuisson","Profiter d'un four déjà chaud pour enfourner d'autres préparations",1,null,null,null,null,null,null,null,null,null,null,"X",null,null,null,null,null,null,null,"X","X","X","X","X","X","X","X","X","X","X","X","X","X","O",null,null,null,null,null,null,null,null,0,0,0,0,0,0,0,0,0,0,0,0,0,0]
[198,"EMPREINTE CARBONE","Restauration","Consommation d'énergie","Optimiser la préparation et la cuisson","Pensez aux astuces pour limiter la consommation d'énergie pendant la cuisson : mettre un couvercle sur les casseroles et poêles, éteignez la plaque de cuisson quelques minutes avant la fin de la cuisson (elle refroidit progressivement).",1,null,null,null,null,null,null,null,null,null,null,"X",null,null,null,null,null,null,null,"X","X","X","X","X","X","X","X","X","X","X","X","X","X","O",null,null,null,null,null,null,null,null,0,0,0,0,0,0,0,0,0,0,0,0,0,0]
[199,"EMPREINTE CARBONE","Restauration","Consommation d'énergie","Optimiser le nettoyage de la vaisselle","Privilégier des produits vaisselle écologiques pour ne pas polluer les eaux.",2,null,null,null,null,null,null,null,null,null,null,"X",null,null,null,null,null,null,null,"X","X","X","X","X","X","X","X","X","X","X","X","X","X","O",null,null,null,null,null,null,null,null,0,0,0,0,0,0,0,0,0,0,0,0,0,0]
[200,"EMPREINTE CARBONE","Restauration","Consommation d'énergie","Optimiser le nettoyage de la vaisselle","Essuyer la vaisselle avec des torchons et non pas de l'essuie-tout.",1,null,null,null,null,null,null,null,null,null,null,"X",null,null,null,null,null,null,null,"X","X","X","X","X","X","X","X","X","X","X","X","X","X","O",null,null,null,null,null,null,null,null,0,0,0,0,0,0,0,0,0,0,0,0,0,0]
[201,"EMPREINTE CARBONE","Restauration","Consommation d'énergie","Optimiser le service et le réchauffement","Servir dans des plats qui conservent la chaleur.",1,null,null,null,null,null,null,null,null,null,null,"X",null,null,null,null,null,null,null,"X","X","X","X","X","X","X","X","X","X","X","X","X","X","O",null,null,null,null,null,null,null,null,0,0,0,0,0,0,0,0,0,0,0,0,0,0]
[202,"EMPREINTE CARBONE","Restauration","Consommation d'énergie","Optimiser le service et le réchauffement","Préparer le café à l'avance et le conserver dans un thermos.",1,null,null,null,null,null,null,null,null,null,null,"X",null,null,null,null,null,null,null,"X","X","X","X","X","X","X","X","X","X","X","X","X","X","O",null,null,null,null,null,null,null,null,0,0,0,0,0,0,0,0,0,0,0,0,0,0]
[203,"EMPREINTE CARBONE","Restauration","Déchets","Limiter les déchets alimentaires ","Laisser les participants se servir.",1,null,null,null,null,null,null,null,null,null,null,"X",null,null,null,null,null,null,null,"X","X","X","X","X","X","X","X","X","X","X","X","X","X","O",null,null,null,null,null,null,null,null,0,0,0,0,0,0,0,0,0,0,0,0,0,0]
[204,"EMPREINTE CARBONE","Restauration","Déchets","Limiter les déchets alimentaires ","Calculer au plus juste les quantités nécessaires.",2,null,null,null,null,null,null,null,null,null,null,"X",null,null,null,null,null,null,null,"X","X","X","X","X","X","X","X","X","X","X","X","X","X","O",null,null,null,null,null,null,null,null,{"$f":"IF(OR(BJ208=0,AU208=\"Non applicable\"),0,1)","v":0},0,0,0,0,0,0,0,0,0,0,0,0,{"$f":"SUM(AX208:BI208)","v":0}]
[205,"EMPREINTE CARBONE","Restauration","Déchets","Limiter les déchets d'emballage","Transporter vos plats dans des boîtes plutôt qu'emballés dans du papier aluminium ou du film alimentaire.",1,null,null,null,null,null,null,null,null,null,null,"X",null,null,null,null,null,null,null,"X","X","X","X","X","X","X","X","X","X","X","X","X","X","O",null,null,null,null,null,null,null,null,0,0,0,0,0,0,0,0,0,0,0,0,0,0]
[206,"EMPREINTE CARBONE","Restauration","Déchets","Limiter les déchets d'emballage","Choisir des conditionnements collectifs et/ou de grande taille.",1,null,null,null,null,null,null,null,null,null,null,"X",null,null,null,null,null,null,null,"X","X","X","X","X","X","X","X","X","X","X","X","X","X","O",null,null,null,null,null,null,null,null,0,0,0,0,0,0,0,0,0,0,0,0,0,0]
[207,"EMPREINTE CARBONE","Restauration","Déchets","Privilégier une fin de vie adéquat pour les aliments","Trouver des structures qui reprennent les denrées non consommées : associations à but humanitaire par exemple.",1,null,null,null,null,null,null,null,null,null,null,"X",null,null,null,null,null,null,null,"X","X","X","X","X","X","X","X","X","X","X","X","X","X","O",null,null,null,null,null,null,null,null,0,0,0,0,0,0,0,0,0,0,0,0,0,0]
[208,"EMPREINTE CARBONE","Restauration","Déchets","Privilégier une fin de vie adéquat pour les aliments","Mettre en place un système de tri des déchets : se renseigner auprès des collectivités locales pour connaître la nature du tri, acquérir le matériel de tri (notamment sacs jaunes) et des supports de communication.",3,null,null,null,null,null,null,null,null,null,null,"X",null,null,null,null,null,null,null,"X","X","X","X","X","X","X","X","X","X","X","X","X","X","O",null,null,null,null,null,null,null,null,1,0,0,0,0,1,0,0,0,0,0,0,0,1]
[209,"EMPREINTE CARBONE","Restauration","Déchets","Privilégier une fin de vie adéquat pour les aliments","Mettre en place un système de compostage.",1,null,null,null,null,null,null,null,null,null,null,"X",null,null,null,null,null,null,null,"X","X","X","X","X","X","X","X","X","X","X","X","X","X","O",null,null,null,null,null,null,null,null,0,0,0,0,0,0,0,0,0,0,0,0,0,0]
[210,"EMPREINTE CARBONE","Restauration","Déchets","Utiliser une vaisselle durable","Mettre en place un système de consigne avec des gobelets réutilisables type Ecocup.",3,null,null,null,null,null,null,null,null,null,null,"X",null,null,null,null,null,null,null,"X","X","X","X","X","X","X","X","X","X","X","X","X","X","O",null,null,null,null,null,null,null,null,1,0,0,0,0,1,0,0,0,0,0,0,0,1]
[211,"EMPREINTE CARBONE","Restauration","Déchets","Utiliser une vaisselle durable","Limiter l'usage de serviettes et nappes en papier.",1,null,null,null,null,null,null,null,null,null,null,"X",null,null,null,null,null,null,null,"X","X","X","X","X","X","X","X","X","X","X","X","X","X","O",null,null,null,null,null,null,null,null,0,0,0,0,0,0,0,0,0,0,0,0,0,0]
[212,"EMPREINTE CARBONE","Restauration","Déchets","Utiliser une vaisselle durable","Acheter de la vaisselle d'occasion à une brocante : vous pouvez ainsi vous procurez de la vaisselle à prix réduit tout en donnant une seconde vie à ces objets !",1,null,null,null,null,null,null,null,null,null,null,"X",null,null,null,null,null,null,null,"X","X","X","X","X","X","X","X","X","X","X","X","X","X","O",null,null,null,null,null,null,null,null,0,0,0,0,0,0,0,0,0,0,0,0,0,0]
[213,"EMPREINTE CARBONE","Restauration","Déchets","Utiliser une vaisselle durable","Acheter de la vaisselle compostable (si la mise en place d'un système de compostage est envisageable) ou réutilisable (assiettes et gobelets Ecocup).",1,null,null,null,null,null,null,null,null,null,null,"X",null,null,null,null,null,null,null,"X","X","X","X","X","X","X","X","X","X","X","X","X","X","O",null,null,null,null,null,null,null,null,0,0,0,0,0,0,0,0,0,0,0,0,0,0]
[214,"EMPREINTE CARBONE","Restauration","Transports","Bien organiser ses déplacements","Proposer un plan et un itinéraire aux participants.",1,null,null,null,null,null,null,null,null,null,null,"X",null,null,null,null,null,null,null,"X","X","X","X","X","X","X","X","X","X","X","X","X","X","O",null,null,null,null,null,null,null,null,0,0,0,0,0,0,0,0,0,0,0,0,0,0]
[215,"EMPREINTE CARBONE","Restauration","Transports","Bien organiser ses déplacements","Faire un minimum d'aller-retour.",2,null,null,null,null,null,null,null,null,null,null,"X",null,null,null,null,null,null,null,"X","X","X","X","X","X","X","X","X","X","X","X","X","X","O",null,null,null,null,null,null,null,null,0,0,0,0,0,0,0,0,0,0,0,0,0,0]
[216,"EMPREINTE CARBONE","Restauration","Transports","Bien organiser ses déplacements","Faire des trajets groupés.",1,null,null,null,null,null,null,null,null,null,null,"X",null,null,null,null,null,null,null,"X","X","X","X","X","X","X","X","X","X","X","X","X","X","O",null,null,null,null,null,null,null,null,0,0,0,0,0,0,0,0,0,0,0,0,0,0]
[217,"EMPREINTE CARBONE","Restauration","Transports","Diminuer la distance de transport","Privilégier un lieu d'évènement proche des lieux d'où viennent la nourriture et les boissons.",1,null,null,null,null,null,null,null,null,null,null,"X",null,null,null,null,null,null,null,"X","X","X","X","X","X","X","X","X","X","X","X","X","X","O",null,null,null,null,null,null,null,null,0,0,0,0,0,0,0,0,0,0,0,0,0,0]
[218,"EMPREINTE CARBONE","Restauration","Transports","Diminuer la distance de transport","Faire ses courses au plus près du lieu de l'évènement.",1,null,null,null,null,null,null,null,null,null,null,"X",null,null,null,null,null,null,null,"X","X","X","X","X","X","X","X","X","X","X","X","X","X","O",null,null,null,null,null,null,null,null,0,0,0,0,0,0,0,0,0,0,0,0,0,0]
[219,"EMPREINTE CARBONE","Restauration","Transports","Privilégier les transports doux","Repérer les dispositifs de location de vélo pour transporter le matériel de petite taille.",1,null,null,null,null,null,null,null,null,null,null,"X",null,null,null,null,null,null,null,"X","X","X","X","X","X","X","X","X","X","X","X","X","X","O",null,null,null,null,null,null,null,null,0,0,0,0,0,0,0,0,0,0,0,0,0,0]
[220,"EMPREINTE CARBONE","Restauration","Transports","Privilégier les transports doux","Négocier des réductions sur les transports en commun locaux afin d'inciter les organisateurs à les emprunter et diminuer les émissions de CO2 liées au transport.",1,null,null,null,null,null,null,null,null,null,null,"X",null,null,null,null,null,null,null,"X","X","X","X","X","X","X","X","X","X","X","X","X","X","O",null,null,null,null,null,null,null,null,0,0,0,0,0,0,0,0,0,0,0,0,0,0]
[221,"EMPREINTE CARBONE","Restauration","Transports","Privilégier les transports doux","Mettre en place un système de covoiturage pour transporter nourriture, boissons et matériel.",1,null,null,null,null,null,null,null,null,null,null,"X",null,null,null,null,null,null,null,"X","O","X","X","X","X","X","X","X","X","X","X","X","X","O",null,null,null,null,null,null,null,null,0,0,0,0,0,0,0,0,0,0,0,0,0,0]
[222,"EMPREINTE CARBONE","Sensibilisation","Sensibilisation des organisateurs","Capitaliser et avoir une vision long terme de son événement","Réaliser un bilan éco-évènement après l'évènement.",2,null,null,null,null,null,null,null,null,null,null,"X",null,null,"X",null,null,null,null,"X","X","X","X","X","X","X","X","X","X","X","X","X","X","X",null,null,null,null,null,null,null,null,0,0,0,0,0,0,0,0,0,0,0,0,0,0]
[223,"EMPREINTE CARBONE","Sensibilisation","Sensibilisation des organisateurs","Capitaliser et avoir une vision long terme de son événement","Prévoir la fin de vie de votre matériel et des matériaux.",1,null,null,null,null,null,null,null,null,null,null,"X",null,"X",null,null,null,null,null,"X","X","X","X","X","X","X","X","X","X","X","X","X","X","X",null,null,null,null,null,null,null,null,0,0,0,0,0,0,0,0,0,0,0,0,0,0]
[224,"EMPREINTE CARBONE","Sensibilisation","Sensibilisation des organisateurs","Capitaliser et avoir une vision long terme de son événement","Investir en fonction des besoins sur le long terme. Prévoir un lieu pour récupérer et stocker après chaque évènement.",1,null,null,null,null,null,null,null,null,null,null,"X",null,null,null,null,null,null,null,"X","X","X","X","X","X","X","X","X","X","X","X","X","X","X",null,null,null,null,null,null,null,null,0,0,0,0,0,0,0,0,0,0,0,0,0,0]
[225,"EMPREINTE CARBONE","Sensibilisation","Sensibilisation des organisateurs","Capitaliser et avoir une vision long terme de son événement","Définir son évènement pour savoir s'il a vocation à se reproduire et à quelle fréquence.",1,null,null,null,null,null,null,null,null,null,null,"X",null,null,"X",null,null,null,null,"X","X","X","X","X","X","X","X","X","X","X","X","X","X","X",null,null,null,null,null,null,null,null,0,0,0,0,0,0,0,0,0,0,0,0,0,0]
[226,"EMPREINTE CARBONE","Sensibilisation","Sensibilisation des organisateurs","Démarcher des partenaires éco-responsables","Elaborer un annuaire des entreprises responsables et travailler en priorité avec celles-ci.",1,null,null,null,null,null,null,null,null,null,null,"X",null,null,"X",null,null,null,null,"X","X","X","X","X","X","X","X","X","X","X","X","X","X","X",null,null,null,null,null,null,null,null,0,0,0,0,0,0,0,0,0,0,0,0,0,0]
[227,"EMPREINTE CARBONE","Sensibilisation","Sensibilisation des organisateurs","Former l'équipe organisatrice","Sensibiliser l'équipe aux problématiques de tri et gestion des déchets.",1,null,null,null,null,null,"Réaliser des supports de communication à ce sujet : plaquette disponible sur http://www.ville-saintdizier.fr/vivre-a-saint-dizier/gestion-dechets/collecte-dechets.html  ou participez à la campagne \"réduisons nos déchets ça déborde\": toutes les infos sur le site http://www.reduisonsnosdechets.fr/index.html",null,null,null,null,"X",null,null,null,null,null,null,null,"X","X","X","X","X","X","X","X","X","X","X","X","X","X","X",null,null,null,null,null,null,null,null,0,0,0,0,0,0,0,0,0,0,0,0,0,0]
[228,"EMPREINTE CARBONE","Sensibilisation","Sensibilisation des organisateurs","Former l'équipe organisatrice","Sensibiliser l'équipe aux éco-gestes : pensez astuces ! Configurez votre imprimante par défaut afin d'imprimer recto/verso et plusieurs pages par feuille ! Alerter : mettre un panneau au dessus de l'imprimante : n'imprimer que si nécessaire.",2,null,null,null,null,null,null,null,null,null,null,"X",null,null,null,null,null,null,null,"X","X","X","X","X","X","X","X","X","X","X","X","X","X","X",null,null,null,null,null,null,null,null,0,0,0,0,0,0,0,0,0,0,0,0,0,0]
[229,"EMPREINTE CARBONE","Sensibilisation","Sensibilisation des organisateurs","Former l'équipe organisatrice","Nommer une personne référente, chargée de la gestion de l'éco-responsabilité de l'évènement",3,null,null,null,null,null,null,null,null,null,null,"X",null,null,"X",null,null,null,null,"X","X","X","X","X","X","X","X","X","X","X","X","X","X","X",null,null,null,null,null,null,null,null,1,0,0,0,0,1,0,0,1,0,0,0,0,2]
[230,"EMPREINTE CARBONE","Sensibilisation","Sensibilisation des participants","Réaliser et communiquer sur l'empreinte carbone de l'événement","Valoriser vos efforts en communiquant sur vos actions concrètes pour réduire votre empreinte carbone : réaliser des supports de communication responsables pour mettre en valeur les économies réalisées.",3,null,null,null,null,null,null,null,null,null,null,"X",null,null,null,null,null,null,null,"X","X","X","X","X","X","X","X","X","X","X","X","X","X","X",null,null,null,null,null,null,null,null,1,0,0,0,0,1,0,0,0,0,0,0,0,1]
[231,"EMPREINTE CARBONE","Sensibilisation","Sensibilisation des participants","Réaliser et communiquer sur l'empreinte carbone de l'événement","Calculer l'empreinte carbone de l'évènement grâce à l'outil intégré à REVENT.",3,null,null,null,null,null,null,null,null,null,null,"X",null,null,null,null,null,null,null,"X","X","X","X","X","X","X","X","X","X","X","X","X","X","X",null,null,null,null,null,null,null,null,1,0,0,0,0,1,0,0,0,0,0,0,0,1]
[232,"EMPREINTE CARBONE","Sensibilisation","Sensibilisation des participants","Sensibiliser aux éco-gestes","Mettre en place une animation autour des éco-gestes : il existe différents jeux, quizz, mais vous pouvez aussi créer votre propre animation, elle sera d'autant plus adaptée à votre public.",1,null,null,null,null,null,null,null,null,null,null,"X",null,null,null,null,null,null,null,"X","X","X","X","X","X","X","X","X","X","X","X","X","X","X",null,null,null,null,null,null,null,null,0,0,0,0,0,0,0,0,0,0,0,0,0,0]
[233,"EMPREINTE CARBONE","Sensibilisation","Sensibilisation des participants","Sensibiliser aux éco-gestes","Créer une charte des éco-gestes adaptée à l'évènement qui retrace précisément les éco-gestes qu'il est possible d'effectuer en fonction des moyens mis à disposition.",1,null,null,null,null,null,null,null,null,null,null,"X",null,null,"X",null,null,null,null,"X","X","X","X","X","X","X","X","X","X","X","X","X","X","X",null,null,null,null,null,null,null,null,0,0,0,0,0,0,0,0,0,0,0,0,0,0]
[234,"EMPREINTE CARBONE","Sensibilisation","Sensibilisation des participants","Sensibiliser aux éco-gestes","Bien informer les participants via des supports de communication responsables. Par exemple : informer des possibilités de tri et autres gestion des déchets mis à leur disposition par des affichettes aux endroits stratégiques.",3,null,null,null,null,null,null,null,null,null,null,"X",null,null,null,null,null,null,null,"X","X","X","X","X","X","X","X","X","X","X","X","X","X","X",null,null,null,null,null,null,null,null,1,0,0,0,0,1,0,0,0,0,0,0,0,1]
[235,"EMPREINTE CARBONE","Sensibilisation","Sensibilisation des participants","Sensibiliser sur la contrainte carbone","Inviter des associations locales/intervenants et leur proposer des stands/ temps de parole. Mettre en place des animations.",1,null,null,null,null,null,null,null,null,null,null,"X",null,null,null,null,null,null,null,"X","X","X","X","X","X","X","X","X","X","X","X","X","X","X",null,null,null,null,null,null,null,null,0,0,0,0,0,0,0,0,0,0,0,0,0,0]
[236,"EMPREINTE CARBONE","Sensibilisation","Sensibilisation des participants","Sensibiliser sur la contrainte carbone","Informer les étudiants et vos partenaires sur le fait qu'ils peuvent compenser leurs émissions de co2 en finançant un projet durable. ",1,null,null,null,null,null,"Attention, la compensation carbone doit toujours s'accompagner d'efforts de réduction des émissions de CO2. Vous retrouverez la liste des acteurs de la compensation carbone sur le site http://www.compensationco2.fr/servlet/kbaseshow?sort=-1&cid=21238&m=3&catid=21276",null,null,null,null,"X",null,null,null,null,null,null,null,"X","X","X","X","X","X","X","X","X","X","X","X","X","X","X",null,null,null,null,null,null,null,null,0,0,0,0,0,0,0,0,0,0,0,0,0,0]
[237,"EQUITE","Accessibilité","Bâtiments/ Structures","S'adapter à un public en situation de handicap","Prévoir un transport spécifique ou une communication sur un/des itinéraires adaptés.",2,null,null,null,null,null,"Présence de places de parking …",null,null,null,null,null,"X",null,null,null,null,null,null,"X","O","X","X","X","X","X","X","X","X","X","X","X","X","X","O","X",null,null,"O","X",null,null,0,0,0,0,0,0,0,0,0,0,0,0,0,0]
[238,"EQUITE","Accessibilité","Bâtiments/ Structures","S'adapter à un public en situation de handicap","Prévoir l'accessibilité pour les déficients visuels.",1,null,null,null,null,null,"Prévoir des animations sonores (programmes, communication,...), braille, version informatique compatible (éviter PDF et PPT)",null,null,null,null,null,"X",null,null,null,null,null,null,"X","X","X","X","X","X","X","X","O","X","X","X","X","X","X","X","X",null,null,"X","X",null,null,0,0,0,0,0,0,0,0,0,0,0,0,0,0]
[239,"EQUITE","Accessibilité","Bâtiments/ Structures","S'adapter à un public en situation de handicap","Prévoir l'accessibilité pour les déficients auditifs.",1,null,null,null,null,null,"Prévoir un sous-titrage ou sur-titrage, Langue des Signes Français, Langage Parlé Complété",null,null,null,null,null,"X",null,null,null,null,null,null,"X","X","X","X","X","X","X","X","X","X","X","X","X","X","X","O","X",null,null,"?","?",null,null,0,0,0,0,0,0,0,0,0,0,0,0,0,0]
[240,"EQUITE","Accessibilité","Bâtiments/ Structures","S'adapter à un public en situation de handicap","Personnes à handicap : prévoir l'aménagement pour aider à la bonne circulation des personnes et à l'accès aux diverses activités ou besoins.",3,null,null,null,null,null,"Toilettes, places ciné, bars, buvettes, buffets, espace réservé, places de parking proches…",null,null,null,null,null,"X",null,null,null,null,null,null,"X","X","X","X","X","X","X","X","X","X","X","X","X","X","X","O","X",null,null,"O","X",null,null,1,0,0,0,0,0,1,0,0,0,0,0,0,1]
[241,"EQUITE","Accessibilité","Bâtiments/ Structures","S'adapter à un public en situation de handicap","Penser à retransmettre l'évènement en ligne.",1,null,null,null,null,null,null,null,null,null,null,null,"X",null,null,null,null,null,null,"X","X","X","X","X","X","X","X","O","X","X","X","X","X","X","X","X",null,null,"X","O",null,null,0,0,0,0,0,0,0,0,0,0,0,0,0,0]
[242,"EQUITE","Accessibilité","Communication","S'adapter à un public en situation de handicap","Prévoir un site Internet accessible aux personnes en situation de handicap.",1,null,null,null,null,null,"Coquille de site mise à disposition par la FEDEEH  ou voir  http://acces-site.fr/",null,null,null,null,null,"X",null,null,null,null,null,null,"X","O","X","X","X","X","X","X","O","X","X","X","X","X","X","X","O",null,null,"X","O",null,null,0,0,0,0,0,0,0,0,0,0,0,0,0,0]
[243,"EQUITE","Accessibilité","Communication","S'adapter à un public en situation de handicap","Informer le public que des solutions peuvent être mises en place en fonction de leurs besoins.",3,null,null,null,null,null,null,null,null,null,null,null,null,null,null,null,null,null,null,"X","X","X","X","X","X","X","X","X","X","X","X","X","X","X",null,null,null,null,null,null,null,null,0,0,0,0,0,0,0,0,0,0,0,0,0,0]
[244,"EQUITE","Accessibilité","Loyauté des pratiques","Rendre accessible l'événement à tous, quel que soit le statut économique, social et culturel","Retransmettre l'évènement en ligne si possible ou sur les ondes pour ceux qui n'auraient pu y participer et rendre accessible à tous une ou des vidéos de l'évènement après sa réalisation.",1,null,null,null,null,null,null,null,null,null,null,null,"X",null,null,null,null,null,null,"X","X","X","X","X","X","X","X","O","X","X","X","X","X","X","X","X",null,null,"X","O",null,null,0,0,0,0,0,0,0,0,0,0,0,0,0,0]
[245,"EQUITE","Accessibilité","Loyauté des pratiques","Rendre accessible l'événement à tous, quel que soit le statut économique, social et culturel","Proposer des prix échelonnés en fonction du statut (étudiant, chômeur,…), du revenu, de la distance de l'évènement et/ou d'autres paramètres.",2,null,null,null,null,null,null,null,null,null,null,null,"X",null,null,null,null,"X",null,"X","X","X","X","X","X","X","X","X","X","X","X","X","X","X","X","O",null,null,"X","O",null,null,0,0,0,0,0,0,0,0,0,0,0,0,0,0]
[246,"EQUITE","Accessibilité","Loyauté des pratiques","Rendre accessible l'événement à tous, quel que soit le statut économique, social et culturel","Négocier des partenariats.",1,null,null,null,null,null,"Exemple : Kiosques Jeunes, carte Sortir à Rennes,…",null,null,null,null,null,"X",null,null,null,null,null,null,"X","X","X","X","X","X","X","X","X","X","X","X","X","X","X","X","X",null,null,"X","O",null,null,0,0,0,0,0,0,0,0,0,0,0,0,0,0]
[247,"EQUITE","Accessibilité","Loyauté des pratiques","Rendre accessible l'événement à tous, quel que soit le statut économique, social et culturel","Mettre en place un système de prix libre.",1,null,null,null,null,null,null,null,null,null,null,null,"X",null,null,null,null,null,null,"X","X","X","X","X","X","X","X","X","X","X","X","X","X","X","O","X",null,null,"O","X",null,null,0,0,0,0,0,0,0,0,0,0,0,0,0,0]
[248,"EQUITE","Accessibilité","Loyauté des pratiques","Rendre accessible l'événement à tous, quel que soit le statut économique, social et culturel","Mettre en place des crèches éphémères.",1,null,null,null,null,null,null,null,null,null,null,null,"X",null,null,null,null,null,null,"X","X","X","X","X","X","X","X","O","X","X","X","X","X","X","X","O",null,null,"X","O",null,null,0,0,0,0,0,0,0,0,0,0,0,0,0,0]
[249,"EQUITE","Accessibilité","Loyauté des pratiques","Rendre accessible l'événement à tous, quel que soit le statut économique, social et culturel","Faire une commande groupée de costumes/tissus/accessoires (soirée déguisée) ou organiser un atelier création pour fabriquer les costumes.",1,null,null,null,null,null,null,null,null,null,null,null,"X",null,null,null,null,null,null,"X","X","X","X","X","X","X","X","X","X","X","X","X","X","X","X","O",null,null,"X","O",null,null,0,0,0,0,0,0,0,0,0,0,0,0,0,0]
[250,"EQUITE","Accessibilité","Management/ Gestion","S'adapter à un public en situation de handicap","Rechercher des subventions auprès d'organismes finançant les mesures d'accessibilité.",1,null,null,null,null,null,"Mission handicap de l'établissement",null,null,null,null,null,null,null,null,null,null,null,null,"X","X","X","X","X","X","X","X","X","X","X","X","X","X","X",null,null,null,null,null,null,null,null,0,0,0,0,0,0,0,0,0,0,0,0,0,0]
[251,"EQUITE","Accessibilité","Management/ Gestion","S'adapter à un public en situation de handicap","Prévoir des activités alternatives dans le cas où un individu ne pourrait y participer.",1,null,null,null,null,null,null,null,null,null,null,null,"X",null,null,null,null,null,null,"X","X","X","X","X","X","X","X","X","X","X","X","X","X","X","O","X",null,null,"O","X",null,null,0,0,0,0,0,0,0,0,0,0,0,0,0,0]
[252,"EQUITE","Accessibilité","Management/ Gestion","S'adapter à un public en situation de handicap","Identifier dans l'équipe un référent handicap ou se rapprocher du référent handicap de l'établissement.",3,null,null,null,null,null,null,null,null,null,null,null,null,null,null,null,null,null,null,"X","X","X","X","X","X","X","X","X","X","X","X","X","X","X",null,null,null,null,null,null,null,null,0,0,0,0,0,0,0,0,0,0,0,0,0,0]
[253,"EQUITE","Accessibilité","Sensibilisation des organisateurs","S'adapter à un public en situation de handicap","Sensibiliser l'équipe organisatrice aux différents types de handicap qu'ils peuvent être amenés à rencontrer (notamment psychique).",2,null,null,null,null,null,null,null,null,null,null,null,null,null,null,null,null,null,null,"X","X","X","X","X","X","X","X","X","X","X","X","X","X","X",null,null,null,null,null,null,null,null,0,0,0,0,0,0,0,0,0,0,0,0,0,0]
[254,"EQUITE","Diversité","Lieu de vie/décors","Promouvoir la diversité","Proposer une catégorie handisport lors d'évènements sportifs.",1,null,null,null,null,null,null,null,null,null,null,null,"X",null,null,null,null,null,null,"X","X","X","X","X","X","X","X","X","X","X","X","X","X","X","X","X",null,null,"O","X",null,null,0,0,0,0,0,0,0,0,0,0,0,0,0,0]
[255,"EQUITE","Diversité","Relations humaines","Sensibiliser les participants aux questions liées aux discriminations","Veiller au respect de chaque participant.",2,null,null,null,null,null,null,null,null,null,null,null,"X",null,"X",null,null,null,null,"X","X","X","X","X","X","X","X","X","X","X","X","X","X","X","O","X",null,null,"O","X",null,null,0,0,0,0,0,0,0,0,0,0,0,0,0,0]
[256,"EQUITE","Diversité","Relations humaines","Sensibiliser les participants aux questions liées aux discriminations","Créer une charte de la diversité de l'évènement.",1,null,null,null,null,null,"Quelques outils pour les entreprises, adaptables aux évènements : http://www.charte-diversite.com/charte-diversite-en-action.php",null,null,null,null,null,"X",null,null,null,null,null,null,"X","X","X","X","X","X","X","X","X","X","X","X","X","X","X","O","X",null,null,"X","X",null,null,0,0,0,0,0,0,0,0,0,0,0,0,0,0]
[257,"EQUITE","Diversité","Sensibilisation des organisateurs","Promouvoir la diversité","Sensibiliser l'équipe en amont de l'évènement.",2,null,null,null,null,null,null,null,null,null,null,null,"X",null,null,null,null,null,null,"X","X","X","X","X","X","X","X","X","X","X","X","X","X","X","O","X",null,null,"O","X",null,null,0,0,0,0,0,0,0,0,0,0,0,0,0,0]
[258,"EQUITE","Diversité","Sensibilisation des participants","Promouvoir la diversité","Proposer aux personnes valides des activités de découverte liées aux handisports.",1,null,null,null,null,null,null,null,null,null,null,null,"X",null,null,null,null,null,null,"X","X","X","X","X","X","X","X","X","X","X","X","X","X","X","X","X",null,null,"O","X",null,null,0,0,0,0,0,0,0,0,0,0,0,0,0,0]
[259,"EQUITE","Diversité","Sensibilisation des participants","Sensibiliser les participants aux questions liées aux discriminations","Permettre à des associations ou organismes publics d'intervenir durant l'évènement pour parler des questions liées au thème de l'équité (handicap, maladie, discrimination, solidarité internationale, etc.).",1,null,null,null,null,null,null,null,null,null,null,null,"X",null,null,null,null,"X",null,"X","X","X","X","X","X","X","X","O","X","X","O","X","X","X","X","X",null,null,"X","X",null,null,0,{"$f":"IF(AND(N263=\"X\",$G263>=AX$471),1,0)","v":0},{"$f":"IF(AND(O263=\"X\",$G263>=AY$471),1,0)","v":0},{"$f":"IF(AND(P263=\"X\",$G263>=AZ$471),1,0)","v":0},{"$f":"IF(AND(Q263=\"X\",$G263>=BA$471),1,0)","v":0},{"$f":"IF(AND(R263=\"X\",$G263>=BB$471),1,0)","v":0},{"$f":"IF(AND(S263=\"X\",$G263>=BC$471),1,0)","v":0},{"$f":"IF(AND(T263=\"X\",$G263>=BD$471),1,0)","v":0},{"$f":"IF(AND(U263=\"X\",$G263>=BE$471),1,0)","v":0},{"$f":"IF(AND(V263=\"X\",$G263>=BF$471),1,0)","v":0},{"$f":"IF(AND(W263=\"X\",$G263>=BG$471),1,0)","v":0},{"$f":"IF(AND(X263=\"X\",$G263>=BH$471),1,0)","v":0},{"$f":"IF(AND(Y263=\"X\",$G263>=BI$471),1,0)","v":0},0]
[260,"EQUITE","Diversité","Sensibilisation des participants","Sensibiliser les participants aux questions liées aux discriminations","Diffuser des films et supports de communication sur le thème des discriminations.",1,null,null,null,null,null,null,null,null,null,null,null,"X",null,null,null,null,"X",null,"X","X","X","X","X","X","X","X","X","X","X","X","X","X","X","O","X",null,null,"O","X",null,null,0,0,0,0,0,0,0,0,0,0,0,0,0,0]
[261,"EQUITE","Equité des pratiques","Alimentation","Choisir les fournisseurs de l'événement selon des critères responsables","Favoriser le commerce équitable (négocier des partenariats si possible).",3,null,null,null,null,null,"Exemple : se tourner vers des structures coopératives (Ethiquable, Biocoop…)",null,null,null,"X",null,"X","X",null,null,null,null,null,"X","X","X","X","X","X","X","X","O","X","X","X","X","X","O","X","O",null,null,"O","X",null,null,1,0,0,0,1,0,1,1,0,0,0,0,0,3]
[262,"EQUITE","Equité des pratiques","Conditions de travail","Rendre les informations liées à la procédure de recrutement publiques (dans le cas où la participation à l'organisation serait rémunérée)","Réaliser des entretiens transparents (grille d'évaluation, critères,…).",2,null,null,null,null,null,null,null,null,null,null,null,"X",null,null,null,null,null,null,"X","X","X","X","X","X","X","X","X","X","X","X","X","X","X","O","X",null,null,"O","X",null,null,0,0,0,0,0,0,0,0,0,0,0,0,0,0]
[263,"EQUITE","Equité des pratiques","Conditions de travail","Rendre les informations liées à la procédure de recrutement publiques (dans le cas où la participation à l'organisation serait rémunérée)","Diffuser largement les fiches de poste.",1,null,null,null,null,null,null,null,null,null,null,null,"X",null,null,null,null,null,null,"X","X","X","X","X","X","X","X","X","X","X","X","X","X","X","O","X",null,null,"O","X",null,null,0,0,0,0,0,0,0,0,0,0,0,0,0,0]
[264,"EQUITE","Equité des pratiques","Conditions de travail","Rendre les informations liées à la procédure de recrutement publiques (dans le cas où la participation à l'organisation serait rémunérée)","Définir des fiches de poste avec des missions claires et les compétences recherchées.",1,null,null,null,null,null,null,null,null,null,null,null,"X",null,null,null,null,null,null,"X","X","X","X","X","X","X","X","X","X","X","X","X","X","X","O","X",null,null,"O","X",null,null,0,0,0,0,0,0,0,0,0,0,0,0,0,0]
[265,"EQUITE","Equité des pratiques","Conditions de travail","Rendre les informations liées à la procédure de recrutement publiques (dans le cas où la participation à l'organisation serait rémunérée)","Avoir une rémunération transparente et associée à une convention collective.",2,null,null,null,null,null,null,null,null,null,null,null,"X",null,null,null,null,null,null,"X","X","X","X","X","X","X","X","O","X","X","X","X","X","X","X","O",null,null,"X","O",null,null,0,0,0,0,0,0,0,0,0,0,0,0,0,0]
[266,"EQUITE","Equité des pratiques","Loyauté des pratiques","Choisir les fournisseurs de l'événement selon des critères responsables","Valoriser les partenaires actifs (communication, forum associatif, dons,...).",1,null,null,null,null,null,null,null,null,null,"X",null,"X",null,null,null,null,"X",null,"X","X","X","X","X","X","X","X","O","X","X","O","X","X","X","X","X",null,null,"X","X",null,null,0,0,0,0,0,0,0,0,0,0,0,0,0,0]
[267,"EQUITE","Equité des pratiques","Loyauté des pratiques","Choisir les fournisseurs de l'événement selon des critères responsables","Privilégier les entreprises responsables ou ayant des actions de mécénat dans le choix des fournisseurs.",2,null,null,null,null,null,null,null,null,null,"X",null,null,null,null,null,null,null,null,"X","X","X","X","X","X","X","X","X","X","X","X","X","X","X","X",null,null,null,"X",null,null,null,0,0,0,0,0,0,0,0,0,0,0,0,0,0]
[268,"EQUITE","Equité des pratiques","Loyauté des pratiques","Choisir les fournisseurs de l'événement selon des critères responsables","Faire appel à des structures de l'entrepreneuriat social pour favoriser une économie sociale.",1,null,null,null,null,null,null,null,null,null,"X",null,"X",null,null,null,null,"X",null,"X","X","X","X","X","X","X","X","O","X","X","O","X","X","X","X","O",null,null,"X","O",null,null,{"$f":"IF(OR(BJ272=0,AU272=\"Non applicable\"),0,1)","v":0},0,0,0,0,0,0,0,0,0,0,0,0,{"$f":"SUM(AX272:BI272)","v":0}]
[269,"EQUITE","Equité des pratiques","Loyauté des pratiques","Choisir les fournisseurs de l'événement selon des critères responsables","Faire appel à des entreprises de réinsertion (négocier des partenariats si possible,…).",1,null,null,null,null,null,"Se donner des objectifs tels que : Atteindre X % de produit issus d'entreprise d'insertion (prisonniers, handicapés...)",null,null,null,"X",null,"X",null,null,null,null,"X",null,"X","X","X","X","X","X","X","X","O","X","X","O","X","X","X","X","X",null,null,"X","O",null,null,0,0,0,0,0,0,0,0,0,0,0,0,0,0]
[270,"EQUITE","Equité des pratiques","Loyauté des pratiques","Choisir les fournisseurs de l'événement selon des critères responsables","Faire appel à des ateliers adaptés (anciens Centres d'Aide au Travail).",1,null,null,null,null,null,null,null,null,null,"X",null,"X",null,null,null,null,"X",null,"X","X","X","X","X","X","X","X","O","X","X","O","X","X","X","X","X",null,null,"O","X",null,null,0,0,0,0,0,0,0,0,0,0,0,0,0,0]
[271,"EQUITE","Equité des pratiques","Loyauté des pratiques","Choisir les fournisseurs de l'événement selon des critères responsables","Définir des critères et mettre en place une charte éthique.",1,null,null,null,null,null,"Voir des exemples de chartes éthiques en entreprise sur internet, adaptables",null,null,null,"X",null,"X",null,null,null,null,null,null,"X","X","X","X","X","X","X","X","X","X","X","X","X","X","X","X","X",null,null,"X","O",null,null,0,0,0,0,0,0,0,0,0,0,0,0,0,0]
[272,"EQUITE","Equité des pratiques","Loyauté des pratiques","Promouvoir la diversité","Valoriser tous les participants aux activités proposées (vainqueurs/vaincus,…).",2,null,null,null,null,null,null,null,null,null,null,null,"X",null,null,null,null,null,null,"X","X","X","X","X","X","X","X","X","X","X","X","X","X","X","X","X",null,null,"O","X",null,null,0,0,0,0,0,0,0,0,0,0,0,0,0,0]
[273,"GESTION DES RESSOURCES","alimentation","Déchets","Limiter les déchets","Distribuer les denrées non consommées (et non périssables)  aux participants ou associations présentes.",3,null,null,null,null,null,"http://alimentation.gouv.fr/gaspillage-alimentaire",null,null,null,null,null,null,"X",null,null,null,"X",null,"X","X","X","X","X","X","X","X","X","X","X","X","X","X","O","X","O",null,null,"O","X",null,null,1,0,0,0,0,0,0,1,0,0,0,1,0,2]
[274,"GESTION DES RESSOURCES","alimentation","Management/ Gestion","Maitriser la consommation","Adapter la quantité et l'alimentation à l'évènement et aux participants.",2,null,null,null,null,null,"http://alimentation.gouv.fr/gaspillage-alimentaire",null,null,null,null,null,null,"X",null,null,null,null,null,"X","X","X","X","X","X","X","X","X","X","X","X","X","X","O","X","O",null,null,"X","O",null,null,0,0,0,0,0,0,0,0,0,0,0,0,0,0]
[275,"GESTION DES RESSOURCES","eau","Bâtiments/ Structures","Limiter la consommation en eau","Vérifier l'état des installations : fuites, état général.",2,null,null,null,null,null,null,null,null,null,null,null,null,"X",null,null,null,null,null,"X","X","X","X","X","X","X","X","X","X","X","X","X","X","X","O","X",null,null,"O","X",null,null,0,0,0,0,0,0,0,0,0,0,0,0,0,0]
[276,"GESTION DES RESSOURCES","eau","Comportements","Limiter la pollution","Séparer, récupérer les effluents : huile usagée, eaux de restauration, eaux usées.",2,null,null,null,null,null,"http://www.consoglobe.com/bons-usages-huile-cuisson-usagee-2184-cg",null,null,null,null,null,null,"X",null,null,null,null,null,"X","X","X","X","X","X","X","X","X","X","X","X","X","X","X","X","X",null,null,"X","O",null,null,0,0,0,0,0,0,0,0,0,0,0,0,0,0]
[277,"GESTION DES RESSOURCES","eau","Comportements","Mettre en place un lavage responsable\n","Favoriser l'utilisation des produits d'entretien écologiques labellisés et respecter les doses recommandées par les fabricants lors de l'utilisation de produits d'entretiens.",2,null,null,null,null,null,"http://www.ecolabels.fr/fr/recherche-avancee/categories-de-produits-ou-services-certifies/produits-d-entretien",null,"X",null,null,null,null,"X",null,null,null,null,null,"X","X","X","X","X","X","X","X","X","X","X","X","X","X","X","X","X",null,null,"O","X",null,null,0,0,0,0,0,0,0,0,0,0,0,0,0,0]
[278,"GESTION DES RESSOURCES","eau","Comportements","Mettre en place un lavage responsable\n","Interdire les lavages à grandes eaux, favoriser l'utilisation d'un seau de lavage.",2,null,null,null,null,null,null,null,"X",null,null,null,null,"X",null,null,null,null,null,"X","X","X","X","X","X","X","X","X","X","X","X","X","X","X","X","X",null,null,"O","X",null,null,0,0,0,0,0,0,0,0,0,0,0,0,0,0]
[279,"GESTION DES RESSOURCES","eau","Management/ Gestion","Maitriser la consommation d'eau","Faire un relevé de compteur d'eau avant et après l'évènement.",1,null,null,null,null,null,null,null,null,null,null,null,null,"X",null,null,null,null,null,"X","X","X","X","X","X","X","X","X","X","X","X","X","X","X","O","X",null,null,"X","O",null,null,0,0,0,0,0,0,0,0,0,0,0,0,0,0]
[280,"GESTION DES RESSOURCES","eau","Produits / équipements","Améliorer les pratiques sanitaires","Installer le ou les équipements suivants : robinet avec réducteur de débit, robinet avec détecteur, toilette double-chasse, système de récupération d'eau de pluie sur site, séparateur hydrocarbures.",1,null,null,null,null,null,"http://www.bioaddict.fr/article/10-eco-gestes-contre-le-gaspillage-de-l-eau-a1600p1.html",null,null,null,null,null,null,"X",null,null,null,null,null,"X","X","X","X","X","X","X","X","X","X","X","X","X","X","X","O","X",null,null,"O","X",null,null,0,0,0,0,0,0,0,0,0,0,0,0,0,0]
[281,"GESTION DES RESSOURCES","eau","Produits / équipements","Limiter la consommation en eau","Mettre en place des méthodes alternatives : toilettes sèches, réducteur de débit, utilisation d'eau de pluie.",1,null,null,null,null,null,"http://www.linternaute.com/acheter/eau/tableau.shtml",null,"X",null,null,null,null,"X",null,null,null,null,null,"X","X","X","X","X","X","X","X","X","X","X","X","X","X","X","O","X",null,null,"X","O",null,null,0,0,0,0,0,0,0,0,0,0,0,0,0,0]
[282,"GESTION DES RESSOURCES","énergie","Comportements","Limiter la consommation énergétique","Eviter les pertes d'énergie : fermer les portes, les fenêtres et les radiateurs.",2,null,null,null,null,null,null,null,null,null,null,null,null,"X",null,null,null,null,null,"X","X","X","X","X","X","X","X","X","X","X","X","X","X","X","O","X",null,null,"O","X",null,null,0,0,0,0,0,0,0,0,0,0,0,0,0,0]
[283,"GESTION DES RESSOURCES","énergie","Comportements","Limiter la consommation énergétique","Eviter la surconsommation de l'éclairage : éteindre les lumières, allumer seulement les lumières nécessaires.",2,null,null,null,null,null,"http://www.notre-planete.info/ecologie/eco-citoyen/eco_electricite.php",null,null,null,null,null,null,"X",null,null,null,null,null,"X","X","X","X","X","X","X","X","X","X","X","X","X","X","X","O","X",null,null,"O","X",null,null,0,0,0,0,0,0,0,0,0,0,0,0,0,0]
[284,"GESTION DES RESSOURCES","énergie","Comportements","Limiter la consommation énergétique","Aérer naturellement : aérer régulièrement les pièces,  favoriser les courants d'air plutôt que l'utilisation de la climatisation.",1,null,null,null,null,null,null,null,null,null,null,null,null,"X",null,null,null,null,null,"X","X","X","X","X","X","X","X","X","X","X","X","X","X","X","O","X",null,null,"O","X",null,null,0,0,0,0,0,0,0,0,0,0,0,0,0,0]
[285,"GESTION DES RESSOURCES","énergie","Déplacements","Limiter la consommation d'énergie","Proposer des billets combinés (entrée + transport en commun).",1,null,null,null,null,null,null,null,null,null,null,null,null,"X",null,null,null,null,null,"X","X","X","X","X","X","X","X","X","X","X","X","X","X","X","X","O",null,null,"O","X",null,null,0,0,0,0,0,0,0,0,0,0,0,0,0,0]
[286,"GESTION DES RESSOURCES","énergie","Déplacements","Limiter la consommation d'énergie","Privilégier les transports en commun, le covoiturage et les autres modes de transports doux.",3,null,null,null,null,null,"Créer des parkings à vélo",null,null,null,null,null,null,"X",null,null,null,null,null,"X","O","X","X","X","X","X","X","X","X","X","X","X","X","X","O","X",null,null,"O","X",null,null,1,0,0,0,0,0,0,1,0,0,0,0,0,1]
[287,"GESTION DES RESSOURCES","énergie","Déplacements","Limiter la consommation d'énergie","Créer un service de navette.",1,null,null,null,null,null,null,null,null,null,null,null,null,"X",null,null,null,null,null,"X","X","X","X","X","X","X","X","X","X","X","X","X","X","X","X","X",null,null,"O","X",null,null,0,0,0,0,0,0,0,0,0,0,0,0,0,0]
[288,"GESTION DES RESSOURCES","énergie","Lieu de vie/décors","Limiter la consommation d'énergie","Favoriser un lieu à moins de 10min à pied des transports en commun.",2,null,null,null,null,null,"http://www.justeungeste.com/15,ecologie,transports-en-commun.html",null,null,null,null,null,null,"X",null,null,null,null,null,"X","O","X","X","X","X","X","X","X","X","X","X","X","X","X","X","X",null,null,"XO","X",null,null,0,0,0,0,0,0,0,0,0,0,0,0,0,0]
[289,"GESTION DES RESSOURCES","énergie","Management/ Gestion","Maîtriser la consommation d'énergie","Vérifier l'état des installations : conformité, vétusté, adapté aux équipements prévus (cuisine, éclairage, son).",2,null,null,null,null,null,null,null,null,null,null,null,null,"X",null,null,"X",null,null,"X","X","X","X","X","X","X","X","X","X","X","X","X","X","X","X","X",null,null,"O","X",null,null,0,0,0,0,0,0,0,0,0,0,0,0,0,0]
[290,"GESTION DES RESSOURCES","énergie","Produits / équipements","Maîtriser la consommation d'énergie","Vérifier les types d'installations électriques : détecteur de présence, lampes basse consommation, lampes classiques, halogènes, minuteur.",1,null,null,null,null,null,null,null,null,null,null,null,null,"X",null,null,null,null,null,"X","X","X","X","X","X","X","X","X","X","X","X","X","X","X","O","X",null,null,"X","O",null,null,0,0,0,0,0,0,0,0,0,0,0,0,0,0]
[291,"GESTION DES RESSOURCES","énergie","Produits / équipements","Maîtriser la consommation d'énergie","Faire un relevé de compteur électrique avant et après l'évènement.",1,null,null,null,null,null,null,null,null,null,null,null,null,"X",null,null,null,null,null,"X","X","X","X","X","X","X","X","X","X","X","X","X","X","X","X","X",null,null,"X","O",null,null,0,0,0,0,0,0,0,0,0,0,0,0,0,0]
[292,"GESTION DES RESSOURCES","management","Management/ Gestion"," Renseigner les organisateurs et les participants sur les ressources naturelles","Définir/désigner et former (lectures, vidéos, sites Internet, conférences...) un organisateur responsable des ressources naturelles.",1,null,null,null,null,null,null,null,null,null,null,null,null,"X",null,null,null,null,null,"X","X","X","X","X","X","X","X","X","X","X","X","X","X","X","X","X",null,null,"X","O",null,null,0,0,0,0,0,0,0,0,0,0,0,0,0,0]
[293,"GESTION DES RESSOURCES","management","Sensibilisation des organisateurs"," Renseigner les organisateurs et les participants sur les ressources naturelles","Sensibiliser les organisateurs et les participants sur les ressources naturelles : information, diffusion de message, affichage.",1,null,null,null,null,null,"http://www.consoglobe.com/epuisement-des-ressources-naturelles-et-demographie-cg",null,null,null,null,null,null,"X",null,null,null,null,null,"X","X","X","X","X","X","X","X","X","X","X","X","X","X","X","O","X",null,null,"O","X",null,null,0,0,0,0,0,0,0,0,0,0,0,0,0,0]
[294,"GESTION DES RESSOURCES","Matériel","Déchets","Limiter les déchets","Distribuer le matériel/décor issu de l'évènement aux participants ou associations présentes.",2,null,null,null,null,null,null,null,null,null,null,null,null,"X",null,null,null,"X",null,"X","X","X","X","X","X","X","X","X","X","X","X","X","X","X",null,"X",null,null,"O","X",null,null,0,0,0,0,0,0,0,0,0,0,0,0,0,0]
[295,"GESTION DES RESSOURCES","matières premières et produits","Communication","Contribuer à la gestion durable des forêts","Avoir des supports de com' avec le label PEFC ou FSC ; indiquer la mention obligatoire \"ne pas jeter sur la voie publique\" sur les documents papiers distribués.",2,null,null,null,null,null,null,null,"X",null,null,"X",null,"X",null,null,null,null,null,"X","X","X","X","X","X","X","X","X","X","X","X","X","X","X","X","X",null,null,"O","X",null,null,0,0,0,0,0,0,0,0,0,0,0,0,0,0]
[296,"GESTION DES RESSOURCES","matières premières et produits","Comportements","Réduire la production de déchets","Limiter la consommation de papier : impression recto/verso, réutilisation du papier.",3,null,null,null,null,null,"ASTUCE : Configurer votre imprimante en mode recto/verso par défaut. De cette façon toutes les personnes qui utiliseront cette imprimante imprimeront automatiquement en recto/verso ce qui permet d'économiser plusieurs kilos de papier chaque année. ",null,"X",null,null,"X",null,"X",null,null,null,null,null,"X","X","X","X","X","X","X","X","X","X","X","X","X","X","X","X","X",null,null,"O","X",null,null,1,0,1,0,0,1,0,1,0,0,0,0,0,3]
[297,"GESTION DES RESSOURCES","matières premières et produits","Déchets","Réduire la production de déchets","Réutiliser et donner une seconde vie aux produits, favoriser les échanges entre associations.",1,null,null,null,null,null,"http://donnons.org/",null,null,null,"X",null,null,"X",null,null,null,"X",null,"X","X","X","X","X","X","X","X","X","X","X","X","X","X","X","O","X",null,null,"O","X",null,null,0,0,0,0,0,0,0,0,0,0,0,0,0,0]
[298,"GESTION DES RESSOURCES","matières premières et produits","Déchets","Réduire la production de déchets","Réduire / optimiser les emballages des produits : sans suremballage, en vrac, en gros.",3,null,null,null,null,null,"http://www.ecoconso.be/IMG/pdf/brochure_suremballage.pdf",null,null,null,null,"X",null,"X",null,null,null,null,null,"X","X","X","X","X","X","X","X","X","X","X","X","X","X","X","O","X",null,null,"O","X",null,null,1,0,0,0,0,1,0,1,0,0,0,0,0,2]
[299,"GESTION DES RESSOURCES","matières premières et produits","Déchets","Réduire la production de déchets","Mettre à disposition de la vaisselle réutilisable : vaisselle consignée, carafe d'eau.",3,null,null,null,null,null,"Distribution d'ecocup avec consigne ; http://www.reduisonsnosdechets.fr/jagis/vaisselle.html",null,"X",null,"X","X",null,"X",null,null,null,null,null,"X","X","X","X","X","X","X","X","X","X","X","X","X","X","X","X","X",null,null,"O","X",null,null,1,0,1,0,1,1,0,1,0,0,0,0,0,4]
[300,"GESTION DES RESSOURCES","matières premières et produits","Déchets","Valoriser les déchets","Utiliser du  papier recyclé.",1,null,null,null,null,null,"http://www.conservation-nature.fr/article3.php?id=151",null,"X",null,null,null,null,"X",null,null,null,null,null,"X","X","X","X","X","X","X","X","X","X","X","X","X","X","X","O","X",null,null,"O","X",null,null,0,0,0,0,0,0,0,0,0,0,0,0,0,0]
[301,"GESTION DES RESSOURCES","matières premières et produits","Déchets","Valoriser les déchets","Rapporter dans les filières adaptées : les produits consignés (verre, bouteille de gaz), les encombrants et les déchets dangereux.",1,null,null,null,null,null,"http://www2.ademe.fr/servlet/KBaseShow?sort=-1&cid=96&m=3&catid=14725",null,null,null,null,null,null,"X",null,null,"X",null,null,"X","X","X","X","X","X","X","X","X","X","X","X","X","X","X","O","X",null,null,"O","X",null,null,0,0,0,0,0,0,0,0,0,0,0,0,0,0]
[302,"GESTION DES RESSOURCES","matières premières et produits","Produits / équipements","Limiter la pollution","Choisir des produits avec un écolabel.",1,null,null,null,null,null,"http://www.ecoemballages.fr/le-tri-des-emballages/leco-citoyennete-au-quotidien/point-vert-et-autres-logos/",null,null,null,null,null,null,"X",null,null,null,null,null,"X","X","X","X","X","X","X","X","X","X","X","X","X","X","X","O","X",null,null,"O","X",null,null,0,0,0,0,0,0,0,0,0,0,0,0,0,0]
[303,"GESTION DES RESSOURCES","matières premières et produits","Produits / équipements","Réduire la production de déchets","Utiliser des contenants réutilisables ou biodégradables : sacs tissus, cabas,  paniers, cagettes.",1,null,null,null,null,null,"http://optigede.ademe.fr/sites/default/files/fichiers/Outil_Geste_8_Sacs_reutilisables.pdf",null,null,null,null,null,null,"X",null,null,null,null,null,"X","X","X","X","X","X","X","X","X","X","X","X","X","X","X","O","X",null,null,"O","X",null,null,0,0,0,0,0,0,0,0,0,0,0,0,0,0]
[304,"GESTION DES RESSOURCES","matières premières et produits","Produits / équipements","Réduire la production de déchets","Acheter d’occasion, emprunter, louer, revendre.",1,null,null,null,null,null,null,null,null,null,null,null,null,"X",null,null,null,null,null,"X","X","X","X","X","X","X","X","X","X","X","X","X","X","X","X","O",null,null,"O","X",null,null,0,0,0,0,0,0,0,0,0,0,0,0,0,0]
[305,"GOUVERN.","Ethique et cadre juridique","Loyauté des pratiques","Etre en cohérence avec les valeurs définies","Choisir les partenaires de l'évènement en fonction de la compatibilité de leur action avec les valeurs portées par l'organisme organisateur.",1,null,null,null,null,null,null,null,null,null,null,null,null,null,"X",null,null,null,null,"X","X","X","X","X","X","X","X","X","X","X","X","X","X","X",null,"X",null,null,"X",null,null,null,0,0,0,0,0,0,0,0,0,0,0,0,0,0]
[306,"GOUVERN.","Ethique et cadre juridique","Management/ Gestion","Définir des valeurs","Organiser un brainstorming avec l'équipe et éventuellement des parties prenantes de l'évènement.",1,null,null,null,null,null,null,null,null,null,null,null,null,null,"X",null,null,null,null,"X","X","X","X","X","X","X","X","X","X","X","X","X","X","X",null,"X",null,null,null,"X",null,null,0,0,0,0,0,0,0,0,0,0,0,0,0,0]
[307,"GOUVERN.","Ethique et cadre juridique","Relations humaines","Adopter un comportement éthique","Accueillir correctement les intervenants/artistes et les valoriser dans une juste mesure.",2,null,null,null,null,null,null,null,null,null,null,null,null,null,"X",null,null,null,null,"X","X","X","X","X","X","X","X","X","X","X","X","X","X","X",null,"X",null,null,null,"X",null,null,0,0,0,0,0,0,0,0,0,0,0,0,0,0]
[308,"GOUVERN.","Ethique et cadre juridique","Respect des règles","Identifier les responsabilités","Respect dans l'organisation de l'évènement des statuts de l'organisme responsable.",2,null,null,null,null,null,null,null,null,null,null,null,null,null,"X",null,null,null,null,"X","X","X","X","X","X","X","X","X","X","X","X","X","X","X",null,"X",null,null,null,"X",null,null,0,0,0,0,0,0,0,0,0,0,0,0,0,0]
[309,"GOUVERN.","Ethique et cadre juridique","Respect des règles","Identifier les responsabilités","Désignation claire et transparente des responsabilités légales de chaque partie prenante.",2,null,null,null,null,null,null,null,null,null,null,null,null,null,"X",null,null,null,null,"X","X","X","X","X","X","X","X","X","X","X","X","X","X","X",null,"X",null,null,null,"X",null,null,0,0,0,0,0,0,0,0,0,0,0,0,0,0]
[310,"GOUVERN.","Ethique et cadre juridique","Respect des règles","Respecter les réglementations","Conformité de l'organisation de l'évènement avec le cadre juridique et réglementaire en vigueur.",2,null,null,null,null,null,null,null,null,null,null,null,null,null,"X",null,null,null,null,"X","X","X","X","X","X","X","X","X","X","X","X","X","X","X",null,"X",null,null,null,"X",null,null,0,0,0,0,0,0,0,0,0,0,0,0,0,0]
[311,"GOUVERN.","Gestion de l'événement","Communication","Favoriser la réussite de l'événement","Décrire en amont  les différentes activités, conférences et ateliers aux participants afin qu'ils choisissent au mieux à quoi ils participent.",2,null,null,null,null,null,null,null,null,null,null,null,null,null,"X",null,null,null,null,"X","X","X","X","X","X","X","X","X","X","X","X","X","X","X",null,"X",null,null,null,"X",null,null,0,0,0,0,0,0,0,0,0,0,0,0,0,0]
[312,"GOUVERN.","Gestion de l'événement","Management/ Gestion","Coordonner les organisateurs","S'assurer que chaque membre de l'équipe ait un rôle bien défini qui lui convient.",3,null,null,null,null,null,null,null,null,null,null,null,null,null,"X",null,null,null,null,"X","X","X","X","X","X","X","X","X","X","X","X","X","X","X",null,"X",null,null,null,"X",null,null,1,0,0,0,0,0,0,0,1,0,0,0,0,1]
[313,"GOUVERN.","Gestion de l'événement","Management/ Gestion","Coordonner les organisateurs / Veiller à une bonne gouvernance de  l'organisation","Prendre en compte tous les membres de l'équipe en leur laissant un temps de parole équitable lors d'une table ronde.",2,null,null,null,null,null,"Exemple : utilisation de boite à meuh si délai dépassé",null,null,null,null,null,null,null,"X",null,null,null,null,"X","X","X","X","X","X","X","X","X","X","X","X","X","X","X",null,"X",null,null,null,"X",null,null,0,0,0,0,0,0,0,0,0,0,0,0,0,0]
[314,"GOUVERN.","Gestion de l'événement","Management/ Gestion","Favoriser la réussite de l'événement","Proposer des activités en adéquation avec le nombre de participants attendus.",2,null,null,null,null,null,null,null,null,null,null,null,null,null,"X",null,null,null,null,"X","X","X","X","X","X","X","X","X","X","X","X","X","X","X",null,"X",null,null,null,"X",null,null,0,0,0,0,0,0,0,0,0,0,0,0,0,0]
[315,"GOUVERN.","Gestion de l'événement","Management/ Gestion","Favoriser la réussite de l'événement","Gérer les inscriptions de manière à ce que chaque atelier dispose d'un nombre suffisant de participants.",1,null,null,null,null,null,null,null,null,null,null,null,null,null,"X",null,null,null,null,"X","X","X","X","X","X","X","X","X","X","X","X","X","X","X",null,"X",null,null,null,"X",null,null,0,0,0,0,0,0,0,0,0,0,0,0,0,0]
[316,"GOUVERN.","Gestion de l'événement","Management/ Gestion","Respecter lieu et matériels","Opérer un tour de table lors de réunions post évènements pour récolter le sentiment général sur l'impact positif/négatif de l'évènement.",1,null,null,null,null,null,null,null,null,null,null,null,null,null,"X",null,null,null,null,"X","X","X","X","X","X","X","X","X","X","X","X","X","X","X",null,"X",null,null,null,"X",null,null,0,0,0,0,0,0,0,0,0,0,0,0,0,0]
[317,"GOUVERN.","Gestion de l'événement","Management/ Gestion","Veiller au bien être des participants","Prévoir une façon de gérer le public pour que tout le monde puisse participer et que le bien-être de chacun soit respecté.",2,null,null,null,null,null,null,null,null,null,null,null,null,null,"X",null,null,null,null,"X","X","X","X","X","X","X","X","X","X","X","X","X","X","X","CA DEPEND SI ON PAYE QUELQU UN",null,null,null,null,"X",null,null,0,0,0,0,0,0,0,0,0,0,0,0,0,0]
[318,"GOUVERN.","Gestion de l'événement","Sensibilisation des participants","Permettre aux participants d'être acteur de l'organisation de l'événement","Favoriser les actions des participants en faveur de la collectivité (éviter à tout prix l'attitude \"consommatrice\").",1,null,null,null,null,null,"Exemple : sur un petit évènement proposer un bac vaisselle pour les écocups…",null,null,null,null,null,null,null,"X",null,null,null,null,"X","X","X","X","X","X","X","X","X","X","X","X","X","X","X","CA DEPEND ",null,null,null,null,"X",null,null,0,0,0,0,0,0,0,0,0,0,0,0,0,0]
[319,"GOUVERN.","Management de l'événement","Attentes des PP","Faire correspondre l'événement aux attentes des participants","Identifier les parties prenantes et prendre en considération leurs attentes dans l'organisation de l'évènement.",1,null,null,null,null,null,null,null,null,null,null,null,null,null,"X",null,null,null,null,"X","X","X","X","X","X","X","X","X","X","X","X","X","X","X",null,"X",null,null,null,"X",null,null,0,0,0,0,0,0,0,0,0,0,0,0,0,0]
[320,"GOUVERN.","Management de l'événement","Attentes des PP","Faire correspondre l'événement aux attentes des participants","Adapter l'organisation de l'évènement aux attentes exprimées par les participants.",2,null,null,null,null,null,null,null,null,null,null,null,null,null,"X","X",null,null,null,"X","X","X","X","X","X","X","X","X","X","X","X","X","X","X",null,null,null,null,null,null,null,null,0,0,0,0,0,0,0,0,0,0,0,0,0,0]
[321,"GOUVERN.","Management de l'événement","Conditions de travail","Gérer l'équipe organisatrice","Prendre en compte les souhaits exprimés par les différents organisateurs lors de la répartition du travail.",2,null,null,null,null,null,null,null,null,null,null,null,null,null,"X",null,null,null,null,"X","X","X","X","X","X","X","X","X","X","X","X","X","X","X",null,"X",null,null,null,"X",null,null,0,0,0,0,0,0,0,0,0,0,0,0,0,0]
[322,"GOUVERN.","Management de l'événement","Conditions de travail","Gérer l'équipe organisatrice","Mettre en avant le rôle de l'intelligence collective dans l'organisation de l'évènement.",2,null,null,null,null,null,null,null,null,null,null,null,null,null,"X",null,null,null,null,"X","X","X","X","X","X","X","X","X","X","X","X","X","X","X",null,"X",null,null,null,"X",null,null,0,0,0,0,0,0,0,0,0,0,0,0,0,0]
[323,"GOUVERN.","Management de l'événement","Conditions de travail","Gérer l'équipe organisatrice","Favoriser la reconnaissance du travail des bénévoles avant, pendant et après l'évènement.",3,null,null,null,null,null,null,null,null,null,null,null,null,null,"X",null,null,null,null,"X","X","X","X","X","X","X","X","X","X","X","X","X","X","X",null,"X",null,null,null,"X",null,null,1,{"$f":"IF(AND(N327=\"X\",$G327>=AX$471),1,0)","v":0},{"$f":"IF(AND(O327=\"X\",$G327>=AY$471),1,0)","v":0},{"$f":"IF(AND(P327=\"X\",$G327>=AZ$471),1,0)","v":0},{"$f":"IF(AND(Q327=\"X\",$G327>=BA$471),1,0)","v":0},{"$f":"IF(AND(R327=\"X\",$G327>=BB$471),1,0)","v":0},{"$f":"IF(AND(S327=\"X\",$G327>=BC$471),1,0)","v":0},{"$f":"IF(AND(T327=\"X\",$G327>=BD$471),1,0)","v":0},{"$f":"IF(AND(U327=\"X\",$G327>=BE$471),1,0)","v":1},{"$f":"IF(AND(V327=\"X\",$G327>=BF$471),1,0)","v":0},{"$f":"IF(AND(W327=\"X\",$G327>=BG$471),1,0)","v":0},{"$f":"IF(AND(X327=\"X\",$G327>=BH$471),1,0)","v":0},{"$f":"IF(AND(Y327=\"X\",$G327>=BI$471),1,0)","v":0},1]
[324,"GOUVERN.","Management de l'événement","Conditions de travail","Gérer l'équipe organisatrice","Assurer de bonnes conditions de travail (selon les textes règlementaires et les bonnes pratiques en vigueur) aux organisateurs, rémunérés ou non.",2,null,null,null,null,null,null,null,null,null,null,null,null,null,"X",null,null,null,null,"X","X","X","X","X","X","X","X","X","X","X","X","X","X","X","CA DEPEND",null,null,null,null,"X",null,null,0,0,0,0,0,0,0,0,0,0,0,0,0,0]
[325,"GOUVERN.","Management de l'événement","Management/ Gestion","Mettre en place un Système de Management de l'évenement","Evaluer la réussite de l'évènement (enquête de satisfaction, étude quantitative…).",2,null,null,null,null,null,null,null,null,null,null,null,null,null,"X","X",null,null,null,"X","X","X","X","X","X","X","X","X","X","X","X","X","X","X",null,"X",null,null,"X",null,null,null,0,0,0,0,0,0,0,0,0,0,0,0,0,0]
[326,"GOUVERN.","Management de l'événement","Management/ Gestion","Mettre en place un Système de Management de l'évenement","Définir des objectifs quantitatifs pour évaluer la réussite de l'évènement (nombre de participants,…)",2,null,null,null,null,null,null,null,null,null,null,null,null,null,"X",null,null,null,null,"X","X","X","X","X","X","X","X","X","X","X","X","X","X","X",null,"X",null,null,"X",null,null,null,0,0,0,0,0,0,0,0,0,0,0,0,0,0]
[327,"GOUVERN.","Management de l'événement","Management/ Gestion","Mettre en place un Système de Management de l'évenement","Définir des objectifs qualitatifs pour évaluer la réussite de l'évènement (degré de satisfaction des participants,…)",2,null,null,null,null,null,null,null,null,null,null,null,null,null,"X",null,null,null,null,"X","X","X","X","X","X","X","X","X","X","X","X","X","X","X",null,"X",null,null,"X",null,null,null,0,0,0,0,0,0,0,0,0,0,0,0,0,0]
[328,"GOUVERN.","Management de l'événement","Management/ Gestion","Mettre en place un Système de Management de l'évenement","Définir des objectifs chiffrés et qualitatifs concernant la responsabilisation de l'évènement.",2,null,null,null,null,null,null,null,null,null,null,null,null,null,"X",null,null,null,null,"X","X","X","X","X","X","X","X","X","X","X","X","X","X","X",null,"X",null,null,"X",null,null,null,0,0,0,0,0,0,0,0,0,0,0,0,0,0]
[329,"GOUVERN.","Management de l'événement","Management/ Gestion","Mettre en place un Système de Management de l'évenement","Comparer les résultats des indicateurs de réussite avec les objectifs préalablement définis.",2,null,null,null,null,null,null,null,null,null,null,null,null,null,"X",null,null,null,null,"X","X","X","X","X","X","X","X","X","X","X","X","X","X","X",null,"X",null,null,null,"X",null,null,0,0,0,0,0,0,0,0,0,0,0,0,0,0]
[330,"GOUVERN.","Management de l'événement","Relations humaines","Gérer l'équipe organisatrice","Créer une bonne ambiance de travail parmi les bénévoles (jeux d'équipe, échanges…).",1,null,null,null,null,null,null,null,null,null,null,null,null,null,null,null,null,null,null,"X","X","X","X","X","X","X","X","X","X","X","X","X","X","X",null,null,null,null,null,null,null,null,0,0,0,0,0,0,0,0,0,0,0,0,0,0]
[331,"GOUVERN.","Transparence","Communication","Rendre compte","Informer sur la composition des parties prenantes de l'évènement.",1,null,null,null,null,null,null,null,null,null,null,null,null,null,"X",null,null,null,null,"X","X","X","X","X","X","X","X","X","X","X","X","X","X","X",null,"X",null,null,null,"X",null,null,0,0,0,0,0,0,0,0,0,0,0,0,0,0]
[332,"GOUVERN.","Transparence","Communication","Rendre compte","Dresser un bilan complet (moral, social, environnemental, financier) après l'évènement, et le diffuser aux parties prenantes intéressées.",3,null,null,null,null,null,null,null,null,null,null,null,null,null,"X",null,null,null,null,"X","X","X","X","X","X","X","X","X","X","X","X","X","X","X",null,"X",null,null,"X",null,null,null,{"$f":"IF(OR(BJ336=0,AU336=\"Non applicable\"),0,1)","v":1},0,0,0,0,0,0,0,1,0,0,0,0,{"$f":"SUM(AX336:BI336)","v":1}]
[333,"GOUVERN.","Transparence","Communication","Rendre compte","Communiquer pendant ou après l'évènement sur les actions mises en place pour réduire les coûts d'organisation.",1,null,null,null,null,null,null,null,null,null,"X",null,null,null,"X",null,null,null,null,"X","X","X","X","X","X","X","X","X","X","X","X","X","X","X",null,"X",null,null,"X",null,null,null,0,0,0,0,0,0,0,0,0,0,0,0,0,0]
[334,"GOUVERN.","Transparence","Loyauté des pratiques","Lutter contre les pratiques abusives","Veiller à ce que les contrats et les partenariats ne cachent pas des clauses abusives.",2,null,null,null,null,null,"S'orienter vers des associations dont l'objet est d'accompagner l'établissement de contrats ou faire appel à des fédérations ayant un service juridique pour relire vos contrats",null,null,null,null,null,null,null,"X",null,null,null,null,"X","X","X","X","X","X","X","X","X","X","X","X","X","X","X",null,"X",null,null,"X",null,null,null,0,0,0,0,0,0,0,0,0,0,0,0,0,0]
[335,"GOUVERN.","Transparence","Loyauté des pratiques","Lutter contre les pratiques abusives","S'assurer que les prestataires disposent des qualification adéquates.",2,null,null,null,null,null,null,null,null,null,null,null,null,null,"X",null,null,null,null,"X","X","X","X","X","X","X","X","X","X","X","X","X","X","X",null,"X",null,null,"? (TRANSPARENCE)",null,null,null,0,0,0,0,0,0,0,0,0,0,0,0,0,0]
[336,"GOUVERN.","Transparence","Loyauté des pratiques","Lutter contre les pratiques abusives","Mettre en place une plateforme d'échanges de billets pour éviter le marché noir.",1,null,null,null,null,null,null,null,null,null,null,null,null,null,"X",null,null,null,null,"X","X","?","X","X","X","X","X","X","X","X","X","X","X","X","?",null,null,null,"?",null,null,null,0,0,0,0,0,0,0,0,0,0,0,0,0,0]
[337,"GOUVERN.","Transparence","Loyauté des pratiques","Rendre compte","Adopter un mode transparent de désignation des organisateurs de l'évènement.",2,null,null,null,null,null,null,null,null,null,null,null,null,null,"X",null,null,null,null,"X","X","X","X","X","X","X","X","X","X","X","X","X","X","X",null,"X",null,null,null,"X",null,null,0,0,0,0,0,0,0,0,0,0,0,0,0,0]
[338,"GOUVERN.","Transparence","Management/ Gestion","Rendre compte","Définir clairement et rendre publique la répartition des rôles et des compétences entre organisateurs.",1,null,null,null,null,null,null,null,null,null,null,null,null,null,"X",null,null,null,null,"X","X","X","X","X","X","X","X","X","X","X","X","X","X","X",null,"X",null,null,null,"X",null,null,0,0,0,0,0,0,0,0,0,0,0,0,0,0]
[339,"RESEPCT PARTICIPANT","Intégrité","Communication","Veiller à ce que les activités culturelles et artistiques ne choquent pas certaines populations","Informer le public du contenu des activités et des thèmes abordés ainsi que sur les pratiques locales.",2,null,null,null,null,null,"Exemple de pratiques : règles à suivre lors de la visite d'un lieu de culte.",null,null,null,null,null,null,null,null,"X",null,null,null,"X","X","X","X","X","X","X","X","X","X","X","X","X","X","X","X",null,null,null,"X","X",null,null,0,0,0,0,0,0,0,0,0,0,0,0,0,0]
[340,"RESEPCT PARTICIPANT","Intégrité","Sensibilisation des participants","Veiller au respect de la dignité des participants et les encourager au respect mutuel","Développer des actions de sensibilisation sur le bizutage et autres pratiques violentes.",1,null,null,null,null,null,null,null,null,null,null,null,null,null,null,"X",null,null,null,"X","X","X","X","X","X","X","X","X","X","X","X","X","X","X",null,"X",null,null,null,null,null,null,0,0,0,0,0,0,0,0,0,0,0,0,0,0]
[341,"RESEPCT PARTICIPANT","Qualité de l'évènement","Attentes des PP","Avoir un public suffisamment informé","Diffuser et respecter la programmation établie pour l'évènement.",2,null,null,null,null,null,null,null,null,null,null,null,null,null,null,"X",null,null,null,"X","X","X","X","X","X","X","X","X","X","X","X","X","X","X","X",null,null,null,"X",null,null,null,0,0,0,0,0,0,0,0,0,0,0,0,0,0]
[342,"RESEPCT PARTICIPANT","Qualité de l'évènement","Communication","Avoir un public suffisamment informé","Informer le public des prix d'entrée et de services sur place en assurant un bon rapport qualité-prix : préciser les prix dès le lancement de la communication sur l'évènement et tout au long de son déroulement.",2,null,null,null,null,null,null,null,null,null,null,null,null,null,null,"X",null,null,null,"X","X","X","X","X","X","X","X","X","X","X","X","X","X","X",null,null,null,null,"X",null,null,null,0,0,0,0,0,0,0,0,0,0,0,0,0,0]
[343,"RESEPCT PARTICIPANT","Qualité de l'évènement","Lieu de vie/décors","Faciliter le déplacement des participants sur le site","Mettre en place une signalétique / des tableaux d'orientation pour l'accès aux scènes et aux différents services (restauration, sanitaires et autres).",2,null,null,null,null,null,null,null,null,null,null,null,null,null,null,"X",null,null,null,"X","X","X","X","X","X","X","X","X","X","X","X","X","X","X",null,null,null,null,"X","X",null,null,0,0,0,0,0,0,0,0,0,0,0,0,0,0]
[344,"RESEPCT PARTICIPANT","Qualité de l'évènement","Lieu de vie/décors","Faciliter le déplacement des participants sur le site","Baliser le site.",1,null,null,null,null,null,null,null,null,null,null,null,null,null,null,"X",null,null,null,"X","X","X","X","X","X","X","X","X","X","X","X","X","X","X",null,null,null,null,"X","X",null,null,0,0,0,0,0,0,0,0,0,0,0,0,0,0]
[345,"RESEPCT PARTICIPANT","Santé","Alimentation","Proposer une alimentation équilibrée","Prendre en compte la valeur nutritionnelle des produits dans le choix des fournisseurs alimentaires et non uniquement le critère du prix d'achat.",1,null,null,null,null,null,null,null,null,null,null,null,null,null,null,"X",null,null,null,"X","X","X","X","X","X","X","X","X","X","X","X","X","X","O",null,null,null,null,"X",null,null,null,0,0,0,0,0,0,0,0,0,0,0,0,0,0]
[346,"RESEPCT PARTICIPANT","Santé","Management/ Gestion","Assurer la protection de la santé du public sur le site","Prévoir un stand de soins si encadrement de jeunes ou d'activités dangereuses (type canyoning, ski, randonnée, sortie cycliste, soirée d'intégration...).",2,null,null,null,null,null,null,null,null,null,null,null,null,null,null,"X",null,null,null,"X","X","X","X","X","X","X","X","X","X","X","X","X","X","X","X",null,null,null,null,null,null,null,0,0,0,0,0,0,0,0,0,0,0,0,0,0]
[347,"RESEPCT PARTICIPANT","Santé","Management/ Gestion","Développer des actions de préservation de la santé des participants","Proposer des protections auditives.",3,null,null,null,null,null,null,null,null,null,null,null,null,null,null,"X",null,null,null,"X","X","X","X","X","X","X","X","X","X","X","X","X","X","X",null,null,null,null,"X",null,null,null,1,0,0,0,0,0,0,0,0,1,0,0,0,1]
[348,"RESEPCT PARTICIPANT","Santé","Management/ Gestion","Développer des actions de préservation de la santé des participants","Proposer des boissons non-alcoolisées moins chères que les boissons alcoolisées et de l'eau à volonté.",3,null,null,null,null,null,null,null,null,null,null,null,null,null,null,"X",null,null,null,"X","X","X","X","X","X","X","X","X","X","X","X","X","X","X",null,null,null,null,null,null,null,null,1,0,0,0,0,0,0,0,0,1,0,0,0,1]
[349,"RESEPCT PARTICIPANT","Santé","Management/ Gestion","Former les organisateurs et les bénévoles","Organiser une formation préalable relative aux bonnes pratiques et aux enjeux de santé à destination des organisateurs et des bénévoles.",2,null,null,null,null,null,null,null,null,null,null,null,null,null,null,"X",null,null,null,"X","X","X","X","X","X","X","X","X","X","X","X","X","X","X",null,null,null,null,"X","X",null,null,0,0,0,0,0,0,0,0,0,0,0,0,0,0]
[350,"RESEPCT PARTICIPANT","Santé","Produits / équipements","Intégrer les problématiques de santé dans les différentes phases d'organisation de l'événement","S'assurer que les produits utilisés (ménagers...) ne soient pas nocifs. Bannir l'utilisation des produits toxiques et privilégier les produits plus naturels (colle sans solvant, peinture à l'eau…).",3,null,null,null,null,null,null,null,null,null,null,null,null,null,null,"X",null,null,null,"X","X","X","X","X","X","X","X","X","X","X","X","X","X","X",null,null,null,null,"X",null,null,null,1,0,0,0,0,0,0,0,0,1,0,0,0,1]
[351,"RESEPCT PARTICIPANT","Santé","Sensibilisation des organisateurs","Identifier les compétences","Identifier les organisateurs et bénévoles ayant effectué la formation aux premiers secours.",3,null,null,null,null,null,null,null,null,null,null,null,null,null,null,"X","X",null,null,"X","X","X","X","X","X","X","X","X","X","X","X","X","X","X",null,null,null,null,"X",null,null,null,1,0,0,0,0,0,0,0,0,1,1,0,0,2]
[352,"RESEPCT PARTICIPANT","Santé","Sensibilisation des participants","Favoriser l'information des participants sur les enjeux sanitaires","Faire venir des associations ou des organismes publics dont l'objet est de réaliser des animations relatives à la protection de la santé.",1,null,null,null,null,null,null,null,null,null,null,null,null,null,null,"X",null,null,null,"X","X","X","X","X","X","X","X","X","X","X","X","X","X","X",null,null,null,null,"X","X",null,null,0,0,0,0,0,0,0,0,0,0,0,0,0,0]
[353,"RESEPCT PARTICIPANT","Santé","Sensibilisation des participants","Lutter contre les pratiques addictives (alcool, tabac, stupéfiants…)","Informer les participants des risques pour la santé de la consommation abusive d'alcool : développer des animations de sensibilisation dès l'entrée sur le site ou lors de l'évènement (par une équipe de bénévoles ou par une association autre).",2,null,null,null,null,null,null,null,null,null,null,null,null,null,null,"X",null,null,null,"X","X","X","X","X","X","X","X","X","X","X","X","X","X","X","X",null,null,null,"X","X",null,null,0,0,0,0,0,0,0,0,0,0,0,0,0,0]
[354,"RESEPCT PARTICIPANT","Santé","Sensibilisation des participants","Lutter contre les pratiques addictives (alcool, tabac, stupéfiants…)","Informer les participants des risques pour la santé de la  consommation de stupéfiants ou autres produits illicites : développer des animations de sensibilisation dès l'entrée sur le site ou lors de l'évènement (par une équipe de bénévoles ou par une association autre).",2,null,null,null,null,null,null,null,null,null,null,null,null,null,null,"X",null,null,null,"X","X","X","X","X","X","X","X","X","X","X","X","X","X","X",null,null,null,null,null,null,null,null,0,0,0,0,0,0,0,0,0,0,0,0,0,0]
[355,"RESEPCT PARTICIPANT","Santé","Sensibilisation des participants","Prévenir les comportements à risque (MST, abus d'alccol)","Sensibiliser les participants aux risques liés aux MST et les informer sur les différents moyens de protection et de contraception.",1,null,null,null,null,null,null,null,null,null,null,null,null,null,null,"X",null,null,null,"X","X","X","X","X","X","X","X","X","X","X","X","X","X","X","X",null,null,null,"X",null,null,null,0,0,0,0,0,0,0,0,0,0,0,0,0,0]
[356,"RESEPCT PARTICIPANT","Santé","Sensibilisation des participants","Prévenir les comportements à risque (MST, abus d'alccol)","Ne pas inciter les participants à avoir un comportement à risque, notamment en consommant alcool ou produits présentant un risque vis-à-vis des activités sportives.",2,null,null,null,null,null,null,null,null,null,null,null,null,null,null,"X",null,null,null,"X","X","X","X","X","X","X","X","X","X","X","X","X","X","X",null,null,null,null,"X","X",null,null,0,0,0,0,0,0,0,0,0,0,0,0,0,0]
[357,"RESEPCT PARTICIPANT","Santé","Sensibilisation des participants","Prévenir les comportements à risque (MST, abus d'alccol)","Mettre des préservatifs à disposition des participants et prévoir des actions de sensibilisation (intervention d'associations compétentes, spots informatifs, activités culturelles et artistiques).",1,null,null,null,null,null,null,null,null,null,null,null,null,null,null,"X",null,null,null,"X","X","X","X","X","X","X","X","X","X","X","X","X","X","X",null,null,null,null,"X",null,null,null,0,0,0,0,0,0,0,0,0,0,0,0,0,0]
[358,"RESEPCT PARTICIPANT","Vie privée","Loyauté des pratiques","Protéger le droit à l'image des participants","Demander préalablement au public l'autorisation de diffuser des images ou vidéos pouvant les représenter ou leur permettre de les retirer directement en ligne.",2,null,null,null,null,null,null,null,null,null,null,null,null,null,null,"X",null,null,null,"X","X","X","X","X","X","X","X","X","X","X","X","X","X","X",null,null,null,null,"X",null,null,null,0,0,0,0,0,0,0,0,0,0,0,0,0,0]
[359,"RESEPCT PARTICIPANT","Vie privée","Relations humaines","Sensibiliser au respect de la liberté d'autrui","Installer des pancartes précisant quelques règles de bien-être commun.",1,null,null,null,null,null,null,null,null,null,null,null,null,null,null,"X",null,null,null,"X","X","X","X","X","X","X","X","X","X","X","X","X","X","X",null,null,null,null,null,null,null,null,0,0,0,0,0,0,0,0,0,0,0,0,0,0]
[360,"SECURITE","Alcool","Respect des règles","Assurer la sécurité physique des personnes","Mettre à disposition un ou des éthylotest chimiques ou électroniques.",3,null,null,null,null,null,"Arrêté du 24 août 2011 Art 2 :\nPar les moyens laissés à son appréciation, y compris par la combinaison de ces différents dispositifs, le responsable de l'exploitation de l'établissement s'assure qu'à tout moment la demande de dépistage peut être satisfaite dans un délai inférieur à quinze minutes.\nLe nombre minimal de dispositifs certifiés permettant le dépistage de l'imprégnation alcoolique est établi en fonction de l'effectif du public accueilli déterminé dans les conditions de l'article R. 123-19 du code de la construction et de l'habitation. Il est établi, à l'heure d'ouverture de l'établissement, de la manière suivante :\n1° Si le dispositif retenu est la mise à disposition d'éthylotests chimiques, le nombre d'éthylotests doit être au moins égal au quart de la capacité d'accueil de l'établissement et ne peut être inférieur à 50 ;\n2° Si le dispositif retenu est la mise à disposition d'éthylotests électroniques offrant la possibilité de réaliser un nombre limité de souffles :\n― au moins un éthylotest doit être prévu pour chaque tranche ou portion de tranche de 300 personnes, au regard de la capacité d'accueil des lieux ;\n― le nombre de souffles total disponible pour l'ensemble des éthylotests doit être au moins égal au quart de la capacité d'accueil de l'établissement et ne peut être inférieur à 50 ;\n3° Si le dispositif retenu est la mise à disposition d'éthylotests électroniques disposant d'un étalonnage annuel sans limitation du nombre de souffles, au moins un éthylotest doit être prévu pour chaque tranche ou portion de tranche de 300 personnes, au regard de la capacité d'accueil des lieux.",null,null,null,null,null,null,null,null,null,"X",null,null,"X","X","X","X","X","X","X","X","X","X","X","X","X","X","O",null,null,null,null,null,null,null,null,1,0,0,0,0,0,0,0,0,0,1,0,0,1]
[361,"SECURITE","Nuisances sonores","Produits / équipements","Assurer la sécurité physique des personnes","Mettre à disposition de vos salariés ou bénévoles des Equipements de Protection Individuelle du type bouchons d'oreille.",2,null,null,null,null,null,null,null,null,null,null,null,null,null,null,null,"X",null,null,"X","X","X","X","X","X","X","X","X","X","X","X","X","X","O",null,null,null,null,null,null,null,null,0,0,0,0,0,0,0,0,0,0,0,0,0,0]
[362,"SECURITE","Nuisances sonores","Respect des règles","Respecter la réglementation concernant les émissions sonores\n","Veiller à une bonne insonorisation sur le lieu de l'évènement (intérieur).",1,null,null,null,null,null,"Décret 98-1143 du 15 décembre 1998  :\nLorsque ces établissements ou locaux sont soit contigus, soit situés à l'intérieur de bâtiments comportant des locaux à usage d'habitation, ou destinés à un usage impliquant la présence prolongée de personnes, l'isolement entre le local d'émission et le local ou le bâtiment de réception doit être conforme à une valeur minimale, fixée par arrêté, qui permette de respecter les valeurs maximales d'émergence définies à l'article  R. 1336-9 du code de la santé publique.",null,null,null,null,null,null,null,null,null,"X",null,"X","X","X","X","X","X","X","X","X","X","X","X","X","X","X","X",null,null,"X",null,null,null,null,null,0,0,0,0,0,0,0,0,0,0,0,0,0,0]
[363,"SECURITE","Nuisances sonores","Respect des règles","Respecter la réglementation concernant les émissions sonores\n","Faire une mesure de bruit (sonomètre) afin de ne pas dépasser la valeur réglementaire de 105 dB(a) (intérieur).",2,null,null,null,null,null,"Décret 98-1143 du 15 décembre 1998 :\nL’exploitant de l’établissement est tenu d’établir une étude d’impact des nuisances sonores. En aucun endroit, accessible au public, de ces établissements ou locaux, le niveau de pression acoustique ne doit dépasser 105 dB(A) en niveau moyen et 120 dB en niveau de crête, dans les conditions de mesurage prévues par arrêté.",null,null,null,null,null,null,null,null,null,"X",null,"X","X","X","X","X","X","X","X","O","X","X","X","X","X","X","X",null,null,null,null,null,null,null,null,0,0,0,0,0,0,0,0,0,0,0,0,0,0]
[364,"SECURITE","Nuisances sonores","Sensibilisation des participants","Sensibiliser les participants aux risques auditifs","Mettre en place des affiches préventives.",1,null,null,null,null,null,null,null,null,null,null,null,null,null,null,null,"X",null,null,"X","X","X","X","X","X","X","O","X","X","X","X","X","X","X",null,null,null,null,null,null,null,null,0,0,0,0,0,0,0,0,0,0,0,0,0,0]
[365,"SECURITE","Organisation","Bâtiments/ Structures","Assurer la sécurité de l'évènement","Vérifier que la capacité de la salle coïncide avec le nombre de personnes prévu lors de l'évènement.",2,null,null,null,null,null,null,null,null,null,null,null,null,null,null,null,"X",null,null,"X","X","X","X","X","X","X","X","X","X","X","X","X","X","X",null,null,null,null,null,null,null,null,0,0,0,0,0,0,0,0,0,0,0,0,0,0]
[366,"SECURITE","Organisation","Bâtiments/ Structures","Assurer la sécurité de l'évènement","Contrôler l'accès à l'évènement et au lieu d'hébergement s'il y en a un.",2,null,null,null,null,null,null,null,null,null,null,null,null,null,null,"X","X",null,"X","X","X","X","X","X","X","X","X","X","X","X","X","X","X","X",null,null,null,null,null,null,null,null,0,0,0,0,0,0,0,0,0,0,0,0,0,0]
[367,"SECURITE","Organisation","Bâtiments/ Structures","Assurer la sécurité physique des personnes","Veiller à bien fixer la sonorisation, l'éclairage, le décor…",2,null,null,null,null,null,null,null,null,null,null,null,null,null,null,null,"X",null,null,"X","X","X","X","X","X","X","X","X","X","X","X","X","X","X",null,null,null,null,null,null,null,null,0,0,0,0,0,0,0,0,0,0,0,0,0,0]
[368,"SECURITE","Organisation","Bâtiments/ Structures","Assurer une surveillance des installations permettant la sécurité physique des personnes","Mettre en place un chargé de sécurité.",2,null,null,null,null,null,"Décret n°97-646 du 31 mai 1997 Art 4 : \nLes préposés des organisateurs de la manifestation composant le service d'ordre ont pour rôle, sous l'autorité et la responsabilité des organisateurs, de prévenir les désordres susceptibles de mettre en péril la sécurité des spectateurs et des participants.\n\nIls doivent notamment remplir, en tant que de besoin, les tâches suivantes :\n- procéder à l'inspection du stade, des installations ou de la salle avant que ne commence la manifestation pour déceler les risques apparents pouvant affecter la sécurité ;\n- constituer, avant la manifestation mais aussi dès l'arrivée du public et jusqu'à l'évacuation complète de celui-ci, un dispositif de sécurité propre à séparer le public des acteurs de la manifestation et à éviter dans les manifestations sportives la confrontation de groupes antagonistes ;\n- être prêts à intervenir pour éviter qu'un différend entre particuliers ne dégénère en rixe ;\n- porter assistance et secours aux personnes en péril ;\n- alerter les services de police ou de secours ;\n- veiller au maintien de la vacuité des itinéraires et des sorties de secours.",null,null,null,null,null,null,null,null,null,"X",null,null,"X","X","X","X","X","X","X","X","X","X","X","X","X","X","X",null,null,null,null,null,null,null,null,0,0,0,0,0,0,0,0,0,0,0,0,0,0]
[369,"SECURITE","Organisation","Lieu de vie/décors","Assurer la sécurité physique des personnes","Entourer de barrières les enceintes de la sono.",1,null,null,null,null,null,null,null,null,null,null,null,null,null,null,null,"X",null,null,"X","X","X","X","X","X","X","X","X","X","X","X","X","X","X",null,null,null,null,null,null,null,null,0,0,0,0,0,0,0,0,0,0,0,0,0,0]
[370,"SECURITE","Organisation","Produits / équipements","Assurer la sécurité physique des personnes","Ne pas utiliser de la vaisselle ni des bouteilles en verre.",1,null,null,null,null,null,null,null,null,null,null,null,null,null,null,null,"X",null,null,"X","X","X","X","X","X","X","X","X","X","X","X","X","X","O",null,null,null,null,null,null,null,null,0,0,0,0,0,0,0,0,0,0,0,0,0,0]
[371,"SECURITE","Organisation","Respect des règles","Assurer la sécurité de l'évènement","Sécuriser l'évènement par une équipe de bénévoles, voire par une équipe professionnelle de vigiles.",1,null,null,null,null,null,"Faire appel à une association de sécurité civile agréée pour la mise en place d'un dispositif de secours en cas d'accidents.",null,null,null,null,null,null,null,null,"X","X",null,"X","X","X","X","X","X","X","X","X","X","X","X","X","X","X","X",null,null,null,null,null,null,null,null,0,0,0,0,0,0,0,0,0,0,0,0,0,0]
[372,"SECURITE","Organisation","Respect des règles","Assurer sa soirée","L'organisateur doit souscrire une police d'assurances garantissant au plan de la responsabilité civile tous les risques relatifs à la manifestation projetée à l'égard notamment :\n • de tous les personnels désignés pour l'organisation et le déroulement de cette manifestation (signaleurs, service de gardiennage, etc.) ;\n• des acteurs et animateurs qui y participent ;\n• du public qui y assiste ;\n• des ouvrages publics.",3,null,null,null,null,null,null,null,null,null,null,null,null,null,null,null,"X",null,null,"X","X","O","X","X","X","X","X","X","X","X","X","X","X","X",null,null,null,null,null,null,null,null,1,0,0,0,0,0,0,0,0,0,1,0,0,1]
[373,"SECURITE","Organisation","Respect des règles","Etre en conformité avec la loi","Faire une déclaration à la mairie ou à la préfecture de police si le nombre de participants est supérieur à 1500 personnes",2,null,null,null,null,null,"Décret n°97-646 du 31 mai 1997 Art 1 : \nLes organisateurs de manifestations sportives, récréatives ou culturelles à but lucratif dont le public et le personnel qui concourt à la réalisation de la manifestation peuvent atteindre plus de 1 500 personnes, soit d'après le nombre de places assises, soit d'après la surface qui leur est réservée, sont tenus d'en faire la déclaration au maire et, à Paris, au préfet de police.\n\nLa déclaration peut être souscrite pour une seule ou pour plusieurs manifestations dont la programmation est établie à l'avance.\n\nLa déclaration est faite un an au plus et, sauf urgence motivée, un mois au moins avant la date de la manifestation.",null,null,null,null,null,null,null,null,null,"X",null,null,"X","X","X","X","X","X","X","X","X","X","X","X","X","X","X",null,null,null,null,null,null,null,null,0,0,0,0,0,0,0,0,0,0,0,0,0,0]
[374,"SECURITE","Organisation","Respect des règles","Obtenir une autorisation pour organiser un évènement dans un ERP","L’organisation d’une manifestation exceptionnelle dans un local public autorisé pour une autre activité (comme une soirée dansante dans une école), nécessite une autorisation au titre de la sécurité préventive et de l’accessibilité aux personnes handicapées, délivrée par le bureau des établissements recevant du public (ERP) de la préfecture de police. Aucune manifestation ne peut être autorisée dans un ERP sous avis défavorable.",2,null,null,null,null,null,"Arrêté du 25/06/80 Art-GN 6 relatif aux ERP : \n§ 1. L'utilisation, même partielle ou occasionnelle d'un établissement :\n- pour une exploitation autre que celle autorisée, ou\n- pour une démonstration ou une attraction pouvant présenter des risques pour le public et non prévue par le présent règlement,doit faire l'objet d'une demande d'autorisation présentée par l'exploitant au moins quinze jours avant la manifestation ou la série de manifestations.\nLorsque l'organisateur de la manifestation n'est pas l'exploitant de l'établissement, la demande d'autorisation doit être présentée conjointement par l'exploitant et l'utilisateur occasionnel des locaux.\n\n§ 2. La demande doit toujours préciser la nature de la manifestation, les risques qu'elle présente, sa durée, sa localisation exacte, l'effectif prévu, les matériaux utilisés pour les décorations envisagées, le tracé des dégagements et les mesures complémentaires de prévention et de protection proposées.\n\n§ 3. L'autorisation peut être accordée pour plusieurs manifestations qui doivent se dérouler durant une période fixée par les organisateurs.",null,null,null,null,null,null,null,null,null,"X",null,null,"X","X","X","X","X","X","X","X","X","X","X","X","X","X","X",null,null,null,null,null,null,null,null,0,0,0,0,0,0,0,0,0,0,0,0,0,0]
[375,"SECURITE","Organisation","Respect des règles","Respecter la réglementation concernant les zones fumeurs","Veillez à l'interdiction de fumer dans les locaux affectés à un usage collectif.",2,null,null,null,null,null,"\"Il est interdit de fumer dans les lieux affectés à un usage collectif, notamment scolaire et dans les moyens de transport collectifs, sauf dans les emplacements expressément réservés aux fumeurs.\"\n\n\"L'interdiction de fumer dans les lieux affectés à un usage collectif mentionnée à l'article L. 3511-7 s'applique : \n1° Dans tous les lieux fermés et couverts qui accueillent du public ou qui constituent des lieux de travail ;\n2° Dans les moyens de transport collectifs ;\n3° Dans les espaces non couverts des écoles, collèges et lycées publics et privés, ainsi que des établissements destinés à l'accueil, à la formation ou à l'hébergement des mineurs.\"",null,null,null,null,null,null,null,null,"X","X",null,null,"X","X","X","X","X","X","X","O","X","X","X","X","X","X","X",null,null,null,null,null,null,null,null,0,0,0,0,0,0,0,0,0,0,0,0,0,0]
[376,"SECURITE","Organisation","Respect des règles","Respecter la réglementation concernant les zones fumeurs","Mettre en place une zone fumeur en conformité avec la loi.",3,null,null,null,null,null,"Art. R. 3511-3. - Les emplacements réservés mentionnés à l'article R. 3511-2 sont des salles closes, affectées à la consommation de tabac et dans lesquelles aucune prestation de service n'est délivrée. Aucune tâche d'entretien et de maintenance ne peut y être exécutée sans que l'air ait été renouvelé, en l'absence de tout occupant, pendant au moins une heure.\n« Ils respectent les normes suivantes :\n« 1° Etre équipés d'un dispositif d'extraction d'air par ventilation mécanique permettant un renouvellement d'air minimal de dix fois le volume de l'emplacement par heure. Ce dispositif est entièrement indépendant du système de ventilation ou de climatisation d'air du bâtiment. Le local est maintenu en dépression continue d'au moins cinq pascals par rapport aux pièces communicantes ;\n« 2° Etre dotés de fermetures automatiques sans possibilité d'ouverture non intentionnelle ;\n« 3° Ne pas constituer un lieu de passage ;\n« 4° Présenter une superficie au plus égale à 20 % de la superficie totale de l'établissement au sein duquel les emplacements sont aménagés sans que la superficie d'un emplacement puisse dépasser 35 mètre carrés.",null,null,null,null,null,null,null,null,null,"X",null,null,"X","X","X","X","X","X","X","X","X","X","X","X","X","X","X",null,null,null,null,null,null,null,null,1,0,0,0,0,0,0,0,0,0,1,0,0,1]
[377,"SECURITE","Parking","Bâtiments/ Structures","Assurer la sécurité physique des personnes","Veiller à  la mise en place d'un parking et délimiter les places de parking.",1,null,null,null,null,null,null,null,null,null,null,null,null,null,null,null,"X",null,null,"X","O","X","X","X","X","X","X","X","X","X","X","X","X","X",null,null,null,null,null,null,null,null,0,0,0,0,0,0,0,0,0,0,0,0,0,0]
[378,"SECURITE","Risque de chute de plein pied","Bâtiments/ Structures","Assurer la sécurité physique des personnes","Veiller à ne laisser aucun objet encombrant ou dangereux au sol.",2,null,null,null,null,null,null,null,null,null,null,null,null,null,null,null,"X",null,null,"X","X","X","X","X","X","X","X","X","X","X","X","X","X","X",null,null,null,null,null,null,null,null,0,0,0,0,0,0,0,0,0,0,0,0,0,0]
[379,"SECURITE","Risque de chute de plein pied","Bâtiments/ Structures","Assurer la sécurité physique des personnes","Ne pas laisser trainer les fils électriques, ou veiller à protéger les fils électriques à l'aide de passes câbles.",2,null,null,null,null,null,null,null,null,null,null,null,null,null,null,null,"X",null,null,"X","X","X","X","X","X","X","X","X","X","X","X","X","X","X",null,null,null,null,null,null,null,null,0,0,0,0,0,0,0,0,0,0,0,0,0,0]
[380,"SECURITE","Risque électrique","Bâtiments/ Structures","Prévenir le risque électrique","Mettre en place un marquage au sol afin de délimiter les zones à risque de type électrique.",2,null,null,null,null,null,null,null,null,null,null,null,null,null,null,null,"X",null,null,"X","X","X","X","X","X","X","X","X","X","X","X","X","X","X",null,null,null,null,null,null,null,null,0,0,0,0,0,0,0,0,0,0,0,0,0,0]
[381,"SECURITE","Risque électrique","Bâtiments/ Structures","Prévenir le risque électrique","Fermer les armoires électriques.",2,null,null,null,null,null,null,null,null,null,null,null,null,null,null,null,"X",null,null,"X","X","X","X","X","X","X","X","X","X","X","X","X","X","X",null,null,null,null,null,null,null,null,0,0,0,0,0,0,0,0,0,0,0,0,0,0]
[382,"SECURITE","Risque électrique","Respect des règles","Prévenir le risque électrique","Vérifier la conformité des installations électriques.",2,null,null,null,null,null,null,null,null,null,null,null,null,null,null,null,"X",null,null,"X","X","X","X","X","X","X","X","X","X","X","X","X","X","X",null,null,null,null,null,null,null,null,0,0,0,0,0,0,0,0,0,0,0,0,0,0]
[383,"SECURITE","Risque incendie","Bâtiments/ Structures","Prévenir le risque incendie","Vérifier les issues de secours (ouvrables de l'intérieurs et non condamnées et dégagées).",3,null,null,null,null,null,null,null,null,null,null,null,null,null,null,null,"X",null,null,"X","X","X","X","X","X","X","X","X","X","X","X","X","X","X",null,null,null,null,null,null,null,null,1,0,0,0,0,0,0,0,0,0,1,0,0,1]
[384,"SECURITE","Risque incendie","Bâtiments/ Structures","Prévenir le risque incendie","Vérifier les extincteurs ou RIA (signalisation, date de vérification).",2,null,null,null,null,null,null,null,null,null,null,null,null,null,null,null,"X",null,null,"X","X","X","X","X","X","X","X","X","X","X","X","X","X","X",null,null,null,null,null,null,null,null,0,0,0,0,0,0,0,0,0,0,0,0,0,0]
[385,"SECURITE","Risque incendie","Bâtiments/ Structures","Prévenir le risque incendie","Vérifier l'emplacement des matériaux utilisés en fonction de leur réactivité au feu.",2,null,null,null,null,null,null,null,null,null,null,null,null,null,null,null,"X",null,null,"X","X","X","X","X","X","X","X","X","X","X","X","X","X","X",null,null,null,null,null,null,null,null,0,0,0,0,0,0,0,0,0,0,0,0,0,0]
[386,"SECURITE","Risque incendie","Bâtiments/ Structures","Prévenir le risque incendie","Vérifier l'alarme incendie ; à défaut, la mettre en place.",2,null,null,null,null,null,null,null,null,null,null,null,null,null,null,null,"X",null,null,"X","X","X","X","X","X","X","X","X","X","X","X","X","X","X",null,null,null,null,null,null,null,null,0,0,0,0,0,0,0,0,0,0,0,0,0,0]
[387,"SECURITE","Risque incendie","Bâtiments/ Structures","Prévenir le risque incendie","Vérifier la présence de plans d'évacuation. En cas d'absence, les mettre en place.",3,null,null,null,null,null,null,null,null,null,null,null,null,null,null,null,"X",null,null,"X","X","X","X","X","X","X","X","X","X","X","X","X","X","X",null,null,null,null,null,null,null,null,1,{"$f":"IF(AND(N391=\"X\",$G391>=AX$471),1,0)","v":0},{"$f":"IF(AND(O391=\"X\",$G391>=AY$471),1,0)","v":0},{"$f":"IF(AND(P391=\"X\",$G391>=AZ$471),1,0)","v":0},{"$f":"IF(AND(Q391=\"X\",$G391>=BA$471),1,0)","v":0},{"$f":"IF(AND(R391=\"X\",$G391>=BB$471),1,0)","v":0},{"$f":"IF(AND(S391=\"X\",$G391>=BC$471),1,0)","v":0},{"$f":"IF(AND(T391=\"X\",$G391>=BD$471),1,0)","v":0},{"$f":"IF(AND(U391=\"X\",$G391>=BE$471),1,0)","v":0},{"$f":"IF(AND(V391=\"X\",$G391>=BF$471),1,0)","v":0},{"$f":"IF(AND(W391=\"X\",$G391>=BG$471),1,0)","v":1},{"$f":"IF(AND(X391=\"X\",$G391>=BH$471),1,0)","v":0},{"$f":"IF(AND(Y391=\"X\",$G391>=BI$471),1,0)","v":0},1]
[388,"SOLIDARITE","Liens humains","Déplacements","Favoriser l'entraide entre les participants pour se déplacer sur le lieu de l'événement et s'héberger à proximité","Mettre en avant  dans la communication l'utilisation de moyens de transports partagés (pedibus, covélotage, covoiturage).",2,null,null,null,null,null,null,null,null,null,null,null,null,null,null,null,null,"X",null,"X","O","X","X","X","X","X","X","X","X","X","X","X","X","X",null,null,null,null,null,null,null,null,0,0,0,0,0,0,0,0,0,0,0,0,0,0]
[389,"SOLIDARITE","Liens humains","Déplacements","Favoriser l'entraide entre les participants pour se déplacer sur le lieu de l'événement et s'héberger à proximité","Mettre à disposition un plan des transports en commun et pistes cyclables.",1,null,null,null,null,null,null,null,null,null,null,null,null,null,null,null,null,"X",null,"X","O","X","X","X","X","X","X","X","X","X","X","X","X","X",null,null,null,null,null,null,null,null,0,0,0,0,0,0,0,0,0,0,0,0,0,0]
[390,"SOLIDARITE","Liens humains","Lieu de vie/décors","Favoriser l'établissement de lien inter-générationnel","Faire appel à des maisons de retraites pour la création des décors (ou toute autre initiative).",1,null,null,null,null,null,null,null,null,null,null,null,null,null,null,null,null,"X",null,"X","X","X","X","X","X","X","X","X","X","X","X","X","X","X",null,null,null,null,null,null,null,null,0,0,0,0,0,0,0,0,0,0,0,0,0,0]
[391,"SOLIDARITE","Liens humains","Relations humaines","Favoriser l'entraide entre les participants","Organiser des jeux d'équipes ou des activités collaboratives.",1,null,null,null,null,null,null,null,null,null,null,null,null,null,null,null,null,"X",null,"X","X","X","X","X","X","X","X","X","X","X","X","X","X","X",null,null,null,null,null,null,null,null,0,0,0,0,0,0,0,0,0,0,0,0,0,0]
[392,"SOLIDARITE","Liens humains","Relations humaines","Favoriser l'entraide entre les participants pour se déplacer sur le lieu de l'événement et s'héberger à proximité","Mettre en relation les personnes sur place pouvant héberger (nombre de personnes éventuellement connu) avec les personnes se déplaçant qui cherchent un hébergement.",1,null,null,null,null,null,"Exemple : couchsurfing local, de réseau associatif",null,null,null,null,null,null,null,null,null,null,"X",null,"X","X","X","X","O","X","X","X","X","X","X","X","X","X","X",null,null,null,null,null,null,null,null,0,0,0,0,0,0,0,0,0,0,0,0,0,0]
[393,"SOLIDARITE","Liens humains","Relations humaines","Promouvoir un comportement Fair-play","Mettre en place une charte pour le fair-play.",1,null,null,null,null,null,null,null,null,null,null,null,null,null,null,null,null,"X",null,"X","X","X","X","X","X","X","X","X","X","X","X","X","X","X",null,null,null,null,null,null,null,null,0,0,0,0,0,0,0,0,0,0,0,0,0,0]
[394,"SOLIDARITE","Liens humains","Relations humaines","Promouvoir un comportement Fair-play","Donner un prix pour le fair-play.",1,null,null,null,null,null,null,null,null,null,null,null,null,null,null,null,null,"X",null,"X","X","X","X","X","X","X","X","X","X","X","X","X","X","X",null,null,null,null,null,null,null,null,0,0,0,0,0,0,0,0,0,0,0,0,0,0]
[395,"SOLIDARITE","Liens humains","Relations humaines","Promouvoir un comportement Fair-play","Communiquer les consignes générales.",2,null,null,null,null,null,null,null,null,null,null,null,null,null,null,null,null,"X",null,"X","X","X","X","X","X","X","X","X","X","X","X","X","X","X",null,null,null,null,null,null,null,null,0,0,0,0,0,0,0,0,0,0,0,0,0,0]
[396,"SOLIDARITE","Liens humains","Relations humaines","Veiller à ce qu'aucun participant ne se retrouve dans une situation de solitude au cours de l'événement","Organiser des jeux de rencontre de découverte de l'autre ; créer des groupes pour que personne ne soit isolé.",1,null,null,null,null,null,null,null,null,null,null,null,null,null,null,null,null,"X",null,"X","X","X","X","X","X","X","X","X","X","X","X","X","X","X",null,null,null,null,null,null,null,null,{"$f":"IF(OR(BJ400=0,AU400=\"Non applicable\"),0,1)","v":0},0,0,0,0,0,0,0,0,0,0,0,0,{"$f":"SUM(AX400:BI400)","v":0}]
[397,"SOLIDARITE","Liens humains","Relations humaines","Veiller à ce qu'aucun participant ne se retrouve dans une situation de solitude au cours de l'événement","Mettre en place des animateurs « électrons libres » pour favoriser les échanges et veiller à ce qu'aucun participant ne soit isolé.",1,null,null,null,null,null,null,null,null,null,null,null,null,null,null,null,null,"X",null,"X","X","X","X","X","X","X","X","X","X","X","X","X","X","X",null,null,null,null,null,null,null,null,0,0,0,0,0,0,0,0,0,0,0,0,0,0]
[398,"SOLIDARITE","Promotion de la solidarité","Attentes des PP","Donner une visibilité à des associations ou organismes publics lors de l'évènement","Permettre à des associations ou organismes publics d'intervenir durant l'évènement pour évoquer les questions liées à la solidarité (handicap, maladie, discrimination, solidarité internationale, etc.).",1,null,null,null,null,null,null,null,null,null,null,null,null,null,null,null,null,"X",null,"X","X","X","X","X","X","X","X","X","X","X","X","X","X","X",null,null,null,null,null,null,null,null,0,0,0,0,0,0,0,0,0,0,0,0,0,0]
[399,"SOLIDARITE","Promotion de la solidarité","Attentes des PP","Mutualiser les informations pour de nouveaux évènements","Diffuser la liste des organisateurs et participants avec leurs adresses emails aux associations en recherche de bénévoles, avec l'accord des personnes concernées.",1,null,null,null,null,null,null,null,null,null,null,null,null,null,null,null,null,"X",null,"X","X","X","X","X","X","X","X","O","X","X","X","X","X","X",null,null,null,null,null,null,null,null,0,0,0,0,0,0,0,0,0,0,0,0,0,0]
[400,"SOLIDARITE","Promotion de la solidarité","Attentes des PP","Mutualiser les informations pour de nouveaux évènements","Diffuser la liste des associations participantes, avec leur accord, afin que les bénévoles puissent les contacter pour de futurs évènements.",1,null,null,null,null,null,null,null,null,null,null,null,null,null,null,null,null,"X",null,"X","X","X","X","X","X","X","X","O","X","X","X","X","X","X",null,null,null,null,null,null,null,null,0,0,0,0,0,0,0,0,0,0,0,0,0,0]
[401,"SOLIDARITE","Promotion de la solidarité","Communication","Appel à des structures de l'entreprenariat social pour des services divers","Communiquer sur ces structures lors de l'évènement et en général (selon notamment le domaine d'activités) ; favoriser l'accès à l'évènement aux responsables de ces structures.",1,null,null,null,null,null,"Par exemple par la création d'un forum",null,null,null,null,null,null,null,null,null,null,"X",null,"X","X","X","X","X","X","X","X","X","X","X","X","X","X","X",null,null,null,null,null,null,null,null,0,0,0,0,0,0,0,0,0,0,0,0,0,0]
[402,"SOLIDARITE","Promotion de la solidarité","Communication","Mettre en valeur les actions caricatives d'assos locales","Relayer des annonces de collecte caritative ou autre.",1,null,null,null,null,null,"(ex pyramide des chaussures à Paris)",null,null,null,null,null,null,null,null,null,null,"X",null,"X","X","X","X","X","X","X","X","X","X","X","X","X","X","X",null,null,null,null,null,null,null,null,0,0,0,0,0,0,0,0,0,0,0,0,0,0]
[403,"SOLIDARITE","Promotion de la solidarité","Communication","Mettre en valeur les actions caricatives d'assos locales","Lister et communiquer sur les actions caritatives d'associations locales (avec leur accord).",1,null,null,null,null,null,"Ex : via le site internet de l'organisateur de l'évènement, par mail aux bénévoles présents",null,null,null,null,null,null,null,null,null,null,"X",null,"X","X","X","X","X","X","X","X","X","X","X","X","X","X","X",null,null,null,null,null,null,null,null,0,0,0,0,0,0,0,0,0,0,0,0,0,0]
[404,"SOLIDARITE","Promotion de la solidarité","Déchets","Redistribution à des associations solidaires","Sensibiliser à la collecte et informer les participants sur les points de collecte présents lors de l'évènement et leur utilité (type de produits, lieux, cycle collecte...).",1,null,null,null,null,null,null,null,null,null,null,null,null,null,null,null,null,"X",null,"X","X","X","X","X","X","X","X","X","X","X","X","X","X","X",null,null,null,null,null,null,null,null,0,0,0,0,0,0,0,0,0,0,0,0,0,0]
[405,"SOLIDARITE","Promotion de la solidarité","Déchets","Redistribution à des associations solidaires","Faire un point de collecte et de tri avec chaque type de produits récupérés pour ces associations.",2,null,null,null,null,null,null,null,null,null,null,null,null,null,null,null,null,"X",null,"X","X","X","X","X","X","X","X","X","X","X","X","X","X","X",null,null,null,null,null,null,null,null,0,0,0,0,0,0,0,0,0,0,0,0,0,0]
[406,"SOLIDARITE","Promotion de la solidarité","Déchets","Redistribution à des associations solidaires","Désigner une personne ou une équipe responsable pour la mise en place du tri, la sensibilisation des participants au tri, la vérification du tri, la redistribution aux associations locales.",2,null,null,null,null,null,"Vos ballons (par exemple) feront à nouveau des heureux : enfants, fête du village, etc",null,null,null,null,null,null,null,null,null,null,"X",null,"X","X","X","X","X","X","X","X","X","X","X","X","X","X","X",null,null,null,null,null,null,null,null,0,0,0,0,0,0,0,0,0,0,0,0,0,0]
[407,"SOLIDARITE","Promotion de la solidarité","Déchets","Redistribution à des associations solidaires","Création d'un répertoire des associations de solidarité en précisant le type de produits collectés.",1,null,null,null,null,null,null,null,null,null,null,null,null,null,null,null,null,"X",null,"X","X","X","X","X","X","X","X","X","X","X","X","X","X","X",null,null,null,null,null,null,null,null,0,0,0,0,0,0,0,0,0,0,0,0,0,0]
[408,"SOLIDARITE","Promotion de la solidarité","Produits / équipements","Privilégier les productions de CAT locales","Créer un espace permettant de présenter les productions de CAT locales avec éventuellement un producteur pour chaque élément approvisionné.",1,null,null,null,null,null,null,null,null,null,null,null,null,null,null,null,null,"X",null,"X","X","X","X","X","X","X","X","X","X","X","X","X","X","X",null,null,null,null,null,null,null,null,0,0,0,0,0,0,0,0,0,0,0,0,0,0]
[409,"SOLIDARITE","Sensibilisation","Alimentation","Proposer   des produits « solidaires » sur un stand de l'évènement","Créer un espace permettant de présenter / déguster les \"produits solidaires\" avec éventuellement un producteur pour chaque élément approvisionné.",1,null,null,null,null,null,null,null,null,null,null,null,null,null,null,null,null,"X",null,"X","X","X","X","X","X","X","X","X","X","X","X","X","X","O",null,null,null,null,null,null,null,null,0,0,0,0,0,0,0,0,0,0,0,0,0,0]
[410,"SOLIDARITE","Sensibilisation","Communication","Proposer   des produits « solidaires » sur un stand de l'évènement","Communiquer sur les producteurs de \"produits solidaires\" auprès des associations, des bénévoles…",1,null,null,null,null,null,null,null,null,null,null,null,null,null,null,null,null,"X",null,"X","X","X","X","X","X","X","X","X","X","X","X","X","X","O",null,null,null,null,null,null,null,null,0,0,0,0,0,0,0,0,0,0,0,0,0,0]
[411,"SOLIDARITE","Sensibilisation","Communication","Sensibilisation à la cause des pays/populations pauvres","Relayer les campagnes et dossiers d'ONG militantes.",1,null,null,null,null,null," Comme OXFAM, les amis de la terre, Avaaz...",null,null,null,null,null,null,null,null,null,null,"X",null,"X","X","X","X","X","X","X","X","X","X","X","X","X","X","X",null,null,null,null,null,null,null,null,0,0,0,0,0,0,0,0,0,0,0,0,0,0]
[412,"SOLIDARITE","Sensibilisation","Sensibilisation des participants","Sensibiliser les participants sur les enjeux liés aux développement des pays les plus pauvres","Proposer une intervention orale / distribution d'outil de communication / présence de personne(s) intervenant sur cette problématique.",1,null,null,null,null,null,null,null,null,null,null,null,null,null,null,null,null,"X",null,"X","X","X","X","X","X","X","X","X","X","X","X","X","X","X",null,null,null,null,null,null,null,null,0,0,0,0,0,0,0,0,0,0,0,0,0,0]
[413,"SOLIDARITE","Sensibilisation","Sensibilisation des participants","Sensibiliser les participants sur les enjeux liés aux développement des pays les plus pauvres","Projeter un film sur ces enjeux / communiquer sur interface web.",1,null,null,null,null,null,null,null,null,null,null,null,null,null,null,null,null,"X",null,"X","X","X","X","X","X","X","X","X","X","X","X","X","X","X",null,null,null,null,null,null,null,null,0,0,0,0,0,0,0,0,0,0,0,0,0,0]
[414,"SOLIDARITE","Sensibilisation","Sensibilisation des participants","Sensibiliser les participants sur les enjeux liés aux développement des pays les plus pauvres","Faire intervenir des ONG de terrain (solidarité internationale).",1,null,null,null,null,null,null,null,null,null,null,null,null,null,null,null,null,"X",null,"X","X","X","X","X","X","X","X","X","X","X","X","X","X","X",null,null,null,null,null,null,null,null,0,0,0,0,0,0,0,0,0,0,0,0,0,0]
[415,"SOLIDARITE","Sensibilisation","Sensibilisation des participants","Sensibiliser les participants sur les enjeux liés aux développement des pays les plus pauvres","Faire une carte du monde permettant de présenter les différences entre pays selon les domaines et le développement de chaque pays.",1,null,null,null,null,null,null,null,null,null,null,null,null,null,null,null,null,"X",null,"X","X","X","X","X","X","X","X","X","X","X","X","X","X","X",null,null,null,null,null,null,null,null,0,0,0,0,0,0,0,0,0,0,0,0,0,0]
[416,"SOLIDARITE","Sensibilisation","Sensibilisation des participants","Sensibiliser les participants sur les enjeux liés aux développement des pays les plus pauvres","Faire un \"repas insolent\" rapide (voir http://www.starting-block.org/asso/nos-actions/18-30-ans/le-repas-insolent)",1,null,null,null,null,null,"Exemple : modèle d'un jeu sur le site Starting Block qui dure une demi-journée et présente les inégalités Nord-Sud ",null,null,null,null,null,null,null,null,null,null,"X",null,"X","X","X","X","X","X","X","X","X","X","X","X","X","X","X",null,null,null,null,null,null,null,null,0,0,0,0,0,0,0,0,0,0,0,0,0,0]
[417,"SOLIDARITE","Soutien à des causes","Compensation","Organiser une collecte","Si compatible avec la nature de l'évènement, organiser une collecte de sang ou un don de plaquettes.",1,null,null,null,null,null,null,null,null,null,null,null,null,null,null,null,null,"X",null,"X","X","X","O","X","X","X","X","X","X","X","X","X","X","X",null,null,null,null,null,null,null,null,0,0,0,0,0,0,0,0,0,0,0,0,0,0]
[418,"SOLIDARITE","Soutien à des causes","Compensation","Soutenir les organisations/populations dans le besoin","Organiser au cours de l'évènement une collecte au profit d'une cause liée à la solidarité.",1,null,null,null,null,null,null,null,null,null,null,null,null,null,null,null,null,"X",null,"X","X","X","X","X","X","X","X","X","X","X","X","X","X","X",null,null,null,null,null,null,null,null,0,0,0,0,0,0,0,0,0,0,0,0,0,0]
[419,"SOLIDARITE","Soutien à des causes","Compensation","Soutenir les organisations/populations dans le besoin","Attribuer une partie des fonds de l'évènements au financement d'associations liées à la solidarité internationale.",1,null,null,null,null,null,null,null,null,null,"X",null,null,null,null,null,null,"X",null,"X","X","X","X","X","X","X","X","X","X","X","X","X","X","X",null,null,null,null,null,null,null,null,0,0,0,0,0,0,0,0,0,0,0,0,0,0]
[420,"VOISINAGE","Impact paysager","Bâtiments/ Structures","Aménager ses infrastructures","Rechercher un lieu hors de la ville ou hors d'une zone résidentielle si de fortes nuisances sont prévues (musiques, nombre de personnes attendues important...).",2,null,null,null,null,null,null,null,null,null,null,null,null,null,null,null,null,null,"X","X","X","X","X","X","X","X","X","X","X","X","X","X","X","X",null,null,null,null,null,null,null,null,0,0,0,0,0,0,0,0,0,0,0,0,0,0]
[421,"VOISINAGE","Impact paysager","Bâtiments/ Structures","Aménager ses infrastructures","Privilégier les lieux disposant d'une barrière naturel aux bruits (extérieur) (ex : arbres, haies, rochers…).",1,null,null,null,null,null,null,null,null,null,null,null,null,null,null,null,null,null,null,"X","X","X","X","X","X","X","X","X","X","X","X","X","X","X",null,null,null,null,null,null,null,null,0,0,0,0,0,0,0,0,0,0,0,0,0,0]
[422,"VOISINAGE","Impact paysager","Bâtiments/ Structures","Aménager ses infrastructures","Mettre en place des panneaux opaques ou une paroi végétale pour \"cacher\" ou embellir le site tout en atténuant les nuisances (panneaux décorés, œuvres exposées...).",1,null,null,null,null,null,null,null,null,null,null,null,null,null,null,null,null,null,"X","X","X","X","X","X","X","X","X","X","X","X","X","X","X","X",null,null,null,null,null,null,null,null,0,0,0,0,0,0,0,0,0,0,0,0,0,0]
[423,"VOISINAGE","Impact paysager","Bâtiments/ Structures","Avoir un parking suffisamment dimensionné et signalé","Estimer le nombre de voitures potentiellement présentes lors de l'évènement et vérifier si le nombre de places de parking à disposition est suffisant.",2,null,null,null,null,null,null,null,null,null,null,null,null,null,null,null,null,null,"X","X","X","X","X","X","X","X","X","X","X","X","X","X","X","X",null,null,null,null,null,null,null,null,0,0,0,0,0,0,0,0,0,0,0,0,0,0]
[424,"VOISINAGE","Impact paysager","Bâtiments/ Structures","Choisir un emplacement adapté","Définir un accès et des stationnements hors espaces verts, terrains privés, zones protégées, zones fortement peuplées…",2,null,null,null,null,null,"Formulaire d'incidence Natura 2000",null,null,null,null,null,null,null,null,null,null,null,"X","X","O","X","X","X","X","X","X","X","X","X","X","X","X","X",null,null,null,null,null,null,null,null,0,0,0,0,0,0,0,0,0,0,0,0,0,0]
[425,"VOISINAGE","Impact paysager","Communication","Adapter la signalisation de l'événement","Utiliser des panneaux d'affichage existants et demander aux commerçants un droit d'affichage dans leur vitrine.",2,null,null,null,null,null,"http://www.ineris.fr/aida/?q=consult_doc/navigation/2.250.190.28.8.71/4/2.250.190.28.6.8688",null,null,null,null,null,null,null,null,null,null,null,"X","X","X","X","X","X","X","X","X","O","X","X","X","X","X","X",null,null,null,null,null,null,null,null,0,0,0,0,0,0,0,0,0,0,0,0,0,0]
[426,"VOISINAGE","Impact paysager","Communication","Adapter la signalisation de l'événement","Limiter la signalisation de l'évènement par des affiches réfléchies, à la portée du grand public (non choquantes) et en quantité limitée.",2,null,null,null,null,null,"http://www.ineris.fr/aida/?q=consult_doc/navigation/2.250.190.28.8.71/4/2.250.190.28.6.8688",null,null,null,null,null,null,null,null,null,null,null,"X","X","X","X","X","X","X","X","X","O","X","X","X","X","X","X",null,null,null,null,null,null,null,null,0,0,0,0,0,0,0,0,0,0,0,0,0,0]
[427,"VOISINAGE","Impact paysager","Communication","Adapter la signalisation de l'événement","Eviter les affichages pirates sur les habitations, les arrêts de bus et autres équipements publics ; favoriser la communication par Internet, mail, réseaux sociaux…",2,null,null,null,null,null,"http://www.ineris.fr/aida/?q=consult_doc/navigation/2.250.190.28.8.71/4/2.250.190.28.6.8688",null,null,null,null,null,null,null,null,null,null,null,"X","X","X","X","X","X","X","X","X","O","X","X","X","X","X","X",null,null,null,null,null,null,null,null,0,0,0,0,0,0,0,0,0,0,0,0,0,0]
[428,"VOISINAGE","Impact paysager","Déchets","Limiter les nuisances liées aux déchets","Prévoir des lieux de collecte et de stockage en nombre suffisant.",2,null,null,null,null,null,"se rapprocher de la mairie pour organiser une collecte et un tri des déchets produits.",null,null,null,null,null,null,null,null,null,null,null,"X","X","X","X","X","X","X","X","X","X","X","X","X","X","X","X",null,null,null,null,null,null,null,null,0,0,0,0,0,0,0,0,0,0,0,0,0,0]
[429,"VOISINAGE","Impact paysager","Déchets","Limiter les nuisances liées aux déchets","Ne pas stocker des déchets visibles de l'extérieur si ceux-ci ne doivent pas l'être.",2,null,null,null,null,null,null,null,null,null,null,null,null,null,null,null,null,null,"X","X","X","X","X","X","X","X","X","X","X","X","X","X","X","X",null,null,null,null,null,null,null,null,0,0,0,0,0,0,0,0,0,0,0,0,0,0]
[430,"VOISINAGE","Impact paysager","Déchets","Limiter les nuisances liées aux déchets","Mettre en place des signalisations originales / valorisantes / colorées pour le tri des déchets.",1,null,null,null,null,null,null,null,null,null,null,null,null,"X",null,null,null,null,"X","X","X","X","X","X","X","X","X","X","X","X","X","X","X","X","X","X",null,null,"O","X",null,null,0,0,0,0,0,0,0,0,0,0,0,0,0,0]
[431,"VOISINAGE","Impact paysager","Déchets","Limiter les nuisances liées aux déchets","Enlever ou faire enlever les déchets (et éventuellement au cours de l'évènement).",2,null,null,null,null,null,"se rapprocher de la mairie pour organiser une collecte et un tri des déchets produits.",null,null,null,null,null,null,null,null,null,null,null,"X","X","X","X","X","X","X","X","X","X","X","X","X","X","X","X",null,null,null,null,null,null,null,null,0,0,0,0,0,0,0,0,0,0,0,0,0,0]
[432,"VOISINAGE","Impact paysager","Déchets","Remettre le site dans son état initial","Prévoir les produits et équipements de nettoyage nécessaires en quantité suffisante (voir si équipement sur place) et écologiques pour préserver l'environnement du site.",2,null,null,null,null,null,"Formulaire de pré-évaluation des incidences Natura2000",null,null,null,null,null,null,null,null,null,null,null,"X","X","X","X","X","X","X","X","X","X","X","X","X","X","X","X",null,null,null,null,null,null,null,null,0,0,0,0,0,0,0,0,0,0,0,0,0,0]
[433,"VOISINAGE","Impact paysager","Déplacements","Limiter l'impact du tourisme international","Rechercher et respecter les traditions et coutumes pratiquées dans les pays d'accueil.",2,null,null,null,null,null,null,null,null,null,null,null,null,null,null,null,null,null,"X","X","O","X","X","X","X","X","X","X","X","X","X","X","X","X",null,null,null,null,null,null,null,null,0,0,0,0,0,0,0,0,0,0,0,0,0,0]
[434,"VOISINAGE","Impact paysager","Déplacements","Limiter l'impact du tourisme international","Favoriser les voyages dits responsables (emploi local, pas de tourisme de masse…).",1,null,null,null,null,null,null,null,null,null,null,null,null,null,null,null,null,null,"X","X","O","X","X","X","X","X","X","X","X","X","X","X","X","X",null,null,null,null,null,null,null,null,0,0,0,0,0,0,0,0,0,0,0,0,0,0]
[435,"VOISINAGE","Impact paysager","Espace naturel","Remettre le site dans son état initial","Faire une inspection du site (en plusieurs équipes si nécessaire) pour vérifier l'état général (déchets, graffitis, gazon, sanitaires…) ainsi que des lieux environnants et faire le nécessaire si des dégradations ont eu lieu (repeindre, réparer…) et en informer les propriétaires.",3,null,null,null,null,null,"http://www.legifrance.gouv.fr/affichTexte.do?cidTexte=LEGITEXT000005623736&dateTexte=20081016",null,null,null,null,null,null,null,null,null,null,null,"X","X","X","X","X","X","X","X","X","X","X","X","X","X","X","X",null,null,null,null,null,null,null,null,1,0,0,0,0,0,0,0,0,0,0,0,1,1]
[436,"VOISINAGE","Impact paysager","Lieu de vie/décors","Limiter les nuisances liées aux camping","Mettre en place une zone délimitée, signalée, et dont l'activité est peu perceptible de l'extérieur du site.",1,null,null,null,null,null,"article R123-19 du Code de la construction et de l'habitation\nhttp://jurisprudence.prim.net/jurisprud2011/36_fiche.php#Ia",null,null,null,null,null,null,null,null,null,null,null,"X","X","X","X","X","O","X","X","X","X","X","X","X","X","X","X",null,null,null,null,null,null,null,null,0,0,0,0,0,0,0,0,0,0,0,0,0,0]
[437,"VOISINAGE","Management","Communication"," Traiter les plaintes","Rester courtois lors des appels ou des contacts avec les riverains, les autorités… Ecouter le problème, proposer des solutions, trouver un compromis…",2,null,null,null,null,null,null,null,null,null,null,null,null,null,null,null,null,null,"X","X","X","X","X","X","X","X","X","X","X","X","X","X","X","X",null,null,null,null,null,null,null,null,0,0,0,0,0,0,0,0,0,0,0,0,0,0]
[438,"VOISINAGE","Management","Communication"," Traiter les plaintes","Avoir un portable toujours en fonction (vérifier la présence de réseau et le niveau de batterie).",1,null,null,null,null,null,null,null,null,null,null,null,null,null,null,null,null,null,"X","X","X","X","X","X","X","X","X","X","X","X","X","X","X","X",null,null,null,null,null,null,null,null,0,0,0,0,0,0,0,0,0,0,0,0,0,0]
[439,"VOISINAGE","Management","Communication"," Traiter les plaintes","Apposer un numéro de \"contact\" sur les flyers, affiches ou autres et avoir un téléphone toujours fonctionnel (présence de réseau, batterie).",1,null,null,null,null,null,null,null,null,null,null,null,null,null,null,null,null,null,"X","X","X","X","X","X","X","X","X","X","X","X","X","X","X","X",null,null,null,null,null,null,null,null,0,0,0,0,0,0,0,0,0,0,0,0,0,0]
[440,"VOISINAGE","Management","Sensibilisation des organisateurs","Sensibiliser le personnel encadrant aux consignes","Fournir une liste (papier) des consignes prioritaires, du déroulement de l'évènement, des numéros d'urgence…",3,null,null,null,null,null,null,null,null,null,null,null,null,null,null,null,null,null,"X","X","X","X","X","X","X","X","X","X","X","X","X","X","X","X",null,null,null,null,null,null,null,null,1,0,0,0,0,0,0,0,0,0,0,0,1,1]
[441,"VOISINAGE","Management","Sensibilisation des organisateurs","Sensibiliser le personnel encadrant aux consignes","Faire une veille sur les différentes manières de faire appliquer les pratiques",1,null,null,null,null,null,null,null,null,null,null,null,null,null,null,null,null,null,"X","X","X","X","X","X","X","X","X","X","X","X","X","X","X","X",null,null,null,null,null,null,null,null,0,0,0,0,0,0,0,0,0,0,0,0,0,0]
[442,"VOISINAGE","Management","Sensibilisation des organisateurs","Sensibiliser le personnel encadrant aux consignes","Faire une réunion d'avant projet avec les différents intervenants (organisateurs, régisseur, installateur…) et définir les tâches et objectifs de chacun.",3,null,null,null,null,null,null,null,null,null,null,null,null,null,null,null,null,null,"X","X","X","X","X","X","X","X","X","X","X","X","X","X","X","X",null,null,null,null,null,null,null,null,1,0,0,0,0,0,0,0,0,0,0,0,1,1]
[443,"VOISINAGE","Management","Sensibilisation des organisateurs","Sensibiliser le personnel encadrant aux consignes","Avoir un interlocuteur dans chaque \"secteur\" (commerçant, artiste...) et ne pas hésiter à leur demander conseil et les responsabiliser.",1,null,null,null,null,null,null,null,null,null,null,null,null,null,null,null,null,null,"X","X","X","X","X","X","X","X","X","X","X","X","X","X","X","X",null,null,null,null,null,null,null,null,0,0,0,0,0,0,0,0,0,0,0,0,0,0]
[444,"VOISINAGE","Management","Sensibilisation des organisateurs","Sensibiliser le personnel encadrant aux consignes","\"Rendre visite\" aux intervenants lors de l'évènement pour les aider dans l'application de certaines consignes ou réajuster des pratiques non souhaitées.",2,null,null,null,null,null,null,null,null,null,null,null,null,null,null,null,null,null,"X","X","X","X","X","X","X","X","X","X","X","X","X","X","X","X",null,null,null,null,null,null,null,null,0,0,0,0,0,0,0,0,0,0,0,0,0,0]
[445,"VOISINAGE","Nuisances olfactives","Lieu de vie/décors","Réduire les nuisances liées aux mauvaises odeurs","Prévoir un nombre suffisant de toilettes.",1,null,null,null,null,null,"http://www.eure.pref.gouv.fr/site/Securite/Securite-civile/Grandes-manifestations\nvoir paragraphe E. Recommandations de l'OMS",null,null,null,null,null,null,null,null,null,null,null,"X","X","X","X","X","X","X","X","X","X","X","X","X","X","X","X",null,null,null,null,null,null,null,null,0,0,0,0,0,0,0,0,0,0,0,0,0,0]
[446,"VOISINAGE","Nuisances olfactives","Lieu de vie/décors","Réduire les nuisances liées aux mauvaises odeurs","Faire le tour du site pour localiser les sources d'émissions  d'odeurs potentielles (égouts, mare ou autres).",1,null,null,null,null,null,null,null,null,null,null,null,null,null,null,null,null,null,"X","X","X","X","X","X","X","X","X","X","X","X","X","X","X","X",null,null,null,null,null,null,null,null,0,0,0,0,0,0,0,0,0,0,0,0,0,0]
[447,"VOISINAGE","Nuisances olfactives","Lieu de vie/décors","Réduire les nuisances liées aux mauvaises odeurs","Eloigner (des riverains, de la limite du site...) les stands de restauration, les sanitaires et toute autre activité générant des mauvaises odeurs.",1,null,null,null,null,null,null,null,null,null,null,null,null,null,null,null,null,null,"X","X","X","X","X","X","X","X","X","X","X","X","X","X","X","X",null,null,null,null,null,null,null,null,0,0,0,0,0,0,0,0,0,0,0,0,0,0]
[448,"VOISINAGE","Nuisances sonores","Bâtiments/ Structures","Adapter ses infrastructures aux nuisances générées","Favoriser les installations avec des portes à fermeture assistée ou automatique.",1,null,null,null,null,null,null,null,null,null,null,null,null,null,null,null,null,null,"X","X","X","X","X","X","X","X","X","X","X","X","X","X","X","X",null,null,null,null,null,null,null,null,0,0,0,0,0,0,0,0,0,0,0,0,0,0]
[449,"VOISINAGE","Nuisances sonores","Bâtiments/ Structures","Adapter ses infrastructures aux nuisances générées","Favoriser les infrastructures performantes en termes d'isolation phonique en demandant conseil au loueur ou au propriétaire des locaux (plans, type d'isolation et de matériaux existant,…).",2,null,null,null,null,null,null,null,null,null,null,null,null,null,null,null,null,null,"X","X","X","X","X","X","X","X","X","X","X","X","X","X","X","X",null,null,null,null,null,null,null,null,0,0,0,0,0,0,0,0,0,0,0,0,0,0]
[450,"VOISINAGE","Nuisances sonores","Bâtiments/ Structures","Réduire les nuisances sonores","Eviter les nuisances liées au rassemblement ou à d'autres phénomènes sur les parkings (mettre en place une surveillance sur les parkings).",2,null,null,null,null,null,"http://jurisprudence.prim.net/jurisprud2011/36_fiche.php#Ia","X",null,null,null,null,null,null,null,null,null,null,"X","X","X","X","X","X","X","X","X","X","X","X","X","X","X","X",null,null,null,null,null,null,null,null,0,0,0,0,0,0,0,0,0,0,0,0,0,0]
[451,"VOISINAGE","Nuisances sonores","Communication","Informer les riverains","Informer les riverains en utilisant les supports de communication disponibles et les plus responsables.",3,null,null,null,null,null,null,"X",null,null,null,null,null,null,null,null,null,null,"X","X","X","X","X","X","X","X","X","X","X","X","X","X","X","X",null,null,null,null,null,null,null,null,1,{"$f":"IF(AND(N455=\"X\",$G455>=AX$471),1,0)","v":1},{"$f":"IF(AND(O455=\"X\",$G455>=AY$471),1,0)","v":0},{"$f":"IF(AND(P455=\"X\",$G455>=AZ$471),1,0)","v":0},{"$f":"IF(AND(Q455=\"X\",$G455>=BA$471),1,0)","v":0},{"$f":"IF(AND(R455=\"X\",$G455>=BB$471),1,0)","v":0},{"$f":"IF(AND(S455=\"X\",$G455>=BC$471),1,0)","v":0},{"$f":"IF(AND(T455=\"X\",$G455>=BD$471),1,0)","v":0},{"$f":"IF(AND(U455=\"X\",$G455>=BE$471),1,0)","v":0},{"$f":"IF(AND(V455=\"X\",$G455>=BF$471),1,0)","v":0},{"$f":"IF(AND(W455=\"X\",$G455>=BG$471),1,0)","v":0},{"$f":"IF(AND(X455=\"X\",$G455>=BH$471),1,0)","v":0},{"$f":"IF(AND(Y455=\"X\",$G455>=BI$471),1,0)","v":1},2]
[452,"VOISINAGE","Nuisances sonores","Lieu de vie/décors","Limiter les nuisances liées aux installations","Réfléchir à l'emplacement des scènes, des stands de restauration, des grands rassemblements... (loin des riverains et de la limite de propriété).",1,null,null,null,null,null,null,"X",null,null,null,null,null,null,null,null,null,null,"X","X","X","X","X","X","X","X","X","X","X","X","X","X","X","X",null,null,null,null,null,null,null,null,{"$f":"IF(OR(BJ456=0,AU456=\"Non applicable\"),0,1)","v":0},0,0,0,0,0,0,0,0,0,0,0,0,{"$f":"SUM(AX456:BI456)","v":0}]
[453,"VOISINAGE","Nuisances sonores","Lieu de vie/décors","Limiter les nuisances liées aux installations","Anticiper les types de nuisances lors des différentes phases de montage/activité/démontage et sensibiliser les monteurs/démonteurs (à ne pas jeter les barres de ferraille des chapiteaux, ne pas crier…).",1,null,null,null,null,null,"http://www.cnidep.com/bruit22.html","X",null,null,null,null,null,null,null,null,null,null,"X","X","X","X","X","X","X","X","X","X","X","X","X","X","X","X",null,null,null,null,null,null,null,null,0,0,0,0,0,0,0,0,0,0,0,0,0,0]
[454,"VOISINAGE","Nuisances sonores","Lieu de vie/décors","Réduire les nuisances sonores liées aux zones fumeurs","Mettre en place une surveillance si l'évènement se déroule à l'extérieur.",1,null,null,null,null,null,"http://www.tabac.gouv.fr/rubrique-22732.php",null,null,null,null,null,null,null,null,null,null,null,"X","X","X","X","X","X","X","O","X","X","X","X","X","X","X","X",null,null,null,null,null,null,null,null,0,0,0,0,0,0,0,0,0,0,0,0,0,0]
[455,"VOISINAGE","Nuisances sonores","Lieu de vie/décors","Réduire les nuisances sonores liées aux zones fumeurs","Mettre en place de la signalisation si à l'extérieur (affiches de sensibilisation disponibles gratuitement à l'INRS ou sur internet).",1,null,null,null,null,null,"http://www.tabac.gouv.fr/rubrique-22732.php","X",null,null,null,null,null,null,null,null,null,null,"X","X","X","X","X","X","X","O","X","X","X","X","X","X","X","X",null,null,null,null,null,null,null,null,0,0,0,0,0,0,0,0,0,0,0,0,0,0]
[456,"VOISINAGE","Nuisances sonores","Lieu de vie/décors","Réduire les nuisances sonores liées aux zones fumeurs","Définir un emplacement loin des habitations ou confiné (protections phoniques : capotage, végétation, décors…).",1,null,null,null,null,null,"http://www.tabac.gouv.fr/rubrique-22732.php","X",null,null,null,null,null,null,null,null,null,null,"X","X","X","X","X","X","X","O","X","X","X","X","X","X","X","X",null,null,null,null,null,null,null,null,0,0,0,0,0,0,0,0,0,0,0,0,0,0]
[457,"VOISINAGE","Nuisances sonores","Produits / équipements"," Limiter le volume sonore","Sensibiliser les \"responsables\" sono (fixer des règles à suivre) et ne pas hésiter à intervenir en cas d'abus.",2,null,null,null,null,null,"http://www.cnidep.com/bruit22.html",null,null,null,null,null,null,null,null,null,null,null,"X","X","X","X","X","X","X","X","X","X","X","X","X","X","X","X",null,null,null,null,null,null,null,null,0,0,0,0,0,0,0,0,0,0,0,0,0,0]
[458,"VOISINAGE","Nuisances sonores","Produits / équipements"," Limiter le volume sonore","Prendre conseil chez le vendeur ou le loueur pour adapter les équipements sonores (nombre de participants, emplacement des enceintes).",1,null,null,null,null,null,"http://www.cnidep.com/bruit22.html",null,null,null,null,null,null,null,null,null,null,null,"X","X","X","X","X","X","X","X","X","X","X","X","X","X","X","X",null,null,null,null,null,null,null,null,0,0,0,0,0,0,0,0,0,0,0,0,0,0]
[459,"VOISINAGE","Nuisances sonores","Produits / équipements"," Limiter le volume sonore","Mettre en place des limitateurs de son.",1,null,null,null,null,null,null,null,null,null,null,null,null,null,null,null,null,null,"X","X","X","X","X","X","X","X","X","X","X","X","X","X","X","X",null,null,null,null,null,null,null,null,0,0,0,0,0,0,0,0,0,0,0,0,0,0]
[460,"VOISINAGE","Nuisances sonores","Respect des règles","Respecter la réglementation","Respecter les plages horaires 8-12h - 13-18h pour les activités bruyantes et ne pas dépasser les 1h du matin pour une soirée (consulter les exigences de la municipalité).",2,null,null,null,null,null,"http://www.cnidep.com/bruit22.html","X",null,null,null,null,null,null,null,null,null,null,"X","X","X","X","X","X","X","X","X","X","X","X","X","X","X","X",null,null,null,null,null,null,null,null,0,0,0,0,0,0,0,0,0,0,0,0,0,0]
[461,"VOISINAGE","Nuisances sonores","Respect des règles","Respecter la réglementation","Faire des mesures de bruit (sonomètre) et être conforme aux seuils règlementaires (consulter les exigences de la municipalité).",2,null,null,null,null,null,null,"X",null,null,null,null,null,null,null,null,null,null,"X","X","X","X","X","X","X","X","X","X","X","X","X","X","X","X",null,null,null,null,null,null,null,null,0,0,0,0,0,0,0,0,0,0,0,0,0,0]
[462,"VOISINAGE","Pollution lumineuse","Produits / équipements","Réduire les nuisances lumineuses possibles pour le voisinage","Vérifier la portée et la direction des lasers et autres projecteurs de forte puissance (prendre conseil chez le vendeur ou le loueur).",2,null,null,null,null,null,"Chapitre III : Prévention des nuisances lumineuses\nhttp://www.ineris.fr/aida/?q=consult_doc/navigation/2.250.190.28.8.71/4/2.250.190.28.6.8688",null,null,null,null,null,null,null,null,null,null,null,"X","X","X","X","X","X","X","X","X","X","X","X","X","X","X","X",null,null,null,null,null,null,null,null,0,0,0,0,0,0,0,0,0,0,0,0,0,0]
[463,"VOISINAGE","Pollution lumineuse","Produits / équipements","Réduire les nuisances lumineuses possibles pour le voisinage","Utiliser si possible l'éclairage public  pour les zones extérieures. Si pas d'éclairage extérieur, privilégier les lampes de sodium basse pression avec capteur.",1,null,null,null,null,null,"Chapitre III : Prévention des nuisances lumineuses\nhttp://www.ineris.fr/aida/?q=consult_doc/navigation/2.250.190.28.8.71/4/2.250.190.28.6.8688",null,null,null,null,null,null,null,null,null,null,null,"X","X","X","X","X","X","X","O","X","X","X","X","X","X","X","X",null,null,null,null,null,null,null,null,0,0,0,0,0,0,0,0,0,0,0,0,0,0]
[464,"VOISINAGE","Pollution lumineuse","Produits / équipements","Réduire les nuisances lumineuses possibles pour le voisinage","Rechercher un lieu hors de la ville ou hors d'une zone résidentielle pour les fortes puissances utilisées.",1,null,null,null,null,null,"Chapitre III : Prévention des nuisances lumineuses\nhttp://www.ineris.fr/aida/?q=consult_doc/navigation/2.250.190.28.8.71/4/2.250.190.28.6.8688",null,null,null,null,null,null,null,null,null,null,null,"X","X","X","X","X","X","X","O","X","X","X","X","X","X","X","X",null,null,null,null,null,null,null,null,0,0,0,0,0,0,0,0,0,0,0,0,0,0]
[465,"VOISINAGE","Pollution lumineuse","Produits / équipements","Réduire les nuisances lumineuses possibles pour le voisinage","Mettre en place des panneaux opaques ou une paroi végétale pour \"cacher le site\".",1,null,null,null,null,null,"Chapitre III : Prévention des nuisances lumineuses\nhttp://www.ineris.fr/aida/?q=consult_doc/navigation/2.250.190.28.8.71/4/2.250.190.28.6.8688",null,null,null,null,null,null,null,null,null,null,null,"X","X","X","X","X","X","X","O","X","X","X","X","X","X","X","X",null,null,null,null,null,null,null,null,0,0,0,0,0,0,0,0,0,0,0,0,0,0]
[]
[null,null,null,null,null,null,null,null,null,null,null,null,null,null,null,null,null,null,null,null,null,null,null,null,null,null,null,null,null,null,null,null,null,null,null,null,null,null,null,null,null,null,null,null,null,null,null,null,"Valeurs retenues",{"$f":"IF(Mes_objectifs!F33=\"à minima\",3,IF(Mes_objectifs!F33=\"faire ce qu'il faut\",2,IF(Mes_objectifs!F33=\"aller plus loin\",1,4)))","v":3},{"$f":"IF(Mes_objectifs!D28=\"à minima\",3,IF(Mes_objectifs!D28=\"faire ce qu'il faut\",2,IF(Mes_objectifs!D28=\"aller plus loin\",1,4)))","v":3},{"$f":"IF(Mes_objectifs!E23=\"à minima\",3,IF(Mes_objectifs!E23=\"faire ce qu'il faut\",2,IF(Mes_objectifs!E23=\"aller plus loin\",1,4)))","v":3},{"$f":"IF(Mes_objectifs!G17=\"à minima\",3,IF(Mes_objectifs!G17=\"faire ce qu'il faut\",2,IF(Mes_objectifs!G17=\"aller plus loin\",1,4)))","v":3},{"$f":"IF(Mes_objectifs!N15=\"à minima\",3,IF(Mes_objectifs!N15=\"faire ce qu'il faut\",2,IF(Mes_objectifs!N15=\"aller plus loin\",1,4)))","v":3},{"$f":"IF(Mes_objectifs!Q17=\"à minima\",3,IF(Mes_objectifs!Q17=\"faire ce qu'il faut\",2,IF(Mes_objectifs!Q17=\"aller plus loin\",1,4)))","v":3},{"$f":"IF(Mes_objectifs!S23=\"à minima\",3,IF(Mes_objectifs!S23=\"faire ce qu'il faut\",2,IF(Mes_objectifs!S23=\"aller plus loin\",1,4)))","v":3},{"$f":"IF(Mes_objectifs!T28=\"à minima\",3,IF(Mes_objectifs!T28=\"faire ce qu'il faut\",2,IF(Mes_objectifs!T28=\"aller plus loin\",1,4)))","v":3},{"$f":"IF(Mes_objectifs!R33=\"à minima\",3,IF(Mes_objectifs!R33=\"faire ce qu'il faut\",2,IF(Mes_objectifs!R33=\"aller plus loin\",1,4)))","v":3},{"$f":"IF(Mes_objectifs!Q39=\"à minima\",3,IF(Mes_objectifs!Q39=\"faire ce qu'il faut\",2,IF(Mes_objectifs!Q39=\"aller plus loin\",1,4)))","v":3},{"$f":"IF(Mes_objectifs!N41=\"à minima\",3,IF(Mes_objectifs!N41=\"faire ce qu'il faut\",2,IF(Mes_objectifs!N41=\"aller plus loin\",1,4)))","v":3},{"$f":"IF(Mes_objectifs!G39=\"à minima\",3,IF(Mes_objectifs!G39=\"faire ce qu'il faut\",2,IF(Mes_objectifs!G39=\"aller plus loin\",1,4)))","v":3}]

{"sheet":"Empreinte_Carbone","index":4,"n_rows":313,"n_cols":17,"rows_kept":313,"cut":false,"hidden":false,"merged":[[306,1,306,2],[308,1,308,2],[309,1,309,2],[310,1,310,2],[311,1,311,2],[312,1,312,2],[299,1,299,2],[300,1,300,2],[301,1,301,2],[303,1,303,2],[304,1,304,2],[305,1,305,2],[295,1,295,2],[295,6,295,8],[296,6,296,8],[297,1,297,2],[297,6,297,8],[298,1,298,2],[291,1,291,2],[291,6,291,8],[292,6,292,8],[293,1,293,2],[293,6,293,8],[294,6,294,8],[288,1,288,2],[289,1,289,2],[290,1,290,2],[274,1,275,3],[276,1,276,3],[277,5,277,7],[284,1,284,16],[287,1,287,2],[287,6,287,8],[287,9,287,11],[251,1,251,7],[238,1,245,2],[265,1,265,3],[267,1,267,3],[268,1,268,3],[269,1,269,3],[273,4,273,7],[255,1,255,3],[255,7,256,7],[256,1,256,3],[257,1,257,3],[258,1,258,3],[263,4,264,4],[261,1,261,7],[271,1,271,7],[255,6,256,6],[246,1,246,3],[247,1,247,3],[248,1,248,3],[249,1,249,3],[225,1,225,3],[232,1,232,16],[236,4,237,4],[237,1,237,3],[241,9,242,11],[241,12,242,12],[234,1,234,7],[221,1,222,1],[221,2,221,3],[222,2,222,3],[223,1,224,1],[223,2,223,3],[224,2,224,3],[216,2,216,3],[217,1,217,3],[218,1,220,1],[218,2,218,3],[219,2,219,3],[220,2,220,3],[211,7,211,9],[211,11,211,13],[212,1,212,3],[213,1,215,1],[213,2,213,3],[214,2,214,3],[215,2,215,3],[206,1,206,3],[211,4,211,6],[209,1,209,13],[199,1,201,1],[199,2,199,3],[200,2,200,3],[201,2,201,3],[202,1,203,1],[202,2,202,3],[203,2,203,3],[197,2,197,3],[198,1,198,3],[192,4,192,6],[192,7,192,9],[192,11,192,13],[193,1,193,3],[204,1,205,1],[204,2,204,3],[205,2,205,3],[190,1,190,13],[178,2,178,3],[179,1,179,3],[180,1,182,1],[180,2,180,3],[181,2,181,3],[182,2,182,3],[194,1,196,1],[194,2,194,3],[195,2,195,3],[196,2,196,3],[173,4,173,6],[173,7,173,9],[187,1,187,3],[173,11,173,13],[174,1,174,3],[175,1,177,1],[175,2,175,3],[176,2,176,3],[177,2,177,3],[183,1,184,1],[183,2,183,3],[184,2,184,3],[185,1,186,1],[185,2,185,3],[186,2,186,3],[159,1,159,3],[160,1,160,3],[161,1,161,3],[162,1,162,3],[169,1,169,16],[159,6,162,8],[171,1,171,13],[151,1,151,3],[152,1,152,3],[153,1,153,3],[157,4,158,4],[157,5,158,5],[158,1,158,3],[146,1,146,3],[147,1,148,3],[148,4,149,4],[148,5,149,5],[149,1,149,3],[150,1,150,3],[155,1,155,10],[138,1,138,3],[143,4,144,4],[143,5,144,5],[144,1,144,3],[145,1,145,3],[129,1,129,3],[130,1,130,3],[131,1,131,3],[136,4,137,4],[137,1,137,3],[134,1,134,10],[141,1,141,10],[123,1,124,3],[124,4,125,4],[125,1,125,3],[126,1,126,3],[127,1,127,3],[128,1,128,3],[115,1,115,16],[119,4,120,4],[120,1,120,3],[121,1,121,3],[122,1,122,3],[117,1,117,10],[103,5,104,5],[104,1,104,3],[105,1,105,3],[105,6,108,8],[106,1,106,3],[107,1,107,3],[108,1,108,3],[96,1,96,3],[97,1,97,3],[98,1,98,3],[99,1,99,3],[103,4,104,4],[101,1,101,10],[89,1,89,3],[90,1,90,3],[94,4,95,4],[94,5,95,5],[95,1,95,3],[82,1,82,3],[83,1,83,3],[84,1,84,3],[85,1,85,3],[87,4,88,4],[88,1,88,3],[92,1,92,10],[58,1,58,10],[73,5,74,5],[74,1,74,3],[75,1,75,3],[80,4,81,4],[81,1,81,3],[69,1,71,1],[69,2,69,3],[70,2,70,3],[71,2,71,3],[72,1,73,3],[73,4,74,4],[78,1,78,10],[64,1,64,2],[65,1,65,2],[66,1,67,3],[67,4,68,4],[67,5,68,5],[68,1,68,3],[60,4,61,4],[60,5,61,5],[61,1,61,3],[62,1,62,3],[63,1,63,2],[42,1,42,2],[42,9,44,10],[42,11,44,11],[45,9,45,11],[56,1,56,16],[30,1,30,3],[30,4,30,5],[31,1,31,3],[32,1,32,3],[32,9,38,13],[34,1,34,3],[36,1,36,3],[38,1,38,3],[43,2,44,4],[28,1,28,3],[28,4,28,5],[19,9,19,12],[19,13,19,16],[20,1,20,2],[21,1,21,2],[22,1,22,2],[24,1,24,3],[24,4,24,5],[19,1,19,3],[23,1,23,5],[5,1,5,16],[6,8,6,10],[9,1,9,16],[13,1,13,7],[16,1,16,4],[26,1,26,3],[26,4,26,5],[26,10,26,12],[26,14,26,16],[6,6,6,7],[6,4,6,5],[6,14,6,16],[6,11,6,13],[6,1,6,3],[10,1,10,16],[17,1,18,6]]}
[]
[]
[]
[]
[]
[null,"EMPREINTE CARBONE DE L'EVENEMENT"]
[null,"LIEU-HEBERGEMENT",null,null,"RESTAURATION",null,"MATERIELS",null,"DEPLACEMENT DE PERSONNES",null,null,"COMMUNICATION",null,null,"TOTALISATEUR"]
[]
[]
[null,"LIEU-HEBERGEMENT"]
[null,"NB : Si votre évènement s'est déroulé dans des lieux différents, remplir le questionnaire pour chaque lieu et reporter chacune des valeurs dans les tableaux ci-dessous."]
[]
[]
[null,"Questionnaire"]
[]
[]
[null,"Connaissez-vous la valeur exacte du DPE de votre hébergement/lieu ?",null,null,null,null,"non"]
[null,"Si oui : ne remplir que le tableau 1 ; si non : ne remplir que le tableau 2"]
[]
[null,"Tableau 1",null,null,null,null,null,null,null,"LIEUX",null,null,null,"HEBERGEMENTS"]
[null,"Quelle est sa valeur en kgeq.CO2/(m².an) ?",null,null,"à ne pas confondre avec la valeur en KWh/(m².an)",null,null,null,null,"NOM","kgeq. C","NOM","kgeq. C","NOM","kgeq. C","NOM","kgeq. C"]
[null,"OU",null,null,"ICI NE REMPLIR QU'UNE SEULE CASE !",null,null,null,null,"LIEU 1",null,"LIEU 5",null,"HEBERG. 1",null,"HEBERG. 5"]
[null,"Quelle lette le caractérise ?",null,null,{"$f":"VLOOKUP(D23,Paramètres!A116:B122,2,FALSE)","v":{"$error":"#N/A"}},"Kgeq.CO2/(m².an)","DPE-e",null,null,"LIEU 2",null,"LIEU 6",null,"HEBERG. 2",null,"HEBERG. 6"]
[null,"Tableau 2",null,null,null,null,null,null,null,"LIEU 3",null,"LIEU 7",null,"HEBERG. 3",null,"HEBERG. 7"]
[null,"Dans quel département s'est déroulé votre évènement ?",null,null,null,null,{"$f":"VLOOKUP(E25,Paramètres!A18:B113,2,FALSE)","v":{"$error":"#N/A"}},"R",null,"LIEU 4",null,"LIEU 8",null,"HEBERG. 4",null,"HEBERG. 8"]
[]
[null,"A quelle altitude était votre hébergement/lieu ?   (en mètres)",null,null,null,null,{"$f":"IF(E27<400,0,IF(E27<800,0.1,IF(E27>=800,0.2,)))","v":0},"A",null,"TOTAL",{"$f":"K22+K23+K24+K25+M22+M23+M24+M25","v":0},null,null,"TOTAL",{"$f":"O22+O23+O24+O25+Q22+Q23+Q24+Q25","v":0}]
[]
[null,"S'agit-il d'une salle de conférence ou de réunion ?",null,null,null,null,{"$f":"IF(E29=\"oui\",0.2,IF(E29=\"non\",0,0))","v":0},"B"]
[]
[null,"Quelle description caractérise votre hergement/lieu au mieux ?",null,null,null,null,{"$f":"VLOOKUP(E31,Paramètres!A124:B128,2,FALSE)","v":{"$error":"#N/A"}}]
[null,"Enfin, remplir les 2 tableaux suivants :",null,null,{"$f":"IF(G17=\"oui\", IF(D21<>0,D21,E23), IF(G17=\"non\", G31*(G25+G27+G29),\"\"))","v":{"$error":"#N/A"}},null,"DPE-e"]
[null,"A quelle saison s'est déroulé votre évènement ?",null,null,null,null,{"$f":"IF(E33=\"été\",1-((MAX(E32-6,1))/E32),IF(E33=\"hiver\",1+((MAX(E32-6,1))/E32),1))","v":1},"S",null,"NB : Ne considérer ici que l'espace utilisé pour l'évènement. Par exemple, si je n'ai besoin que de 10 chambres de 5 personnes sur les 20 chambres disponibles dans l'hôtel, je rentre 50 personnes, et non 100 (même si mon évènement n'a que 48 participants) !"]
[]
[null,"Combien de personnes ont participé à l'évènement ?",null,null,null,null,{"$f":"E35","v":0},"P"]
[]
[null,"Quelle est la capacité totale d'accueil des installations utilisées ?",null,null,null,null,{"$f":"IF(E37<>0,E35/E37,0)","v":0},"t"]
[]
[null,"Combien de jours a duré l'évènement ?",null,null,null,null,{"$f":"E39","v":0},"d"]
[]
[]
[]
[null,"TYPE DE LIEU/HEBERGEMENT :",null,null,null,null,null,null,null,{"$f":"IF(G45<>0, IF(G37<>0,ROUND(E32*G33*(12/44)*(G39/365)*(G35/G45)*(1/G37),1),\"\"),\"\")","v":{"$error":"#N/A"}},null,"kgeq. C"]
[]
[null,"Il s'agit :",null,null,null,null,{"$f":"VLOOKUP(C44,Paramètres!A140:B149,2,FALSE)","v":{"$error":"#N/A"}},"p"]
[null,null,null,null,null,null,null,null,null,"Valeur à réporter dans le tableau ci-dessus."]
[]
[]
[]
[]
[]
[]
[]
[]
[]
[]
[null,"RESTAURATION"]
[]
[null,"TYPE D'ALIMENTATION"]
[]
[null,null,null,null,"Nombre de repas préparés","Nombre de repas servis","kg équ. C",null,null,"kg équ. C","kg équ. C"]
[null,"REPAS",null,null,null,null,"par tonne","a","b","par repas","total"]
[null,"Repas végétarien",null,null,null,null,null,null,null,0.12,{"$f":"J63*E63","v":0},{"$f":"F63*J63","v":0}]
[null,"Repas à dominante végétale avec",null,"Veau",null,null,{"$f":"VLOOKUP(D64,Paramètres!A2:B14,2,FALSE)","v":12802},{"$f":"(0.16-0.45)/(640-4744)","v":7.0662768031189098E-5},{"$f":"0.45-H64*4744","v":0.11477582846003892},{"$f":"H64*G64+I64","v":1.0194005847953218},{"$f":"J64*E64","v":0},{"$f":"F64*J64","v":0}]
[null,"Repas classique avec",null,"Veau",null,null,{"$f":"VLOOKUP(D65,Paramètres!A2:B14,2,FALSE)","v":12802},{"$f":"(0.3-1.23)/(640-4744)","v":2.266081871345029E-4},{"$f":"1.23-H65*4744","v":0.15497076023391831},{"$f":"H65*G65+I65","v":3.0560087719298243},{"$f":"J65*E65","v":0},0]
[null,"Repas à dominante animale avec",null,"Veau",null,null,{"$f":"VLOOKUP(D66,Paramètres!A2:B14,2,FALSE)","v":12802},{"$f":"(0.36-1.54)/(640-4744)","v":2.8752436647173495E-4},{"$f":"1.54-H66*4744","v":0.17598440545808947},{"$f":"H66*G66+I66","v":3.8568713450292402},{"$f":"J66*E66","v":0},0]
[]
[null,null,null,null,"Nombre de sandwichs préparés","Nombre de sandwichs servis",null,null,null,"kg équ. C","kg équ. C"]
[null,"SANDWICH",null,null,null,null,null,"a","b","par sandwich","total"]
[null,"½ baguette + ","jambon + légume + fromage",null,null,null,null,null,null,0.17499999999999999,{"$f":"J70*E70","v":0},0]
[null,null,"thon + légume + fromage",null,null,null,null,null,null,0.155,{"$f":"J71*E71","v":0},0]
[null,null,"légume + fromage",null,null,null,null,null,null,0.13500000000000001,{"$f":"J72*E72","v":0},0]
[]
[null,null,null,null,"Nombre de baguettes achetées","Nombre de baguettes servies",null,null,null,"kg équ. C","kg équ. C"]
[null,"PAIN",null,null,null,null,null,null,null,"par kg de pain","total"]
[null,"1 baguette = 250 g",null,null,null,null,null,null,null,0.13300000000000001,{"$f":"J76*E76/4","v":0},0]
[]
[]
[null,"DECHETS"]
[]
[null,null,null,null,"Quantité de bouteilles/canettes servies",null,null,null,null,"kg équ. C","kg équ. C"]
[null,"EMBALLAGES",null,null,null,null,null,null,null,"par litre","total"]
[null,"Bouteilles en plastique d'un litre",null,null,null,null,null,null,null,{"$f":"0.129*12/44","v":3.5181818181818182E-2},{"$f":"J83*E83","v":0}]
[null,"Bouteilles en verre d'un litre",null,null,null,null,null,null,null,{"$f":"0.345*12/44","v":9.4090909090909086E-2},{"$f":"J84*E84","v":0}]
[null,"Bouteille cartonnée d'un litre",null,null,null,null,null,null,null,{"$f":"(12/44)*70/1000","v":1.9090909090909089E-2},{"$f":"J85*E85","v":0}]
[null,"Canettes de 33 cL",null,null,null,null,null,null,null,{"$f":"(12/44)*0.345/8","v":1.1761363636363634E-2},{"$f":"J86*E86","v":0}]
[]
[null,null,null,null,"Quantité estimée jetée (en nombre de repas)",null,null,null,null,"kg équ. C","kg équ. C"]
[null,"DECHETS ALIMENTAIRES",null,null,null,null,null,null,null,"par litre","total"]
[null,"sur la quantité servie",null,null,null,null,null,null,null,9.6000000000000002E-2,{"$f":"J90*E90","v":0}]
[null,"sur la quantité achetée en trop",null,null,null,null,null,null,null,9.6000000000000002E-2,{"$f":"J91*E91","v":0}]
[]
[null,"ENERGIE"]
[]
[null,null,null,null,"Puissance de l'appareil en Watt","Durée d'utilisation en heure",null,null,null,"kg équ. C","kg équ. C"]
[null,"APPAREILS UTILISES",null,null,null,null,null,null,null,"par kW.h","total"]
[null,"Appareil 1",null,null,null,null,null,null,null,2.3E-2,{"$f":"J97*E97*F97","v":0}]
[null,"Appareil 2",null,null,null,null,null,null,null,2.3E-2,{"$f":"J98*E98*F98","v":0}]
[null,"Appareil 3",null,null,null,null,null,null,null,2.3E-2,{"$f":"J99*E99*F99","v":0}]
[null,"Appareil 4",null,null,null,null,null,null,null,2.3E-2,{"$f":"J100*E100*F100","v":0}]
[]
[null,"TRANSPORT"]
[]
[null,null,null,null,"Moyen de transport utilisé","Nombre de kilomètres parcourus",null,null,null,"kg équ. C","kg équ. C"]
[null,"APPAREILS UTILISES",null,null,null,null,null,null,null,"par km","total"]
[null,"Transport 1",null,null,"Autobus urbain",null,"ATTENTION ! Si la nourriture a été transportée avec des personnes, ne pas compter son transport.",null,null,{"$f":"VLOOKUP(E106,Paramètres!$A$155:$B$165,2,FALSE)","v":2.7690000000000003E-2},{"$f":"J106*F106","v":0}]
[null,"Transport 2",null,null,"Train en France, moyenne",null,null,null,null,{"$f":"VLOOKUP(E107,Paramètres!$A$155:$B$165,2,FALSE)","v":2.6292866228100169E-3},{"$f":"J107*F107","v":0}]
[null,"Transport 3",null,null,"Voiture en parcours mixte",null,null,null,null,{"$f":"VLOOKUP(E108,Paramètres!$A$155:$B$165,2,FALSE)","v":6.7000000000000004E-2},{"$f":"J108*F108","v":0}]
[null,"Transport 4",null,null,"Avion court courrier",null,null,null,null,{"$f":"VLOOKUP(E109,Paramètres!$A$155:$B$165,2,FALSE)","v":7.1000000000000008E-2},{"$f":"J109*F109","v":0}]
[]
[]
[]
[]
[]
[]
[null,"MATERIELS"]
[]
[null,"TYPE DE MATERIEL"]
[]
[null,null,null,null,"Euros dépensés",null,null,null,null,"kg équ. C","kg équ. C"]
[null,"MATERIEL",null,null,null,null,null,null,null,"par €","total"]
[null,"Petites fournitures",null,null,null,null,null,null,null,0.1,{"$f":"J122*E122","v":0}]
[null,"Matériel informatique",null,null,null,null,null,null,null,0.25,{"$f":"J123*E123","v":0}]
[]
[null,null,null,null,"Masse en kg",null,null,null,null,"kg équ. C","kg équ. C"]
[null,"MATERIEL (quand la composition est connue)",null,null,null,null,null,null,null,"par kg","total"]
[null,"Plastique",null,null,null,null,null,null,null,0.65,{"$f":"J127*E127","v":0}]
[null,"Acier",null,null,null,null,null,null,null,0.87,0]
[null,"Aluminum",null,null,null,null,null,null,null,2.8,0]
[null,"Papier",null,null,null,null,null,null,null,0.55000000000000004,0]
[null,"Carton",null,null,null,null,null,null,null,0.5,0]
[null,"Verre",null,null,null,null,null,null,null,0.26,0]
[]
[]
[null,"DECHETS"]
[]
[null,null,null,null,"Masse en kg",null,null,null,null,"kg équ. C","kg équ. C"]
[null,"EMBALLAGES",null,null,null,null,null,null,null,"par kg","total"]
[null,"Matériels jetés (estimation)",null,null,null,null,null,null,null,4.0000000000000001E-3,{"$f":"J139*E139","v":0}]
[]
[]
[null,"ENERGIE"]
[]
[null,null,null,null,"Puissance de l'appareil en kW","Durée d'utilisation en heure",null,null,null,"kg équ. C","kg équ. C"]
[null,"APPAREILS HI-FI",null,null,null,null,null,null,null,"par kW.h","total"]
[null,"Sono",null,null,null,null,null,null,null,7.9000000000000001E-2,{"$f":"J146*E146","v":0}]
[null,"Lumière",null,null,null,null,null,null,null,3.9E-2,{"$f":"J147*E147","v":0}]
[]
[null,null,null,null,"Puissance de l'appareil en Watt","Durée d'utilisation en heure",null,null,null,"kg équ. C","kg équ. C"]
[null,"APPAREILS UTILISES",null,null,null,null,null,null,null,"par kW.h","total"]
[null,"Appareil 1",null,null,null,null,null,null,null,2.3E-2,{"$f":"J151*E151*F151","v":0}]
[null,"Appareil 2",null,null,null,null,null,null,null,2.3E-2,{"$f":"J152*E152*F152","v":0}]
[null,"Appareil 3",null,null,null,null,null,null,null,2.3E-2,{"$f":"J153*E153*F153","v":0}]
[null,"Appareil 4",null,null,null,null,null,null,null,2.3E-2,{"$f":"J154*E154*F154","v":0}]
[]
[null,"TRANSPORT"]
[]
[null,null,null,null,"Moyen de transport utilisé","Nombre de kilomètres parcourus",null,null,null,"kg équ. C","kg équ. C"]
[null,"APPAREILS UTILISES",null,null,null,null,null,null,null,"par km","total"]
[null,"Transport 1",null,null,"Autobus interurbain",null,"ATTENTION ! Si le matériel a été transporté avec des personnes, ne pas compter son transport.",null,null,{"$f":"VLOOKUP(E160,Paramètres!$A$155:$B$165,2,FALSE)","v":1.1010169491525425E-2},{"$f":"J160*F160","v":0}]
[null,"Transport 2",null,null,"Train en France, moyenne",null,null,null,null,{"$f":"VLOOKUP(E161,Paramètres!$A$155:$B$165,2,FALSE)","v":2.6292866228100169E-3},{"$f":"J161*F161","v":0}]
[null,"Transport 3",null,null,"Voiture en parcours mixte",null,null,null,null,{"$f":"VLOOKUP(E162,Paramètres!$A$155:$B$165,2,FALSE)","v":6.7000000000000004E-2},{"$f":"J162*F162","v":0}]
[null,"Transport 4",null,null,"Avion court courrier",null,null,null,null,{"$f":"VLOOKUP(E163,Paramètres!$A$155:$B$165,2,FALSE)","v":7.1000000000000008E-2},{"$f":"J163*F163","v":0}]
[]
[]
[]
[]
[]
[]
[null,"DEPLACEMENTS DE PERSONNES"]
[]
[null,"PARTICIPANTS"]
[]
[null,null,null,null,"PARTICIPANTS (déplacements aller-retour)",null,null,null,null,null,"kg équ. C","kg équ. C"]
[null,"TYPE DE TRANSPORT",null,null,"nombre de kms total  (véhicules)","nombre de personnes","nombre de véhicules",null,null,null,"par km parcouru",null,null,"TOTAL"]
[null,"Voiture","Voiture en parcours Extra-urbain",null,null,null,null,null,null,null,6.5000000000000002E-2,null,null,{"$f":"$E176*$K176","v":0}]
[null,null,"Voiture en parcours urbain",null,null,null,null,null,null,null,7.0000000000000007E-2,null,null,{"$f":"$E177*$K177","v":0}]
[null,null,"Voiture en parcours mixte",null,null,null,null,null,null,null,6.7000000000000004E-2,null,null,0]
[null,"2 roues","Cyclomoteurs 50 cm3",null,null,null,null,null,null,null,0.04,null,null,0]
[null,"TYPE DE TRANSPORT",null,null,"nombre de kms total (personnes)","nombre de personnes",null,null,null,null,"par km parcouru",null,null,"TOTAL"]
[null,"Train","Train en France, moyenne",null,null,null,null,null,null,null,2.6292866228100169E-3,null,null,0]
[null,null,"TGV",null,null,null,null,null,null,null,6.9976963703786944E-4,null,null,0]
[null,null,"TER",null,null,null,null,null,null,null,1.0201951837023078E-2,null,null,0]
[null,"Bus","Autobus urbain",null,null,null,null,null,null,null,2.7690000000000003E-2,null,null,0]
[null,null,"Autobus interurbain",null,null,null,null,null,null,null,1.1010169491525425E-2,null,null,0]
[null,"Avion","Court courrier classe inconnue",null,null,null,null,null,null,null,{"$f":"0.037+0.034","v":7.1000000000000008E-2},null,null,0]
[null,null,"Long courrier classe inconnue",null,null,null,null,null,null,null,{"$f":"0.038+0.035","v":7.3000000000000009E-2},null,null,0]
[null,"TOTAL",null,null,null,null,null,null,null,null,null,null,null,{"$f":"SUM(N181:N187,N176:N179)","v":0}]
[]
[]
[null,"INTERVENANTS\nsi déplacements spécifiques"]
[]
[null,null,null,null,"INTERVENANTS (déplacements aller-retour)",null,null,null,null,null,"kg équ. C","kg équ. C"]
[null,"TYPE DE TRANSPORT",null,null,"nombre de kms total  (véhicules)","nombre de personnes","nombre de véhicules",null,null,null,"par km parcouru",null,null,"TOTAL"]
[null,"Voiture","Voiture en parcours Extra-urbain",null,null,null,null,null,null,null,6.5000000000000002E-2,null,null,{"$f":"$E195*$K195","v":0}]
[null,null,"Voiture en parcours urbain",null,null,null,null,null,null,null,7.0000000000000007E-2,null,null,{"$f":"$E196*$K196","v":0}]
[null,null,"Voiture en parcours mixte",null,null,null,null,null,null,null,6.7000000000000004E-2,null,null,0]
[null,"2 roues","Cyclomoteurs 50 cm3",null,null,null,null,null,null,null,0.04,null,null,0]
[null,"TYPE DE TRANSPORT",null,null,"nombre de kms total (personnes)","nombre de personnes",null,null,null,null,"par km parcouru",null,null,"TOTAL"]
[null,"Train","Train en France, moyenne",null,null,null,null,null,null,null,2.6292866228100169E-3,null,null,0]
[null,null,"TGV",null,null,null,null,null,null,null,6.9976963703786944E-4,null,null,0]
[null,null,"TER",null,null,null,null,null,null,null,1.0201951837023078E-2,null,null,0]
[null,"Bus","Autobus urbain",null,null,null,null,null,null,null,2.7690000000000003E-2,null,null,0]
[null,null,"Autobus interurbain",null,null,null,null,null,null,null,1.1010169491525425E-2,null,null,0]
[null,"Avion","Court courrier classe inconnue",null,null,null,null,null,null,null,{"$f":"0.037+0.034","v":7.1000000000000008E-2},null,null,0]
[null,null,"Long courrier classe inconnue",null,null,null,null,null,null,null,{"$f":"0.038+0.035","v":7.3000000000000009E-2},null,null,0]
[null,"TOTAL",null,null,null,null,null,null,null,null,null,null,null,{"$f":"SUM(N200:N206,N195:N198)","v":0}]
[]
[]
[null,"ORGANISATEURS"]
[]
[null,null,null,null,"ORGANISATEURS (déplacements aller-retour)",null,null,"ORGANISATEURS (déplacements en amont)",null,null,"kg équ. C","kg équ. C"]
[null,"TYPE DE TRANSPORT",null,null,"nombre de kms total  (véhicules)","nombre de personnes","nombre de véhicules","nombre de kms total  (véhicules)","nombre de personnes","nombre de véhicules","par km parcouru","AR","en amont","TOTAL"]
[null,"Voiture","Voiture en parcours Extra-urbain",null,null,null,null,null,null,null,6.5000000000000002E-2,{"$f":"$E214*$K214","v":0},{"$f":"$H214*$K214","v":0},{"$f":"M214+L214","v":0}]
[null,null,"Voiture en parcours urbain",null,null,null,null,null,null,null,7.0000000000000007E-2,{"$f":"$E215*$K215","v":0},{"$f":"$H215*$K215","v":0},{"$f":"M215+L215","v":0}]
[null,null,"Voiture en parcours mixte",null,null,null,null,null,null,null,6.7000000000000004E-2,0,0,{"$f":"M216+L216","v":0}]
[null,"2 roues","Cyclomoteurs 50 cm3",null,null,null,null,null,null,null,0.04,0,0,{"$f":"M217+L217","v":0}]
[null,"TYPE DE TRANSPORT",null,null,"nombre de kms total (personnes)","nombre de personnes",null,"nombre de kms total (personnes)","nombre de personnes",null,"par km parcouru","AR","en amont","TOTAL"]
[null,"Train","Train en France, moyenne",null,null,null,null,null,null,null,2.6292866228100169E-3,0,0,{"$f":"M219+L219","v":0}]
[null,null,"TGV",null,null,null,null,null,null,null,6.9976963703786944E-4,0,0,{"$f":"M220+L220","v":0}]
[null,null,"TER",null,null,null,null,null,null,null,1.0201951837023078E-2,0,0,0]
[null,"Bus","Autobus urbain",null,null,null,null,null,null,null,2.7690000000000003E-2,0,0,0]
[null,null,"Autobus interurbain",null,null,null,null,null,null,null,1.1010169491525425E-2,0,0,0]
[null,"Avion","Court courrier classe inconnue",null,null,null,null,null,null,null,{"$f":"0.037+0.034","v":7.1000000000000008E-2},0,0,0]
[null,null,"Long courrier classe inconnue",null,null,null,null,null,null,null,{"$f":"0.038+0.035","v":7.3000000000000009E-2},0,0,0]
[null,"TOTAL",null,null,null,null,null,null,null,null,null,{"$f":"SUM(L219:L225,L214:L217)","v":0},{"$f":"SUM(M219:M225,M214:M217)","v":0},{"$f":"SUM(N219:N225,N214:N217)","v":0}]
[]
[]
[]
[]
[]
[]
[null,"COMMUNICATION"]
[]
[null,"SUPPORTS DE COMMUNICATION"]
[]
[null,null,null,null,"Quantité",null,"kg équ. C","kg équ. C"]
[null,"AFFICHES/FLYERS",null,null,null,null,"par unité","total"]
[null,"Format",null,"A0",null,null,{"$f":"0.36*0.135/0.47","v":0.10340425531914896},{"$f":"E239*G239","v":0}]
[null,null,null,"A1",null,null,{"$f":"G239/2","v":5.1702127659574479E-2},0]
[null,null,null,"A2",null,null,2.5851063829787239E-2,0]
[null,null,null,"A3",null,null,1.292553191489362E-2,0,null,"Avez-vous choisi une éco-impression ?",null,null,"Non"]
[null,null,null,"A4",null,null,6.4627659574468099E-3,0]
[null,null,null,"A5",null,null,3.2313829787234049E-3,0]
[null,null,null,"A6",null,null,1.6156914893617025E-3,0]
[null,null,null,"autre (en m²)",null,null,{"$f":"G239","v":0.10340425531914896},0]
[null,"KAKEMONO",null,null,null,null,0.432,0]
[null,"DRAPEAU",null,null,null,null,1.851,0]
[null,"BANDEROLE",null,null,null,null,0.4,0]
[null,"TOTAL",null,null,null,null,null,{"$f":"IF(M242=\"OUI\",0.7*SUM(H239:H246)+SUM(H247:H249),SUM(H239:H249))","v":0}]
[]
[null,"SITE INTERNET + Mails"]
[]
[null,null,null,null,null,null,"kg équ. C","kg équ. C"]
[null,null,null,null,null,null,"par unité","total"]
[null,"Avez-vous créé un site web pour l'évènement ?",null,null,"non",null,null,{"$f":"IF(E256=\"oui\",K256+K257,K257)","v":0},null,null,0.57499999999999996]
[null,"Combien y-a-t'il eu de consultations ?",null,null,null,null,null,null,null,9.6000000000000002E-4,{"$f":"E257*J257","v":0}]
[null,"Combien de destinataires ont reçu un mail",null,null,null,null,3.0000000000000001E-3,{"$f":"E258*G258","v":0}]
[null,"TOTAL",null,null,null,null,null,{"$f":"SUM(H256:H258)","v":0}]
[]
[]
[null,"GOODIES/ECHANTILLONS"]
[]
[null,null,null,null,"Quantité",null,"kg équ. C","kg équ. C"]
[null,null,null,null,null,null,"par unité","total"]
[null,"                  Petites fournitures",null,null,null,null,0.1,{"$f":"E266*G266","v":0}]
[null,"                  Eco-cup",25,"cL",null,null,{"$f":"0.021*C267/25","v":2.1000000000000001E-2},{"$f":"E267*G267","v":0}]
[null,"                  T-shirt",null,null,null,null,0.28399999999999997,{"$f":"E268*G268","v":0}]
[null,"                  Bouteilles de shampooing/gel douche",null,null,null,null,0.16,{"$f":"E269*G269","v":0}]
[null,"TOTAL",null,null,null,null,null,{"$f":"SUM(H266:H269)","v":0}]
[]
[null,"REUNIONS D'INFORMATION"]
[]
[null,null,null,null,"LIEUX"]
[null,"NB : Réutiliser la partie Lieu-Hébergement ci-dessus pour calculer les émissions de GES associées à vos lieux de réunions",null,null,"NOM","kgeq. C","NOM","kgeq. C"]
[null,null,null,null,"LIEU 1",null,"LIEU 3"]
[null,"LIEU-HEBERGEMENT",null,null,"LIEU 2",null,"LIEU 4"]
[null,null,null,null,"TOTAL",{"$f":"F276+F277+H276+H277","v":0}]
[]
[]
[]
[]
[]
[]
[null,"TOTALISATEUR"]
[]
[]
[null,"RESTAURATION",null,{"$f":"SUM($D$289:$D$292)","v":0},null,null,"POSTES",null,null,"EMISSIONS"]
[null,"type d'alimentation",null,{"$f":"SUM(K63:K66)+SUM(K70:K72)+SUM(K76)","v":0}]
[null,"déchets",null,{"$f":"SUM(K83:K86)+SUM(K90:K91)","v":0}]
[null,"énergie",null,{"$f":"SUM(K97:K100)","v":0},null,null,null,null,null,"kg équ. C","kg équ. CO2","% du total"]
[null,"transport",null,{"$f":"SUM(K106:K109)","v":0},null,null,"Restauration",null,null,{"$f":"D288","v":0},{"$f":"J292*44/12","v":0},{"$f":"IF($J$298=0, \"\",J292/$J$298)","v":""}]
[null,null,null,null,null,null,"Lieu",null,null,{"$f":"D294","v":0},0,""]
[null,"LIEU",null,{"$f":"SUM(Empreinte_Carbone!K22:K25)+SUM(Empreinte_Carbone!M22:M25)","v":0},null,null,"Hébergement",null,null,{"$f":"D296","v":0},0,""]
[null,null,null,null,null,null,"Matériels",null,null,{"$f":"D298","v":0},0,""]
[null,"HEBERGEMENT",null,{"$f":"SUM(Empreinte_Carbone!O22:O25)+SUM(Empreinte_Carbone!Q22:Q25)","v":0},null,null,"Déplacements de personnes",null,null,{"$f":"D304","v":0},0,""]
[null,null,null,null,null,null,"Communication",null,null,{"$f":"D309","v":0},0,""]
[null,"MATERIELS",null,{"$f":"SUM($D$299:$D$302)","v":0},null,null,"TOTAL",null,null,{"$f":"SUM(J292:J297)","v":0},{"$f":"SUM(K292:K297)","v":0}]
[null,"type de matériel",null,{"$f":"SUM(K122:K123)+SUM(K127:K132)","v":0}]
[null,"déchets",null,{"$f":"K139","v":0}]
[null,"énergie",null,{"$f":"SUM(K146:K147)+SUM(K151:K154)","v":0}]
[null,"transport",null,{"$f":"SUM(K160:K163)","v":0}]
[]
[null,"DEPLACEMENT DE PERSONNES",null,{"$f":"SUM($D$305:$D$307)","v":0}]
[null,"déplacements des participants",null,{"$f":"N188","v":0}]
[null,"déplacements des intervenants",null,{"$f":"N207","v":0}]
[null,"déplacements des organisateurs",null,{"$f":"N226","v":0}]
[]
[null,"COMMUNICATION",null,{"$f":"SUM($D$310:$D$313)","v":0}]
[null,"supports de communication",null,{"$f":"H250","v":0}]
[null,"Internet",null,{"$f":"H259","v":0}]
[null,"goodies/échantillon",null,{"$f":"H270","v":0}]
[null,"réunions d'information",null,{"$f":"F278","v":0}]

{"sheet":"Planning","index":5,"n_rows":100,"n_cols":67,"rows_kept":100,"cut":false,"hidden":false,"merged":[[6,1,8,1],[6,3,6,5],[6,7,6,11],[4,1,4,66]]}
[]
[]
[]
[]
[null,"CALENDRIER"]
[]
[null,"PLANNING",null,"NE PAS REMPLIR",null,null,"Année ","A REMPLIR",null,null,null,null,null,"Mois",1,{"$f":"IF(MONTH(P9)=MONTH(O9),\"\",MAX($O7:O7)+1)","v":""},{"$f":"IF(MONTH(Q9)=MONTH(P9),\"\",MAX($O7:P7)+1)","v":""},{"$f":"IF(MONTH(R9)=MONTH(Q9),\"\",MAX($O7:Q7)+1)","v":""},{"$f":"IF(MONTH(S9)=MONTH(R9),\"\",MAX($O7:R7)+1)","v":""},{"$f":"IF(MONTH(T9)=MONTH(S9),\"\",MAX($O7:S7)+1)","v":2},{"$f":"IF(MONTH(U9)=MONTH(T9),\"\",MAX($O7:T7)+1)","v":""},{"$f":"IF(MONTH(V9)=MONTH(U9),\"\",MAX($O7:U7)+1)","v":""},{"$f":"IF(MONTH(W9)=MONTH(V9),\"\",MAX($O7:V7)+1)","v":""},{"$f":"IF(MONTH(X9)=MONTH(W9),\"\",MAX($O7:W7)+1)","v":3},{"$f":"IF(MONTH(Y9)=MONTH(X9),\"\",MAX($O7:X7)+1)","v":""},{"$f":"IF(MONTH(Z9)=MONTH(Y9),\"\",MAX($O7:Y7)+1)","v":""},{"$f":"IF(MONTH(AA9)=MONTH(Z9),\"\",MAX($O7:Z7)+1)","v":""},{"$f":"IF(MONTH(AB9)=MONTH(AA9),\"\",MAX($O7:AA7)+1)","v":4},{"$f":"IF(MONTH(AC9)=MONTH(AB9),\"\",MAX($O7:AB7)+1)","v":""},{"$f":"IF(MONTH(AD9)=MONTH(AC9),\"\",MAX($O7:AC7)+1)","v":""},{"$f":"IF(MONTH(AE9)=MONTH(AD9),\"\",MAX($O7:AD7)+1)","v":""},{"$f":"IF(MONTH(AF9)=MONTH(AE9),\"\",MAX($O7:AE7)+1)","v":""},{"$f":"IF(MONTH(AG9)=MONTH(AF9),\"\",MAX($O7:AF7)+1)","v":5},{"$f":"IF(MONTH(AH9)=MONTH(AG9),\"\",MAX($O7:AG7)+1)","v":""},{"$f":"IF(MONTH(AI9)=MONTH(AH9),\"\",MAX($O7:AH7)+1)","v":""},{"$f":"IF(MONTH(AJ9)=MONTH(AI9),\"\",MAX($O7:AI7)+1)","v":""},{"$f":"IF(MONTH(AK9)=MONTH(AJ9),\"\",MAX($O7:AJ7)+1)","v":6},{"$f":"IF(MONTH(AL9)=MONTH(AK9),\"\",MAX($O7:AK7)+1)","v":""},{"$f":"IF(MONTH(AM9)=MONTH(AL9),\"\",MAX($O7:AL7)+1)","v":""},{"$f":"IF(MONTH(AN9)=MONTH(AM9),\"\",MAX($O7:AM7)+1)","v":""},{"$f":"IF(MONTH(AO9)=MONTH(AN9),\"\",MAX($O7:AN7)+1)","v":7},{"$f":"IF(MONTH(AP9)=MONTH(AO9),\"\",MAX($O7:AO7)+1)","v":""},{"$f":"IF(MONTH(AQ9)=MONTH(AP9),\"\",MAX($O7:AP7)+1)","v":""},{"$f":"IF(MONTH(AR9)=MONTH(AQ9),\"\",MAX($O7:AQ7)+1)","v":""},{"$f":"IF(MONTH(AS9)=MONTH(AR9),\"\",MAX($O7:AR7)+1)","v":""},{"$f":"IF(MONTH(AT9)=MONTH(AS9),\"\",MAX($O7:AS7)+1)","v":8},{"$f":"IF(MONTH(AU9)=MONTH(AT9),\"\",MAX($O7:AT7)+1)","v":""},{"$f":"IF(MONTH(AV9)=MONTH(AU9),\"\",MAX($O7:AU7)+1)","v":""},{"$f":"IF(MONTH(AW9)=MONTH(AV9),\"\",MAX($O7:AV7)+1)","v":""},{"$f":"IF(MONTH(AX9)=MONTH(AW9),\"\",MAX($O7:AW7)+1)","v":9},{"$f":"IF(MONTH(AY9)=MONTH(AX9),\"\",MAX($O7:AX7)+1)","v":""},{"$f":"IF(MONTH(AZ9)=MONTH(AY9),\"\",MAX($O7:AY7)+1)","v":""},{"$f":"IF(MONTH(BA9)=MONTH(AZ9),\"\",MAX($O7:AZ7)+1)","v":""},{"$f":"IF(MONTH(BB9)=MONTH(BA9),\"\",MAX($O7:BA7)+1)","v":10},{"$f":"IF(MONTH(BC9)=MONTH(BB9),\"\",MAX($O7:BB7)+1)","v":""},{"$f":"IF(MONTH(BD9)=MONTH(BC9),\"\",MAX($O7:BC7)+1)","v":""},{"$f":"IF(MONTH(BE9)=MONTH(BD9),\"\",MAX($O7:BD7)+1)","v":""},{"$f":"IF(MONTH(BF9)=MONTH(BE9),\"\",MAX($O7:BE7)+1)","v":""},{"$f":"IF(MONTH(BG9)=MONTH(BF9),\"\",MAX($O7:BF7)+1)","v":11},{"$f":"IF(MONTH(BH9)=MONTH(BG9),\"\",MAX($O7:BG7)+1)","v":""},{"$f":"IF(MONTH(BI9)=MONTH(BH9),\"\",MAX($O7:BH7)+1)","v":""},{"$f":"IF(MONTH(BJ9)=MONTH(BI9),\"\",MAX($O7:BI7)+1)","v":""},{"$f":"IF(MONTH(BK9)=MONTH(BJ9),\"\",MAX($O7:BJ7)+1)","v":12},{"$f":"IF(MONTH(BL9)=MONTH(BK9),\"\",MAX($O7:BK7)+1)","v":""},{"$f":"IF(MONTH(BM9)=MONTH(BL9),\"\",MAX($O7:BL7)+1)","v":""},{"$f":"IF(MONTH(BN9)=MONTH(BM9),\"\",MAX($O7:BM7)+1)","v":""},{"$f":"IF(MONTH(BO9)=MONTH(BN9),\"\",MAX($O7:BN7)+1)","v":""}]
[null,null,"Num.","Début tâche","Fin tâche","Durée","2013-01-01","Précédente","décalage","Début tâche","Fin tâche","Durée",null,"Semaine",1,2,3,4,5,6,7,8,9,10,11,12,13,14,15,16,17,18,19,20,21,22,23,24,25,26,27,28,29,30,31,32,33,34,35,36,37,38,39,40,41,42,43,44,45,46,47,48,49,50,51,52,53]
[null,null,null,null,null,null,null,null,null,null,null,null,null,null,{"$f":"G8","v":"2013-01-01"},{"$f":"O9+7","v":"2013-01-08"},{"$f":"P9+7","v":"2013-01-15"},"2013-01-22","2013-01-29","2013-02-05","2013-02-12","2013-02-19","2013-02-26","2013-03-05","2013-03-12","2013-03-19","2013-03-26","2013-04-02","2013-04-09","2013-04-16","2013-04-23","2013-04-30","2013-05-07","2013-05-14","2013-05-21","2013-05-28","2013-06-04","2013-06-11","2013-06-18","2013-06-25","2013-07-02","2013-07-09","2013-07-16","2013-07-23","2013-07-30","2013-08-06","2013-08-13","2013-08-20","2013-08-27","2013-09-03","2013-09-10","2013-09-17","2013-09-24","2013-10-01","2013-10-08","2013-10-15","2013-10-22","2013-10-29","2013-11-05","2013-11-12","2013-11-19","2013-11-26","2013-12-03","2013-12-10","2013-12-17","2013-12-24","2013-12-31"]
[null,0,null,null,null,null,"Responsable"]
[null,"Phase 1",{"$f":"IF(OR(B11=\"\",B11=0),\"\",MAX(C$7:C10)+1)","v":1},{"$f":"MIN(D12:D301)","v":"00:00:00"},{"$f":"MAX(E12:E301)","v":"00:00:00"},{"$f":"E11-D11","v":0},null,null,null,null,null,null,null,null,{"$f":"IF(AND(O$9>=$D11,O$9<=$E11),IF(O10=0,2,1),IF($B11=\"\",\"\",IF($B11=0,0,\"\")))","v":""},{"$f":"IF(AND(P$9>=$D11,P$9<=$E11),IF(P10=0,2,1),IF($B11=\"\",\"\",IF($B11=0,0,\"\")))","v":""},"","","","","","","","","","","","","","","","","","","","","","","","","","","","","","","","","","","","","","","","","","","","","","","","","","",""]
[null,"Etape 1",{"$f":"IF(OR(B12=\"\",B12=0),\"\",MAX(C$7:C11)+1)","v":2},{"$f":"IF(J12<>0,J12,IF(AND(K12<>0,L12<>0),K12-L12,IF(H12<>0,VLOOKUP(H12,C:E,3,FALSE)+I12,\"\")))","v":""},{"$f":"IF(K12<>0,K12,IF(L12<>0,D12+F12,\"\"))","v":""},{"$f":"IF(L12<>0,L12,IF(K12<>0,E12-D12,\"\"))","v":""},null,null,null,null,null,null,null,null,{"$f":"IF(AND(O$9>=$D12,O$9<=$E12),IF(O11=0,2,1),IF($B12=\"\",\"\",IF($B12=0,0,\"\")))","v":""},"","","","","","","","","","","","","","","","","","","","","","","","","","","","","","","","","","","","","","","","","","","","","","","","","","","",""]
[null,"Etape 2",{"$f":"IF(OR(B13=\"\",B13=0),\"\",MAX(C$7:C12)+1)","v":3},"","","",null,null,null,null,null,null,null,null,"","","","","","","","","","","","","","","","","","","","","","","","","","","","","","","","","","","","","","","","","","","","","","","","","","","","",""]
[null,"Etape 3",{"$f":"IF(OR(B14=\"\",B14=0),\"\",MAX(C$7:C13)+1)","v":4},"","","",null,null,null,null,null,null,null,null,"","","","","","","","","","","","","","","","","","","","","","","","","","","","","","","","","","","","","","","","","","","","","","","","","","","","",""]
[null,"Etape 4",{"$f":"IF(OR(B15=\"\",B15=0),\"\",MAX(C$7:C14)+1)","v":5},"","","",null,null,null,null,null,null,null,null,"","","","","","","","","","","","","","","","","","","","","","","","","","","","","","","","","","","","","","","","","","","","","","","","",{"$f":"IF(AND(BK$9>=$D15,BK$9<=$E15),IF(BK14=0,2,1),IF($B15=\"\",\"\",IF($B15=0,0,\"\")))","v":""},{"$f":"IF(AND(BL$9>=$D15,BL$9<=$E15),IF(BL14=0,2,1),IF($B15=\"\",\"\",IF($B15=0,0,\"\")))","v":""},{"$f":"IF(AND(BM$9>=$D15,BM$9<=$E15),IF(BM14=0,2,1),IF($B15=\"\",\"\",IF($B15=0,0,\"\")))","v":""},{"$f":"IF(AND(BN$9>=$D15,BN$9<=$E15),IF(BN14=0,2,1),IF($B15=\"\",\"\",IF($B15=0,0,\"\")))","v":""},{"$f":"IF(AND(BO$9>=$D15,BO$9<=$E15),IF(BO14=0,2,1),IF($B15=\"\",\"\",IF($B15=0,0,\"\")))","v":""}]
[null,0,{"$f":"IF(OR(B16=\"\",B16=0),\"\",MAX(C$7:C15)+1)","v":""},"","","",null,null,null,null,null,null,null,null,0,{"$f":"IF(AND(P$9>=$D16,P$9<=$E16),IF(P15=0,2,1),IF($B16=\"\",\"\",IF($B16=0,0,\"\")))","v":0},{"$f":"IF(AND(Q$9>=$D16,Q$9<=$E16),IF(Q15=0,2,1),IF($B16=\"\",\"\",IF($B16=0,0,\"\")))","v":0},{"$f":"IF(AND(R$9>=$D16,R$9<=$E16),IF(R15=0,2,1),IF($B16=\"\",\"\",IF($B16=0,0,\"\")))","v":0},{"$f":"IF(AND(S$9>=$D16,S$9<=$E16),IF(S15=0,2,1),IF($B16=\"\",\"\",IF($B16=0,0,\"\")))","v":0},{"$f":"IF(AND(T$9>=$D16,T$9<=$E16),IF(T15=0,2,1),IF($B16=\"\",\"\",IF($B16=0,0,\"\")))","v":0},{"$f":"IF(AND(U$9>=$D16,U$9<=$E16),IF(U15=0,2,1),IF($B16=\"\",\"\",IF($B16=0,0,\"\")))","v":0},{"$f":"IF(AND(V$9>=$D16,V$9<=$E16),IF(V15=0,2,1),IF($B16=\"\",\"\",IF($B16=0,0,\"\")))","v":0},{"$f":"IF(AND(W$9>=$D16,W$9<=$E16),IF(W15=0,2,1),IF($B16=\"\",\"\",IF($B16=0,0,\"\")))","v":0},{"$f":"IF(AND(X$9>=$D16,X$9<=$E16),IF(X15=0,2,1),IF($B16=\"\",\"\",IF($B16=0,0,\"\")))","v":0},{"$f":"IF(AND(Y$9>=$D16,Y$9<=$E16),IF(Y15=0,2,1),IF($B16=\"\",\"\",IF($B16=0,0,\"\")))","v":0},{"$f":"IF(AND(Z$9>=$D16,Z$9<=$E16),IF(Z15=0,2,1),IF($B16=\"\",\"\",IF($B16=0,0,\"\")))","v":0},{"$f":"IF(AND(AA$9>=$D16,AA$9<=$E16),IF(AA15=0,2,1),IF($B16=\"\",\"\",IF($B16=0,0,\"\")))","v":0},{"$f":"IF(AND(AB$9>=$D16,AB$9<=$E16),IF(AB15=0,2,1),IF($B16=\"\",\"\",IF($B16=0,0,\"\")))","v":0},{"$f":"IF(AND(AC$9>=$D16,AC$9<=$E16),IF(AC15=0,2,1),IF($B16=\"\",\"\",IF($B16=0,0,\"\")))","v":0},{"$f":"IF(AND(AD$9>=$D16,AD$9<=$E16),IF(AD15=0,2,1),IF($B16=\"\",\"\",IF($B16=0,0,\"\")))","v":0},{"$f":"IF(AND(AE$9>=$D16,AE$9<=$E16),IF(AE15=0,2,1),IF($B16=\"\",\"\",IF($B16=0,0,\"\")))","v":0},{"$f":"IF(AND(AF$9>=$D16,AF$9<=$E16),IF(AF15=0,2,1),IF($B16=\"\",\"\",IF($B16=0,0,\"\")))","v":0},{"$f":"IF(AND(AG$9>=$D16,AG$9<=$E16),IF(AG15=0,2,1),IF($B16=\"\",\"\",IF($B16=0,0,\"\")))","v":0},{"$f":"IF(AND(AH$9>=$D16,AH$9<=$E16),IF(AH15=0,2,1),IF($B16=\"\",\"\",IF($B16=0,0,\"\")))","v":0},{"$f":"IF(AND(AI$9>=$D16,AI$9<=$E16),IF(AI15=0,2,1),IF($B16=\"\",\"\",IF($B16=0,0,\"\")))","v":0},{"$f":"IF(AND(AJ$9>=$D16,AJ$9<=$E16),IF(AJ15=0,2,1),IF($B16=\"\",\"\",IF($B16=0,0,\"\")))","v":0},{"$f":"IF(AND(AK$9>=$D16,AK$9<=$E16),IF(AK15=0,2,1),IF($B16=\"\",\"\",IF($B16=0,0,\"\")))","v":0},{"$f":"IF(AND(AL$9>=$D16,AL$9<=$E16),IF(AL15=0,2,1),IF($B16=\"\",\"\",IF($B16=0,0,\"\")))","v":0},{"$f":"IF(AND(AM$9>=$D16,AM$9<=$E16),IF(AM15=0,2,1),IF($B16=\"\",\"\",IF($B16=0,0,\"\")))","v":0},{"$f":"IF(AND(AN$9>=$D16,AN$9<=$E16),IF(AN15=0,2,1),IF($B16=\"\",\"\",IF($B16=0,0,\"\")))","v":0},{"$f":"IF(AND(AO$9>=$D16,AO$9<=$E16),IF(AO15=0,2,1),IF($B16=\"\",\"\",IF($B16=0,0,\"\")))","v":0},{"$f":"IF(AND(AP$9>=$D16,AP$9<=$E16),IF(AP15=0,2,1),IF($B16=\"\",\"\",IF($B16=0,0,\"\")))","v":0},{"$f":"IF(AND(AQ$9>=$D16,AQ$9<=$E16),IF(AQ15=0,2,1),IF($B16=\"\",\"\",IF($B16=0,0,\"\")))","v":0},{"$f":"IF(AND(AR$9>=$D16,AR$9<=$E16),IF(AR15=0,2,1),IF($B16=\"\",\"\",IF($B16=0,0,\"\")))","v":0},{"$f":"IF(AND(AS$9>=$D16,AS$9<=$E16),IF(AS15=0,2,1),IF($B16=\"\",\"\",IF($B16=0,0,\"\")))","v":0},{"$f":"IF(AND(AT$9>=$D16,AT$9<=$E16),IF(AT15=0,2,1),IF($B16=\"\",\"\",IF($B16=0,0,\"\")))","v":0},{"$f":"IF(AND(AU$9>=$D16,AU$9<=$E16),IF(AU15=0,2,1),IF($B16=\"\",\"\",IF($B16=0,0,\"\")))","v":0},{"$f":"IF(AND(AV$9>=$D16,AV$9<=$E16),IF(AV15=0,2,1),IF($B16=\"\",\"\",IF($B16=0,0,\"\")))","v":0},{"$f":"IF(AND(AW$9>=$D16,AW$9<=$E16),IF(AW15=0,2,1),IF($B16=\"\",\"\",IF($B16=0,0,\"\")))","v":0},{"$f":"IF(AND(AX$9>=$D16,AX$9<=$E16),IF(AX15=0,2,1),IF($B16=\"\",\"\",IF($B16=0,0,\"\")))","v":0},{"$f":"IF(AND(AY$9>=$D16,AY$9<=$E16),IF(AY15=0,2,1),IF($B16=\"\",\"\",IF($B16=0,0,\"\")))","v":0},{"$f":"IF(AND(AZ$9>=$D16,AZ$9<=$E16),IF(AZ15=0,2,1),IF($B16=\"\",\"\",IF($B16=0,0,\"\")))","v":0},{"$f":"IF(AND(BA$9>=$D16,BA$9<=$E16),IF(BA15=0,2,1),IF($B16=\"\",\"\",IF($B16=0,0,\"\")))","v":0},{"$f":"IF(AND(BB$9>=$D16,BB$9<=$E16),IF(BB15=0,2,1),IF($B16=\"\",\"\",IF($B16=0,0,\"\")))","v":0},{"$f":"IF(AND(BC$9>=$D16,BC$9<=$E16),IF(BC15=0,2,1),IF($B16=\"\",\"\",IF($B16=0,0,\"\")))","v":0},{"$f":"IF(AND(BD$9>=$D16,BD$9<=$E16),IF(BD15=0,2,1),IF($B16=\"\",\"\",IF($B16=0,0,\"\")))","v":0},{"$f":"IF(AND(BE$9>=$D16,BE$9<=$E16),IF(BE15=0,2,1),IF($B16=\"\",\"\",IF($B16=0,0,\"\")))","v":0},{"$f":"IF(AND(BF$9>=$D16,BF$9<=$E16),IF(BF15=0,2,1),IF($B16=\"\",\"\",IF($B16=0,0,\"\")))","v":0},{"$f":"IF(AND(BG$9>=$D16,BG$9<=$E16),IF(BG15=0,2,1),IF($B16=\"\",\"\",IF($B16=0,0,\"\")))","v":0},{"$f":"IF(AND(BH$9>=$D16,BH$9<=$E16),IF(BH15=0,2,1),IF($B16=\"\",\"\",IF($B16=0,0,\"\")))","v":0},{"$f":"IF(AND(BI$9>=$D16,BI$9<=$E16),IF(BI15=0,2,1),IF($B16=\"\",\"\",IF($B16=0,0,\"\")))","v":0},{"$f":"IF(AND(BJ$9>=$D16,BJ$9<=$E16),IF(BJ15=0,2,1),IF($B16=\"\",\"\",IF($B16=0,0,\"\")))","v":0},0,0,0,0,0]
[null,"Phase 2",{"$f":"IF(OR(B17=\"\",B17=0),\"\",MAX(C$7:C16)+1)","v":6},"","",{"$f":"IF(L17<>0,L17,IF(K17<>0,E17-D17,\"\"))","v":""},null,null,null,null,null,null,null,null,"","","","","","","","","","","","","","","","","","","","","","","","","","","","","","","","","","","","","","","","","","","","","","","","","","","","",""]
[null,"Etape 5",{"$f":"IF(OR(B18=\"\",B18=0),\"\",MAX(C$7:C17)+1)","v":7},"","","",null,null,null,null,null,null,null,null,"","","","","","","","","","","","","","","","","","","","","","","","","","","","","","","","","","","","","","","","","","","","","","","","","","","","",""]
[null,"Etape 6",{"$f":"IF(OR(B19=\"\",B19=0),\"\",MAX(C$7:C18)+1)","v":8},"","","",null,null,null,null,null,null,null,null,"","","","","","","","","","","","","","","","","","","","","","","","","","","","","","","","","","","","","","","","","","","","","","","","","","","","",""]
[null,null,{"$f":"IF(OR(B20=\"\",B20=0),\"\",MAX(C$7:C19)+1)","v":""},"","","",null,null,null,null,null,null,null,null,"","","","","","","","","","","","","","","","","","","","","","","","","","","","","","","","","","","","","","","","","","","","","","","","","","","","",""]
[null,null,{"$f":"IF(OR(B21=\"\",B21=0),\"\",MAX(C$7:C20)+1)","v":""},"","","",null,null,null,null,null,null,null,null,"","","","","","","","","","","","","","","","","","","","","","","","","","","","","","","","","","","","","","","","","","","","","","","","","","","","",""]
[null,null,{"$f":"IF(OR(B22=\"\",B22=0),\"\",MAX(C$7:C21)+1)","v":""},"","","",null,null,null,null,null,null,null,null,"","","","","","","","","","","","","","","","","","","","","","","","","","","","","","","","","","","","","","","","","","","","","","","","","","","","",""]
[null,null,{"$f":"IF(OR(B23=\"\",B23=0),\"\",MAX(C$7:C22)+1)","v":""},"","","",null,null,null,null,null,null,null,null,"","","","","","","","","","","","","","","","","","","","","","","","","","","","","","","","","","","","","","","","","","","","","","","","","","","","",""]
[null,null,{"$f":"IF(OR(B24=\"\",B24=0),\"\",MAX(C$7:C23)+1)","v":""},"","","",null,null,null,null,null,null,null,null,"","","","","","","","","","","","","","","","","","","","","","","","","","","","","","","","","","","","","","","","","","","","","","","","","","","","",""]
[null,null,{"$f":"IF(OR(B25=\"\",B25=0),\"\",MAX(C$7:C24)+1)","v":""},"","","",null,null,null,null,null,null,null,null,"","","","","","","","","","","","","","","","","","","","","","","","","","","","","","","","","","","","","","","","","","","","","","","","","","","","",""]
[null,null,{"$f":"IF(OR(B26=\"\",B26=0),\"\",MAX(C$7:C25)+1)","v":""},"","","",null,null,null,null,null,null,null,null,"","","","","","","","","","","","","","","","","","","","","","","","","","","","","","","","","","","","","","","","","","","","","","","","","","","","",""]
[null,null,{"$f":"IF(OR(B27=\"\",B27=0),\"\",MAX(C$7:C26)+1)","v":""},"","","",null,null,null,null,null,null,null,null,"","","","","","","","","","","","","","","","","","","","","","","","","","","","","","","","","","","","","","","","","","","","","","","","","","","","",""]
[null,null,{"$f":"IF(OR(B28=\"\",B28=0),\"\",MAX(C$7:C27)+1)","v":""},"","","",null,null,null,null,null,null,null,null,"","","","","","","","","","","","","","","","","","","","","","","","","","","","","","","","","","","","","","","","","","","","","","","","","","","","",""]
[null,null,{"$f":"IF(OR(B29=\"\",B29=0),\"\",MAX(C$7:C28)+1)","v":""},"","","",null,null,null,null,null,null,null,null,"","","","","","","","","","","","","","","","","","","","","","","","","","","","","","","","","","","","","","","","","","","","","","","","","","","","",""]
[null,null,{"$f":"IF(OR(B30=\"\",B30=0),\"\",MAX(C$7:C29)+1)","v":""},"","","",null,null,null,null,null,null,null,null,"","","","","","","","","","","","","","","","","","","","","","","","","","","","","","","","","","","","","","","","","","","","","","","","","","","","",""]
[null,null,{"$f":"IF(OR(B31=\"\",B31=0),\"\",MAX(C$7:C30)+1)","v":""},"","","",null,null,null,null,null,null,null,null,"","","","","","","","","","","","","","","","","","","","","","","","","","","","","","","","","","","","","","","","","","","","","","","","","","","","",""]
[null,null,{"$f":"IF(OR(B32=\"\",B32=0),\"\",MAX(C$7:C31)+1)","v":""},"","","",null,null,null,null,null,null,null,null,"","","","","","","","","","","","","","","","","","","","","","","","","","","","","","","","","","","","","","","","","","","","","","","","","","","","",""]
[null,null,{"$f":"IF(OR(B33=\"\",B33=0),\"\",MAX(C$7:C32)+1)","v":""},"","","",null,null,null,null,null,null,null,null,"","","","","","","","","","","","","","","","","","","","","","","","","","","","","","","","","","","","","","","","","","","","","","","","","","","","",""]
[null,null,{"$f":"IF(OR(B34=\"\",B34=0),\"\",MAX(C$7:C33)+1)","v":""},"","","",null,null,null,null,null,null,null,null,"","","","","","","","","","","","","","","","","","","","","","","","","","","","","","","","","","","","","","","","","","","","","","","","","","","","",""]
[null,null,{"$f":"IF(OR(B35=\"\",B35=0),\"\",MAX(C$7:C34)+1)","v":""},{"$f":"IF(J35<>0,J35,IF(AND(K35<>0,L35<>0),K35-L35,IF(H35<>0,VLOOKUP(H35,C:E,3,FALSE)+I35,\"\")))","v":""},{"$f":"IF(K35<>0,K35,IF(L35<>0,D35+F35,\"\"))","v":""},{"$f":"IF(L35<>0,L35,IF(K35<>0,E35-D35,\"\"))","v":""},null,null,null,null,null,null,null,null,"","","","","","","","","","","","","","","","","","","","","","","","","","","","","","","","","","","","","","","","","","","","","","","","","","","","",""]
[null,null,{"$f":"IF(OR(B36=\"\",B36=0),\"\",MAX(C$7:C35)+1)","v":""},"","","",null,null,null,null,null,null,null,null,"","","","","","","","","","","","","","","","","","","","","","","","","","","","","","","","","","","","","","","","","","","","","","","","","","","","",""]
[null,null,{"$f":"IF(OR(B37=\"\",B37=0),\"\",MAX(C$7:C36)+1)","v":""},"","","",null,null,null,null,null,null,null,null,"","","","","","","","","","","","","","","","","","","","","","","","","","","","","","","","","","","","","","","","","","","","","","","","","","","","",""]
[null,null,{"$f":"IF(OR(B38=\"\",B38=0),\"\",MAX(C$7:C37)+1)","v":""},"","","",null,null,null,null,null,null,null,null,"","","","","","","","","","","","","","","","","","","","","","","","","","","","","","","","","","","","","","","","","","","","","","","","","","","","",""]
[null,null,{"$f":"IF(OR(B39=\"\",B39=0),\"\",MAX(C$7:C38)+1)","v":""},"","","",null,null,null,null,null,null,null,null,"","","","","","","","","","","","","","","","","","","","","","","","","","","","","","","","","","","","","","","","","","","","","","","","","","","","",""]
[null,null,{"$f":"IF(OR(B40=\"\",B40=0),\"\",MAX(C$7:C39)+1)","v":""},"","","",null,null,null,null,null,null,null,null,"","","","","","","","","","","","","","","","","","","","","","","","","","","","","","","","","","","","","","","","","","","","","","","","","","","","",""]
[null,null,{"$f":"IF(OR(B41=\"\",B41=0),\"\",MAX(C$7:C40)+1)","v":""},"","","",null,null,null,null,null,null,null,null,"","","","","","","","","","","","","","","","","","","","","","","","","","","","","","","","","","","","","","","","","","","","","","","","","","","","",""]
[null,null,{"$f":"IF(OR(B42=\"\",B42=0),\"\",MAX(C$7:C41)+1)","v":""},"","","",null,null,null,null,null,null,null,null,"","","","","","","","","","","","","","","","","","","","","","","","","","","","","","","","","","","","","","","","","","","","","","","","","","","","",""]
[null,null,{"$f":"IF(OR(B43=\"\",B43=0),\"\",MAX(C$7:C42)+1)","v":""},"","","",null,null,null,null,null,null,null,null,"","","","","","","","","","","","","","","","","","","","","","","","","","","","","","","","","","","","","","","","","","","","","","","","","","","","",""]
[null,null,{"$f":"IF(OR(B44=\"\",B44=0),\"\",MAX(C$7:C43)+1)","v":""},"","","",null,null,null,null,null,null,null,null,"","","","","","","","","","","","","","","","","","","","","","","","","","","","","","","","","","","","","","","","","","","","","","","","","","","","",""]
[null,null,{"$f":"IF(OR(B45=\"\",B45=0),\"\",MAX(C$7:C44)+1)","v":""},"","","",null,null,null,null,null,null,null,null,"","","","","","","","","","","","","","","","","","","","","","","","","","","","","","","","","","","","","","","","","","","","","","","","","","","","",""]
[null,null,{"$f":"IF(OR(B46=\"\",B46=0),\"\",MAX(C$7:C45)+1)","v":""},"","","",null,null,null,null,null,null,null,null,"","","","","","","","","","","","","","","","","","","","","","","","","","","","","","","","","","","","","","","","","","","","","","","","","","","","",""]
[null,null,{"$f":"IF(OR(B47=\"\",B47=0),\"\",MAX(C$7:C46)+1)","v":""},"","","",null,null,null,null,null,null,null,null,"","","","","","","","","","","","","","","","","","","","","","","","","","","","","","","","","","","","","","","","","","","","","","","","","","","","",""]
[null,null,{"$f":"IF(OR(B48=\"\",B48=0),\"\",MAX(C$7:C47)+1)","v":""},"","","",null,null,null,null,null,null,null,null,"","","","","","","","","","","","","","","","","","","","","","","","","","","","","","","","","","","","","","","","","","","","","","","","","","","","",""]
[null,null,{"$f":"IF(OR(B49=\"\",B49=0),\"\",MAX(C$7:C48)+1)","v":""},"","","",null,null,null,null,null,null,null,null,"","","","","","","","","","","","","","","","","","","","","","","","","","","","","","","","","","","","","","","","","","","","","","","","","","","","",""]
[null,null,{"$f":"IF(OR(B50=\"\",B50=0),\"\",MAX(C$7:C49)+1)","v":""},"","","",null,null,null,null,null,null,null,null,"","","","","","","","","","","","","","","","","","","","","","","","","","","","","","","","","","","","","","","","","","","","","","","","","","","","",""]
[null,null,{"$f":"IF(OR(B51=\"\",B51=0),\"\",MAX(C$7:C50)+1)","v":""},"","","",null,null,null,null,null,null,null,null,"","","","","","","","","","","","","","","","","","","","","","","","","","","","","","","","","","","","","","","","","","","","","","","","","","","","",""]
[null,null,{"$f":"IF(OR(B52=\"\",B52=0),\"\",MAX(C$7:C51)+1)","v":""},"","","",null,null,null,null,null,null,null,null,"","","","","","","","","","","","","","","","","","","","","","","","","","","","","","","","","","","","","","","","","","","","","","","","","","","","",""]
[null,null,{"$f":"IF(OR(B53=\"\",B53=0),\"\",MAX(C$7:C52)+1)","v":""},"","","",null,null,null,null,null,null,null,null,"","","","","","","","","","","","","","","","","","","","","","","","","","","","","","","","","","","","","","","","","","","","","","","","","","","","",""]
[null,null,{"$f":"IF(OR(B54=\"\",B54=0),\"\",MAX(C$7:C53)+1)","v":""},"","","",null,null,null,null,null,null,null,null,"","","","","","","","","","","","","","","","","","","","","","","","","","","","","","","","","","","","","","","","","","","","","","","","","","","","",""]
[null,null,{"$f":"IF(OR(B55=\"\",B55=0),\"\",MAX(C$7:C54)+1)","v":""},"","","",null,null,null,null,null,null,null,null,"","","","","","","","","","","","","","","","","","","","","","","","","","","","","","","","","","","","","","","","","","","","","","","","","","","","",""]
[null,null,{"$f":"IF(OR(B56=\"\",B56=0),\"\",MAX(C$7:C55)+1)","v":""},"","","",null,null,null,null,null,null,null,null,"","","","","","","","","","","","","","","","","","","","","","","","","","","","","","","","","","","","","","","","","","","","","","","","","","","","",""]
[null,null,{"$f":"IF(OR(B57=\"\",B57=0),\"\",MAX(C$7:C56)+1)","v":""},"","","",null,null,null,null,null,null,null,null,"","","","","","","","","","","","","","","","","","","","","","","","","","","","","","","","","","","","","","","","","","","","","","","","","","","","",""]
[null,null,{"$f":"IF(OR(B58=\"\",B58=0),\"\",MAX(C$7:C57)+1)","v":""},"","","",null,null,null,null,null,null,null,null,"","","","","","","","","","","","","","","","","","","","","","","","","","","","","","","","","","","","","","","","","","","","","","","","","","","","",""]
[null,null,{"$f":"IF(OR(B59=\"\",B59=0),\"\",MAX(C$7:C58)+1)","v":""},"","","",null,null,null,null,null,null,null,null,"","","","","","","","","","","","","","","","","","","","","","","","","","","","","","","","","","","","","","","","","","","","","","","","","","","","",""]
[null,null,{"$f":"IF(OR(B60=\"\",B60=0),\"\",MAX(C$7:C59)+1)","v":""},"","","",null,null,null,null,null,null,null,null,"","","","","","","","","","","","","","","","","","","","","","","","","","","","","","","","","","","","","","","","","","","","","","","","","","","","",""]
[null,null,{"$f":"IF(OR(B61=\"\",B61=0),\"\",MAX(C$7:C60)+1)","v":""},"","","",null,null,null,null,null,null,null,null,"","","","","","","","","","","","","","","","","","","","","","","","","","","","","","","","","","","","","","","","","","","","","","","","","","","","",""]
[null,null,{"$f":"IF(OR(B62=\"\",B62=0),\"\",MAX(C$7:C61)+1)","v":""},{"$f":"IF(J62<>0,J62,IF(AND(K62<>0,L62<>0),K62-L62,IF(H62<>0,VLOOKUP(H62,C:E,3,FALSE)+I62,\"\")))","v":""},{"$f":"IF(K62<>0,K62,IF(L62<>0,D62+F62,\"\"))","v":""},{"$f":"IF(L62<>0,L62,IF(K62<>0,E62-D62,\"\"))","v":""},null,null,null,null,null,null,null,null,"","","","","","","","","","","","","","","","","","","","","","","","","","","","","","","","","","","","","","","","","","","","","","","","","","","","",""]
[null,null,{"$f":"IF(OR(B63=\"\",B63=0),\"\",MAX(C$7:C62)+1)","v":""},"","","",null,null,null,null,null,null,null,null,"","","","","","","","","","","","","","","","","","","","","","","","","","","","","","","","","","","","","","","","","","","","","","","","","","","","",""]
[null,null,{"$f":"IF(OR(B64=\"\",B64=0),\"\",MAX(C$7:C63)+1)","v":""},"","","",null,null,null,null,null,null,null,null,"","","","","","","","","","","","","","","","","","","","","","","","","","","","","","","","","","","","","","","","","","","","","","","","","","","","",""]
[null,null,{"$f":"IF(OR(B65=\"\",B65=0),\"\",MAX(C$7:C64)+1)","v":""},"","","",null,null,null,null,null,null,null,null,"","","","","","","","","","","","","","","","","","","","","","","","","","","","","","","","","","","","","","","","","","","","","","","","","","","","",""]
[null,null,{"$f":"IF(OR(B66=\"\",B66=0),\"\",MAX(C$7:C65)+1)","v":""},"","","",null,null,null,null,null,null,null,null,"","","","","","","","","","","","","","","","","","","","","","","","","","","","","","","","","","","","","","","","","","","","","","","","","","","","",""]
[null,null,{"$f":"IF(OR(B67=\"\",B67=0),\"\",MAX(C$7:C66)+1)","v":""},"","","",null,null,null,null,null,null,null,null,"","","","","","","","","","","","","","","","","","","","","","","","","","","","","","","","","","","","","","","","","","","","","","","","","","","","",""]
[null,null,{"$f":"IF(OR(B68=\"\",B68=0),\"\",MAX(C$7:C67)+1)","v":""},"","","",null,null,null,null,null,null,null,null,"","","","","","","","","","","","","","","","","","","","","","","","","","","","","","","","","","","","","","","","","","","","","","","","","","","","",""]
[null,null,{"$f":"IF(OR(B69=\"\",B69=0),\"\",MAX(C$7:C68)+1)","v":""},"","","",null,null,null,null,null,null,null,null,"","","","","","","","","","","","","","","","","","","","","","","","","","","","","","","","","","","","","","","","","","","","","","","","","","","","",""]
[null,null,{"$f":"IF(OR(B70=\"\",B70=0),\"\",MAX(C$7:C69)+1)","v":""},"","","",null,null,null,null,null,null,null,null,"","","","","","","","","","","","","","","","","","","","","","","","","","","","","","","","","","","","","","","","","","","","","","","","","","","","",""]
[null,null,{"$f":"IF(OR(B71=\"\",B71=0),\"\",MAX(C$7:C70)+1)","v":""},"","","",null,null,null,null,null,null,null,null,"","","","","","","","","","","","","","","","","","","","","","","","","","","","","","","","","","","","","","","","","","","","","","","","","","","","",""]
[null,null,{"$f":"IF(OR(B72=\"\",B72=0),\"\",MAX(C$7:C71)+1)","v":""},"","","",null,null,null,null,null,null,null,null,"","","","","","","","","","","","","","","","","","","","","","","","","","","","","","","","","","","","","","","","","","","","","","","","","","","","",""]
[null,null,{"$f":"IF(OR(B73=\"\",B73=0),\"\",MAX(C$7:C72)+1)","v":""},"","","",null,null,null,null,null,null,null,null,"","","","","","","","","","","","","","","","","","","","","","","","","","","","","","","","","","","","","","","","","","","","","","","","","","","","",""]
[null,null,{"$f":"IF(OR(B74=\"\",B74=0),\"\",MAX(C$7:C73)+1)","v":""},"","","",null,null,null,null,null,null,null,null,"","","","","","","","","","","","","","","","","","","","","","","","","","","","","","","","","","","","","","","","","","","","","","","","","","","","",""]
[null,null,{"$f":"IF(OR(B75=\"\",B75=0),\"\",MAX(C$7:C74)+1)","v":""},"","","",null,null,null,null,null,null,null,null,"","","","","","","","","","","","","","","","","","","","","","","","","","","","","","","","","","","","","","","","","","","","","","","","","","","","",""]
[null,null,{"$f":"IF(OR(B76=\"\",B76=0),\"\",MAX(C$7:C75)+1)","v":""},"","","",null,null,null,null,null,null,null,null,{"$f":"IF(AND(O$9>=$D76,O$9<=$E76),IF(O75=0,2,1),IF($B76=\"\",\"\",IF($B76=0,0,\"\")))","v":""},"","","","","","","","","","","","","","","","","","","","","","","","","","","","","","","","","","","","","","","","","","","","","","","","","","","",""]
[null,null,{"$f":"IF(OR(B77=\"\",B77=0),\"\",MAX(C$7:C76)+1)","v":""},"","","",null,null,null,null,null,null,null,null,"","","","","","","","","","","","","","","","","","","","","","","","","","","","","","","","","","","","","","","","","","","","","","","","","","","","",""]
[null,null,{"$f":"IF(OR(B78=\"\",B78=0),\"\",MAX(C$7:C77)+1)","v":""},"","","",null,null,null,null,null,null,null,null,"","","","","","","","","","","","","","","","","","","","","","","","","","","","","","","","","","","","","","","","","","","","","","","","","","","","",""]
[null,null,{"$f":"IF(OR(B79=\"\",B79=0),\"\",MAX(C$7:C78)+1)","v":""},"","","",null,null,null,null,null,null,null,null,"","","","","","","","","","","","","","","","","","","","","","","","","","","","","","","","","","","","","","","","","","","","","","","","","","","","",""]
[null,null,{"$f":"IF(OR(B80=\"\",B80=0),\"\",MAX(C$7:C79)+1)","v":""},"","","",null,null,null,null,null,null,null,null,"","","","","","","","","","","","","","","","",{"$f":"IF(AND(AE$9>=$D80,AE$9<=$E80),IF(AE79=0,2,1),IF($B80=\"\",\"\",IF($B80=0,0,\"\")))","v":""},"","","","","","","","","","","","","","","","","","","","","","","","","","","","","","","","","","","",""]
[null,null,{"$f":"IF(OR(B81=\"\",B81=0),\"\",MAX(C$7:C80)+1)","v":""},"","","",null,null,null,null,null,null,null,null,"","","","","","","","","","","","","","","","","","","","","","","","","","","","","","","","","","","","","","","","","","","","","","","","","","","","",""]
[null,null,{"$f":"IF(OR(B82=\"\",B82=0),\"\",MAX(C$7:C81)+1)","v":""},"","","",null,null,null,null,null,null,null,null,"","","","","","","","","","","","","","","","","","","","","","","","","","","","","","","","","","","","","","","","","","","","","","","","","","","","",""]
[null,null,{"$f":"IF(OR(B83=\"\",B83=0),\"\",MAX(C$7:C82)+1)","v":""},"","","",null,null,null,null,null,null,null,null,"","","","","","","","","","","","","","","","","","","","","","","","","","","","","","","","","","","","","","","","","","","","","","","","","","","","",""]
[null,null,{"$f":"IF(OR(B84=\"\",B84=0),\"\",MAX(C$7:C83)+1)","v":""},"","","",null,null,null,null,null,null,null,null,"","","","","","","","","","","","","","","","","","","","","","","","","","","","","","","","","","","","","","","","","","","","","","","","","","","","",""]
[null,null,{"$f":"IF(OR(B85=\"\",B85=0),\"\",MAX(C$7:C84)+1)","v":""},"","","",null,null,null,null,null,null,null,null,"","","","","","","","","","","","","","","","","","","","","","","","","","","","","","","","","","","","","","","","","","","","","","","","","","","","",""]
[null,null,{"$f":"IF(OR(B86=\"\",B86=0),\"\",MAX(C$7:C85)+1)","v":""},"","","",null,null,null,null,null,null,null,null,"","","","","","","","","","","","","","","","","","","","","","","","","","","","","","","","","","","","","","","","","","","","","","","","","",{"$f":"IF(AND(BL$9>=$D86,BL$9<=$E86),IF(BL85=0,2,1),IF($B86=\"\",\"\",IF($B86=0,0,\"\")))","v":""},"","",""]
[null,null,{"$f":"IF(OR(B87=\"\",B87=0),\"\",MAX(C$7:C86)+1)","v":""},"","","",null,null,null,null,null,null,null,null,"","","","","","","","","","","","","","","","",{"$f":"IF(AND(AE$9>=$D87,AE$9<=$E87),IF(AE86=0,2,1),IF($B87=\"\",\"\",IF($B87=0,0,\"\")))","v":""},"","","","","","","","","","","","","","","","","","","","","","","","","","","","","","","","","","","",""]
[null,null,{"$f":"IF(OR(B88=\"\",B88=0),\"\",MAX(C$7:C87)+1)","v":""},"","","",null,null,null,null,null,null,null,null,"","","","","","","","","","","","","","","","","","","","","","","","","","","","","","","","","","","","","","","","","","","","","","","","","","","","",""]
[null,null,{"$f":"IF(OR(B89=\"\",B89=0),\"\",MAX(C$7:C88)+1)","v":""},"","","",null,null,null,null,null,null,null,null,"","","","","","","","","","","","","","","","","","","","","","","","","","","","","","","","","","","","","","","","","","","","","","","","","","","","",""]
[null,null,{"$f":"IF(OR(B90=\"\",B90=0),\"\",MAX(C$7:C89)+1)","v":""},"","","",null,null,null,null,null,null,null,null,"","","","","","","","","","","","","","","","","","","","","","","","","","","","","","","","","","","","","","","","","","","","","","","","","","","","",""]
[null,null,{"$f":"IF(OR(B91=\"\",B91=0),\"\",MAX(C$7:C90)+1)","v":""},"","","",null,null,null,null,null,null,null,null,"","","","","","","","","","","","","","","","","","","","","","","","","","","","","","","","","","","","","","","","","","","","","","","","","","","","",""]
[null,null,{"$f":"IF(OR(B92=\"\",B92=0),\"\",MAX(C$7:C91)+1)","v":""},"","","",null,null,null,null,null,null,null,null,{"$f":"IF(AND(O$9>=$D92,O$9<=$E92),IF(O91=0,2,1),IF($B92=\"\",\"\",IF($B92=0,0,\"\")))","v":""},"","","","","","","","","","","","","","","","","","","","","","","","","","","","","","","","","","","","","","","","","","","","","","","","","","","",""]
[null,null,{"$f":"IF(OR(B93=\"\",B93=0),\"\",MAX(C$7:C92)+1)","v":""},"","","",null,null,null,null,null,null,null,null,"","","","","","","","","","","","","","","","","","","","","","","","","","","","","","","","","","","","","","","","","","","","","","","","","","","","",""]
[null,null,{"$f":"IF(OR(B94=\"\",B94=0),\"\",MAX(C$7:C93)+1)","v":""},"","","",null,null,null,null,null,null,null,null,"","","","","","","","","","","","","","","","","","","","","","","","","","","","","","","","","","","","","","","","",{"$f":"IF(AND(BC$9>=$D94,BC$9<=$E94),IF(BC93=0,2,1),IF($B94=\"\",\"\",IF($B94=0,0,\"\")))","v":""},"","","","","","","","","","","",""]
[null,null,{"$f":"IF(OR(B95=\"\",B95=0),\"\",MAX(C$7:C94)+1)","v":""},"","","",null,null,null,null,null,null,null,null,"","","","","","","","","","","","","","","","",{"$f":"IF(AND(AE$9>=$D95,AE$9<=$E95),IF(AE94=0,2,1),IF($B95=\"\",\"\",IF($B95=0,0,\"\")))","v":""},"","","","","","","","","","","","","","","","","","","","","","","","","","","","","","","","","","","",""]
[null,null,{"$f":"IF(OR(B96=\"\",B96=0),\"\",MAX(C$7:C95)+1)","v":""},"","","",null,null,null,null,null,null,null,null,"","","","","","","","","","","","","","","","","","","","","","","","","","","","","","","","","","","","","","","","","","","","","","","","","","","","",""]
[null,null,{"$f":"IF(OR(B97=\"\",B97=0),\"\",MAX(C$7:C96)+1)","v":""},"","","",null,null,null,null,null,null,null,null,"","","","","","","","","","","","","","","","","","","","","","","","","","","","","","","","","","","","","","","","","","","","","","","","","","","","",""]
[null,null,{"$f":"IF(OR(B98=\"\",B98=0),\"\",MAX(C$7:C97)+1)","v":""},"","","",null,null,null,null,null,null,null,null,"","","","","","","","","","","","","","","","","","","","","","","","","","","","","","","","","","","","","","","","","","","","","","","","","","","","",""]
[null,null,{"$f":"IF(OR(B99=\"\",B99=0),\"\",MAX(C$7:C98)+1)","v":""},"","","",null,null,null,null,null,null,null,null,"","","","","","","","","","","","","","","","","","","","","","","","","","","","","","","","","","","","","","","","","","","","","","","","","","","","",""]
[null,null,{"$f":"IF(OR(B100=\"\",B100=0),\"\",MAX(C$7:C99)+1)","v":""},"","","",null,null,null,null,null,null,null,null,"","","","","","","","","","","","","","","","","","","","","","","","","","","","","","","","","","","","","","","","","","","","","","","","","","","","",""]

{"sheet":"Budget","index":6,"n_rows":49,"n_cols":15,"rows_kept":49,"cut":false,"hidden":false,"merged":[[6,3,6,4],[6,6,6,7],[6,11,6,12],[4,1,4,14]]}
[]
[]
[]
[]
[null,"BUDGET"]
[]
[null,null,null,"RECETTES",null,null,"DEPENSES",null,null,null,"Date début","2013-12-10"]
[null,"INTITULE","CATEGORIES","MONTANT","DATE",null,"MONTANT","DATE"]
[null,"TOTAL",{"$f":"D9+G9","v":0},{"$f":"SUM(D10:D49)","v":0},null,null,{"$f":"SUM(G10:G49)","v":0}]
[null,null,null,null,null,{"$f":"IF(E10=\"\",\"\",YEAR(E10)+MONTH(E10)/12)","v":""},null,null,{"$f":"IF(H10=\"\",\"\",YEAR(H10)+MONTH(H10)/12)","v":""},null,"CATEGORIES","RECETTES","DEPENSES"]
[null,null,null,null,null,"",null,null,{"$f":"IF(H11=\"\",\"\",YEAR(H11)+MONTH(H11)/12)","v":""},null,"Cat 1",{"$f":"SUMIF(C$10:C$49,K11,D$10:D$49)","v":0},{"$f":"SUMIF(C$10:C$49,K11,G$10:G$49)","v":0}]
[null,null,null,null,null,"",null,null,"",null,"Cat 2",0,0]
[null,null,null,null,null,"",null,null,"",null,"Cat 3",0,0]
[null,null,null,null,null,"",null,null,"",null,"Cat 4",0,0]
[null,null,null,null,null,"",null,null,"",null,"Cat 5",0,0]
[null,null,null,null,null,"",null,null,"",null,"Cat 6",0,0]
[null,null,null,null,null,"",null,null,"",null,"Cat 7",0,0]
[null,null,null,null,null,{"$f":"IF(E18=\"\",\"\",YEAR(E18)+MONTH(E18)/12)","v":""},null,null,"",null,"Cat 8",0,0]
[null,null,null,null,null,{"$f":"IF(E19=\"\",\"\",YEAR(E19)+MONTH(E19)/12)","v":""}]
[null,null,null,null,null,""]
[null,null,null,null,null,"",null,null,""]
[null,null,null,null,null,"",null,null,""]
[]
[]
[]
[]
[]
[]
[null,null,null,null,null,null,null,null,null,null,"TRESORERIE","RECETTES","DEPENSES","CUMUL","NEGATIF"]
[null,null,null,null,null,null,null,null,null,null,{"$f":"L7","v":"2013-12-10"},{"$f":"SUMIFS(D$10:D$49,F$10:F$49,YEAR(K30)+MONTH(K30)/12)","v":0},{"$f":"SUMIFS(G$10:G$49,I$10:I$49,YEAR(K30)+MONTH(K30)/12)","v":0},{"$f":"L30+M30","v":0},{"$f":"M30","v":0}]
[null,null,null,null,null,null,null,null,null,null,{"$f":"EDATE(K30,1)","v":"2014-01-10"},0,0,{"$f":"N30+L31+M31","v":0},{"$f":"O30+L30+M31","v":0}]
[null,null,null,null,null,null,null,null,null,null,{"$f":"EDATE(K31,1)","v":"2014-02-10"},0,0,{"$f":"N31+L32+M32","v":0},0]
[null,null,null,null,null,null,null,null,null,null,"2014-03-10",0,0,0,0]
[null,null,null,null,null,null,null,null,null,null,"2014-04-10",0,0,0,0]
[null,null,null,null,null,null,null,null,null,null,"2014-05-10",0,0,0,0]
[null,null,null,null,null,null,null,null,null,null,"2014-06-10",0,0,0,0]
[null,null,null,null,null,null,null,null,null,null,"2014-07-10",0,0,0,0]
[null,null,null,null,null,null,null,null,null,null,"2014-08-10",0,0,0,0]
[null,null,null,null,null,null,null,null,null,null,"2014-09-10",0,0,0,0]
[null,null,null,null,null,null,null,null,null,null,"2014-10-10",0,0,0,0]
[null,null,null,null,null,null,null,null,null,null,"2014-11-10",0,0,0,0]
[null,null,null,null,null,null,null,null,null,null,"2014-12-10",0,0,0,0]
[null,null,null,null,null,null,null,null,null,null,"2015-01-10",0,0,0,0]
[]
[]
[]
[]
[null,null,null,null,null,"",null,null,""]
[null,null,null,null,null,"",null,null,""]

{"sheet":"Synthese","index":7,"n_rows":87,"n_cols":18,"rows_kept":87,"cut":false,"hidden":false,"merged":[]}
[]
[]
[]
[]
[]
[]
[null,"TOTAL","Nombre d'actions réalisées",null,null,"Nombre d'actions en cours",null,"Nombre d'actions non prévues",null,"Nombre totale d'actions concernées",null,null,"Nombre totale d'actions",null,null,"%  d'actions prévues réalisées",null,"%  d'actions réalisées"]
[null,"Nombre d'actions indispensables",{"$f":"COUNTIFS(Actions!K:K,\"Fait\",Actions!G:G,3)","v":0},null,null,{"$f":"COUNTIFS(Actions!K:K,\"En cours\",Actions!G:G,3)","v":0},null,{"$f":"COUNTIFS(Actions!I:I,\"Non\",Actions!G:G,3)","v":0},null,{"$f":"M8-COUNTIFS(Actions!I:I,\"NA\",Actions!G:G,3)","v":48},null,null,{"$f":"COUNTIFS(Actions!AW:AW,1,Actions!G:G,3)","v":48},null,null,{"$f":"IF((J8-H8)=0,\"\",C8/(J8-H8))","v":0},null,{"$f":"IF(J8=0,\"\",C8/J8)","v":0}]
[null,"Nombre d'actions supplémentaires",{"$f":"COUNTIFS(Actions!K:K,\"Fait\",Actions!G:G,1)+COUNTIFS(Actions!K:K,\"Fait\",Actions!G:G,2)","v":0},null,null,{"$f":"COUNTIFS(Actions!K:K,\"En cours\",Actions!G:G,1)+COUNTIFS(Actions!K:K,\"En cours\",Actions!G:G,2)","v":0},null,{"$f":"COUNTIFS(Actions!I:I,\"Non\",Actions!G:G,1)+COUNTIFS(Actions!I:I,\"Non\",Actions!G:G,2)","v":0},null,{"$f":"M9-COUNTIFS(Actions!I:I,\"NA\",Actions!G:G,1)-COUNTIFS(Actions!I:I,\"NA\",Actions!G:G,2)","v":0},null,null,{"$f":"COUNTIFS(Actions!AW:AW,1,Actions!G:G,1)+COUNTIFS(Actions!AW:AW,1,Actions!G:G,2)","v":0},null,null,{"$f":"IF((J9-H9)=0,\"\",C9/(J9-H9))","v":""},null,{"$f":"IF(J9=0,\"\",C9/J9)","v":""}]
[]
[null,"SOUS -THEMES","Nombre d'actions réalisées","Nombre d'actions indispensables réalisées","Nombre d'actions importantes réalisées","Nombre d'actions en cours","Nombre d'actions indispensables en cours","Nombre d'actions non prévues","Nombre d'actions indispensables non prévues","Nombre totale d'actions concernées","Nombre totale d'actions indispensables concernées","Nombre totale d'actions importantes concernées","Nombre totale d'actions","Nombre totale d'actions indispensables","Nombre totale d'actions importantes","%  d'actions indispensables réalisées","%  d'actions importantes réalisées","%  d'actions réalisées"]
[]
[null,"ANCRAGE TERRITORIAL",{"$f":"COUNTIFS(Actions!K:K,\"Fait\",Actions!B:B,B13)","v":0},{"$f":"COUNTIFS(Actions!K:K,\"Fait\",Actions!B:B,B13,Actions!G:G,3)","v":0},{"$f":"COUNTIFS(Actions!K:K,\"Fait\",Actions!B:B,B13,Actions!G:G,3)+COUNTIFS(Actions!K:K,\"Fait\",Actions!B:B,B13,Actions!G:G,2)","v":0},{"$f":"COUNTIFS(Actions!K:K,\"En cours\",Actions!B:B,B13)","v":0},{"$f":"COUNTIFS(Actions!K:K,\"En cours\",Actions!G:G,3,Actions!B:B,B13)","v":0},{"$f":"COUNTIFS(Actions!I:I,\"Non\",Actions!B:B,B13)","v":0},{"$f":"COUNTIFS(Actions!I:I,\"Non\",Actions!G:G,3,Actions!B:B,B13)","v":0},{"$f":"M13-COUNTIFS(Actions!I:I,\"NA\",Actions!B:B,B13)","v":2},{"$f":"N13-COUNTIFS(Actions!I:I,\"NA\",Actions!G:G,3,Actions!B:B,B13)","v":2},{"$f":"O13-COUNTIFS(Actions!I:I,\"NA\",Actions!G:G,3,Actions!B:B,B13)-COUNTIFS(Actions!I:I,\"NA\",Actions!G:G,2,Actions!B:B,B13)","v":2},{"$f":"COUNTIFS(Actions!AW:AW,1,Actions!B:B,B13)","v":2},{"$f":"COUNTIFS(Actions!AW:AW,1,Actions!G:G,3,Actions!B:B,B13)","v":2},{"$f":"COUNTIFS(Actions!AW:AW,1,Actions!G:G,3,Actions!B:B,B13)+COUNTIFS(Actions!AW:AW,1,Actions!G:G,2,Actions!B:B,B13)","v":2},{"$f":"IF(K13=0,0,D13/K13)","v":0},{"$f":"IF(L13=0,0,E13/L13)","v":0},{"$f":"IF(J13=0,0,C13/J13)","v":0}]
[null,"Contextualisation de l'événement",{"$f":"COUNTIFS(Actions!K:K,\"Fait\",Actions!C:C,B14)","v":0},{"$f":"COUNTIFS(Actions!K:K,\"Fait\",Actions!C:C,B14,Actions!G:G,3)","v":0},{"$f":"COUNTIFS(Actions!K:K,\"Fait\",Actions!C:C,B14,Actions!G:G,3)+COUNTIFS(Actions!K:K,\"Fait\",Actions!C:C,B14,Actions!G:G,2)","v":0},{"$f":"COUNTIFS(Actions!K:K,\"En cours\",Actions!C:C,B14)","v":0},{"$f":"COUNTIFS(Actions!K:K,\"En cours\",Actions!G:G,3,Actions!C:C,B14)","v":0},{"$f":"COUNTIFS(Actions!I:I,\"Non\",Actions!C:C,B14)","v":0},{"$f":"COUNTIFS(Actions!I:I,\"Non\",Actions!G:G,3,Actions!C:C,B14)","v":0},{"$f":"M14-COUNTIFS(Actions!I:I,\"NA\",Actions!C:C,B14)","v":0},{"$f":"N14-COUNTIFS(Actions!I:I,\"NA\",Actions!G:G,3,Actions!C:C,B14)","v":0},{"$f":"O14-COUNTIFS(Actions!I:I,\"NA\",Actions!G:G,3,Actions!C:C,B14)-COUNTIFS(Actions!I:I,\"NA\",Actions!G:G,2,Actions!C:C,B14)","v":0},{"$f":"COUNTIFS(Actions!AW:AW,1,Actions!C:C,B14)","v":0},{"$f":"COUNTIFS(Actions!AW:AW,1,Actions!G:G,3,Actions!C:C,B14)","v":0},{"$f":"COUNTIFS(Actions!AW:AW,1,Actions!G:G,3,Actions!C:C,B14)+COUNTIFS(Actions!AW:AW,1,Actions!G:G,2,Actions!C:C,B14)","v":0},{"$f":"IF(K14=0,\"\",D14/K14)","v":""},{"$f":"IF(L14=0,\"\",E14/L14)","v":""},{"$f":"IF(J14=0,\"\",C14/J14)","v":""}]
[null,"Economie locale",{"$f":"COUNTIFS(Actions!K:K,\"Fait\",Actions!C:C,B15)","v":0},{"$f":"COUNTIFS(Actions!K:K,\"Fait\",Actions!C:C,B15,Actions!G:G,3)","v":0},{"$f":"COUNTIFS(Actions!K:K,\"Fait\",Actions!C:C,B15,Actions!G:G,3)+COUNTIFS(Actions!K:K,\"Fait\",Actions!C:C,B15,Actions!G:G,2)","v":0},{"$f":"COUNTIFS(Actions!K:K,\"En cours\",Actions!C:C,B15)","v":0},{"$f":"COUNTIFS(Actions!K:K,\"En cours\",Actions!G:G,3,Actions!C:C,B15)","v":0},{"$f":"COUNTIFS(Actions!I:I,\"Non\",Actions!C:C,B15)","v":0},{"$f":"COUNTIFS(Actions!I:I,\"Non\",Actions!G:G,3,Actions!C:C,B15)","v":0},{"$f":"M15-COUNTIFS(Actions!I:I,\"NA\",Actions!C:C,B15)","v":1},{"$f":"N15-COUNTIFS(Actions!I:I,\"NA\",Actions!G:G,3,Actions!C:C,B15)","v":1},{"$f":"O15-COUNTIFS(Actions!I:I,\"NA\",Actions!G:G,3,Actions!C:C,B15)-COUNTIFS(Actions!I:I,\"NA\",Actions!G:G,2,Actions!C:C,B15)","v":1},{"$f":"COUNTIFS(Actions!AW:AW,1,Actions!C:C,B15)","v":1},{"$f":"COUNTIFS(Actions!AW:AW,1,Actions!G:G,3,Actions!C:C,B15)","v":1},{"$f":"COUNTIFS(Actions!AW:AW,1,Actions!G:G,3,Actions!C:C,B15)+COUNTIFS(Actions!AW:AW,1,Actions!G:G,2,Actions!C:C,B15)","v":1},{"$f":"IF(K15=0,\"\",D15/K15)","v":0},0,0]
[null,"Identification des enjeux locaux",{"$f":"COUNTIFS(Actions!K:K,\"Fait\",Actions!C:C,B16)","v":0},{"$f":"COUNTIFS(Actions!K:K,\"Fait\",Actions!C:C,B16,Actions!G:G,3)","v":0},{"$f":"COUNTIFS(Actions!K:K,\"Fait\",Actions!C:C,B16,Actions!G:G,3)+COUNTIFS(Actions!K:K,\"Fait\",Actions!C:C,B16,Actions!G:G,2)","v":0},{"$f":"COUNTIFS(Actions!K:K,\"En cours\",Actions!C:C,B16)","v":0},{"$f":"COUNTIFS(Actions!K:K,\"En cours\",Actions!G:G,3,Actions!C:C,B16)","v":0},{"$f":"COUNTIFS(Actions!I:I,\"Non\",Actions!C:C,B16)","v":0},{"$f":"COUNTIFS(Actions!I:I,\"Non\",Actions!G:G,3,Actions!C:C,B16)","v":0},{"$f":"M16-COUNTIFS(Actions!I:I,\"NA\",Actions!C:C,B16)","v":1},{"$f":"N16-COUNTIFS(Actions!I:I,\"NA\",Actions!G:G,3,Actions!C:C,B16)","v":1},{"$f":"O16-COUNTIFS(Actions!I:I,\"NA\",Actions!G:G,3,Actions!C:C,B16)-COUNTIFS(Actions!I:I,\"NA\",Actions!G:G,2,Actions!C:C,B16)","v":1},{"$f":"COUNTIFS(Actions!AW:AW,1,Actions!C:C,B16)","v":1},{"$f":"COUNTIFS(Actions!AW:AW,1,Actions!G:G,3,Actions!C:C,B16)","v":1},{"$f":"COUNTIFS(Actions!AW:AW,1,Actions!G:G,3,Actions!C:C,B16)+COUNTIFS(Actions!AW:AW,1,Actions!G:G,2,Actions!C:C,B16)","v":1},{"$f":"IF(K16=0,\"\",D16/K16)","v":0},0,0]
[]
[null,"BIODIVERSITE",{"$f":"COUNTIFS(Actions!K:K,\"Fait\",Actions!B:B,B18)","v":0},{"$f":"COUNTIFS(Actions!K:K,\"Fait\",Actions!B:B,B18,Actions!G:G,3)","v":0},{"$f":"COUNTIFS(Actions!K:K,\"Fait\",Actions!B:B,B18,Actions!G:G,3)+COUNTIFS(Actions!K:K,\"Fait\",Actions!B:B,B18,Actions!G:G,2)","v":0},{"$f":"COUNTIFS(Actions!K:K,\"En cours\",Actions!B:B,B18)","v":0},{"$f":"COUNTIFS(Actions!K:K,\"En cours\",Actions!G:G,3,Actions!B:B,B18)","v":0},{"$f":"COUNTIFS(Actions!I:I,\"Non\",Actions!B:B,B18)","v":0},{"$f":"COUNTIFS(Actions!I:I,\"Non\",Actions!G:G,3,Actions!B:B,B18)","v":0},{"$f":"M18-COUNTIFS(Actions!I:I,\"NA\",Actions!B:B,B18)","v":3},{"$f":"N18-COUNTIFS(Actions!I:I,\"NA\",Actions!G:G,3,Actions!B:B,B18)","v":3},{"$f":"O18-COUNTIFS(Actions!I:I,\"NA\",Actions!G:G,3,Actions!B:B,B18)-COUNTIFS(Actions!I:I,\"NA\",Actions!G:G,2,Actions!B:B,B18)","v":3},{"$f":"COUNTIFS(Actions!AW:AW,1,Actions!B:B,B18)","v":3},{"$f":"COUNTIFS(Actions!AW:AW,1,Actions!G:G,3,Actions!B:B,B18)","v":3},{"$f":"COUNTIFS(Actions!AW:AW,1,Actions!G:G,3,Actions!B:B,B18)+COUNTIFS(Actions!AW:AW,1,Actions!G:G,2,Actions!B:B,B18)","v":3},{"$f":"IF(K18=0,0,D18/K18)","v":0},{"$f":"IF(L18=0,0,E18/L18)","v":0},{"$f":"IF(J18=0,0,C18/J18)","v":0}]
[null,"Education à l'environnement",{"$f":"COUNTIFS(Actions!K:K,\"Fait\",Actions!C:C,B19)","v":0},{"$f":"COUNTIFS(Actions!K:K,\"Fait\",Actions!C:C,B19,Actions!G:G,3)","v":0},{"$f":"COUNTIFS(Actions!K:K,\"Fait\",Actions!C:C,B19,Actions!G:G,3)+COUNTIFS(Actions!K:K,\"Fait\",Actions!C:C,B19,Actions!G:G,2)","v":0},{"$f":"COUNTIFS(Actions!K:K,\"En cours\",Actions!C:C,B19)","v":0},{"$f":"COUNTIFS(Actions!K:K,\"En cours\",Actions!G:G,3,Actions!C:C,B19)","v":0},{"$f":"COUNTIFS(Actions!I:I,\"Non\",Actions!C:C,B19)","v":0},{"$f":"COUNTIFS(Actions!I:I,\"Non\",Actions!G:G,3,Actions!C:C,B19)","v":0},{"$f":"M19-COUNTIFS(Actions!I:I,\"NA\",Actions!C:C,B19)","v":0},{"$f":"N19-COUNTIFS(Actions!I:I,\"NA\",Actions!G:G,3,Actions!C:C,B19)","v":0},{"$f":"O19-COUNTIFS(Actions!I:I,\"NA\",Actions!G:G,3,Actions!C:C,B19)-COUNTIFS(Actions!I:I,\"NA\",Actions!G:G,2,Actions!C:C,B19)","v":0},{"$f":"COUNTIFS(Actions!AW:AW,1,Actions!C:C,B19)","v":0},{"$f":"COUNTIFS(Actions!AW:AW,1,Actions!G:G,3,Actions!C:C,B19)","v":0},{"$f":"COUNTIFS(Actions!AW:AW,1,Actions!G:G,3,Actions!C:C,B19)+COUNTIFS(Actions!AW:AW,1,Actions!G:G,2,Actions!C:C,B19)","v":0},{"$f":"IF(K19=0,\"\",D19/K19)","v":""},{"$f":"IF(L19=0,\"\",E19/L19)","v":""},""]
[null,"Gestion du lieu naturel",{"$f":"COUNTIFS(Actions!K:K,\"Fait\",Actions!C:C,B20)","v":0},{"$f":"COUNTIFS(Actions!K:K,\"Fait\",Actions!C:C,B20,Actions!G:G,3)","v":0},{"$f":"COUNTIFS(Actions!K:K,\"Fait\",Actions!C:C,B20,Actions!G:G,3)+COUNTIFS(Actions!K:K,\"Fait\",Actions!C:C,B20,Actions!G:G,2)","v":0},{"$f":"COUNTIFS(Actions!K:K,\"En cours\",Actions!C:C,B20)","v":0},{"$f":"COUNTIFS(Actions!K:K,\"En cours\",Actions!G:G,3,Actions!C:C,B20)","v":0},{"$f":"COUNTIFS(Actions!I:I,\"Non\",Actions!C:C,B20)","v":0},{"$f":"COUNTIFS(Actions!I:I,\"Non\",Actions!G:G,3,Actions!C:C,B20)","v":0},{"$f":"M20-COUNTIFS(Actions!I:I,\"NA\",Actions!C:C,B20)","v":2},{"$f":"N20-COUNTIFS(Actions!I:I,\"NA\",Actions!G:G,3,Actions!C:C,B20)","v":2},{"$f":"O20-COUNTIFS(Actions!I:I,\"NA\",Actions!G:G,3,Actions!C:C,B20)-COUNTIFS(Actions!I:I,\"NA\",Actions!G:G,2,Actions!C:C,B20)","v":2},{"$f":"COUNTIFS(Actions!AW:AW,1,Actions!C:C,B20)","v":2},{"$f":"COUNTIFS(Actions!AW:AW,1,Actions!G:G,3,Actions!C:C,B20)","v":2},{"$f":"COUNTIFS(Actions!AW:AW,1,Actions!G:G,3,Actions!C:C,B20)+COUNTIFS(Actions!AW:AW,1,Actions!G:G,2,Actions!C:C,B20)","v":2},{"$f":"IF(K20=0,\"\",D20/K20)","v":0},0,0]
[null,"Impact dans la chaîne de valeur",{"$f":"COUNTIFS(Actions!K:K,\"Fait\",Actions!C:C,B21)","v":0},{"$f":"COUNTIFS(Actions!K:K,\"Fait\",Actions!C:C,B21,Actions!G:G,3)","v":0},{"$f":"COUNTIFS(Actions!K:K,\"Fait\",Actions!C:C,B21,Actions!G:G,3)+COUNTIFS(Actions!K:K,\"Fait\",Actions!C:C,B21,Actions!G:G,2)","v":0},{"$f":"COUNTIFS(Actions!K:K,\"En cours\",Actions!C:C,B21)","v":0},{"$f":"COUNTIFS(Actions!K:K,\"En cours\",Actions!G:G,3,Actions!C:C,B21)","v":0},{"$f":"COUNTIFS(Actions!I:I,\"Non\",Actions!C:C,B21)","v":0},{"$f":"COUNTIFS(Actions!I:I,\"Non\",Actions!G:G,3,Actions!C:C,B21)","v":0},{"$f":"M21-COUNTIFS(Actions!I:I,\"NA\",Actions!C:C,B21)","v":1},{"$f":"N21-COUNTIFS(Actions!I:I,\"NA\",Actions!G:G,3,Actions!C:C,B21)","v":1},{"$f":"O21-COUNTIFS(Actions!I:I,\"NA\",Actions!G:G,3,Actions!C:C,B21)-COUNTIFS(Actions!I:I,\"NA\",Actions!G:G,2,Actions!C:C,B21)","v":1},{"$f":"COUNTIFS(Actions!AW:AW,1,Actions!C:C,B21)","v":1},{"$f":"COUNTIFS(Actions!AW:AW,1,Actions!G:G,3,Actions!C:C,B21)","v":1},{"$f":"COUNTIFS(Actions!AW:AW,1,Actions!G:G,3,Actions!C:C,B21)+COUNTIFS(Actions!AW:AW,1,Actions!G:G,2,Actions!C:C,B21)","v":1},{"$f":"IF(K21=0,\"\",D21/K21)","v":0},0,0]
[null,"Impact sur l'éco système",{"$f":"COUNTIFS(Actions!K:K,\"Fait\",Actions!C:C,B22)","v":0},{"$f":"COUNTIFS(Actions!K:K,\"Fait\",Actions!C:C,B22,Actions!G:G,3)","v":0},{"$f":"COUNTIFS(Actions!K:K,\"Fait\",Actions!C:C,B22,Actions!G:G,3)+COUNTIFS(Actions!K:K,\"Fait\",Actions!C:C,B22,Actions!G:G,2)","v":0},{"$f":"COUNTIFS(Actions!K:K,\"En cours\",Actions!C:C,B22)","v":0},{"$f":"COUNTIFS(Actions!K:K,\"En cours\",Actions!G:G,3,Actions!C:C,B22)","v":0},{"$f":"COUNTIFS(Actions!I:I,\"Non\",Actions!C:C,B22)","v":0},{"$f":"COUNTIFS(Actions!I:I,\"Non\",Actions!G:G,3,Actions!C:C,B22)","v":0},{"$f":"M22-COUNTIFS(Actions!I:I,\"NA\",Actions!C:C,B22)","v":0},{"$f":"N22-COUNTIFS(Actions!I:I,\"NA\",Actions!G:G,3,Actions!C:C,B22)","v":0},{"$f":"O22-COUNTIFS(Actions!I:I,\"NA\",Actions!G:G,3,Actions!C:C,B22)-COUNTIFS(Actions!I:I,\"NA\",Actions!G:G,2,Actions!C:C,B22)","v":0},{"$f":"COUNTIFS(Actions!AW:AW,1,Actions!C:C,B22)","v":0},{"$f":"COUNTIFS(Actions!AW:AW,1,Actions!G:G,3,Actions!C:C,B22)","v":0},{"$f":"COUNTIFS(Actions!AW:AW,1,Actions!G:G,3,Actions!C:C,B22)+COUNTIFS(Actions!AW:AW,1,Actions!G:G,2,Actions!C:C,B22)","v":0},{"$f":"IF(K22=0,\"\",D22/K22)","v":""},"",""]
[]
[null,"CULTURE",{"$f":"COUNTIFS(Actions!K:K,\"Fait\",Actions!B:B,B24)","v":0},{"$f":"COUNTIFS(Actions!K:K,\"Fait\",Actions!B:B,B24,Actions!G:G,3)","v":0},{"$f":"COUNTIFS(Actions!K:K,\"Fait\",Actions!B:B,B24,Actions!G:G,3)+COUNTIFS(Actions!K:K,\"Fait\",Actions!B:B,B24,Actions!G:G,2)","v":0},{"$f":"COUNTIFS(Actions!K:K,\"En cours\",Actions!B:B,B24)","v":0},{"$f":"COUNTIFS(Actions!K:K,\"En cours\",Actions!G:G,3,Actions!B:B,B24)","v":0},{"$f":"COUNTIFS(Actions!I:I,\"Non\",Actions!B:B,B24)","v":0},{"$f":"COUNTIFS(Actions!I:I,\"Non\",Actions!G:G,3,Actions!B:B,B24)","v":0},{"$f":"M24-COUNTIFS(Actions!I:I,\"NA\",Actions!B:B,B24)","v":2},{"$f":"N24-COUNTIFS(Actions!I:I,\"NA\",Actions!G:G,3,Actions!B:B,B24)","v":2},{"$f":"O24-COUNTIFS(Actions!I:I,\"NA\",Actions!G:G,3,Actions!B:B,B24)-COUNTIFS(Actions!I:I,\"NA\",Actions!G:G,2,Actions!B:B,B24)","v":2},{"$f":"COUNTIFS(Actions!AW:AW,1,Actions!B:B,B24)","v":2},{"$f":"COUNTIFS(Actions!AW:AW,1,Actions!G:G,3,Actions!B:B,B24)","v":2},{"$f":"COUNTIFS(Actions!AW:AW,1,Actions!G:G,3,Actions!B:B,B24)+COUNTIFS(Actions!AW:AW,1,Actions!G:G,2,Actions!B:B,B24)","v":2},{"$f":"IF(K24=0,0,D24/K24)","v":0},{"$f":"IF(L24=0,0,E24/L24)","v":0},{"$f":"IF(J24=0,0,C24/J24)","v":0}]
[null,"Apport culturel",{"$f":"COUNTIFS(Actions!K:K,\"Fait\",Actions!C:C,B25)","v":0},{"$f":"COUNTIFS(Actions!K:K,\"Fait\",Actions!C:C,B25,Actions!G:G,3)","v":0},{"$f":"COUNTIFS(Actions!K:K,\"Fait\",Actions!C:C,B25,Actions!G:G,3)+COUNTIFS(Actions!K:K,\"Fait\",Actions!C:C,B25,Actions!G:G,2)","v":0},{"$f":"COUNTIFS(Actions!K:K,\"En cours\",Actions!C:C,B25)","v":0},{"$f":"COUNTIFS(Actions!K:K,\"En cours\",Actions!G:G,3,Actions!C:C,B25)","v":0},{"$f":"COUNTIFS(Actions!I:I,\"Non\",Actions!C:C,B25)","v":0},{"$f":"COUNTIFS(Actions!I:I,\"Non\",Actions!G:G,3,Actions!C:C,B25)","v":0},{"$f":"M25-COUNTIFS(Actions!I:I,\"NA\",Actions!C:C,B25)","v":2},{"$f":"N25-COUNTIFS(Actions!I:I,\"NA\",Actions!G:G,3,Actions!C:C,B25)","v":2},{"$f":"O25-COUNTIFS(Actions!I:I,\"NA\",Actions!G:G,3,Actions!C:C,B25)-COUNTIFS(Actions!I:I,\"NA\",Actions!G:G,2,Actions!C:C,B25)","v":2},{"$f":"COUNTIFS(Actions!AW:AW,1,Actions!C:C,B25)","v":2},{"$f":"COUNTIFS(Actions!AW:AW,1,Actions!G:G,3,Actions!C:C,B25)","v":2},{"$f":"COUNTIFS(Actions!AW:AW,1,Actions!G:G,3,Actions!C:C,B25)+COUNTIFS(Actions!AW:AW,1,Actions!G:G,2,Actions!C:C,B25)","v":2},{"$f":"IF(K25=0,\"\",D25/K25)","v":0},{"$f":"IF(L25=0,\"\",E25/L25)","v":0},0]
[null,"Echanges culturels",{"$f":"COUNTIFS(Actions!K:K,\"Fait\",Actions!C:C,B26)","v":0},{"$f":"COUNTIFS(Actions!K:K,\"Fait\",Actions!C:C,B26,Actions!G:G,3)","v":0},{"$f":"COUNTIFS(Actions!K:K,\"Fait\",Actions!C:C,B26,Actions!G:G,3)+COUNTIFS(Actions!K:K,\"Fait\",Actions!C:C,B26,Actions!G:G,2)","v":0},{"$f":"COUNTIFS(Actions!K:K,\"En cours\",Actions!C:C,B26)","v":0},{"$f":"COUNTIFS(Actions!K:K,\"En cours\",Actions!G:G,3,Actions!C:C,B26)","v":0},{"$f":"COUNTIFS(Actions!I:I,\"Non\",Actions!C:C,B26)","v":0},{"$f":"COUNTIFS(Actions!I:I,\"Non\",Actions!G:G,3,Actions!C:C,B26)","v":0},{"$f":"M26-COUNTIFS(Actions!I:I,\"NA\",Actions!C:C,B26)","v":0},{"$f":"N26-COUNTIFS(Actions!I:I,\"NA\",Actions!G:G,3,Actions!C:C,B26)","v":0},{"$f":"O26-COUNTIFS(Actions!I:I,\"NA\",Actions!G:G,3,Actions!C:C,B26)-COUNTIFS(Actions!I:I,\"NA\",Actions!G:G,2,Actions!C:C,B26)","v":0},{"$f":"COUNTIFS(Actions!AW:AW,1,Actions!C:C,B26)","v":0},{"$f":"COUNTIFS(Actions!AW:AW,1,Actions!G:G,3,Actions!C:C,B26)","v":0},{"$f":"COUNTIFS(Actions!AW:AW,1,Actions!G:G,3,Actions!C:C,B26)+COUNTIFS(Actions!AW:AW,1,Actions!G:G,2,Actions!C:C,B26)","v":0},{"$f":"IF(K26=0,\"\",D26/K26)","v":""},"",""]
[null,"Sensibilisation au développement durable",{"$f":"COUNTIFS(Actions!K:K,\"Fait\",Actions!C:C,B27)","v":0},{"$f":"COUNTIFS(Actions!K:K,\"Fait\",Actions!C:C,B27,Actions!G:G,3)","v":0},{"$f":"COUNTIFS(Actions!K:K,\"Fait\",Actions!C:C,B27,Actions!G:G,3)+COUNTIFS(Actions!K:K,\"Fait\",Actions!C:C,B27,Actions!G:G,2)","v":0},{"$f":"COUNTIFS(Actions!K:K,\"En cours\",Actions!C:C,B27)","v":0},{"$f":"COUNTIFS(Actions!K:K,\"En cours\",Actions!G:G,3,Actions!C:C,B27)","v":0},{"$f":"COUNTIFS(Actions!I:I,\"Non\",Actions!C:C,B27)","v":0},{"$f":"COUNTIFS(Actions!I:I,\"Non\",Actions!G:G,3,Actions!C:C,B27)","v":0},{"$f":"M27-COUNTIFS(Actions!I:I,\"NA\",Actions!C:C,B27)","v":0},{"$f":"N27-COUNTIFS(Actions!I:I,\"NA\",Actions!G:G,3,Actions!C:C,B27)","v":0},{"$f":"O27-COUNTIFS(Actions!I:I,\"NA\",Actions!G:G,3,Actions!C:C,B27)-COUNTIFS(Actions!I:I,\"NA\",Actions!G:G,2,Actions!C:C,B27)","v":0},{"$f":"COUNTIFS(Actions!AW:AW,1,Actions!C:C,B27)","v":0},{"$f":"COUNTIFS(Actions!AW:AW,1,Actions!G:G,3,Actions!C:C,B27)","v":0},{"$f":"COUNTIFS(Actions!AW:AW,1,Actions!G:G,3,Actions!C:C,B27)+COUNTIFS(Actions!AW:AW,1,Actions!G:G,2,Actions!C:C,B27)","v":0},{"$f":"IF(K27=0,\"\",D27/K27)","v":""},"",""]
[]
[null,"ECONOMIE",{"$f":"COUNTIFS(Actions!K:K,\"Fait\",Actions!B:B,B29)","v":0},{"$f":"COUNTIFS(Actions!K:K,\"Fait\",Actions!B:B,B29,Actions!G:G,3)","v":0},{"$f":"COUNTIFS(Actions!K:K,\"Fait\",Actions!B:B,B29,Actions!G:G,3)+COUNTIFS(Actions!K:K,\"Fait\",Actions!B:B,B29,Actions!G:G,2)","v":0},{"$f":"COUNTIFS(Actions!K:K,\"En cours\",Actions!B:B,B29)","v":0},{"$f":"COUNTIFS(Actions!K:K,\"En cours\",Actions!G:G,3,Actions!B:B,B29)","v":0},{"$f":"COUNTIFS(Actions!I:I,\"Non\",Actions!B:B,B29)","v":0},{"$f":"COUNTIFS(Actions!I:I,\"Non\",Actions!G:G,3,Actions!B:B,B29)","v":0},{"$f":"M29-COUNTIFS(Actions!I:I,\"NA\",Actions!B:B,B29)","v":4},{"$f":"N29-COUNTIFS(Actions!I:I,\"NA\",Actions!G:G,3,Actions!B:B,B29)","v":4},{"$f":"O29-COUNTIFS(Actions!I:I,\"NA\",Actions!G:G,3,Actions!B:B,B29)-COUNTIFS(Actions!I:I,\"NA\",Actions!G:G,2,Actions!B:B,B29)","v":4},{"$f":"COUNTIFS(Actions!AW:AW,1,Actions!B:B,B29)","v":4},{"$f":"COUNTIFS(Actions!AW:AW,1,Actions!G:G,3,Actions!B:B,B29)","v":4},{"$f":"COUNTIFS(Actions!AW:AW,1,Actions!G:G,3,Actions!B:B,B29)+COUNTIFS(Actions!AW:AW,1,Actions!G:G,2,Actions!B:B,B29)","v":4},{"$f":"IF(K29=0,0,D29/K29)","v":0},{"$f":"IF(L29=0,0,E29/L29)","v":0},{"$f":"IF(J29=0,0,C29/J29)","v":0}]
[null,"Gestion du budget",{"$f":"COUNTIFS(Actions!K:K,\"Fait\",Actions!C:C,B30)","v":0},{"$f":"COUNTIFS(Actions!K:K,\"Fait\",Actions!C:C,B30,Actions!G:G,3)","v":0},{"$f":"COUNTIFS(Actions!K:K,\"Fait\",Actions!C:C,B30,Actions!G:G,3)+COUNTIFS(Actions!K:K,\"Fait\",Actions!C:C,B30,Actions!G:G,2)","v":0},{"$f":"COUNTIFS(Actions!K:K,\"En cours\",Actions!C:C,B30)","v":0},{"$f":"COUNTIFS(Actions!K:K,\"En cours\",Actions!G:G,3,Actions!C:C,B30)","v":0},{"$f":"COUNTIFS(Actions!I:I,\"Non\",Actions!C:C,B30)","v":0},{"$f":"COUNTIFS(Actions!I:I,\"Non\",Actions!G:G,3,Actions!C:C,B30)","v":0},{"$f":"M30-COUNTIFS(Actions!I:I,\"NA\",Actions!C:C,B30)","v":2},{"$f":"N30-COUNTIFS(Actions!I:I,\"NA\",Actions!G:G,3,Actions!C:C,B30)","v":2},{"$f":"O30-COUNTIFS(Actions!I:I,\"NA\",Actions!G:G,3,Actions!C:C,B30)-COUNTIFS(Actions!I:I,\"NA\",Actions!G:G,2,Actions!C:C,B30)","v":2},{"$f":"COUNTIFS(Actions!AW:AW,1,Actions!C:C,B30)","v":2},{"$f":"COUNTIFS(Actions!AW:AW,1,Actions!G:G,3,Actions!C:C,B30)","v":2},{"$f":"COUNTIFS(Actions!AW:AW,1,Actions!G:G,3,Actions!C:C,B30)+COUNTIFS(Actions!AW:AW,1,Actions!G:G,2,Actions!C:C,B30)","v":2},{"$f":"IF(K30=0,\"\",D30/K30)","v":0},{"$f":"IF(L30=0,\"\",E30/L30)","v":0},0]
[null,"Impacts économiques indirects",{"$f":"COUNTIFS(Actions!K:K,\"Fait\",Actions!C:C,B31)","v":0},{"$f":"COUNTIFS(Actions!K:K,\"Fait\",Actions!C:C,B31,Actions!G:G,3)","v":0},{"$f":"COUNTIFS(Actions!K:K,\"Fait\",Actions!C:C,B31,Actions!G:G,3)+COUNTIFS(Actions!K:K,\"Fait\",Actions!C:C,B31,Actions!G:G,2)","v":0},{"$f":"COUNTIFS(Actions!K:K,\"En cours\",Actions!C:C,B31)","v":0},{"$f":"COUNTIFS(Actions!K:K,\"En cours\",Actions!G:G,3,Actions!C:C,B31)","v":0},{"$f":"COUNTIFS(Actions!I:I,\"Non\",Actions!C:C,B31)","v":0},{"$f":"COUNTIFS(Actions!I:I,\"Non\",Actions!G:G,3,Actions!C:C,B31)","v":0},{"$f":"M31-COUNTIFS(Actions!I:I,\"NA\",Actions!C:C,B31)","v":1},{"$f":"N31-COUNTIFS(Actions!I:I,\"NA\",Actions!G:G,3,Actions!C:C,B31)","v":1},{"$f":"O31-COUNTIFS(Actions!I:I,\"NA\",Actions!G:G,3,Actions!C:C,B31)-COUNTIFS(Actions!I:I,\"NA\",Actions!G:G,2,Actions!C:C,B31)","v":1},{"$f":"COUNTIFS(Actions!AW:AW,1,Actions!C:C,B31)","v":1},{"$f":"COUNTIFS(Actions!AW:AW,1,Actions!G:G,3,Actions!C:C,B31)","v":1},{"$f":"COUNTIFS(Actions!AW:AW,1,Actions!G:G,3,Actions!C:C,B31)+COUNTIFS(Actions!AW:AW,1,Actions!G:G,2,Actions!C:C,B31)","v":1},{"$f":"IF(K31=0,\"\",D31/K31)","v":0},0,0]
[null,"Investissement juste",{"$f":"COUNTIFS(Actions!K:K,\"Fait\",Actions!C:C,B32)","v":0},{"$f":"COUNTIFS(Actions!K:K,\"Fait\",Actions!C:C,B32,Actions!G:G,3)","v":0},{"$f":"COUNTIFS(Actions!K:K,\"Fait\",Actions!C:C,B32,Actions!G:G,3)+COUNTIFS(Actions!K:K,\"Fait\",Actions!C:C,B32,Actions!G:G,2)","v":0},{"$f":"COUNTIFS(Actions!K:K,\"En cours\",Actions!C:C,B32)","v":0},{"$f":"COUNTIFS(Actions!K:K,\"En cours\",Actions!G:G,3,Actions!C:C,B32)","v":0},{"$f":"COUNTIFS(Actions!I:I,\"Non\",Actions!C:C,B32)","v":0},{"$f":"COUNTIFS(Actions!I:I,\"Non\",Actions!G:G,3,Actions!C:C,B32)","v":0},{"$f":"M32-COUNTIFS(Actions!I:I,\"NA\",Actions!C:C,B32)","v":1},{"$f":"N32-COUNTIFS(Actions!I:I,\"NA\",Actions!G:G,3,Actions!C:C,B32)","v":1},{"$f":"O32-COUNTIFS(Actions!I:I,\"NA\",Actions!G:G,3,Actions!C:C,B32)-COUNTIFS(Actions!I:I,\"NA\",Actions!G:G,2,Actions!C:C,B32)","v":1},{"$f":"COUNTIFS(Actions!AW:AW,1,Actions!C:C,B32)","v":1},{"$f":"COUNTIFS(Actions!AW:AW,1,Actions!G:G,3,Actions!C:C,B32)","v":1},{"$f":"COUNTIFS(Actions!AW:AW,1,Actions!G:G,3,Actions!C:C,B32)+COUNTIFS(Actions!AW:AW,1,Actions!G:G,2,Actions!C:C,B32)","v":1},{"$f":"IF(K32=0,\"\",D32/K32)","v":0},0,0]
[null,"Rémunération et subordination",{"$f":"COUNTIFS(Actions!K:K,\"Fait\",Actions!C:C,B33)","v":0},{"$f":"COUNTIFS(Actions!K:K,\"Fait\",Actions!C:C,B33,Actions!G:G,3)","v":0},{"$f":"COUNTIFS(Actions!K:K,\"Fait\",Actions!C:C,B33,Actions!G:G,3)+COUNTIFS(Actions!K:K,\"Fait\",Actions!C:C,B33,Actions!G:G,2)","v":0},{"$f":"COUNTIFS(Actions!K:K,\"En cours\",Actions!C:C,B33)","v":0},{"$f":"COUNTIFS(Actions!K:K,\"En cours\",Actions!G:G,3,Actions!C:C,B33)","v":0},{"$f":"COUNTIFS(Actions!I:I,\"Non\",Actions!C:C,B33)","v":0},{"$f":"COUNTIFS(Actions!I:I,\"Non\",Actions!G:G,3,Actions!C:C,B33)","v":0},{"$f":"M33-COUNTIFS(Actions!I:I,\"NA\",Actions!C:C,B33)","v":0},{"$f":"N33-COUNTIFS(Actions!I:I,\"NA\",Actions!G:G,3,Actions!C:C,B33)","v":0},{"$f":"O33-COUNTIFS(Actions!I:I,\"NA\",Actions!G:G,3,Actions!C:C,B33)-COUNTIFS(Actions!I:I,\"NA\",Actions!G:G,2,Actions!C:C,B33)","v":0},{"$f":"COUNTIFS(Actions!AW:AW,1,Actions!C:C,B33)","v":0},{"$f":"COUNTIFS(Actions!AW:AW,1,Actions!G:G,3,Actions!C:C,B33)","v":0},{"$f":"COUNTIFS(Actions!AW:AW,1,Actions!G:G,3,Actions!C:C,B33)+COUNTIFS(Actions!AW:AW,1,Actions!G:G,2,Actions!C:C,B33)","v":0},{"$f":"IF(K33=0,\"\",D33/K33)","v":""},"",""]
[]
[null,"EMPREINTE CARBONE",{"$f":"COUNTIFS(Actions!K:K,\"Fait\",Actions!B:B,B35)","v":0},{"$f":"COUNTIFS(Actions!K:K,\"Fait\",Actions!B:B,B35,Actions!G:G,3)","v":0},{"$f":"COUNTIFS(Actions!K:K,\"Fait\",Actions!B:B,B35,Actions!G:G,3)+COUNTIFS(Actions!K:K,\"Fait\",Actions!B:B,B35,Actions!G:G,2)","v":0},{"$f":"COUNTIFS(Actions!K:K,\"En cours\",Actions!B:B,B35)","v":0},{"$f":"COUNTIFS(Actions!K:K,\"En cours\",Actions!G:G,3,Actions!B:B,B35)","v":0},{"$f":"COUNTIFS(Actions!I:I,\"Non\",Actions!B:B,B35)","v":0},{"$f":"COUNTIFS(Actions!I:I,\"Non\",Actions!G:G,3,Actions!B:B,B35)","v":0},{"$f":"M35-COUNTIFS(Actions!I:I,\"NA\",Actions!B:B,B35)","v":14},{"$f":"N35-COUNTIFS(Actions!I:I,\"NA\",Actions!G:G,3,Actions!B:B,B35)","v":14},{"$f":"O35-COUNTIFS(Actions!I:I,\"NA\",Actions!G:G,3,Actions!B:B,B35)-COUNTIFS(Actions!I:I,\"NA\",Actions!G:G,2,Actions!B:B,B35)","v":14},{"$f":"COUNTIFS(Actions!AW:AW,1,Actions!B:B,B35)","v":14},{"$f":"COUNTIFS(Actions!AW:AW,1,Actions!G:G,3,Actions!B:B,B35)","v":14},{"$f":"COUNTIFS(Actions!AW:AW,1,Actions!G:G,3,Actions!B:B,B35)+COUNTIFS(Actions!AW:AW,1,Actions!G:G,2,Actions!B:B,B35)","v":14},{"$f":"IF(K35=0,0,D35/K35)","v":0},{"$f":"IF(L35=0,0,E35/L35)","v":0},{"$f":"IF(J35=0,0,C35/J35)","v":0}]
[null,"Restauration",{"$f":"COUNTIFS(Actions!K:K,\"Fait\",Actions!C:C,B36)","v":0},{"$f":"COUNTIFS(Actions!K:K,\"Fait\",Actions!C:C,B36,Actions!G:G,3)","v":0},{"$f":"COUNTIFS(Actions!K:K,\"Fait\",Actions!C:C,B36,Actions!G:G,3)+COUNTIFS(Actions!K:K,\"Fait\",Actions!C:C,B36,Actions!G:G,2)","v":0},{"$f":"COUNTIFS(Actions!K:K,\"En cours\",Actions!C:C,B36)","v":0},{"$f":"COUNTIFS(Actions!K:K,\"En cours\",Actions!G:G,3,Actions!C:C,B36)","v":0},{"$f":"COUNTIFS(Actions!I:I,\"Non\",Actions!C:C,B36)","v":0},{"$f":"COUNTIFS(Actions!I:I,\"Non\",Actions!G:G,3,Actions!C:C,B36)","v":0},{"$f":"M36-COUNTIFS(Actions!I:I,\"NA\",Actions!C:C,B36)","v":2},{"$f":"N36-COUNTIFS(Actions!I:I,\"NA\",Actions!G:G,3,Actions!C:C,B36)","v":2},{"$f":"O36-COUNTIFS(Actions!I:I,\"NA\",Actions!G:G,3,Actions!C:C,B36)-COUNTIFS(Actions!I:I,\"NA\",Actions!G:G,2,Actions!C:C,B36)","v":2},{"$f":"COUNTIFS(Actions!AW:AW,1,Actions!C:C,B36)","v":2},{"$f":"COUNTIFS(Actions!AW:AW,1,Actions!G:G,3,Actions!C:C,B36)","v":2},{"$f":"COUNTIFS(Actions!AW:AW,1,Actions!G:G,3,Actions!C:C,B36)+COUNTIFS(Actions!AW:AW,1,Actions!G:G,2,Actions!C:C,B36)","v":2},{"$f":"IF(K36=0,\"\",D36/K36)","v":0},{"$f":"IF(L36=0,\"\",E36/L36)","v":0},{"$f":"IF(J36=0,\"\",C36/J36)","v":0}]
[null,"Lieu",{"$f":"COUNTIFS(Actions!K:K,\"Fait\",Actions!C:C,B37)","v":0},{"$f":"COUNTIFS(Actions!K:K,\"Fait\",Actions!C:C,B37,Actions!G:G,3)","v":0},{"$f":"COUNTIFS(Actions!K:K,\"Fait\",Actions!C:C,B37,Actions!G:G,3)+COUNTIFS(Actions!K:K,\"Fait\",Actions!C:C,B37,Actions!G:G,2)","v":0},{"$f":"COUNTIFS(Actions!K:K,\"En cours\",Actions!C:C,B37)","v":0},{"$f":"COUNTIFS(Actions!K:K,\"En cours\",Actions!G:G,3,Actions!C:C,B37)","v":0},{"$f":"COUNTIFS(Actions!I:I,\"Non\",Actions!C:C,B37)","v":0},{"$f":"COUNTIFS(Actions!I:I,\"Non\",Actions!G:G,3,Actions!C:C,B37)","v":0},{"$f":"M37-COUNTIFS(Actions!I:I,\"NA\",Actions!C:C,B37)","v":2},{"$f":"N37-COUNTIFS(Actions!I:I,\"NA\",Actions!G:G,3,Actions!C:C,B37)","v":2},{"$f":"O37-COUNTIFS(Actions!I:I,\"NA\",Actions!G:G,3,Actions!C:C,B37)-COUNTIFS(Actions!I:I,\"NA\",Actions!G:G,2,Actions!C:C,B37)","v":2},{"$f":"COUNTIFS(Actions!AW:AW,1,Actions!C:C,B37)","v":2},{"$f":"COUNTIFS(Actions!AW:AW,1,Actions!G:G,3,Actions!C:C,B37)","v":2},{"$f":"COUNTIFS(Actions!AW:AW,1,Actions!G:G,3,Actions!C:C,B37)+COUNTIFS(Actions!AW:AW,1,Actions!G:G,2,Actions!C:C,B37)","v":2},0,0,0]
[null,"Matériels",{"$f":"COUNTIFS(Actions!K:K,\"Fait\",Actions!C:C,B38)","v":0},{"$f":"COUNTIFS(Actions!K:K,\"Fait\",Actions!C:C,B38,Actions!G:G,3)","v":0},{"$f":"COUNTIFS(Actions!K:K,\"Fait\",Actions!C:C,B38,Actions!G:G,3)+COUNTIFS(Actions!K:K,\"Fait\",Actions!C:C,B38,Actions!G:G,2)","v":0},{"$f":"COUNTIFS(Actions!K:K,\"En cours\",Actions!C:C,B38)","v":0},{"$f":"COUNTIFS(Actions!K:K,\"En cours\",Actions!G:G,3,Actions!C:C,B38)","v":0},{"$f":"COUNTIFS(Actions!I:I,\"Non\",Actions!C:C,B38)","v":0},{"$f":"COUNTIFS(Actions!I:I,\"Non\",Actions!G:G,3,Actions!C:C,B38)","v":0},{"$f":"M38-COUNTIFS(Actions!I:I,\"NA\",Actions!C:C,B38)","v":2},{"$f":"N38-COUNTIFS(Actions!I:I,\"NA\",Actions!G:G,3,Actions!C:C,B38)","v":2},{"$f":"O38-COUNTIFS(Actions!I:I,\"NA\",Actions!G:G,3,Actions!C:C,B38)-COUNTIFS(Actions!I:I,\"NA\",Actions!G:G,2,Actions!C:C,B38)","v":2},{"$f":"COUNTIFS(Actions!AW:AW,1,Actions!C:C,B38)","v":2},{"$f":"COUNTIFS(Actions!AW:AW,1,Actions!G:G,3,Actions!C:C,B38)","v":2},{"$f":"COUNTIFS(Actions!AW:AW,1,Actions!G:G,3,Actions!C:C,B38)+COUNTIFS(Actions!AW:AW,1,Actions!G:G,2,Actions!C:C,B38)","v":2},0,0,0]
[null,"Déplacement de personnes",{"$f":"COUNTIFS(Actions!K:K,\"Fait\",Actions!C:C,B39)","v":0},{"$f":"COUNTIFS(Actions!K:K,\"Fait\",Actions!C:C,B39,Actions!G:G,3)","v":0},{"$f":"COUNTIFS(Actions!K:K,\"Fait\",Actions!C:C,B39,Actions!G:G,3)+COUNTIFS(Actions!K:K,\"Fait\",Actions!C:C,B39,Actions!G:G,2)","v":0},{"$f":"COUNTIFS(Actions!K:K,\"En cours\",Actions!C:C,B39)","v":0},{"$f":"COUNTIFS(Actions!K:K,\"En cours\",Actions!G:G,3,Actions!C:C,B39)","v":0},{"$f":"COUNTIFS(Actions!I:I,\"Non\",Actions!C:C,B39)","v":0},{"$f":"COUNTIFS(Actions!I:I,\"Non\",Actions!G:G,3,Actions!C:C,B39)","v":0},{"$f":"M39-COUNTIFS(Actions!I:I,\"NA\",Actions!C:C,B39)","v":1},{"$f":"N39-COUNTIFS(Actions!I:I,\"NA\",Actions!G:G,3,Actions!C:C,B39)","v":1},{"$f":"O39-COUNTIFS(Actions!I:I,\"NA\",Actions!G:G,3,Actions!C:C,B39)-COUNTIFS(Actions!I:I,\"NA\",Actions!G:G,2,Actions!C:C,B39)","v":1},{"$f":"COUNTIFS(Actions!AW:AW,1,Actions!C:C,B39)","v":1},{"$f":"COUNTIFS(Actions!AW:AW,1,Actions!G:G,3,Actions!C:C,B39)","v":1},{"$f":"COUNTIFS(Actions!AW:AW,1,Actions!G:G,3,Actions!C:C,B39)+COUNTIFS(Actions!AW:AW,1,Actions!G:G,2,Actions!C:C,B39)","v":1},0,0,0]
[null,"Communication",{"$f":"COUNTIFS(Actions!K:K,\"Fait\",Actions!C:C,B40)","v":0},{"$f":"COUNTIFS(Actions!K:K,\"Fait\",Actions!C:C,B40,Actions!G:G,3)","v":0},{"$f":"COUNTIFS(Actions!K:K,\"Fait\",Actions!C:C,B40,Actions!G:G,3)+COUNTIFS(Actions!K:K,\"Fait\",Actions!C:C,B40,Actions!G:G,2)","v":0},{"$f":"COUNTIFS(Actions!K:K,\"En cours\",Actions!C:C,B40)","v":0},{"$f":"COUNTIFS(Actions!K:K,\"En cours\",Actions!G:G,3,Actions!C:C,B40)","v":0},{"$f":"COUNTIFS(Actions!I:I,\"Non\",Actions!C:C,B40)","v":0},{"$f":"COUNTIFS(Actions!I:I,\"Non\",Actions!G:G,3,Actions!C:C,B40)","v":0},{"$f":"M40-COUNTIFS(Actions!I:I,\"NA\",Actions!C:C,B40)","v":3},{"$f":"N40-COUNTIFS(Actions!I:I,\"NA\",Actions!G:G,3,Actions!C:C,B40)","v":3},{"$f":"O40-COUNTIFS(Actions!I:I,\"NA\",Actions!G:G,3,Actions!C:C,B40)-COUNTIFS(Actions!I:I,\"NA\",Actions!G:G,2,Actions!C:C,B40)","v":3},{"$f":"COUNTIFS(Actions!AW:AW,1,Actions!C:C,B40)","v":3},{"$f":"COUNTIFS(Actions!AW:AW,1,Actions!G:G,3,Actions!C:C,B40)","v":3},{"$f":"COUNTIFS(Actions!AW:AW,1,Actions!G:G,3,Actions!C:C,B40)+COUNTIFS(Actions!AW:AW,1,Actions!G:G,2,Actions!C:C,B40)","v":3},0,0,0]
[null,"Sensibilisation",{"$f":"COUNTIFS(Actions!K:K,\"Fait\",Actions!C:C,B41)","v":0},{"$f":"COUNTIFS(Actions!K:K,\"Fait\",Actions!C:C,B41,Actions!G:G,3)","v":0},{"$f":"COUNTIFS(Actions!K:K,\"Fait\",Actions!C:C,B41,Actions!G:G,3)+COUNTIFS(Actions!K:K,\"Fait\",Actions!C:C,B41,Actions!G:G,2)","v":0},{"$f":"COUNTIFS(Actions!K:K,\"En cours\",Actions!C:C,B41)","v":0},{"$f":"COUNTIFS(Actions!K:K,\"En cours\",Actions!G:G,3,Actions!C:C,B41)","v":0},{"$f":"COUNTIFS(Actions!I:I,\"Non\",Actions!C:C,B41)","v":0},{"$f":"COUNTIFS(Actions!I:I,\"Non\",Actions!G:G,3,Actions!C:C,B41)","v":0},{"$f":"M41-COUNTIFS(Actions!I:I,\"NA\",Actions!C:C,B41)","v":4},{"$f":"N41-COUNTIFS(Actions!I:I,\"NA\",Actions!G:G,3,Actions!C:C,B41)","v":4},{"$f":"O41-COUNTIFS(Actions!I:I,\"NA\",Actions!G:G,3,Actions!C:C,B41)-COUNTIFS(Actions!I:I,\"NA\",Actions!G:G,2,Actions!C:C,B41)","v":4},{"$f":"COUNTIFS(Actions!AW:AW,1,Actions!C:C,B41)","v":4},{"$f":"COUNTIFS(Actions!AW:AW,1,Actions!G:G,3,Actions!C:C,B41)","v":4},{"$f":"COUNTIFS(Actions!AW:AW,1,Actions!G:G,3,Actions!C:C,B41)+COUNTIFS(Actions!AW:AW,1,Actions!G:G,2,Actions!C:C,B41)","v":4},0,0,0]
[]
[null,"EQUITE",{"$f":"COUNTIFS(Actions!K:K,\"Fait\",Actions!B:B,B43)","v":0},{"$f":"COUNTIFS(Actions!K:K,\"Fait\",Actions!B:B,B43,Actions!G:G,3)","v":0},{"$f":"COUNTIFS(Actions!K:K,\"Fait\",Actions!B:B,B43,Actions!G:G,3)+COUNTIFS(Actions!K:K,\"Fait\",Actions!B:B,B43,Actions!G:G,2)","v":0},{"$f":"COUNTIFS(Actions!K:K,\"En cours\",Actions!B:B,B43)","v":0},{"$f":"COUNTIFS(Actions!K:K,\"En cours\",Actions!G:G,3,Actions!B:B,B43)","v":0},{"$f":"COUNTIFS(Actions!I:I,\"Non\",Actions!B:B,B43)","v":0},{"$f":"COUNTIFS(Actions!I:I,\"Non\",Actions!G:G,3,Actions!B:B,B43)","v":0},{"$f":"M43-COUNTIFS(Actions!I:I,\"NA\",Actions!B:B,B43)","v":2},{"$f":"N43-COUNTIFS(Actions!I:I,\"NA\",Actions!G:G,3,Actions!B:B,B43)","v":2},{"$f":"O43-COUNTIFS(Actions!I:I,\"NA\",Actions!G:G,3,Actions!B:B,B43)-COUNTIFS(Actions!I:I,\"NA\",Actions!G:G,2,Actions!B:B,B43)","v":2},{"$f":"COUNTIFS(Actions!AW:AW,1,Actions!B:B,B43)","v":2},{"$f":"COUNTIFS(Actions!AW:AW,1,Actions!G:G,3,Actions!B:B,B43)","v":2},{"$f":"COUNTIFS(Actions!AW:AW,1,Actions!G:G,3,Actions!B:B,B43)+COUNTIFS(Actions!AW:AW,1,Actions!G:G,2,Actions!B:B,B43)","v":2},{"$f":"IF(K43=0,0,D43/K43)","v":0},{"$f":"IF(L43=0,0,E43/L43)","v":0},{"$f":"IF(J43=0,0,C43/J43)","v":0}]
[null,"Accessibilité",{"$f":"COUNTIFS(Actions!K:K,\"Fait\",Actions!C:C,B44)","v":0},{"$f":"COUNTIFS(Actions!K:K,\"Fait\",Actions!C:C,B44,Actions!G:G,3)","v":0},{"$f":"COUNTIFS(Actions!K:K,\"Fait\",Actions!C:C,B44,Actions!G:G,3)+COUNTIFS(Actions!K:K,\"Fait\",Actions!C:C,B44,Actions!G:G,2)","v":0},{"$f":"COUNTIFS(Actions!K:K,\"En cours\",Actions!C:C,B44)","v":0},{"$f":"COUNTIFS(Actions!K:K,\"En cours\",Actions!G:G,3,Actions!C:C,B44)","v":0},{"$f":"COUNTIFS(Actions!I:I,\"Non\",Actions!C:C,B44)","v":0},{"$f":"COUNTIFS(Actions!I:I,\"Non\",Actions!G:G,3,Actions!C:C,B44)","v":0},{"$f":"M44-COUNTIFS(Actions!I:I,\"NA\",Actions!C:C,B44)","v":1},{"$f":"N44-COUNTIFS(Actions!I:I,\"NA\",Actions!G:G,3,Actions!C:C,B44)","v":1},{"$f":"O44-COUNTIFS(Actions!I:I,\"NA\",Actions!G:G,3,Actions!C:C,B44)-COUNTIFS(Actions!I:I,\"NA\",Actions!G:G,2,Actions!C:C,B44)","v":1},{"$f":"COUNTIFS(Actions!AW:AW,1,Actions!C:C,B44)","v":1},{"$f":"COUNTIFS(Actions!AW:AW,1,Actions!G:G,3,Actions!C:C,B44)","v":1},{"$f":"COUNTIFS(Actions!AW:AW,1,Actions!G:G,3,Actions!C:C,B44)+COUNTIFS(Actions!AW:AW,1,Actions!G:G,2,Actions!C:C,B44)","v":1},{"$f":"IF(K44=0,\"\",D44/K44)","v":0},{"$f":"IF(L44=0,\"\",E44/L44)","v":0},0]
[null,"Diversité",{"$f":"COUNTIFS(Actions!K:K,\"Fait\",Actions!C:C,B45)","v":0},{"$f":"COUNTIFS(Actions!K:K,\"Fait\",Actions!C:C,B45,Actions!G:G,3)","v":0},{"$f":"COUNTIFS(Actions!K:K,\"Fait\",Actions!C:C,B45,Actions!G:G,3)+COUNTIFS(Actions!K:K,\"Fait\",Actions!C:C,B45,Actions!G:G,2)","v":0},{"$f":"COUNTIFS(Actions!K:K,\"En cours\",Actions!C:C,B45)","v":0},{"$f":"COUNTIFS(Actions!K:K,\"En cours\",Actions!G:G,3,Actions!C:C,B45)","v":0},{"$f":"COUNTIFS(Actions!I:I,\"Non\",Actions!C:C,B45)","v":0},{"$f":"COUNTIFS(Actions!I:I,\"Non\",Actions!G:G,3,Actions!C:C,B45)","v":0},{"$f":"M45-COUNTIFS(Actions!I:I,\"NA\",Actions!C:C,B45)","v":0},{"$f":"N45-COUNTIFS(Actions!I:I,\"NA\",Actions!G:G,3,Actions!C:C,B45)","v":0},{"$f":"O45-COUNTIFS(Actions!I:I,\"NA\",Actions!G:G,3,Actions!C:C,B45)-COUNTIFS(Actions!I:I,\"NA\",Actions!G:G,2,Actions!C:C,B45)","v":0},{"$f":"COUNTIFS(Actions!AW:AW,1,Actions!C:C,B45)","v":0},{"$f":"COUNTIFS(Actions!AW:AW,1,Actions!G:G,3,Actions!C:C,B45)","v":0},{"$f":"COUNTIFS(Actions!AW:AW,1,Actions!G:G,3,Actions!C:C,B45)+COUNTIFS(Actions!AW:AW,1,Actions!G:G,2,Actions!C:C,B45)","v":0},{"$f":"IF(K45=0,\"\",D45/K45)","v":""},"",""]
[null,"Equité des pratiques",{"$f":"COUNTIFS(Actions!K:K,\"Fait\",Actions!C:C,B46)","v":0},{"$f":"COUNTIFS(Actions!K:K,\"Fait\",Actions!C:C,B46,Actions!G:G,3)","v":0},{"$f":"COUNTIFS(Actions!K:K,\"Fait\",Actions!C:C,B46,Actions!G:G,3)+COUNTIFS(Actions!K:K,\"Fait\",Actions!C:C,B46,Actions!G:G,2)","v":0},{"$f":"COUNTIFS(Actions!K:K,\"En cours\",Actions!C:C,B46)","v":0},{"$f":"COUNTIFS(Actions!K:K,\"En cours\",Actions!G:G,3,Actions!C:C,B46)","v":0},{"$f":"COUNTIFS(Actions!I:I,\"Non\",Actions!C:C,B46)","v":0},{"$f":"COUNTIFS(Actions!I:I,\"Non\",Actions!G:G,3,Actions!C:C,B46)","v":0},{"$f":"M46-COUNTIFS(Actions!I:I,\"NA\",Actions!C:C,B46)","v":1},{"$f":"N46-COUNTIFS(Actions!I:I,\"NA\",Actions!G:G,3,Actions!C:C,B46)","v":1},{"$f":"O46-COUNTIFS(Actions!I:I,\"NA\",Actions!G:G,3,Actions!C:C,B46)-COUNTIFS(Actions!I:I,\"NA\",Actions!G:G,2,Actions!C:C,B46)","v":1},{"$f":"COUNTIFS(Actions!AW:AW,1,Actions!C:C,B46)","v":1},{"$f":"COUNTIFS(Actions!AW:AW,1,Actions!G:G,3,Actions!C:C,B46)","v":1},{"$f":"COUNTIFS(Actions!AW:AW,1,Actions!G:G,3,Actions!C:C,B46)+COUNTIFS(Actions!AW:AW,1,Actions!G:G,2,Actions!C:C,B46)","v":1},{"$f":"IF(K46=0,\"\",D46/K46)","v":0},0,0]
[]
[null,"GESTION DES RESSOURCES",{"$f":"COUNTIFS(Actions!K:K,\"Fait\",Actions!B:B,B48)","v":0},{"$f":"COUNTIFS(Actions!K:K,\"Fait\",Actions!B:B,B48,Actions!G:G,3)","v":0},{"$f":"COUNTIFS(Actions!K:K,\"Fait\",Actions!B:B,B48,Actions!G:G,3)+COUNTIFS(Actions!K:K,\"Fait\",Actions!B:B,B48,Actions!G:G,2)","v":0},{"$f":"COUNTIFS(Actions!K:K,\"En cours\",Actions!B:B,B48)","v":0},{"$f":"COUNTIFS(Actions!K:K,\"En cours\",Actions!G:G,3,Actions!B:B,B48)","v":0},{"$f":"COUNTIFS(Actions!I:I,\"Non\",Actions!B:B,B48)","v":0},{"$f":"COUNTIFS(Actions!I:I,\"Non\",Actions!G:G,3,Actions!B:B,B48)","v":0},{"$f":"M48-COUNTIFS(Actions!I:I,\"NA\",Actions!B:B,B48)","v":5},{"$f":"N48-COUNTIFS(Actions!I:I,\"NA\",Actions!G:G,3,Actions!B:B,B48)","v":5},{"$f":"O48-COUNTIFS(Actions!I:I,\"NA\",Actions!G:G,3,Actions!B:B,B48)-COUNTIFS(Actions!I:I,\"NA\",Actions!G:G,2,Actions!B:B,B48)","v":5},{"$f":"COUNTIFS(Actions!AW:AW,1,Actions!B:B,B48)","v":5},{"$f":"COUNTIFS(Actions!AW:AW,1,Actions!G:G,3,Actions!B:B,B48)","v":5},{"$f":"COUNTIFS(Actions!AW:AW,1,Actions!G:G,3,Actions!B:B,B48)+COUNTIFS(Actions!AW:AW,1,Actions!G:G,2,Actions!B:B,B48)","v":5},{"$f":"IF(K48=0,0,D48/K48)","v":0},{"$f":"IF(L48=0,0,E48/L48)","v":0},{"$f":"IF(J48=0,0,C48/J48)","v":0}]
[null,"alimentation",{"$f":"COUNTIFS(Actions!K:K,\"Fait\",Actions!C:C,B49)","v":0},{"$f":"COUNTIFS(Actions!K:K,\"Fait\",Actions!C:C,B49,Actions!G:G,3)","v":0},{"$f":"COUNTIFS(Actions!K:K,\"Fait\",Actions!C:C,B49,Actions!G:G,3)+COUNTIFS(Actions!K:K,\"Fait\",Actions!C:C,B49,Actions!G:G,2)","v":0},{"$f":"COUNTIFS(Actions!K:K,\"En cours\",Actions!C:C,B49)","v":0},{"$f":"COUNTIFS(Actions!K:K,\"En cours\",Actions!G:G,3,Actions!C:C,B49)","v":0},{"$f":"COUNTIFS(Actions!I:I,\"Non\",Actions!C:C,B49)","v":0},{"$f":"COUNTIFS(Actions!I:I,\"Non\",Actions!G:G,3,Actions!C:C,B49)","v":0},{"$f":"M49-COUNTIFS(Actions!I:I,\"NA\",Actions!C:C,B49)","v":1},{"$f":"N49-COUNTIFS(Actions!I:I,\"NA\",Actions!G:G,3,Actions!C:C,B49)","v":1},{"$f":"O49-COUNTIFS(Actions!I:I,\"NA\",Actions!G:G,3,Actions!C:C,B49)-COUNTIFS(Actions!I:I,\"NA\",Actions!G:G,2,Actions!C:C,B49)","v":1},{"$f":"COUNTIFS(Actions!AW:AW,1,Actions!C:C,B49)","v":1},{"$f":"COUNTIFS(Actions!AW:AW,1,Actions!G:G,3,Actions!C:C,B49)","v":1},{"$f":"COUNTIFS(Actions!AW:AW,1,Actions!G:G,3,Actions!C:C,B49)+COUNTIFS(Actions!AW:AW,1,Actions!G:G,2,Actions!C:C,B49)","v":1},{"$f":"IF(K49=0,\"\",D49/K49)","v":0},{"$f":"IF(L49=0,\"\",E49/L49)","v":0},0]
[null,"eau",{"$f":"COUNTIFS(Actions!K:K,\"Fait\",Actions!C:C,B50)","v":0},{"$f":"COUNTIFS(Actions!K:K,\"Fait\",Actions!C:C,B50,Actions!G:G,3)","v":0},{"$f":"COUNTIFS(Actions!K:K,\"Fait\",Actions!C:C,B50,Actions!G:G,3)+COUNTIFS(Actions!K:K,\"Fait\",Actions!C:C,B50,Actions!G:G,2)","v":0},{"$f":"COUNTIFS(Actions!K:K,\"En cours\",Actions!C:C,B50)","v":0},{"$f":"COUNTIFS(Actions!K:K,\"En cours\",Actions!G:G,3,Actions!C:C,B50)","v":0},{"$f":"COUNTIFS(Actions!I:I,\"Non\",Actions!C:C,B50)","v":0},{"$f":"COUNTIFS(Actions!I:I,\"Non\",Actions!G:G,3,Actions!C:C,B50)","v":0},{"$f":"M50-COUNTIFS(Actions!I:I,\"NA\",Actions!C:C,B50)","v":0},{"$f":"N50-COUNTIFS(Actions!I:I,\"NA\",Actions!G:G,3,Actions!C:C,B50)","v":0},{"$f":"O50-COUNTIFS(Actions!I:I,\"NA\",Actions!G:G,3,Actions!C:C,B50)-COUNTIFS(Actions!I:I,\"NA\",Actions!G:G,2,Actions!C:C,B50)","v":0},{"$f":"COUNTIFS(Actions!AW:AW,1,Actions!C:C,B50)","v":0},{"$f":"COUNTIFS(Actions!AW:AW,1,Actions!G:G,3,Actions!C:C,B50)","v":0},{"$f":"COUNTIFS(Actions!AW:AW,1,Actions!G:G,3,Actions!C:C,B50)+COUNTIFS(Actions!AW:AW,1,Actions!G:G,2,Actions!C:C,B50)","v":0},"","",""]
[null,"énergie",{"$f":"COUNTIFS(Actions!K:K,\"Fait\",Actions!C:C,B51)","v":0},{"$f":"COUNTIFS(Actions!K:K,\"Fait\",Actions!C:C,B51,Actions!G:G,3)","v":0},{"$f":"COUNTIFS(Actions!K:K,\"Fait\",Actions!C:C,B51,Actions!G:G,3)+COUNTIFS(Actions!K:K,\"Fait\",Actions!C:C,B51,Actions!G:G,2)","v":0},{"$f":"COUNTIFS(Actions!K:K,\"En cours\",Actions!C:C,B51)","v":0},{"$f":"COUNTIFS(Actions!K:K,\"En cours\",Actions!G:G,3,Actions!C:C,B51)","v":0},{"$f":"COUNTIFS(Actions!I:I,\"Non\",Actions!C:C,B51)","v":0},{"$f":"COUNTIFS(Actions!I:I,\"Non\",Actions!G:G,3,Actions!C:C,B51)","v":0},{"$f":"M51-COUNTIFS(Actions!I:I,\"NA\",Actions!C:C,B51)","v":1},{"$f":"N51-COUNTIFS(Actions!I:I,\"NA\",Actions!G:G,3,Actions!C:C,B51)","v":1},{"$f":"O51-COUNTIFS(Actions!I:I,\"NA\",Actions!G:G,3,Actions!C:C,B51)-COUNTIFS(Actions!I:I,\"NA\",Actions!G:G,2,Actions!C:C,B51)","v":1},{"$f":"COUNTIFS(Actions!AW:AW,1,Actions!C:C,B51)","v":1},{"$f":"COUNTIFS(Actions!AW:AW,1,Actions!G:G,3,Actions!C:C,B51)","v":1},{"$f":"COUNTIFS(Actions!AW:AW,1,Actions!G:G,3,Actions!C:C,B51)+COUNTIFS(Actions!AW:AW,1,Actions!G:G,2,Actions!C:C,B51)","v":1},0,0,0]
[null,"management",{"$f":"COUNTIFS(Actions!K:K,\"Fait\",Actions!C:C,B52)","v":0},{"$f":"COUNTIFS(Actions!K:K,\"Fait\",Actions!C:C,B52,Actions!G:G,3)","v":0},{"$f":"COUNTIFS(Actions!K:K,\"Fait\",Actions!C:C,B52,Actions!G:G,3)+COUNTIFS(Actions!K:K,\"Fait\",Actions!C:C,B52,Actions!G:G,2)","v":0},{"$f":"COUNTIFS(Actions!K:K,\"En cours\",Actions!C:C,B52)","v":0},{"$f":"COUNTIFS(Actions!K:K,\"En cours\",Actions!G:G,3,Actions!C:C,B52)","v":0},{"$f":"COUNTIFS(Actions!I:I,\"Non\",Actions!C:C,B52)","v":0},{"$f":"COUNTIFS(Actions!I:I,\"Non\",Actions!G:G,3,Actions!C:C,B52)","v":0},{"$f":"M52-COUNTIFS(Actions!I:I,\"NA\",Actions!C:C,B52)","v":2},{"$f":"N52-COUNTIFS(Actions!I:I,\"NA\",Actions!G:G,3,Actions!C:C,B52)","v":2},{"$f":"O52-COUNTIFS(Actions!I:I,\"NA\",Actions!G:G,3,Actions!C:C,B52)-COUNTIFS(Actions!I:I,\"NA\",Actions!G:G,2,Actions!C:C,B52)","v":2},{"$f":"COUNTIFS(Actions!AW:AW,1,Actions!C:C,B52)","v":2},{"$f":"COUNTIFS(Actions!AW:AW,1,Actions!G:G,3,Actions!C:C,B52)","v":2},{"$f":"COUNTIFS(Actions!AW:AW,1,Actions!G:G,3,Actions!C:C,B52)+COUNTIFS(Actions!AW:AW,1,Actions!G:G,2,Actions!C:C,B52)","v":2},0,0,0]
[null,"matières premières et produits",{"$f":"COUNTIFS(Actions!K:K,\"Fait\",Actions!C:C,B53)","v":0},{"$f":"COUNTIFS(Actions!K:K,\"Fait\",Actions!C:C,B53,Actions!G:G,3)","v":0},{"$f":"COUNTIFS(Actions!K:K,\"Fait\",Actions!C:C,B53,Actions!G:G,3)+COUNTIFS(Actions!K:K,\"Fait\",Actions!C:C,B53,Actions!G:G,2)","v":0},{"$f":"COUNTIFS(Actions!K:K,\"En cours\",Actions!C:C,B53)","v":0},{"$f":"COUNTIFS(Actions!K:K,\"En cours\",Actions!G:G,3,Actions!C:C,B53)","v":0},{"$f":"COUNTIFS(Actions!I:I,\"Non\",Actions!C:C,B53)","v":0},{"$f":"COUNTIFS(Actions!I:I,\"Non\",Actions!G:G,3,Actions!C:C,B53)","v":0},{"$f":"M53-COUNTIFS(Actions!I:I,\"NA\",Actions!C:C,B53)","v":3},{"$f":"N53-COUNTIFS(Actions!I:I,\"NA\",Actions!G:G,3,Actions!C:C,B53)","v":3},{"$f":"O53-COUNTIFS(Actions!I:I,\"NA\",Actions!G:G,3,Actions!C:C,B53)-COUNTIFS(Actions!I:I,\"NA\",Actions!G:G,2,Actions!C:C,B53)","v":3},{"$f":"COUNTIFS(Actions!AW:AW,1,Actions!C:C,B53)","v":3},{"$f":"COUNTIFS(Actions!AW:AW,1,Actions!G:G,3,Actions!C:C,B53)","v":3},{"$f":"COUNTIFS(Actions!AW:AW,1,Actions!G:G,3,Actions!C:C,B53)+COUNTIFS(Actions!AW:AW,1,Actions!G:G,2,Actions!C:C,B53)","v":3},0,0,0]
[]
[null,"GOUVERN.",{"$f":"COUNTIFS(Actions!K:K,\"Fait\",Actions!B:B,B55)","v":0},{"$f":"COUNTIFS(Actions!K:K,\"Fait\",Actions!B:B,B55,Actions!G:G,3)","v":0},{"$f":"COUNTIFS(Actions!K:K,\"Fait\",Actions!B:B,B55,Actions!G:G,3)+COUNTIFS(Actions!K:K,\"Fait\",Actions!B:B,B55,Actions!G:G,2)","v":0},{"$f":"COUNTIFS(Actions!K:K,\"En cours\",Actions!B:B,B55)","v":0},{"$f":"COUNTIFS(Actions!K:K,\"En cours\",Actions!G:G,3,Actions!B:B,B55)","v":0},{"$f":"COUNTIFS(Actions!I:I,\"Non\",Actions!B:B,B55)","v":0},{"$f":"COUNTIFS(Actions!I:I,\"Non\",Actions!G:G,3,Actions!B:B,B55)","v":0},{"$f":"M55-COUNTIFS(Actions!I:I,\"NA\",Actions!B:B,B55)","v":3},{"$f":"N55-COUNTIFS(Actions!I:I,\"NA\",Actions!G:G,3,Actions!B:B,B55)","v":3},{"$f":"O55-COUNTIFS(Actions!I:I,\"NA\",Actions!G:G,3,Actions!B:B,B55)-COUNTIFS(Actions!I:I,\"NA\",Actions!G:G,2,Actions!B:B,B55)","v":3},{"$f":"COUNTIFS(Actions!AW:AW,1,Actions!B:B,B55)","v":3},{"$f":"COUNTIFS(Actions!AW:AW,1,Actions!G:G,3,Actions!B:B,B55)","v":3},{"$f":"COUNTIFS(Actions!AW:AW,1,Actions!G:G,3,Actions!B:B,B55)+COUNTIFS(Actions!AW:AW,1,Actions!G:G,2,Actions!B:B,B55)","v":3},{"$f":"IF(K55=0,0,D55/K55)","v":0},{"$f":"IF(L55=0,0,E55/L55)","v":0},{"$f":"IF(J55=0,0,C55/J55)","v":0}]
[null,"Ethique et cadre juridique",{"$f":"COUNTIFS(Actions!K:K,\"Fait\",Actions!C:C,B56)","v":0},{"$f":"COUNTIFS(Actions!K:K,\"Fait\",Actions!C:C,B56,Actions!G:G,3)","v":0},{"$f":"COUNTIFS(Actions!K:K,\"Fait\",Actions!C:C,B56,Actions!G:G,3)+COUNTIFS(Actions!K:K,\"Fait\",Actions!C:C,B56,Actions!G:G,2)","v":0},{"$f":"COUNTIFS(Actions!K:K,\"En cours\",Actions!C:C,B56)","v":0},{"$f":"COUNTIFS(Actions!K:K,\"En cours\",Actions!G:G,3,Actions!C:C,B56)","v":0},{"$f":"COUNTIFS(Actions!I:I,\"Non\",Actions!C:C,B56)","v":0},{"$f":"COUNTIFS(Actions!I:I,\"Non\",Actions!G:G,3,Actions!C:C,B56)","v":0},{"$f":"M56-COUNTIFS(Actions!I:I,\"NA\",Actions!C:C,B56)","v":0},{"$f":"N56-COUNTIFS(Actions!I:I,\"NA\",Actions!G:G,3,Actions!C:C,B56)","v":0},{"$f":"O56-COUNTIFS(Actions!I:I,\"NA\",Actions!G:G,3,Actions!C:C,B56)-COUNTIFS(Actions!I:I,\"NA\",Actions!G:G,2,Actions!C:C,B56)","v":0},{"$f":"COUNTIFS(Actions!AW:AW,1,Actions!C:C,B56)","v":0},{"$f":"COUNTIFS(Actions!AW:AW,1,Actions!G:G,3,Actions!C:C,B56)","v":0},{"$f":"COUNTIFS(Actions!AW:AW,1,Actions!G:G,3,Actions!C:C,B56)+COUNTIFS(Actions!AW:AW,1,Actions!G:G,2,Actions!C:C,B56)","v":0},{"$f":"IF(K56=0,\"\",D56/K56)","v":""},{"$f":"IF(L56=0,\"\",E56/L56)","v":""},""]
[null,"Gestion de l'événement",{"$f":"COUNTIFS(Actions!K:K,\"Fait\",Actions!C:C,B57)","v":0},{"$f":"COUNTIFS(Actions!K:K,\"Fait\",Actions!C:C,B57,Actions!G:G,3)","v":0},{"$f":"COUNTIFS(Actions!K:K,\"Fait\",Actions!C:C,B57,Actions!G:G,3)+COUNTIFS(Actions!K:K,\"Fait\",Actions!C:C,B57,Actions!G:G,2)","v":0},{"$f":"COUNTIFS(Actions!K:K,\"En cours\",Actions!C:C,B57)","v":0},{"$f":"COUNTIFS(Actions!K:K,\"En cours\",Actions!G:G,3,Actions!C:C,B57)","v":0},{"$f":"COUNTIFS(Actions!I:I,\"Non\",Actions!C:C,B57)","v":0},{"$f":"COUNTIFS(Actions!I:I,\"Non\",Actions!G:G,3,Actions!C:C,B57)","v":0},{"$f":"M57-COUNTIFS(Actions!I:I,\"NA\",Actions!C:C,B57)","v":1},{"$f":"N57-COUNTIFS(Actions!I:I,\"NA\",Actions!G:G,3,Actions!C:C,B57)","v":1},{"$f":"O57-COUNTIFS(Actions!I:I,\"NA\",Actions!G:G,3,Actions!C:C,B57)-COUNTIFS(Actions!I:I,\"NA\",Actions!G:G,2,Actions!C:C,B57)","v":1},{"$f":"COUNTIFS(Actions!AW:AW,1,Actions!C:C,B57)","v":1},{"$f":"COUNTIFS(Actions!AW:AW,1,Actions!G:G,3,Actions!C:C,B57)","v":1},{"$f":"COUNTIFS(Actions!AW:AW,1,Actions!G:G,3,Actions!C:C,B57)+COUNTIFS(Actions!AW:AW,1,Actions!G:G,2,Actions!C:C,B57)","v":1},{"$f":"IF(K57=0,\"\",D57/K57)","v":0},0,0]
[null,"Management de l'événement",{"$f":"COUNTIFS(Actions!K:K,\"Fait\",Actions!C:C,B58)","v":0},{"$f":"COUNTIFS(Actions!K:K,\"Fait\",Actions!C:C,B58,Actions!G:G,3)","v":0},{"$f":"COUNTIFS(Actions!K:K,\"Fait\",Actions!C:C,B58,Actions!G:G,3)+COUNTIFS(Actions!K:K,\"Fait\",Actions!C:C,B58,Actions!G:G,2)","v":0},{"$f":"COUNTIFS(Actions!K:K,\"En cours\",Actions!C:C,B58)","v":0},{"$f":"COUNTIFS(Actions!K:K,\"En cours\",Actions!G:G,3,Actions!C:C,B58)","v":0},{"$f":"COUNTIFS(Actions!I:I,\"Non\",Actions!C:C,B58)","v":0},{"$f":"COUNTIFS(Actions!I:I,\"Non\",Actions!G:G,3,Actions!C:C,B58)","v":0},{"$f":"M58-COUNTIFS(Actions!I:I,\"NA\",Actions!C:C,B58)","v":1},{"$f":"N58-COUNTIFS(Actions!I:I,\"NA\",Actions!G:G,3,Actions!C:C,B58)","v":1},{"$f":"O58-COUNTIFS(Actions!I:I,\"NA\",Actions!G:G,3,Actions!C:C,B58)-COUNTIFS(Actions!I:I,\"NA\",Actions!G:G,2,Actions!C:C,B58)","v":1},{"$f":"COUNTIFS(Actions!AW:AW,1,Actions!C:C,B58)","v":1},{"$f":"COUNTIFS(Actions!AW:AW,1,Actions!G:G,3,Actions!C:C,B58)","v":1},{"$f":"COUNTIFS(Actions!AW:AW,1,Actions!G:G,3,Actions!C:C,B58)+COUNTIFS(Actions!AW:AW,1,Actions!G:G,2,Actions!C:C,B58)","v":1},{"$f":"IF(K58=0,\"\",D58/K58)","v":0},0,0]
[null,"Transparence",{"$f":"COUNTIFS(Actions!K:K,\"Fait\",Actions!C:C,B59)","v":0},{"$f":"COUNTIFS(Actions!K:K,\"Fait\",Actions!C:C,B59,Actions!G:G,3)","v":0},{"$f":"COUNTIFS(Actions!K:K,\"Fait\",Actions!C:C,B59,Actions!G:G,3)+COUNTIFS(Actions!K:K,\"Fait\",Actions!C:C,B59,Actions!G:G,2)","v":0},{"$f":"COUNTIFS(Actions!K:K,\"En cours\",Actions!C:C,B59)","v":0},{"$f":"COUNTIFS(Actions!K:K,\"En cours\",Actions!G:G,3,Actions!C:C,B59)","v":0},{"$f":"COUNTIFS(Actions!I:I,\"Non\",Actions!C:C,B59)","v":0},{"$f":"COUNTIFS(Actions!I:I,\"Non\",Actions!G:G,3,Actions!C:C,B59)","v":0},{"$f":"M59-COUNTIFS(Actions!I:I,\"NA\",Actions!C:C,B59)","v":1},{"$f":"N59-COUNTIFS(Actions!I:I,\"NA\",Actions!G:G,3,Actions!C:C,B59)","v":1},{"$f":"O59-COUNTIFS(Actions!I:I,\"NA\",Actions!G:G,3,Actions!C:C,B59)-COUNTIFS(Actions!I:I,\"NA\",Actions!G:G,2,Actions!C:C,B59)","v":1},{"$f":"COUNTIFS(Actions!AW:AW,1,Actions!C:C,B59)","v":1},{"$f":"COUNTIFS(Actions!AW:AW,1,Actions!G:G,3,Actions!C:C,B59)","v":1},{"$f":"COUNTIFS(Actions!AW:AW,1,Actions!G:G,3,Actions!C:C,B59)+COUNTIFS(Actions!AW:AW,1,Actions!G:G,2,Actions!C:C,B59)","v":1},{"$f":"IF(K59=0,\"\",D59/K59)","v":0},0,0]
[]
[null,"RESEPCT PARTICIPANT",{"$f":"COUNTIFS(Actions!K:K,\"Fait\",Actions!B:B,B61)","v":0},{"$f":"COUNTIFS(Actions!K:K,\"Fait\",Actions!B:B,B61,Actions!G:G,3)","v":0},{"$f":"COUNTIFS(Actions!K:K,\"Fait\",Actions!B:B,B61,Actions!G:G,3)+COUNTIFS(Actions!K:K,\"Fait\",Actions!B:B,B61,Actions!G:G,2)","v":0},{"$f":"COUNTIFS(Actions!K:K,\"En cours\",Actions!B:B,B61)","v":0},{"$f":"COUNTIFS(Actions!K:K,\"En cours\",Actions!G:G,3,Actions!B:B,B61)","v":0},{"$f":"COUNTIFS(Actions!I:I,\"Non\",Actions!B:B,B61)","v":0},{"$f":"COUNTIFS(Actions!I:I,\"Non\",Actions!G:G,3,Actions!B:B,B61)","v":0},{"$f":"M61-COUNTIFS(Actions!I:I,\"NA\",Actions!B:B,B61)","v":4},{"$f":"N61-COUNTIFS(Actions!I:I,\"NA\",Actions!G:G,3,Actions!B:B,B61)","v":4},{"$f":"O61-COUNTIFS(Actions!I:I,\"NA\",Actions!G:G,3,Actions!B:B,B61)-COUNTIFS(Actions!I:I,\"NA\",Actions!G:G,2,Actions!B:B,B61)","v":4},{"$f":"COUNTIFS(Actions!AW:AW,1,Actions!B:B,B61)","v":4},{"$f":"COUNTIFS(Actions!AW:AW,1,Actions!G:G,3,Actions!B:B,B61)","v":4},{"$f":"COUNTIFS(Actions!AW:AW,1,Actions!G:G,3,Actions!B:B,B61)+COUNTIFS(Actions!AW:AW,1,Actions!G:G,2,Actions!B:B,B61)","v":4},{"$f":"IF(K61=0,0,D61/K61)","v":0},{"$f":"IF(L61=0,0,E61/L61)","v":0},{"$f":"IF(J61=0,0,C61/J61)","v":0}]
[null,"Intégrité",{"$f":"COUNTIFS(Actions!K:K,\"Fait\",Actions!C:C,B62)","v":0},{"$f":"COUNTIFS(Actions!K:K,\"Fait\",Actions!C:C,B62,Actions!G:G,3)","v":0},{"$f":"COUNTIFS(Actions!K:K,\"Fait\",Actions!C:C,B62,Actions!G:G,3)+COUNTIFS(Actions!K:K,\"Fait\",Actions!C:C,B62,Actions!G:G,2)","v":0},{"$f":"COUNTIFS(Actions!K:K,\"En cours\",Actions!C:C,B62)","v":0},{"$f":"COUNTIFS(Actions!K:K,\"En cours\",Actions!G:G,3,Actions!C:C,B62)","v":0},{"$f":"COUNTIFS(Actions!I:I,\"Non\",Actions!C:C,B62)","v":0},{"$f":"COUNTIFS(Actions!I:I,\"Non\",Actions!G:G,3,Actions!C:C,B62)","v":0},{"$f":"M62-COUNTIFS(Actions!I:I,\"NA\",Actions!C:C,B62)","v":0},{"$f":"N62-COUNTIFS(Actions!I:I,\"NA\",Actions!G:G,3,Actions!C:C,B62)","v":0},{"$f":"O62-COUNTIFS(Actions!I:I,\"NA\",Actions!G:G,3,Actions!C:C,B62)-COUNTIFS(Actions!I:I,\"NA\",Actions!G:G,2,Actions!C:C,B62)","v":0},{"$f":"COUNTIFS(Actions!AW:AW,1,Actions!C:C,B62)","v":0},{"$f":"COUNTIFS(Actions!AW:AW,1,Actions!G:G,3,Actions!C:C,B62)","v":0},{"$f":"COUNTIFS(Actions!AW:AW,1,Actions!G:G,3,Actions!C:C,B62)+COUNTIFS(Actions!AW:AW,1,Actions!G:G,2,Actions!C:C,B62)","v":0},{"$f":"IF(K62=0,\"\",D62/K62)","v":""},{"$f":"IF(L62=0,\"\",E62/L62)","v":""},""]
[null,"Qualité de l'évènement",{"$f":"COUNTIFS(Actions!K:K,\"Fait\",Actions!C:C,B63)","v":0},{"$f":"COUNTIFS(Actions!K:K,\"Fait\",Actions!C:C,B63,Actions!G:G,3)","v":0},{"$f":"COUNTIFS(Actions!K:K,\"Fait\",Actions!C:C,B63,Actions!G:G,3)+COUNTIFS(Actions!K:K,\"Fait\",Actions!C:C,B63,Actions!G:G,2)","v":0},{"$f":"COUNTIFS(Actions!K:K,\"En cours\",Actions!C:C,B63)","v":0},{"$f":"COUNTIFS(Actions!K:K,\"En cours\",Actions!G:G,3,Actions!C:C,B63)","v":0},{"$f":"COUNTIFS(Actions!I:I,\"Non\",Actions!C:C,B63)","v":0},{"$f":"COUNTIFS(Actions!I:I,\"Non\",Actions!G:G,3,Actions!C:C,B63)","v":0},{"$f":"M63-COUNTIFS(Actions!I:I,\"NA\",Actions!C:C,B63)","v":0},{"$f":"N63-COUNTIFS(Actions!I:I,\"NA\",Actions!G:G,3,Actions!C:C,B63)","v":0},{"$f":"O63-COUNTIFS(Actions!I:I,\"NA\",Actions!G:G,3,Actions!C:C,B63)-COUNTIFS(Actions!I:I,\"NA\",Actions!G:G,2,Actions!C:C,B63)","v":0},{"$f":"COUNTIFS(Actions!AW:AW,1,Actions!C:C,B63)","v":0},{"$f":"COUNTIFS(Actions!AW:AW,1,Actions!G:G,3,Actions!C:C,B63)","v":0},{"$f":"COUNTIFS(Actions!AW:AW,1,Actions!G:G,3,Actions!C:C,B63)+COUNTIFS(Actions!AW:AW,1,Actions!G:G,2,Actions!C:C,B63)","v":0},{"$f":"IF(K63=0,\"\",D63/K63)","v":""},"",""]
[null,"Santé",{"$f":"COUNTIFS(Actions!K:K,\"Fait\",Actions!C:C,B64)","v":0},{"$f":"COUNTIFS(Actions!K:K,\"Fait\",Actions!C:C,B64,Actions!G:G,3)","v":0},{"$f":"COUNTIFS(Actions!K:K,\"Fait\",Actions!C:C,B64,Actions!G:G,3)+COUNTIFS(Actions!K:K,\"Fait\",Actions!C:C,B64,Actions!G:G,2)","v":0},{"$f":"COUNTIFS(Actions!K:K,\"En cours\",Actions!C:C,B64)","v":0},{"$f":"COUNTIFS(Actions!K:K,\"En cours\",Actions!G:G,3,Actions!C:C,B64)","v":0},{"$f":"COUNTIFS(Actions!I:I,\"Non\",Actions!C:C,B64)","v":0},{"$f":"COUNTIFS(Actions!I:I,\"Non\",Actions!G:G,3,Actions!C:C,B64)","v":0},{"$f":"M64-COUNTIFS(Actions!I:I,\"NA\",Actions!C:C,B64)","v":4},{"$f":"N64-COUNTIFS(Actions!I:I,\"NA\",Actions!G:G,3,Actions!C:C,B64)","v":4},{"$f":"O64-COUNTIFS(Actions!I:I,\"NA\",Actions!G:G,3,Actions!C:C,B64)-COUNTIFS(Actions!I:I,\"NA\",Actions!G:G,2,Actions!C:C,B64)","v":4},{"$f":"COUNTIFS(Actions!AW:AW,1,Actions!C:C,B64)","v":4},{"$f":"COUNTIFS(Actions!AW:AW,1,Actions!G:G,3,Actions!C:C,B64)","v":4},{"$f":"COUNTIFS(Actions!AW:AW,1,Actions!G:G,3,Actions!C:C,B64)+COUNTIFS(Actions!AW:AW,1,Actions!G:G,2,Actions!C:C,B64)","v":4},{"$f":"IF(K64=0,\"\",D64/K64)","v":0},0,0]
[null,"Vie privée",{"$f":"COUNTIFS(Actions!K:K,\"Fait\",Actions!C:C,B65)","v":0},{"$f":"COUNTIFS(Actions!K:K,\"Fait\",Actions!C:C,B65,Actions!G:G,3)","v":0},{"$f":"COUNTIFS(Actions!K:K,\"Fait\",Actions!C:C,B65,Actions!G:G,3)+COUNTIFS(Actions!K:K,\"Fait\",Actions!C:C,B65,Actions!G:G,2)","v":0},{"$f":"COUNTIFS(Actions!K:K,\"En cours\",Actions!C:C,B65)","v":0},{"$f":"COUNTIFS(Actions!K:K,\"En cours\",Actions!G:G,3,Actions!C:C,B65)","v":0},{"$f":"COUNTIFS(Actions!I:I,\"Non\",Actions!C:C,B65)","v":0},{"$f":"COUNTIFS(Actions!I:I,\"Non\",Actions!G:G,3,Actions!C:C,B65)","v":0},{"$f":"M65-COUNTIFS(Actions!I:I,\"NA\",Actions!C:C,B65)","v":0},{"$f":"N65-COUNTIFS(Actions!I:I,\"NA\",Actions!G:G,3,Actions!C:C,B65)","v":0},{"$f":"O65-COUNTIFS(Actions!I:I,\"NA\",Actions!G:G,3,Actions!C:C,B65)-COUNTIFS(Actions!I:I,\"NA\",Actions!G:G,2,Actions!C:C,B65)","v":0},{"$f":"COUNTIFS(Actions!AW:AW,1,Actions!C:C,B65)","v":0},{"$f":"COUNTIFS(Actions!AW:AW,1,Actions!G:G,3,Actions!C:C,B65)","v":0},{"$f":"COUNTIFS(Actions!AW:AW,1,Actions!G:G,3,Actions!C:C,B65)+COUNTIFS(Actions!AW:AW,1,Actions!G:G,2,Actions!C:C,B65)","v":0},{"$f":"IF(K65=0,\"\",D65/K65)","v":""},"",""]
[]
[null,"SECURITE",{"$f":"COUNTIFS(Actions!K:K,\"Fait\",Actions!B:B,B67)","v":0},{"$f":"COUNTIFS(Actions!K:K,\"Fait\",Actions!B:B,B67,Actions!G:G,3)","v":0},{"$f":"COUNTIFS(Actions!K:K,\"Fait\",Actions!B:B,B67,Actions!G:G,3)+COUNTIFS(Actions!K:K,\"Fait\",Actions!B:B,B67,Actions!G:G,2)","v":0},{"$f":"COUNTIFS(Actions!K:K,\"En cours\",Actions!B:B,B67)","v":0},{"$f":"COUNTIFS(Actions!K:K,\"En cours\",Actions!G:G,3,Actions!B:B,B67)","v":0},{"$f":"COUNTIFS(Actions!I:I,\"Non\",Actions!B:B,B67)","v":0},{"$f":"COUNTIFS(Actions!I:I,\"Non\",Actions!G:G,3,Actions!B:B,B67)","v":0},{"$f":"M67-COUNTIFS(Actions!I:I,\"NA\",Actions!B:B,B67)","v":5},{"$f":"N67-COUNTIFS(Actions!I:I,\"NA\",Actions!G:G,3,Actions!B:B,B67)","v":5},{"$f":"O67-COUNTIFS(Actions!I:I,\"NA\",Actions!G:G,3,Actions!B:B,B67)-COUNTIFS(Actions!I:I,\"NA\",Actions!G:G,2,Actions!B:B,B67)","v":5},{"$f":"COUNTIFS(Actions!AW:AW,1,Actions!B:B,B67)","v":5},{"$f":"COUNTIFS(Actions!AW:AW,1,Actions!G:G,3,Actions!B:B,B67)","v":5},{"$f":"COUNTIFS(Actions!AW:AW,1,Actions!G:G,3,Actions!B:B,B67)+COUNTIFS(Actions!AW:AW,1,Actions!G:G,2,Actions!B:B,B67)","v":5},{"$f":"IF(K67=0,0,D67/K67)","v":0},{"$f":"IF(L67=0,0,E67/L67)","v":0},{"$f":"IF(J67=0,0,C67/J67)","v":0}]
[null,"Alcool",{"$f":"COUNTIFS(Actions!K:K,\"Fait\",Actions!C:C,B68)","v":0},{"$f":"COUNTIFS(Actions!K:K,\"Fait\",Actions!C:C,B68,Actions!G:G,3)","v":0},{"$f":"COUNTIFS(Actions!K:K,\"Fait\",Actions!C:C,B68,Actions!G:G,3)+COUNTIFS(Actions!K:K,\"Fait\",Actions!C:C,B68,Actions!G:G,2)","v":0},{"$f":"COUNTIFS(Actions!K:K,\"En cours\",Actions!C:C,B68)","v":0},{"$f":"COUNTIFS(Actions!K:K,\"En cours\",Actions!G:G,3,Actions!C:C,B68)","v":0},{"$f":"COUNTIFS(Actions!I:I,\"Non\",Actions!C:C,B68)","v":0},{"$f":"COUNTIFS(Actions!I:I,\"Non\",Actions!G:G,3,Actions!C:C,B68)","v":0},{"$f":"M68-COUNTIFS(Actions!I:I,\"NA\",Actions!C:C,B68)","v":1},{"$f":"N68-COUNTIFS(Actions!I:I,\"NA\",Actions!G:G,3,Actions!C:C,B68)","v":1},{"$f":"O68-COUNTIFS(Actions!I:I,\"NA\",Actions!G:G,3,Actions!C:C,B68)-COUNTIFS(Actions!I:I,\"NA\",Actions!G:G,2,Actions!C:C,B68)","v":1},{"$f":"COUNTIFS(Actions!AW:AW,1,Actions!C:C,B68)","v":1},{"$f":"COUNTIFS(Actions!AW:AW,1,Actions!G:G,3,Actions!C:C,B68)","v":1},{"$f":"COUNTIFS(Actions!AW:AW,1,Actions!G:G,3,Actions!C:C,B68)+COUNTIFS(Actions!AW:AW,1,Actions!G:G,2,Actions!C:C,B68)","v":1},{"$f":"IF(K68=0,\"\",D68/K68)","v":0},{"$f":"IF(L68=0,\"\",E68/L68)","v":0},0]
[null,"Nuisances sonores",{"$f":"COUNTIFS(Actions!K:K,\"Fait\",Actions!C:C,B69)","v":0},{"$f":"COUNTIFS(Actions!K:K,\"Fait\",Actions!C:C,B69,Actions!G:G,3)","v":0},{"$f":"COUNTIFS(Actions!K:K,\"Fait\",Actions!C:C,B69,Actions!G:G,3)+COUNTIFS(Actions!K:K,\"Fait\",Actions!C:C,B69,Actions!G:G,2)","v":0},{"$f":"COUNTIFS(Actions!K:K,\"En cours\",Actions!C:C,B69)","v":0},{"$f":"COUNTIFS(Actions!K:K,\"En cours\",Actions!G:G,3,Actions!C:C,B69)","v":0},{"$f":"COUNTIFS(Actions!I:I,\"Non\",Actions!C:C,B69)","v":0},{"$f":"COUNTIFS(Actions!I:I,\"Non\",Actions!G:G,3,Actions!C:C,B69)","v":0},{"$f":"M69-COUNTIFS(Actions!I:I,\"NA\",Actions!C:C,B69)","v":1},{"$f":"N69-COUNTIFS(Actions!I:I,\"NA\",Actions!G:G,3,Actions!C:C,B69)","v":1},{"$f":"O69-COUNTIFS(Actions!I:I,\"NA\",Actions!G:G,3,Actions!C:C,B69)-COUNTIFS(Actions!I:I,\"NA\",Actions!G:G,2,Actions!C:C,B69)","v":1},{"$f":"COUNTIFS(Actions!AW:AW,1,Actions!C:C,B69)","v":1},{"$f":"COUNTIFS(Actions!AW:AW,1,Actions!G:G,3,Actions!C:C,B69)","v":1},{"$f":"COUNTIFS(Actions!AW:AW,1,Actions!G:G,3,Actions!C:C,B69)+COUNTIFS(Actions!AW:AW,1,Actions!G:G,2,Actions!C:C,B69)","v":1},0,0,0]
[null,"Organisation",{"$f":"COUNTIFS(Actions!K:K,\"Fait\",Actions!C:C,B70)","v":0},{"$f":"COUNTIFS(Actions!K:K,\"Fait\",Actions!C:C,B70,Actions!G:G,3)","v":0},{"$f":"COUNTIFS(Actions!K:K,\"Fait\",Actions!C:C,B70,Actions!G:G,3)+COUNTIFS(Actions!K:K,\"Fait\",Actions!C:C,B70,Actions!G:G,2)","v":0},{"$f":"COUNTIFS(Actions!K:K,\"En cours\",Actions!C:C,B70)","v":0},{"$f":"COUNTIFS(Actions!K:K,\"En cours\",Actions!G:G,3,Actions!C:C,B70)","v":0},{"$f":"COUNTIFS(Actions!I:I,\"Non\",Actions!C:C,B70)","v":0},{"$f":"COUNTIFS(Actions!I:I,\"Non\",Actions!G:G,3,Actions!C:C,B70)","v":0},{"$f":"M70-COUNTIFS(Actions!I:I,\"NA\",Actions!C:C,B70)","v":2},{"$f":"N70-COUNTIFS(Actions!I:I,\"NA\",Actions!G:G,3,Actions!C:C,B70)","v":2},{"$f":"O70-COUNTIFS(Actions!I:I,\"NA\",Actions!G:G,3,Actions!C:C,B70)-COUNTIFS(Actions!I:I,\"NA\",Actions!G:G,2,Actions!C:C,B70)","v":2},{"$f":"COUNTIFS(Actions!AW:AW,1,Actions!C:C,B70)","v":2},{"$f":"COUNTIFS(Actions!AW:AW,1,Actions!G:G,3,Actions!C:C,B70)","v":2},{"$f":"COUNTIFS(Actions!AW:AW,1,Actions!G:G,3,Actions!C:C,B70)+COUNTIFS(Actions!AW:AW,1,Actions!G:G,2,Actions!C:C,B70)","v":2},0,0,0]
[null,"Parking",{"$f":"COUNTIFS(Actions!K:K,\"Fait\",Actions!C:C,B71)","v":0},{"$f":"COUNTIFS(Actions!K:K,\"Fait\",Actions!C:C,B71,Actions!G:G,3)","v":0},{"$f":"COUNTIFS(Actions!K:K,\"Fait\",Actions!C:C,B71,Actions!G:G,3)+COUNTIFS(Actions!K:K,\"Fait\",Actions!C:C,B71,Actions!G:G,2)","v":0},{"$f":"COUNTIFS(Actions!K:K,\"En cours\",Actions!C:C,B71)","v":0},{"$f":"COUNTIFS(Actions!K:K,\"En cours\",Actions!G:G,3,Actions!C:C,B71)","v":0},{"$f":"COUNTIFS(Actions!I:I,\"Non\",Actions!C:C,B71)","v":0},{"$f":"COUNTIFS(Actions!I:I,\"Non\",Actions!G:G,3,Actions!C:C,B71)","v":0},{"$f":"M71-COUNTIFS(Actions!I:I,\"NA\",Actions!C:C,B71)","v":0},{"$f":"N71-COUNTIFS(Actions!I:I,\"NA\",Actions!G:G,3,Actions!C:C,B71)","v":0},{"$f":"O71-COUNTIFS(Actions!I:I,\"NA\",Actions!G:G,3,Actions!C:C,B71)-COUNTIFS(Actions!I:I,\"NA\",Actions!G:G,2,Actions!C:C,B71)","v":0},{"$f":"COUNTIFS(Actions!AW:AW,1,Actions!C:C,B71)","v":0},{"$f":"COUNTIFS(Actions!AW:AW,1,Actions!G:G,3,Actions!C:C,B71)","v":0},{"$f":"COUNTIFS(Actions!AW:AW,1,Actions!G:G,3,Actions!C:C,B71)+COUNTIFS(Actions!AW:AW,1,Actions!G:G,2,Actions!C:C,B71)","v":0},"","",""]
[null,"Risque de chute de plein pied",{"$f":"COUNTIFS(Actions!K:K,\"Fait\",Actions!C:C,B72)","v":0},{"$f":"COUNTIFS(Actions!K:K,\"Fait\",Actions!C:C,B72,Actions!G:G,3)","v":0},{"$f":"COUNTIFS(Actions!K:K,\"Fait\",Actions!C:C,B72,Actions!G:G,3)+COUNTIFS(Actions!K:K,\"Fait\",Actions!C:C,B72,Actions!G:G,2)","v":0},{"$f":"COUNTIFS(Actions!K:K,\"En cours\",Actions!C:C,B72)","v":0},{"$f":"COUNTIFS(Actions!K:K,\"En cours\",Actions!G:G,3,Actions!C:C,B72)","v":0},{"$f":"COUNTIFS(Actions!I:I,\"Non\",Actions!C:C,B72)","v":0},{"$f":"COUNTIFS(Actions!I:I,\"Non\",Actions!G:G,3,Actions!C:C,B72)","v":0},{"$f":"M72-COUNTIFS(Actions!I:I,\"NA\",Actions!C:C,B72)","v":0},{"$f":"N72-COUNTIFS(Actions!I:I,\"NA\",Actions!G:G,3,Actions!C:C,B72)","v":0},{"$f":"O72-COUNTIFS(Actions!I:I,\"NA\",Actions!G:G,3,Actions!C:C,B72)-COUNTIFS(Actions!I:I,\"NA\",Actions!G:G,2,Actions!C:C,B72)","v":0},{"$f":"COUNTIFS(Actions!AW:AW,1,Actions!C:C,B72)","v":0},{"$f":"COUNTIFS(Actions!AW:AW,1,Actions!G:G,3,Actions!C:C,B72)","v":0},{"$f":"COUNTIFS(Actions!AW:AW,1,Actions!G:G,3,Actions!C:C,B72)+COUNTIFS(Actions!AW:AW,1,Actions!G:G,2,Actions!C:C,B72)","v":0},{"$f":"IF(K72=0,\"\",D72/K72)","v":""},"",""]
[null,"Risque électrique",{"$f":"COUNTIFS(Actions!K:K,\"Fait\",Actions!C:C,B73)","v":0},{"$f":"COUNTIFS(Actions!K:K,\"Fait\",Actions!C:C,B73,Actions!G:G,3)","v":0},{"$f":"COUNTIFS(Actions!K:K,\"Fait\",Actions!C:C,B73,Actions!G:G,3)+COUNTIFS(Actions!K:K,\"Fait\",Actions!C:C,B73,Actions!G:G,2)","v":0},{"$f":"COUNTIFS(Actions!K:K,\"En cours\",Actions!C:C,B73)","v":0},{"$f":"COUNTIFS(Actions!K:K,\"En cours\",Actions!G:G,3,Actions!C:C,B73)","v":0},{"$f":"COUNTIFS(Actions!I:I,\"Non\",Actions!C:C,B73)","v":0},{"$f":"COUNTIFS(Actions!I:I,\"Non\",Actions!G:G,3,Actions!C:C,B73)","v":0},{"$f":"M73-COUNTIFS(Actions!I:I,\"NA\",Actions!C:C,B73)","v":0},{"$f":"N73-COUNTIFS(Actions!I:I,\"NA\",Actions!G:G,3,Actions!C:C,B73)","v":0},{"$f":"O73-COUNTIFS(Actions!I:I,\"NA\",Actions!G:G,3,Actions!C:C,B73)-COUNTIFS(Actions!I:I,\"NA\",Actions!G:G,2,Actions!C:C,B73)","v":0},{"$f":"COUNTIFS(Actions!AW:AW,1,Actions!C:C,B73)","v":0},{"$f":"COUNTIFS(Actions!AW:AW,1,Actions!G:G,3,Actions!C:C,B73)","v":0},{"$f":"COUNTIFS(Actions!AW:AW,1,Actions!G:G,3,Actions!C:C,B73)+COUNTIFS(Actions!AW:AW,1,Actions!G:G,2,Actions!C:C,B73)","v":0},"","",""]
[null,"Risque incendie",{"$f":"COUNTIFS(Actions!K:K,\"Fait\",Actions!C:C,B74)","v":0},{"$f":"COUNTIFS(Actions!K:K,\"Fait\",Actions!C:C,B74,Actions!G:G,3)","v":0},{"$f":"COUNTIFS(Actions!K:K,\"Fait\",Actions!C:C,B74,Actions!G:G,3)+COUNTIFS(Actions!K:K,\"Fait\",Actions!C:C,B74,Actions!G:G,2)","v":0},{"$f":"COUNTIFS(Actions!K:K,\"En cours\",Actions!C:C,B74)","v":0},{"$f":"COUNTIFS(Actions!K:K,\"En cours\",Actions!G:G,3,Actions!C:C,B74)","v":0},{"$f":"COUNTIFS(Actions!I:I,\"Non\",Actions!C:C,B74)","v":0},{"$f":"COUNTIFS(Actions!I:I,\"Non\",Actions!G:G,3,Actions!C:C,B74)","v":0},{"$f":"M74-COUNTIFS(Actions!I:I,\"NA\",Actions!C:C,B74)","v":2},{"$f":"N74-COUNTIFS(Actions!I:I,\"NA\",Actions!G:G,3,Actions!C:C,B74)","v":2},{"$f":"O74-COUNTIFS(Actions!I:I,\"NA\",Actions!G:G,3,Actions!C:C,B74)-COUNTIFS(Actions!I:I,\"NA\",Actions!G:G,2,Actions!C:C,B74)","v":2},{"$f":"COUNTIFS(Actions!AW:AW,1,Actions!C:C,B74)","v":2},{"$f":"COUNTIFS(Actions!AW:AW,1,Actions!G:G,3,Actions!C:C,B74)","v":2},{"$f":"COUNTIFS(Actions!AW:AW,1,Actions!G:G,3,Actions!C:C,B74)+COUNTIFS(Actions!AW:AW,1,Actions!G:G,2,Actions!C:C,B74)","v":2},0,0,0]
[]
[null,"SOLIDARITE",{"$f":"COUNTIFS(Actions!K:K,\"Fait\",Actions!B:B,B76)","v":0},{"$f":"COUNTIFS(Actions!K:K,\"Fait\",Actions!B:B,B76,Actions!G:G,3)","v":0},{"$f":"COUNTIFS(Actions!K:K,\"Fait\",Actions!B:B,B76,Actions!G:G,3)+COUNTIFS(Actions!K:K,\"Fait\",Actions!B:B,B76,Actions!G:G,2)","v":0},{"$f":"COUNTIFS(Actions!K:K,\"En cours\",Actions!B:B,B76)","v":0},{"$f":"COUNTIFS(Actions!K:K,\"En cours\",Actions!G:G,3,Actions!B:B,B76)","v":0},{"$f":"COUNTIFS(Actions!I:I,\"Non\",Actions!B:B,B76)","v":0},{"$f":"COUNTIFS(Actions!I:I,\"Non\",Actions!G:G,3,Actions!B:B,B76)","v":0},{"$f":"M76-COUNTIFS(Actions!I:I,\"NA\",Actions!B:B,B76)","v":0},{"$f":"N76-COUNTIFS(Actions!I:I,\"NA\",Actions!G:G,3,Actions!B:B,B76)","v":0},{"$f":"O76-COUNTIFS(Actions!I:I,\"NA\",Actions!G:G,3,Actions!B:B,B76)-COUNTIFS(Actions!I:I,\"NA\",Actions!G:G,2,Actions!B:B,B76)","v":0},{"$f":"COUNTIFS(Actions!AW:AW,1,Actions!B:B,B76)","v":0},{"$f":"COUNTIFS(Actions!AW:AW,1,Actions!G:G,3,Actions!B:B,B76)","v":0},{"$f":"COUNTIFS(Actions!AW:AW,1,Actions!G:G,3,Actions!B:B,B76)+COUNTIFS(Actions!AW:AW,1,Actions!G:G,2,Actions!B:B,B76)","v":0},{"$f":"IF(K76=0,1,D76/K76)","v":1},{"$f":"IF(L76=0,0,E76/L76)","v":0},{"$f":"IF(J76=0,0,C76/J76)","v":0}]
[null,"Promotion de la solidarité",{"$f":"COUNTIFS(Actions!K:K,\"Fait\",Actions!C:C,B77)","v":0},{"$f":"COUNTIFS(Actions!K:K,\"Fait\",Actions!C:C,B77,Actions!G:G,3)","v":0},{"$f":"COUNTIFS(Actions!K:K,\"Fait\",Actions!C:C,B77,Actions!G:G,3)+COUNTIFS(Actions!K:K,\"Fait\",Actions!C:C,B77,Actions!G:G,2)","v":0},{"$f":"COUNTIFS(Actions!K:K,\"En cours\",Actions!C:C,B77)","v":0},{"$f":"COUNTIFS(Actions!K:K,\"En cours\",Actions!G:G,3,Actions!C:C,B77)","v":0},{"$f":"COUNTIFS(Actions!I:I,\"Non\",Actions!C:C,B77)","v":0},{"$f":"COUNTIFS(Actions!I:I,\"Non\",Actions!G:G,3,Actions!C:C,B77)","v":0},{"$f":"M77-COUNTIFS(Actions!I:I,\"NA\",Actions!C:C,B77)","v":0},{"$f":"N77-COUNTIFS(Actions!I:I,\"NA\",Actions!G:G,3,Actions!C:C,B77)","v":0},{"$f":"O77-COUNTIFS(Actions!I:I,\"NA\",Actions!G:G,3,Actions!C:C,B77)-COUNTIFS(Actions!I:I,\"NA\",Actions!G:G,2,Actions!C:C,B77)","v":0},{"$f":"COUNTIFS(Actions!AW:AW,1,Actions!C:C,B77)","v":0},{"$f":"COUNTIFS(Actions!AW:AW,1,Actions!G:G,3,Actions!C:C,B77)","v":0},{"$f":"COUNTIFS(Actions!AW:AW,1,Actions!G:G,3,Actions!C:C,B77)+COUNTIFS(Actions!AW:AW,1,Actions!G:G,2,Actions!C:C,B77)","v":0},{"$f":"IF(K77=0,\"\",D77/K77)","v":""},{"$f":"IF(L77=0,\"\",E77/L77)","v":""},""]
[null,"Liens humains",{"$f":"COUNTIFS(Actions!K:K,\"Fait\",Actions!C:C,B78)","v":0},{"$f":"COUNTIFS(Actions!K:K,\"Fait\",Actions!C:C,B78,Actions!G:G,3)","v":0},{"$f":"COUNTIFS(Actions!K:K,\"Fait\",Actions!C:C,B78,Actions!G:G,3)+COUNTIFS(Actions!K:K,\"Fait\",Actions!C:C,B78,Actions!G:G,2)","v":0},{"$f":"COUNTIFS(Actions!K:K,\"En cours\",Actions!C:C,B78)","v":0},{"$f":"COUNTIFS(Actions!K:K,\"En cours\",Actions!G:G,3,Actions!C:C,B78)","v":0},{"$f":"COUNTIFS(Actions!I:I,\"Non\",Actions!C:C,B78)","v":0},{"$f":"COUNTIFS(Actions!I:I,\"Non\",Actions!G:G,3,Actions!C:C,B78)","v":0},{"$f":"M78-COUNTIFS(Actions!I:I,\"NA\",Actions!C:C,B78)","v":0},{"$f":"N78-COUNTIFS(Actions!I:I,\"NA\",Actions!G:G,3,Actions!C:C,B78)","v":0},{"$f":"O78-COUNTIFS(Actions!I:I,\"NA\",Actions!G:G,3,Actions!C:C,B78)-COUNTIFS(Actions!I:I,\"NA\",Actions!G:G,2,Actions!C:C,B78)","v":0},{"$f":"COUNTIFS(Actions!AW:AW,1,Actions!C:C,B78)","v":0},{"$f":"COUNTIFS(Actions!AW:AW,1,Actions!G:G,3,Actions!C:C,B78)","v":0},{"$f":"COUNTIFS(Actions!AW:AW,1,Actions!G:G,3,Actions!C:C,B78)+COUNTIFS(Actions!AW:AW,1,Actions!G:G,2,Actions!C:C,B78)","v":0},{"$f":"IF(K78=0,\"\",D78/K78)","v":""},"",""]
[null,"Sensibilisation",{"$f":"COUNTIFS(Actions!K:K,\"Fait\",Actions!C:C,B79)","v":0},{"$f":"COUNTIFS(Actions!K:K,\"Fait\",Actions!C:C,B79,Actions!G:G,3)","v":0},{"$f":"COUNTIFS(Actions!K:K,\"Fait\",Actions!C:C,B79,Actions!G:G,3)+COUNTIFS(Actions!K:K,\"Fait\",Actions!C:C,B79,Actions!G:G,2)","v":0},{"$f":"COUNTIFS(Actions!K:K,\"En cours\",Actions!C:C,B79)","v":0},{"$f":"COUNTIFS(Actions!K:K,\"En cours\",Actions!G:G,3,Actions!C:C,B79)","v":0},{"$f":"COUNTIFS(Actions!I:I,\"Non\",Actions!C:C,B79)","v":0},{"$f":"COUNTIFS(Actions!I:I,\"Non\",Actions!G:G,3,Actions!C:C,B79)","v":0},{"$f":"M79-COUNTIFS(Actions!I:I,\"NA\",Actions!C:C,B79)","v":4},{"$f":"N79-COUNTIFS(Actions!I:I,\"NA\",Actions!G:G,3,Actions!C:C,B79)","v":4},{"$f":"O79-COUNTIFS(Actions!I:I,\"NA\",Actions!G:G,3,Actions!C:C,B79)-COUNTIFS(Actions!I:I,\"NA\",Actions!G:G,2,Actions!C:C,B79)","v":4},{"$f":"COUNTIFS(Actions!AW:AW,1,Actions!C:C,B79)","v":4},{"$f":"COUNTIFS(Actions!AW:AW,1,Actions!G:G,3,Actions!C:C,B79)","v":4},{"$f":"COUNTIFS(Actions!AW:AW,1,Actions!G:G,3,Actions!C:C,B79)+COUNTIFS(Actions!AW:AW,1,Actions!G:G,2,Actions!C:C,B79)","v":4},{"$f":"IF(K79=0,\"\",D79/K79)","v":0},0,0]
[null,"Soutien à des causes",{"$f":"COUNTIFS(Actions!K:K,\"Fait\",Actions!C:C,B80)","v":0},{"$f":"COUNTIFS(Actions!K:K,\"Fait\",Actions!C:C,B80,Actions!G:G,3)","v":0},{"$f":"COUNTIFS(Actions!K:K,\"Fait\",Actions!C:C,B80,Actions!G:G,3)+COUNTIFS(Actions!K:K,\"Fait\",Actions!C:C,B80,Actions!G:G,2)","v":0},{"$f":"COUNTIFS(Actions!K:K,\"En cours\",Actions!C:C,B80)","v":0},{"$f":"COUNTIFS(Actions!K:K,\"En cours\",Actions!G:G,3,Actions!C:C,B80)","v":0},{"$f":"COUNTIFS(Actions!I:I,\"Non\",Actions!C:C,B80)","v":0},{"$f":"COUNTIFS(Actions!I:I,\"Non\",Actions!G:G,3,Actions!C:C,B80)","v":0},{"$f":"M80-COUNTIFS(Actions!I:I,\"NA\",Actions!C:C,B80)","v":0},{"$f":"N80-COUNTIFS(Actions!I:I,\"NA\",Actions!G:G,3,Actions!C:C,B80)","v":0},{"$f":"O80-COUNTIFS(Actions!I:I,\"NA\",Actions!G:G,3,Actions!C:C,B80)-COUNTIFS(Actions!I:I,\"NA\",Actions!G:G,2,Actions!C:C,B80)","v":0},{"$f":"COUNTIFS(Actions!AW:AW,1,Actions!C:C,B80)","v":0},{"$f":"COUNTIFS(Actions!AW:AW,1,Actions!G:G,3,Actions!C:C,B80)","v":0},{"$f":"COUNTIFS(Actions!AW:AW,1,Actions!G:G,3,Actions!C:C,B80)+COUNTIFS(Actions!AW:AW,1,Actions!G:G,2,Actions!C:C,B80)","v":0},{"$f":"IF(K80=0,\"\",D80/K80)","v":""},"",""]
[]
[null,"VOISINAGE",{"$f":"COUNTIFS(Actions!K:K,\"Fait\",Actions!B:B,B82)","v":0},{"$f":"COUNTIFS(Actions!K:K,\"Fait\",Actions!B:B,B82,Actions!G:G,3)","v":0},{"$f":"COUNTIFS(Actions!K:K,\"Fait\",Actions!B:B,B82,Actions!G:G,3)+COUNTIFS(Actions!K:K,\"Fait\",Actions!B:B,B82,Actions!G:G,2)","v":0},{"$f":"COUNTIFS(Actions!K:K,\"En cours\",Actions!B:B,B82)","v":0},{"$f":"COUNTIFS(Actions!K:K,\"En cours\",Actions!G:G,3,Actions!B:B,B82)","v":0},{"$f":"COUNTIFS(Actions!I:I,\"Non\",Actions!B:B,B82)","v":0},{"$f":"COUNTIFS(Actions!I:I,\"Non\",Actions!G:G,3,Actions!B:B,B82)","v":0},{"$f":"M82-COUNTIFS(Actions!I:I,\"NA\",Actions!B:B,B82)","v":4},{"$f":"N82-COUNTIFS(Actions!I:I,\"NA\",Actions!G:G,3,Actions!B:B,B82)","v":4},{"$f":"O82-COUNTIFS(Actions!I:I,\"NA\",Actions!G:G,3,Actions!B:B,B82)-COUNTIFS(Actions!I:I,\"NA\",Actions!G:G,2,Actions!B:B,B82)","v":4},{"$f":"COUNTIFS(Actions!AW:AW,1,Actions!B:B,B82)","v":4},{"$f":"COUNTIFS(Actions!AW:AW,1,Actions!G:G,3,Actions!B:B,B82)","v":4},{"$f":"COUNTIFS(Actions!AW:AW,1,Actions!G:G,3,Actions!B:B,B82)+COUNTIFS(Actions!AW:AW,1,Actions!G:G,2,Actions!B:B,B82)","v":4},{"$f":"IF(K82=0,0,D82/K82)","v":0},{"$f":"IF(L82=0,0,E82/L82)","v":0},{"$f":"IF(J82=0,0,C82/J82)","v":0}]
[null,"Impact paysager",{"$f":"COUNTIFS(Actions!K:K,\"Fait\",Actions!C:C,B83)","v":0},{"$f":"COUNTIFS(Actions!K:K,\"Fait\",Actions!C:C,B83,Actions!G:G,3)","v":0},{"$f":"COUNTIFS(Actions!K:K,\"Fait\",Actions!C:C,B83,Actions!G:G,3)+COUNTIFS(Actions!K:K,\"Fait\",Actions!C:C,B83,Actions!G:G,2)","v":0},{"$f":"COUNTIFS(Actions!K:K,\"En cours\",Actions!C:C,B83)","v":0},{"$f":"COUNTIFS(Actions!K:K,\"En cours\",Actions!G:G,3,Actions!C:C,B83)","v":0},{"$f":"COUNTIFS(Actions!I:I,\"Non\",Actions!C:C,B83)","v":0},{"$f":"COUNTIFS(Actions!I:I,\"Non\",Actions!G:G,3,Actions!C:C,B83)","v":0},{"$f":"M83-COUNTIFS(Actions!I:I,\"NA\",Actions!C:C,B83)","v":1},{"$f":"N83-COUNTIFS(Actions!I:I,\"NA\",Actions!G:G,3,Actions!C:C,B83)","v":1},{"$f":"O83-COUNTIFS(Actions!I:I,\"NA\",Actions!G:G,3,Actions!C:C,B83)-COUNTIFS(Actions!I:I,\"NA\",Actions!G:G,2,Actions!C:C,B83)","v":1},{"$f":"COUNTIFS(Actions!AW:AW,1,Actions!C:C,B83)","v":1},{"$f":"COUNTIFS(Actions!AW:AW,1,Actions!G:G,3,Actions!C:C,B83)","v":1},{"$f":"COUNTIFS(Actions!AW:AW,1,Actions!G:G,3,Actions!C:C,B83)+COUNTIFS(Actions!AW:AW,1,Actions!G:G,2,Actions!C:C,B83)","v":1},{"$f":"IF(K83=0,\"\",D83/K83)","v":0},{"$f":"IF(L83=0,\"\",E83/L83)","v":0},0]
[null,"Nuisances sonores",{"$f":"COUNTIFS(Actions!K:K,\"Fait\",Actions!C:C,B84)","v":0},{"$f":"COUNTIFS(Actions!K:K,\"Fait\",Actions!C:C,B84,Actions!G:G,3)","v":0},{"$f":"COUNTIFS(Actions!K:K,\"Fait\",Actions!C:C,B84,Actions!G:G,3)+COUNTIFS(Actions!K:K,\"Fait\",Actions!C:C,B84,Actions!G:G,2)","v":0},{"$f":"COUNTIFS(Actions!K:K,\"En cours\",Actions!C:C,B84)","v":0},{"$f":"COUNTIFS(Actions!K:K,\"En cours\",Actions!G:G,3,Actions!C:C,B84)","v":0},{"$f":"COUNTIFS(Actions!I:I,\"Non\",Actions!C:C,B84)","v":0},{"$f":"COUNTIFS(Actions!I:I,\"Non\",Actions!G:G,3,Actions!C:C,B84)","v":0},{"$f":"M84-COUNTIFS(Actions!I:I,\"NA\",Actions!C:C,B84)","v":1},{"$f":"N84-COUNTIFS(Actions!I:I,\"NA\",Actions!G:G,3,Actions!C:C,B84)","v":1},{"$f":"O84-COUNTIFS(Actions!I:I,\"NA\",Actions!G:G,3,Actions!C:C,B84)-COUNTIFS(Actions!I:I,\"NA\",Actions!G:G,2,Actions!C:C,B84)","v":1},{"$f":"COUNTIFS(Actions!AW:AW,1,Actions!C:C,B84)","v":1},{"$f":"COUNTIFS(Actions!AW:AW,1,Actions!G:G,3,Actions!C:C,B84)","v":1},{"$f":"COUNTIFS(Actions!AW:AW,1,Actions!G:G,3,Actions!C:C,B84)+COUNTIFS(Actions!AW:AW,1,Actions!G:G,2,Actions!C:C,B84)","v":1},0,0,0]
[null,"Nuisances olfactives",{"$f":"COUNTIFS(Actions!K:K,\"Fait\",Actions!C:C,B85)","v":0},{"$f":"COUNTIFS(Actions!K:K,\"Fait\",Actions!C:C,B85,Actions!G:G,3)","v":0},{"$f":"COUNTIFS(Actions!K:K,\"Fait\",Actions!C:C,B85,Actions!G:G,3)+COUNTIFS(Actions!K:K,\"Fait\",Actions!C:C,B85,Actions!G:G,2)","v":0},{"$f":"COUNTIFS(Actions!K:K,\"En cours\",Actions!C:C,B85)","v":0},{"$f":"COUNTIFS(Actions!K:K,\"En cours\",Actions!G:G,3,Actions!C:C,B85)","v":0},{"$f":"COUNTIFS(Actions!I:I,\"Non\",Actions!C:C,B85)","v":0},{"$f":"COUNTIFS(Actions!I:I,\"Non\",Actions!G:G,3,Actions!C:C,B85)","v":0},{"$f":"M85-COUNTIFS(Actions!I:I,\"NA\",Actions!C:C,B85)","v":0},{"$f":"N85-COUNTIFS(Actions!I:I,\"NA\",Actions!G:G,3,Actions!C:C,B85)","v":0},{"$f":"O85-COUNTIFS(Actions!I:I,\"NA\",Actions!G:G,3,Actions!C:C,B85)-COUNTIFS(Actions!I:I,\"NA\",Actions!G:G,2,Actions!C:C,B85)","v":0},{"$f":"COUNTIFS(Actions!AW:AW,1,Actions!C:C,B85)","v":0},{"$f":"COUNTIFS(Actions!AW:AW,1,Actions!G:G,3,Actions!C:C,B85)","v":0},{"$f":"COUNTIFS(Actions!AW:AW,1,Actions!G:G,3,Actions!C:C,B85)+COUNTIFS(Actions!AW:AW,1,Actions!G:G,2,Actions!C:C,B85)","v":0},"","",""]
[null,"Management",{"$f":"COUNTIFS(Actions!K:K,\"Fait\",Actions!C:C,B86)","v":0},{"$f":"COUNTIFS(Actions!K:K,\"Fait\",Actions!C:C,B86,Actions!G:G,3)","v":0},{"$f":"COUNTIFS(Actions!K:K,\"Fait\",Actions!C:C,B86,Actions!G:G,3)+COUNTIFS(Actions!K:K,\"Fait\",Actions!C:C,B86,Actions!G:G,2)","v":0},{"$f":"COUNTIFS(Actions!K:K,\"En cours\",Actions!C:C,B86)","v":0},{"$f":"COUNTIFS(Actions!K:K,\"En cours\",Actions!G:G,3,Actions!C:C,B86)","v":0},{"$f":"COUNTIFS(Actions!I:I,\"Non\",Actions!C:C,B86)","v":0},{"$f":"COUNTIFS(Actions!I:I,\"Non\",Actions!G:G,3,Actions!C:C,B86)","v":0},{"$f":"M86-COUNTIFS(Actions!I:I,\"NA\",Actions!C:C,B86)","v":2},{"$f":"N86-COUNTIFS(Actions!I:I,\"NA\",Actions!G:G,3,Actions!C:C,B86)","v":2},{"$f":"O86-COUNTIFS(Actions!I:I,\"NA\",Actions!G:G,3,Actions!C:C,B86)-COUNTIFS(Actions!I:I,\"NA\",Actions!G:G,2,Actions!C:C,B86)","v":2},{"$f":"COUNTIFS(Actions!AW:AW,1,Actions!C:C,B86)","v":2},{"$f":"COUNTIFS(Actions!AW:AW,1,Actions!G:G,3,Actions!C:C,B86)","v":2},{"$f":"COUNTIFS(Actions!AW:AW,1,Actions!G:G,3,Actions!C:C,B86)+COUNTIFS(Actions!AW:AW,1,Actions!G:G,2,Actions!C:C,B86)","v":2},0,0,{"$f":"IF(J86=0,\"\",C86/J86)","v":0}]
[null,"Pollution lumineuse",{"$f":"COUNTIFS(Actions!K:K,\"Fait\",Actions!C:C,B87)","v":0},{"$f":"COUNTIFS(Actions!K:K,\"Fait\",Actions!C:C,B87,Actions!G:G,3)","v":0},{"$f":"COUNTIFS(Actions!K:K,\"Fait\",Actions!C:C,B87,Actions!G:G,3)+COUNTIFS(Actions!K:K,\"Fait\",Actions!C:C,B87,Actions!G:G,2)","v":0},{"$f":"COUNTIFS(Actions!K:K,\"En cours\",Actions!C:C,B87)","v":0},{"$f":"COUNTIFS(Actions!K:K,\"En cours\",Actions!G:G,3,Actions!C:C,B87)","v":0},{"$f":"COUNTIFS(Actions!I:I,\"Non\",Actions!C:C,B87)","v":0},{"$f":"COUNTIFS(Actions!I:I,\"Non\",Actions!G:G,3,Actions!C:C,B87)","v":0},{"$f":"M87-COUNTIFS(Actions!I:I,\"NA\",Actions!C:C,B87)","v":0},{"$f":"N87-COUNTIFS(Actions!I:I,\"NA\",Actions!G:G,3,Actions!C:C,B87)","v":0},{"$f":"O87-COUNTIFS(Actions!I:I,\"NA\",Actions!G:G,3,Actions!C:C,B87)-COUNTIFS(Actions!I:I,\"NA\",Actions!G:G,2,Actions!C:C,B87)","v":0},{"$f":"COUNTIFS(Actions!AW:AW,1,Actions!C:C,B87)","v":0},{"$f":"COUNTIFS(Actions!AW:AW,1,Actions!G:G,3,Actions!C:C,B87)","v":0},{"$f":"COUNTIFS(Actions!AW:AW,1,Actions!G:G,3,Actions!C:C,B87)+COUNTIFS(Actions!AW:AW,1,Actions!G:G,2,Actions!C:C,B87)","v":0},"","",{"$f":"IF(J87=0,\"\",C87/J87)","v":""}]

{"sheet":"Synthese_theme","index":8,"n_rows":34,"n_cols":8,"rows_kept":34,"cut":false,"hidden":false,"merged":[]}
[]
[]
[]
[]
[]
[]
[]
[]
[null,"ANCRAGE TERRITORIAL","Nombre d'actions réalisées","Nombre d'actions en cours","Nombre d'action non prévues","Nombre totale d'action concernée","Nombre totale d'action","%  d'actions réalisées"]
[null,"Nombre d'actions indispensables",{"$f":"VLOOKUP($B9,Synthese!$B:$R,3,FALSE)","v":0},{"$f":"VLOOKUP($B9,Synthese!$B:$R,5,FALSE)","v":0},{"$f":"VLOOKUP($B9,Synthese!$B:$R,7,FALSE)","v":0},{"$f":"VLOOKUP($B9,Synthese!$B:$R,9,FALSE)","v":2},{"$f":"VLOOKUP($B9,Synthese!$B:$R,11,FALSE)","v":2},{"$f":"IF(F10=0,\"\",C10/F10)","v":0}]
[null,"Nombre d'actions supplémentaires",{"$f":"VLOOKUP($B9,Synthese!$B:$R,2,FALSE)-C10","v":0},{"$f":"VLOOKUP($B9,Synthese!$B:$R,4,FALSE)-D10","v":0},{"$f":"VLOOKUP($B9,Synthese!$B:$R,6,FALSE)-E10","v":0},{"$f":"VLOOKUP($B9,Synthese!$B:$R,8,FALSE)-F10","v":-2},{"$f":"VLOOKUP($B9,Synthese!$B:$R,10,FALSE)-G10","v":0},{"$f":"IF(F11=0,\"\",C11/F11)","v":0}]
[]
[null,"SOUS -THEMES","Nombre d'actions réalisées","Nombre d'actions en cours","Nombre d'action non prévues","Nombre totale d'action concernée","Nombre totale d'action","%  d'actions réalisées"]
[null,{"$f":"HLOOKUP(B9,Paramètres!175:184,2,FALSE)","v":"Contextualisation de l'événement"},{"$f":"C15+C16","v":0},{"$f":"D15+D16","v":0},{"$f":"E15+E16","v":0},{"$f":"F15+F16","v":0},{"$f":"G15+G16","v":0},{"$f":"IF(F14=0,\"\",C14/F14)","v":""}]
[null,"Actions indispensables",{"$f":"VLOOKUP($B14,Synthese!$B:$R,3,FALSE)","v":0},{"$f":"VLOOKUP($B14,Synthese!$B:$R,6,FALSE)","v":0},{"$f":"VLOOKUP($B14,Synthese!$B:$R,8,FALSE)","v":0},{"$f":"VLOOKUP($B14,Synthese!$B:$R,10,FALSE)","v":0},{"$f":"VLOOKUP($B14,Synthese!$B:$R,13,FALSE)","v":0},""]
[null,"Actions supplémentaires",{"$f":"VLOOKUP($B14,Synthese!$B:$R,2,FALSE)-C15","v":0},{"$f":"VLOOKUP($B14,Synthese!$B:$R,5,FALSE)-D15","v":0},{"$f":"VLOOKUP($B14,Synthese!$B:$R,7,FALSE)-E15","v":0},{"$f":"VLOOKUP($B14,Synthese!$B:$R,9,FALSE)-F15","v":0},{"$f":"VLOOKUP($B14,Synthese!$B:$R,12,FALSE)-G15","v":0},""]
[null,{"$f":"HLOOKUP(B9,Paramètres!175:184,3,FALSE)","v":"Economie locale"},{"$f":"C18+C19","v":0},{"$f":"D18+D19","v":0},{"$f":"E18+E19","v":0},{"$f":"F18+F19","v":1},{"$f":"G18+G19","v":1},0]
[null,"Actions indispensables",{"$f":"VLOOKUP($B17,Synthese!$B:$R,3,FALSE)","v":0},{"$f":"VLOOKUP($B17,Synthese!$B:$R,6,FALSE)","v":0},{"$f":"VLOOKUP($B17,Synthese!$B:$R,8,FALSE)","v":0},{"$f":"VLOOKUP($B17,Synthese!$B:$R,10,FALSE)","v":1},{"$f":"VLOOKUP($B17,Synthese!$B:$R,13,FALSE)","v":1},0]
[null,"Actions supplémentaires",{"$f":"VLOOKUP($B17,Synthese!$B:$R,2,FALSE)-C18","v":0},{"$f":"VLOOKUP($B17,Synthese!$B:$R,5,FALSE)-D18","v":0},{"$f":"VLOOKUP($B17,Synthese!$B:$R,7,FALSE)-E18","v":0},{"$f":"VLOOKUP($B17,Synthese!$B:$R,9,FALSE)-F18","v":0},{"$f":"VLOOKUP($B17,Synthese!$B:$R,12,FALSE)-G18","v":0},""]
[null,{"$f":"HLOOKUP(B9,Paramètres!175:184,4,FALSE)","v":"Identification des enjeux locaux"},{"$f":"C21+C22","v":0},{"$f":"D21+D22","v":0},{"$f":"E21+E22","v":0},{"$f":"F21+F22","v":1},{"$f":"G21+G22","v":1},0]
[null,"Actions indispensables",{"$f":"VLOOKUP($B20,Synthese!$B:$R,3,FALSE)","v":0},{"$f":"VLOOKUP($B20,Synthese!$B:$R,6,FALSE)","v":0},{"$f":"VLOOKUP($B20,Synthese!$B:$R,8,FALSE)","v":0},{"$f":"VLOOKUP($B20,Synthese!$B:$R,10,FALSE)","v":1},{"$f":"VLOOKUP($B20,Synthese!$B:$R,13,FALSE)","v":1},0]
[null,"Actions supplémentaires",{"$f":"VLOOKUP($B20,Synthese!$B:$R,2,FALSE)-C21","v":0},{"$f":"VLOOKUP($B20,Synthese!$B:$R,5,FALSE)-D21","v":0},{"$f":"VLOOKUP($B20,Synthese!$B:$R,7,FALSE)-E21","v":0},{"$f":"VLOOKUP($B20,Synthese!$B:$R,9,FALSE)-F21","v":0},{"$f":"VLOOKUP($B20,Synthese!$B:$R,12,FALSE)-G21","v":0},""]
[null,{"$f":"IF(HLOOKUP(B9,Paramètres!175:184,5,FALSE)=0,\"\",HLOOKUP(B9,Paramètres!175:184,5,FALSE))","v":""},{"$f":"IF(B23=\"\",\"\",C24+C25)","v":""},{"$f":"IF(B23=\"\",\"\",D24+D25)","v":""},{"$f":"IF(B23=\"\",\"\",E24+E25)","v":""},{"$f":"IF(C23=\"\",\"\",F24+F25)","v":""},{"$f":"IF(B23=\"\",\"\",G24+G25)","v":""},{"$f":"IF(B23=\"\",\"\",IF(F23=0,\"\",C23/F23))","v":""}]
[null,"Actions indispensables",{"$f":"IF(B23=\"\",\"\",VLOOKUP($B23,Synthese!$B:$R,3,FALSE))","v":""},{"$f":"IF(B23=\"\",\"\",VLOOKUP($B23,Synthese!$B:$R,6,FALSE))","v":""},{"$f":"IF(B23=\"\",\"\",VLOOKUP($B23,Synthese!$B:$R,8,FALSE))","v":""},{"$f":"IF(C23=\"\",\"\",VLOOKUP($B23,Synthese!$B:$R,10,FALSE))","v":""},{"$f":"IF(B23=\"\",\"\",VLOOKUP($B23,Synthese!$B:$R,13,FALSE))","v":""},{"$f":"IF(B23=\"\",\"\",IF(F24=0,\"\",C24/F24))","v":""}]
[null,"Actions supplémentaires",{"$f":"IF(B23=\"\",\"\",VLOOKUP($B23,Synthese!$B:$R,2,FALSE)-C24)","v":""},{"$f":"IF(B23=\"\",\"\",VLOOKUP($B23,Synthese!$B:$R,5,FALSE)-D24)","v":""},{"$f":"IF(B23=\"\",\"\",VLOOKUP($B23,Synthese!$B:$R,7,FALSE)-E24)","v":""},{"$f":"IF(C23=\"\",\"\",VLOOKUP($B23,Synthese!$B:$R,9,FALSE)-F24)","v":""},{"$f":"IF(B23=\"\",\"\",VLOOKUP($B23,Synthese!$B:$R,12,FALSE)-G24)","v":""},{"$f":"IF(B23=\"\",\"\",IF(F25=0,\"\",C25/F25))","v":""}]
[null,{"$f":"IF(B23=\"\",\"\",IF(HLOOKUP(B9,Paramètres!175:184,6,FALSE)=0,\"\",HLOOKUP(B9,Paramètres!175:184,6,FALSE)))","v":""},{"$f":"IF(B26=\"\",\"\",C27+C28)","v":""},{"$f":"IF(B26=\"\",\"\",D27+D28)","v":""},{"$f":"IF(B26=\"\",\"\",E27+E28)","v":""},{"$f":"IF(C26=\"\",\"\",F27+F28)","v":""},{"$f":"IF(B26=\"\",\"\",G27+G28)","v":""},{"$f":"IF(B26=\"\",\"\",IF(F26=0,\"\",C26/F26))","v":""}]
[null,"Actions indispensables",{"$f":"IF(B26=\"\",\"\",VLOOKUP($B26,Synthese!$B:$R,3,FALSE))","v":""},{"$f":"IF(B26=\"\",\"\",VLOOKUP($B26,Synthese!$B:$R,6,FALSE))","v":""},{"$f":"IF(B26=\"\",\"\",VLOOKUP($B26,Synthese!$B:$R,8,FALSE))","v":""},{"$f":"IF(C26=\"\",\"\",VLOOKUP($B26,Synthese!$B:$R,10,FALSE))","v":""},{"$f":"IF(B26=\"\",\"\",VLOOKUP($B26,Synthese!$B:$R,13,FALSE))","v":""},{"$f":"IF(B26=\"\",\"\",IF(F27=0,\"\",C27/F27))","v":""}]
[null,"Actions supplémentaires",{"$f":"IF(B26=\"\",\"\",VLOOKUP($B26,Synthese!$B:$R,2,FALSE)-C27)","v":""},{"$f":"IF(B26=\"\",\"\",VLOOKUP($B26,Synthese!$B:$R,5,FALSE)-D27)","v":""},{"$f":"IF(B26=\"\",\"\",VLOOKUP($B26,Synthese!$B:$R,7,FALSE)-E27)","v":""},{"$f":"IF(C26=\"\",\"\",VLOOKUP($B26,Synthese!$B:$R,9,FALSE)-F27)","v":""},{"$f":"IF(B26=\"\",\"\",VLOOKUP($B26,Synthese!$B:$R,12,FALSE)-G27)","v":""},{"$f":"IF(B26=\"\",\"\",IF(F28=0,\"\",C28/F28))","v":""}]
[null,{"$f":"IF(B26=\"\",\"\",IF(HLOOKUP(B9,Paramètres!175:184,7,FALSE)=0,\"\",HLOOKUP(B9,Paramètres!175:184,7,FALSE)))","v":""},{"$f":"IF(B29=\"\",\"\",C30+C31)","v":""},{"$f":"IF(B29=\"\",\"\",D30+D31)","v":""},{"$f":"IF(B29=\"\",\"\",E30+E31)","v":""},{"$f":"IF(C29=\"\",\"\",F30+F31)","v":""},{"$f":"IF(B29=\"\",\"\",G30+G31)","v":""},{"$f":"IF(B29=\"\",\"\",IF(F29=0,\"\",C29/F29))","v":""}]
[null,"Actions indispensables",{"$f":"IF(B29=\"\",\"\",VLOOKUP($B29,Synthese!$B:$R,3,FALSE))","v":""},{"$f":"IF(B29=\"\",\"\",VLOOKUP($B29,Synthese!$B:$R,6,FALSE))","v":""},{"$f":"IF(B29=\"\",\"\",VLOOKUP($B29,Synthese!$B:$R,8,FALSE))","v":""},{"$f":"IF(C29=\"\",\"\",VLOOKUP($B29,Synthese!$B:$R,10,FALSE))","v":""},{"$f":"IF(B29=\"\",\"\",VLOOKUP($B29,Synthese!$B:$R,13,FALSE))","v":""},{"$f":"IF(B29=\"\",\"\",IF(F30=0,\"\",C30/F30))","v":""}]
[null,"Actions supplémentaires",{"$f":"IF(B29=\"\",\"\",VLOOKUP($B29,Synthese!$B:$R,2,FALSE)-C30)","v":""},{"$f":"IF(B29=\"\",\"\",VLOOKUP($B29,Synthese!$B:$R,5,FALSE)-D30)","v":""},{"$f":"IF(B29=\"\",\"\",VLOOKUP($B29,Synthese!$B:$R,7,FALSE)-E30)","v":""},{"$f":"IF(C29=\"\",\"\",VLOOKUP($B29,Synthese!$B:$R,9,FALSE)-F30)","v":""},{"$f":"IF(B29=\"\",\"\",VLOOKUP($B29,Synthese!$B:$R,12,FALSE)-G30)","v":""},{"$f":"IF(B29=\"\",\"\",IF(F31=0,\"\",C31/F31))","v":""}]
[null,{"$f":"IF(B29=\"\",\"\",IF(HLOOKUP(B9,Paramètres!175:184,8,FALSE)=0,\"\",HLOOKUP(B9,Paramètres!175:184,8,FALSE)))","v":""},{"$f":"IF(B32=\"\",\"\",C33+C34)","v":""},{"$f":"IF(B32=\"\",\"\",D33+D34)","v":""},{"$f":"IF(B32=\"\",\"\",E33+E34)","v":""},{"$f":"IF(C32=\"\",\"\",F33+F34)","v":""},{"$f":"IF(B32=\"\",\"\",G33+G34)","v":""},{"$f":"IF(B32=\"\",\"\",IF(F32=0,\"\",C32/F32))","v":""}]
[null,"Actions indispensables",{"$f":"IF(B32=\"\",\"\",VLOOKUP($B32,Synthese!$B:$R,3,FALSE))","v":""},{"$f":"IF(B32=\"\",\"\",VLOOKUP($B32,Synthese!$B:$R,6,FALSE))","v":""},{"$f":"IF(B32=\"\",\"\",VLOOKUP($B32,Synthese!$B:$R,8,FALSE))","v":""},{"$f":"IF(C32=\"\",\"\",VLOOKUP($B32,Synthese!$B:$R,10,FALSE))","v":""},{"$f":"IF(B32=\"\",\"\",VLOOKUP($B32,Synthese!$B:$R,13,FALSE))","v":""},{"$f":"IF(B32=\"\",\"\",IF(F33=0,\"\",C33/F33))","v":""}]
[null,"Actions supplémentaires",{"$f":"IF(B32=\"\",\"\",VLOOKUP($B32,Synthese!$B:$R,2,FALSE)-C33)","v":""},{"$f":"IF(B32=\"\",\"\",VLOOKUP($B32,Synthese!$B:$R,5,FALSE)-D33)","v":""},{"$f":"IF(B32=\"\",\"\",VLOOKUP($B32,Synthese!$B:$R,7,FALSE)-E33)","v":""},{"$f":"IF(C32=\"\",\"\",VLOOKUP($B32,Synthese!$B:$R,9,FALSE)-F33)","v":""},{"$f":"IF(B32=\"\",\"\",VLOOKUP($B32,Synthese!$B:$R,12,FALSE)-G33)","v":""},{"$f":"IF(B32=\"\",\"\",IF(F34=0,\"\",C34/F34))","v":""}]

{"sheet":"Fiche","index":9,"n_rows":96,"n_cols":17,"rows_kept":96,"cut":false,"hidden":false,"merged":[[38,8,38,9],[22,3,22,4],[8,6,11,6],[8,7,11,7],[8,8,11,14],[16,3,16,4],[18,3,18,4],[20,3,20,4],[38,2,38,6]]}
[]
[]
[]
[]
[]
[]
[]
[]
[null,null,"QUALIFICATION DE L'EVENEMENT :","SCORE ATTEINT",null,null,"VOTRE SCORE TOTAL ",{"$f":"J75","v":3.3333333333333333E-2},{"$f":"IF(H9>80%,C12,IF(H9>60%,C11,IF(H9>40%,C10,\"A améliorer\")))","v":"A améliorer"}]
[null,null,"EVENEMENT RESPECTUEUX","40 à 60 %"]
[null,null,"EVENEMENT RESPONSABLE","60 à 80 %"]
[null,null,"EVENEMENT EXEMPLAIRE","> 80 % "]
[]
[]
[null,null,"FICHE D'IDENTITE :"]
[]
[null,null,"Nom : ",{"$f":"Mon_evenement!E28","v":0},null,null,"Nombre d'organisateurs :",null,{"$f":"Mon_evenement!V12","v":10}]
[]
[null,null,"Date :",{"$f":"Mon_evenement!E35","v":"00:00:00"},null,null,"Nombre de participants :",null,{"$f":"Mon_evenement!AA12","v":10000}]
[]
[null,null,"Association organisatrice :",{"$f":"Mon_evenement!F30","v":0}]
[]
[null,null,"Etablissement :",{"$f":"Mon_evenement!G32","v":0}]
[]
[]
[null,null,"SCORE CARD :"]
[]
[]
[null,null,"Indispensable"]
[null,null,"Supplémentaire"]
[]
[]
[]
[]
[]
[]
[]
[]
[null,null,"ETAT D'AVANCEMENT DES ACTIONS INDISPENSABLES :",null,null,null,null,null,"EMPREINTE CARBONE :",null,null,{"$f":"Empreinte_Carbone!K298","v":0},"Kg CO2e"]
[]
[null,null,"Actions concernées :",{"$f":"Q71+Q72+Q73+Q74","v":48}]
[]
[]
[]
[]
[]
[]
[]
[]
[]
[]
[]
[]
[]
[]
[]
[]
[]
[]
[]
[]
[]
[null,null,null,null,"ANCRAGE TERRITORIAL",null,1,0.7,0.4,{"$f":"Synthese!P13/2+Synthese!Q13*3/10+Synthese!R13*2/10","v":0}]
[null,null,null,null,"BIODIVERSITE",null,1,0.7,0.4,{"$f":"Synthese!P18/2+Synthese!Q18*3/10+Synthese!R18*2/10","v":0}]
[null,null,null,null,"CULTURE",null,1,0.7,0.4,{"$f":"Synthese!P24/2+Synthese!Q24*3/10+Synthese!R24*2/10","v":0}]
[null,null,null,null,"ECONOMIE",null,1,0.7,0.4,{"$f":"Synthese!P29/2+Synthese!Q29*3/10+Synthese!R29*2/10","v":0}]
[null,null,null,null,"EMPREINTE CARBONE",null,1,0.7,0.4,{"$f":"Synthese!P35/2+Synthese!Q35*3/10+Synthese!R35*2/10","v":0}]
[null,null,null,null,"EQUITE",null,1,0.7,0.4,{"$f":"Synthese!P43/2+Synthese!Q43*3/10+Synthese!R43*2/10","v":0}]
[null,null,null,null,"GESTION DES RESSOURCES",null,1,0.7,0.4,{"$f":"Synthese!P48/2+Synthese!Q48*3/10+Synthese!R48*2/10","v":0}]
[null,null,null,null,"GOUVERNANCE",null,1,0.7,0.4,{"$f":"Synthese!P55/2+Synthese!Q55*3/10+Synthese!R55*2/10","v":0}]
[null,null,null,null,"RESEPCT PARTICIPANT",null,1,0.7,0.4,{"$f":"Synthese!P61/2+Synthese!Q61*3/10+Synthese!R61*2/10","v":0},null,null,null,null,"Actions faites",null,{"$f":"Synthese!C8","v":0}]
[null,null,null,null,"SECURITE",null,1,0.7,0.4,{"$f":"Synthese!P67/2+Synthese!Q67*3/10+Synthese!R67*2/10","v":0},null,null,null,null,"Actions en cours",null,{"$f":"Synthese!F8","v":0}]
[null,null,null,null,"SOLIDARITE",null,1,0.7,0.4,{"$f":"Synthese!P76*4/10+Synthese!Q76*4/10+Synthese!R76*2/10","v":0.4},null,null,null,null,"Actions à démarrer",null,{"$f":"Synthese!J8-Fiche!Q74-Q72-Q71","v":48}]
[null,null,null,null,"VOISINAGE",null,1,0.7,0.4,{"$f":"Synthese!P82/2+Synthese!Q82*3/10+Synthese!R82*2/10","v":0},null,null,null,null,"Actions non prévues",null,{"$f":"Synthese!H8","v":0}]
[null,null,null,null,null,null,null,null,null,{"$f":"AVERAGE(J63:J74)","v":3.3333333333333333E-2}]
[]
[]
[]
[null,null,null,null,null,"Fait","Concerné",null,"B",{"$f":"IF(L79=0,\"\",REPT(\"g\",K79/L79*10))","v":""},{"$f":"Synthese!D$18","v":0},{"$f":"MAX(1,Synthese!K$18)","v":3},null,"C",{"$f":"IF(Q79=0,\"\",REPT(\"g\",P79/Q79*10))","v":""},{"$f":"Synthese!D$24","v":0},{"$f":"MAX(1,Synthese!K$24)","v":2}]
[null,null,null,"AT",{"$f":"IF(G80=0,\"\",REPT(\"g\",F80/G80*10))","v":""},{"$f":"Synthese!D$13","v":0},{"$f":"MAX(1,Synthese!K$13)","v":2},null,"B",{"$f":"IF(L80=0,\"\",REPT(\"g\",K80/L80*10))","v":""},{"$f":"Synthese!C$18","v":0},{"$f":"MAX(1,Synthese!J$18)","v":3},null,"C",{"$f":"IF(Q80=0,\"\",REPT(\"g\",P80/Q80*10))","v":""},{"$f":"Synthese!C$24","v":0},{"$f":"MAX(1,Synthese!J$24)","v":2}]
[null,null,null,"AT",{"$f":"IF(G81=0,\"\",REPT(\"g\",F81/G81*10))","v":""},{"$f":"Synthese!C$13","v":0},{"$f":"MAX(1,Synthese!J$13)","v":2},null,"B",{"$f":"IF(L81=0,\"\",REPT(\"g\",K81/L81*3))","v":"ggg"},{"$f":"IF(AND((K79/L79)>0.9,(K80/L80)>0.8),0,IF(AND((K79/L79)>0.8,(K80/L80)>0.3),1,IF((K79/L79)>0.8,2,3)))","v":3},3,null,"C",{"$f":"IF(Q81=0,\"\",REPT(\"g\",P81/Q81*3))","v":"ggg"},{"$f":"IF(AND((P79/Q79)>0.9,(P80/Q80)>0.8),0,IF(AND((P79/Q79)>0.8,(P80/Q80)>0.3),1,IF((P79/Q79)>0.8,2,3)))","v":3},3]
[null,null,null,"AT",{"$f":"IF(G82=0,\"\",REPT(\"g\",F82/G82*3))","v":"ggg"},{"$f":"IF(AND((F80/G80)>0.9,(F81/G81)>0.8),0,IF(AND((F80/G80)>0.8,(F81/G81)>0.3),1,IF((F80/G80)>0.8,2,3)))","v":3},3]
[null,null,null,null,null,null,null,null,null,null,null,null,null,"So",{"$f":"IF(Q83=0,\"\",REPT(\"g\",P83/Q83*10))","v":""},{"$f":"MIN(1,P84/3)","v":0},{"$f":"MAX(1,Synthese!K$76)","v":1}]
[null,null,null,"Ec",{"$f":"IF(G84=0,\"\",REPT(\"g\",F84/G84*10))","v":""},{"$f":"Synthese!D$29","v":0},{"$f":"MAX(1,Synthese!K$29)","v":4},null,"G",{"$f":"IF(L84=0,\"\",REPT(\"g\",K84/L84*10))","v":""},{"$f":"Synthese!D$55","v":0},{"$f":"MAX(1,Synthese!K$55)","v":3},null,"So",{"$f":"IF(Q84=0,\"\",REPT(\"g\",P84/Q84*10))","v":""},{"$f":"Synthese!C$76","v":0},{"$f":"MAX(1,Synthese!J$76)","v":1}]
[null,null,null,"Ec",{"$f":"IF(G85=0,\"\",REPT(\"g\",F85/G85*10))","v":""},{"$f":"Synthese!C$29","v":0},{"$f":"MAX(1,Synthese!J$29)","v":4},null,"G",{"$f":"IF(L85=0,\"\",REPT(\"g\",K85/L85*10))","v":""},{"$f":"Synthese!C$55","v":0},{"$f":"MAX(1,Synthese!J$55)","v":3},null,"So",{"$f":"IF(Q85=0,\"\",REPT(\"g\",P85/Q85*3))","v":"ggg"},{"$f":"IF(AND((P83/Q83)>0.9,(P84/Q84)>0.8),0,IF(AND((P83/Q83)>0.8,(P84/Q84)>0.3),1,IF((P83/Q83)>0.8,2,3)))","v":3},3]
[null,null,null,"Ec",{"$f":"IF(G86=0,\"\",REPT(\"g\",F86/G86*3))","v":"ggg"},{"$f":"IF(AND((F84/G84)>0.9,(F85/G85)>0.8),0,IF(AND((F84/G84)>0.8,(F85/G85)>0.3),1,IF((F84/G84)>0.8,2,3)))","v":3},3,null,"G",{"$f":"IF(L86=0,\"\",REPT(\"g\",K86/L86*3))","v":"ggg"},{"$f":"IF(AND((K84/L84)>0.9,(K85/L85)>0.8),0,IF(AND((K84/L84)>0.8,(K85/L85)>0.3),1,IF((K84/L84)>0.8,2,3)))","v":3},3]
[]
[null,null,null,null,null,null,null,null,null,null,null,null,null,"V",{"$f":"IF(Q88=0,\"\",REPT(\"g\",P88/Q88*10))","v":""},{"$f":"Synthese!D$82","v":0},{"$f":"MAX(1,Synthese!K$82)","v":4}]
[null,null,null,"Eq",{"$f":"IF(G89=0,\"\",REPT(\"g\",F89/G89*10))","v":""},{"$f":"Synthese!D$43","v":0},{"$f":"MAX(1,Synthese!K$43)","v":2},null,"RP",{"$f":"IF(L89=0,\"\",REPT(\"g\",K89/L89*10))","v":""},{"$f":"Synthese!D$61","v":0},{"$f":"MAX(1,Synthese!K$61)","v":4},null,"V",{"$f":"IF(Q89=0,\"\",REPT(\"g\",P89/Q89*10))","v":""},{"$f":"Synthese!C$82","v":0},{"$f":"MAX(1,Synthese!J$82)","v":4}]
[null,null,null,"Eq",{"$f":"IF(G90=0,\"\",REPT(\"g\",F90/G90*10))","v":""},{"$f":"Synthese!C$43","v":0},{"$f":"MAX(1,Synthese!J$43)","v":2},null,"RP",{"$f":"IF(L90=0,\"\",REPT(\"g\",K90/L90*10))","v":""},{"$f":"Synthese!C$61","v":0},{"$f":"MAX(1,Synthese!J$61)","v":4},null,"V",{"$f":"IF(Q90=0,\"\",REPT(\"g\",P90/Q90*3))","v":"ggg"},{"$f":"IF(AND((P88/Q88)>0.9,(P89/Q89)>0.8),0,IF(AND((P88/Q88)>0.8,(P89/Q89)>0.3),1,IF((P88/Q88)>0.8,2,3)))","v":3},3]
[null,null,null,"Eq",{"$f":"IF(G91=0,\"\",REPT(\"g\",F91/G91*3))","v":"ggg"},{"$f":"IF(AND((F89/G89)>0.9,(F90/G90)>0.8),0,IF(AND((F89/G89)>0.8,(F90/G90)>0.3),1,IF((F89/G89)>0.8,2,3)))","v":3},3,null,"RP",{"$f":"IF(L91=0,\"\",REPT(\"g\",K91/L91*3))","v":"ggg"},{"$f":"IF(AND((K89/L89)>0.9,(K90/L90)>0.8),0,IF(AND((K89/L89)>0.8,(K90/L90)>0.3),1,IF((K89/L89)>0.8,2,3)))","v":3},3]
[]
[null,null,null,null,null,null,null,null,null,null,null,null,null,"EC",{"$f":"IF(Q93=0,\"\",REPT(\"g\",P93/Q93*10))","v":""},{"$f":"Synthese!D$35","v":0},{"$f":"MAX(1,Synthese!K$35)","v":14}]
[null,null,null,"GR",{"$f":"IF(G94=0,\"\",REPT(\"g\",F94/G94*10))","v":""},{"$f":"Synthese!D$48","v":0},{"$f":"MAX(1,Synthese!K$48)","v":5},null,"Se",{"$f":"IF(L94=0,\"\",REPT(\"g\",K94/L94*10))","v":""},{"$f":"Synthese!D$67","v":0},{"$f":"MAX(1,Synthese!K$67)","v":5},null,"EC",{"$f":"IF(Q94=0,\"\",REPT(\"g\",P94/Q94*10))","v":""},{"$f":"Synthese!C$35","v":0},{"$f":"MAX(1,Synthese!J$35)","v":14}]
[null,null,null,"GR",{"$f":"IF(G95=0,\"\",REPT(\"g\",F95/G95*10))","v":""},{"$f":"Synthese!C$48","v":0},{"$f":"MAX(1,Synthese!J$48)","v":5},null,"Se",{"$f":"IF(L95=0,\"\",REPT(\"g\",K95/L95*10))","v":""},{"$f":"Synthese!C$67","v":0},{"$f":"MAX(1,Synthese!J$67)","v":5},null,"EC",{"$f":"IF(Q95=0,\"\",REPT(\"g\",P95/Q95*3))","v":"ggg"},{"$f":"IF(AND((P93/Q93)>0.9,(P94/Q94)>0.8),0,IF(AND((P93/Q93)>0.8,(P94/Q94)>0.3),1,IF((P93/Q93)>0.8,2,3)))","v":3},3]
[null,null,null,"GR",{"$f":"IF(G96=0,\"\",REPT(\"g\",F96/G96*3))","v":"ggg"},{"$f":"IF(AND((F94/G94)>0.9,(F95/G95)>0.8),0,IF(AND((F94/G94)>0.8,(F95/G95)>0.3),1,IF((F94/G94)>0.8,2,3)))","v":3},3,null,"Se",{"$f":"IF(L96=0,\"\",REPT(\"g\",K96/L96*3))","v":"ggg"},{"$f":"IF(AND((K94/L94)>0.9,(K95/L95)>0.8),0,IF(AND((K94/L94)>0.8,(K95/L95)>0.3),1,IF((K94/L94)>0.8,2,3)))","v":3},3]

{"sheet":"Ton_avis","index":10,"n_rows":10,"n_cols":2,"rows_kept":10,"cut":false,"hidden":false,"merged":[[6,1,6,14],[9,1,11,14]]}
[]
[]
[]
[]
[]
[]
[null,"TON AVIS"]
[]
[]
[null,"Cet outil a vocation à évoluer avec le temps. Nous avons besoin de ton retour d'expérience pour l'améliorer. \nSi tu souhaites également nous soumettre des actions ou des exemples issus de ta propre expérience, nous pourrons les introduire dans la prochaine version de l'outil."]

{"sheet":"Glossaire","index":11,"n_rows":134,"n_cols":4,"rows_kept":134,"cut":false,"hidden":false,"merged":[[115,1,115,2],[115,3,115,14],[117,1,117,2],[117,3,117,14],[119,1,119,2],[119,3,119,14],[73,3,73,14],[73,1,73,2],[111,1,111,2],[111,3,111,14],[113,1,113,2],[113,3,113,14],[79,3,79,14],[79,1,79,2],[77,3,77,14],[77,1,77,2],[75,3,75,14],[75,1,75,2],[85,3,85,14],[85,1,85,2],[83,3,83,14],[83,1,83,2],[81,3,81,14],[81,1,81,2],[133,1,133,2],[133,3,133,14],[127,1,127,2],[127,3,127,14],[129,1,129,2],[129,3,129,14],[131,1,131,2],[131,3,131,14],[121,1,121,2],[121,3,121,14],[123,1,123,2],[123,3,123,14],[125,1,125,2],[125,3,125,14],[91,3,91,14],[91,1,91,2],[89,3,89,14],[89,1,89,2],[87,3,87,14],[87,1,87,2],[97,3,97,14],[97,1,97,2],[95,3,95,14],[95,1,95,2],[93,3,93,14],[93,1,93,2],[103,3,103,14],[103,1,103,2],[101,3,101,14],[101,1,101,2],[99,3,99,14],[99,1,99,2],[109,3,109,14],[109,1,109,2],[107,3,107,14],[107,1,107,2],[105,3,105,14],[105,1,105,2],[13,1,13,2],[13,3,13,14],[6,1,6,14],[9,1,9,2],[9,3,9,14],[11,1,11,2],[11,3,11,14],[15,1,15,2],[15,3,15,14],[17,1,17,2],[17,3,17,14],[19,1,19,2],[19,3,19,14],[21,1,21,2],[21,3,21,14],[23,1,23,2],[23,3,23,14],[25,1,25,2],[25,3,25,14],[27,1,27,2],[27,3,27,14],[29,1,29,2],[29,3,29,14],[31,1,31,2],[31,3,31,14],[35,1,35,2],[35,3,35,14],[33,1,33,14],[37,1,37,2],[37,3,37,14],[39,1,39,2],[39,3,39,14],[41,1,41,2],[41,3,41,14],[43,1,43,2],[43,3,43,14],[45,1,45,2],[45,3,45,14],[47,1,47,2],[47,3,47,14],[49,1,49,2],[49,3,49,14],[51,1,51,2],[51,3,51,14],[53,1,53,2],[53,3,53,14],[55,1,55,2],[55,3,55,14],[57,1,57,2],[57,3,57,14],[59,1,59,2],[59,3,59,14],[61,1,61,2],[61,3,61,14],[69,1,69,2],[69,3,69,14],[71,1,71,2],[71,3,71,14],[63,1,63,2],[63,3,63,14],[65,1,65,2],[65,3,65,14],[67,1,67,2],[67,3,67,14]]}
[]
[]
[]
[]
[]
[]
[null,"GLOSSAIRE"]
[]
[]
[null,"ANCRAGE TERRITORIAL",null,"L’ancrage territorial désigne la capacité de l’événement à contribuer au développement local des territoires qu’il touche, dans une perspective de développement durable et de responsabilité sociétale.\nL’organisation d’un événement sur un territoire doit donc mettre en place de bonnes pratiques en prenant en compte différents champs d’intervention : le dialogue avec les communautés locales, le développement économique des territoires, la gestion des mutations économiques, le développement social local,...\nPour être dans une démarche d’ancrage territorial, il faut donc établir une cohérence forte entre l’organisation d’un événement et son environnement géographique, politique, social, économique."]
[]
[null,"BIODIVERSITE",null,"La biodiversité représente la diversité des êtres vivants et des écosystèmes (la faune, la flore, les bactéries, les milieux mais aussi les races, les gènes et les variétés domestiques). La biodiversité représente également les réseaux et les interactions que les différents écosystèmes et êtres vivants ont entre eux. On emploie le terme écosystème pour définir à la fois un ensemble d’êtres vivants et un milieu où se déploient ces êtres vivants.\nL’équilibre des écosystèmes est parfois très fragile, il devient donc nécessaire de prendre en compte le paramètre de la biodiversité lors de la mise en place d’événements."]
[]
[null,"CULTURE",null,"Dans une approche sociologique, on considère la culture comme un réservoir commun à un groupe d’individus, qui évolue dans le temps grâce aux échanges. La culture définit des manières d'être, de penser, d'agir et de communiquer.\nIl est évident que les événements étudiants, depuis l’organisation jusqu’au bilan, sont sources de rencontres, d’échanges et de communication. Ils sont donc des moteurs potentiels indéniables dans la transition vers une nouvelle culture. Ce sont les lieux idéaux pour sensibiliser les futurs actifs à être créatifs et à modifier leur rapport avec leur environnement."]
[]
[null,"ECONOMIE",null,"Mettre en œuvre une stratégie de développement durable au sein d’une école ou université engendre sans aucun doute des bénéfices sociaux et environnementaux. Toutefois, contrairement à certaines idées reçues, cela permet également de réduire les coûts de fonctionnement de l’organisation (directs et indirects)."]
[]
[null,"EMPREINTE CARBONE",null,"On appelle \"empreinte carbone\" la quantité équivalent carbone des Gaz à effet de Serre émis par une organisation. Ces émissions de Gaz à effet de Serre étant directement responsables du changement climatique, si nous voulons agir pour diminuer les effets du changement climatique (on parle souvent de limiter à 2° C l'augmentation de température moyenne) il est important de pouvoir quantifier ces émissions.\nAinsi, le calcul de l'empreinte carbone permet de connaître les postes les plus émetteurs et d'adopter une stratégie de réduction adaptée à sa situation.\nPratiquement tous les événements étudiants sont émetteurs de Gaz à effet de Serre, dans des proportions très variable. A titre d'exemple, chauffer un chapiteau pour un événement émet 10000 kg eqCO2, soit autant que de faire le tour du monde en avion."]
[]
[null,"EQUITE",null,"L'équité est une notion qui renvoie à l'idée de justice : il faut juger et traiter de manière égale des situations identiques mais il est parfois nécessaire d’accorder des droits spécifiques aux groupes sociaux dont la situation est jugée désavantageuse. \nL’équité revient à traiter différemment les gens différents de manière à compenser les inégalités de position initiale pour aller vers plus d'égalité réelle. L'équité se réfère aux principes de justice sociale en vigueur dans la société.\nConcevoir un événement, c’est vouloir réunir des individus. Il est donc nécessaire de prendre en compte les spécificités de chacun afin de créer un événement qui soit le plus juste possible, dans sa conception ou son objet."]
[]
[null,"GESTION DES RESSOURCES",null,"Les ressources ne sont pas infinies et doivent être utilisées avec modération tout en étant au mieux réparties sur la planète. Trop de gaspillage existe en écoles et universités et des gestes simples pourraient permettre de réduire à la fois les consommations de ressources, les émissions de CO2 et la facture des établissements. L’innovation est à plus long terme une des clés de succès de la gestion des ressources : énergies renouvelables, gestion et valorisation des déchets, agriculture durable, etc. "]
[]
[null,"GOUVERNANCE",null,"La gouvernance est l'une des notions phares de la responsabilité sociétale. Souvent, il est considéré qu'il s'agit de l'élément primordial pour prendre en compte la responsabilité dans une organisation.\nOn place derrière ce terme des notions comme l'éthique, la transparence, la participation ou la responsabilité en elle-même.\nLa conception d'un événement est souvent l'occasion de fédérer un petit groupe d'individus. Ce groupe organise ensuite un événement qui fera participer un plus grand nombre d'individus puis probablement communiquera avant, pendant ou après l'événement à un nombre encore plus grand d'individus. On parlera de gouvernance dans chacune de ces étapes : communiquer une information juste et pertinente, faire participer les individus adéquats, piloter l'organisation de manière qualitative, veiller aux processus de prise de décisions, avoir une gestion saine et éthique..."]
[]
[null,"RESEPCT DES PARTICIPANTS",null,"Le respect des participants vise à s'assurer que l'intégrité des participants, tant physique que mental ne soit pas mise en jeu. En premier lieu, on retrouve la santé qui se réfère à un état de bien-être physique et mental. Elle implique que tous les besoins fondamentaux des individus soient satisfaits, qu'ils soient affectifs, sanitaires, nutritionnels, sociaux ou culturels.\nDans le cadre d’un événement, il est essentiel, au fil de chaque étape de sa construction, de veiller à ce que tout soit mis en œuvre d’une part pour respecter les participants, d’autre part pour susciter une prise de conscience quant aux problématiques découlant de ce thème."]
[]
[null,"SECURITE",null,"La sécurité représente une situation ou un état dans lesquels on n’est pas exposé au danger et donc où l’on est en état de confiance. On entendra ici par danger un événement qui pourrait toucher la santé physique ou morale d’autrui. La sécurité concerne l’ensemble des événements étudiants et différentes phases des projets : alimentation, activités, rangement, etc. Font partis du périmètre l’ensemble des participants et des organisateurs ainsi que toute personne se trouvant en lieu proche (en cas d’incendie, etc). "]
[]
[null,"SOLIDARITE",null,"Les événements qui ont trait à la solidarité affectent en particulier les personnes en situation de précarité ou atteintes de divers handicaps ou maladies. La notion de solidarité recouvre des valeurs d’entraide et de soutien mutuel avec autrui. Il est essentiel d’impliquer l’ensemble des populations lors des événements étudiants afin de ne délaisser personne. \nTous les participants sont à sensibiliser sur ce type de sujet et il faut intégrer tous les étudiants de l’école quelle que soit leur « diversité ». De nombreux citoyens en dehors de l’école font partie du périmètre : les bénéficiaires de ce type d’actions et associations partenaires. "]
[]
[null,"VOISINAGE",null,"L'organisation d'un événement peut avoir un impact sur la communauté locale. En particulier, il peut générer ce que l'on appelle de la pollution sonore ou visuelle. On entend par là toute source de son ou de lumière qui pourrait être jugé comme non adéquat avec les besoins stricts d'un événement. Notons qu'il existe certaines règlementations à ce sujet, pour le voisinage mais également pour réduire les risques auditifs des participants. La gestion du voisinage inclus également le respect du lieu utilisé : ne pas le dégrader et ne pas laisser sur place de déchets ; rendre le lieu dans l'état ou on l'a trouvé.\nL'utilisation éphémère d'un site doit donc se faire de manière discrète : éviter autant que possible la gêne pendant (son, lumière...), et après (déchets laissés sur place, décor dégradé de manière durable...) un événement.\nLa Gestion du voisinage consiste à organiser un événement dans le respect de ceux qui vivent à proximité du lieu choisi."]
[]
[null,"Sous thèmes"]
[]
[null,"Contextualisation de l'événement",null,"Remettre l'événement dans son contexte local. S'intéresser aux activités, aux enjeux, à la culture des lieux de l'événement."]
[]
[null,"Economie locale",null,"Relocalisation des activités économiques pour renforcer le pouvoir économique des territoires. "]
[]
[null,"Identification des enjeux locaux",null,"Définir les enjeux economiques, sociaux, culturels et environnementaux locaux."]
[]
[null,"Education à l'environnement",null,"Participer à l'éveil des connaissances sur les questions environnementales."]
[]
[null,"Gestion du lieu naturel",null,"Préserver les lieux naturels. Inscrire l'événement sans impact (dégradations…) de l'environnement direct."]
[]
[null,"Impact dans la chaîne de valeur",null,"Prévenir les impacts possibles de l'événement tant en amont qu'en aval (ressources nécessaires à l'événement, pollutions engendrées par l'événement)"]
[]
[null,"Impact sur l'éco système",null,"Prévenir les impacts possibles de l'événement sur les intéractions entre les êtres vivants et leurs milieux."]
[]
[null,"Apport culturel",null,"Faire de l'événement un support d'enrichissement culturel."]
[]
[null,"Echanges culturels",null,"Favoriser les échanges et le dialogue pour un enrichissement mutuel."]
[]
[null,"Sensibilisation au DD",null,"Sensibiliser les participants et organisateurs sur les différentes thématiques permettant d'agir pour un développement durable."]
[]
[null,"Gestion du budget",null,"Prévoir et suivre son budget."]
[]
[null,"Impacts économiques indirects",null,"Considérer les coûts de manière globale et pas simplement le coût d'achat."]
[]
[null,"Investissement juste",null,"Investissement socialement et environnementalement responsable, c'est-à-dire qui va dans le sens des valeurs d'un développement durable."]
[]
[null,"Rémunération et subordination",null,"Lien entre la structure organisatrice et les personnes s'impliquant dans l'organisation de l'événement."]
[]
[null,"Communication",null,"Dans l'empreinte carbone de l'événement, l'ensemble des outils et supports de communication utilisé en amont, pendant voir après l'événement."]
[]
[null,"Déplacement de personnes",null,"Dans l'empreinte carbone de l'événement, déplacement des personnes pour l'organisation ou pour participer à l'événement."]
[]
[null,"Lieu",null,"Dans l'empreinte carbone de l'événement, ensemble des lieux dans lesquels se déroule l'événement."]
[]
[null,"Matériels",null,"Dans l'empreinte carbone de l'événement, ensemble du matériel utilisé pour l'événement."]
[]
[null,"Restauration",null,"Dans l'empreinte carbone de l'événement, ensemble des éléments de restauration, des appareils aux aliments, utilisé lors de l'événement."]
[]
[null,"Sensibilisation",null,"Sensibiliser les participants et les organisateurs à l'ensemble des thématiques d'un événement responsable."]
[]
[null,"Accessibilité",null,"Rendre l'événement accessible pour permettre une participation la moins contraignante possible aux personnes en situation de handicap."]
[]
[null,"Diversité",null,"Lutter contre trop de communautarisme."]
[]
[null,"Equité des pratiques",null,"Garantir un traitement équitable."]
[]
[null,"alimentation",null,"Problématiques liées à la disponibilité des ressources alimentaires."]
[]
[null,"eau",null,"Problématiques liées à la disponibilité et à l'accès à la ressource eau."]
[]
[null,"énergie",null,"Problématiques liées à l'utilisation de l'énergie."]
[]
[null,"management",null,"Organiser, suivre et piloter le bon déroulement de l'événement."]
[]
[null,"matériel",null,"Ensemble du matériel utilisé lors de la réalisation de l'événement."]
[]
[null,"matières premières et produits",null,"Ensemble des produits et matières utilisés dans la préparation et la réalisation de l'événement."]
[]
[null,"Ethique et cadre juridique",null,"Respect des bonnes manières d'être et d'agir et de l'ensemble des règles juridiques auxquels on est soumis."]
[]
[null,"Gestion de l'événement",null,"Gérer de manière opérationnelle le dérouement de l'événément."]
[]
[null,"Management de l'événement",null,"Organiser, suivre et piloter le bon déroulement de l'événement."]
[]
[null,"Transparence",null,"Rendre compte des décisions et activités auprès des parties intéressées, c'est-à-dire l'ensemble des personnes en intéractions avec l'événement."]
[]
[null,"Intégrité",null,"Absence de mauvaise intention. Honnêteté des personnes."]
[]
[null,"Qualité de l'évènement",null,"S'assurer que l'événement corresponde aux attentes des participants."]
[]
[null,"Santé",null,"Respect de la santé physique et mental des participants."]
[]
[null,"Vie privée",null,"Respect de la vie privée des individus."]
[]
[null,"Alcool",null,"L'alcool est à consommer avec modération :-)."]
[]
[null,"Nuisances sonores",null,"Nuisances liées aux bruits générés par l'événement."]
[]
[null,"Organisation",null,"Equipe en charge de l'organisation de l'événement."]
[]
[null,"Parking",null,"Zones de stationnement des véhicules."]
[]
[null,"Risque de chute de plein pied",null,"Elément non suffisemment sécurisé pour lequel un risque de chute est possible."]
[]
[null,"Risque électrique",null,"Elément non suffisemment sécurisé pour lequel un risque d'incident électrique est possible."]
[]
[null,"Risque incendie",null,"Elément non suffisemment sécurisé pour lequel un départ d'incendie est possible."]
[]
[null,"Liens humains",null,"Lutter contre l'isolement."]
[]
[null,"Promotion de la solidarité",null,"Promouvoir un esprit solidaire."]
[]
[null,"Soutien à des causes",null,"Soutenir des causes caritatives ou de solidarité tant local qu'international."]
[]
[null,"Impact paysager",null,"Nuisances visuelles générées par l'événement. Mauvaise intégration dans le cadre local."]
[]
[null,"Nuisances olfactives",null,"Nuisances liées aux odeurs générées."]
[]
[null,"Pollution lumineuse",null,"Nuissances liées à l'utilisation de sources de lumière."]

{"sheet":"Credits","index":12,"n_rows":0,"n_cols":0,"rows_kept":0,"cut":false,"hidden":false,"merged":[[5,3,5,10],[7,3,7,10],[22,3,22,10],[10,8,12,10],[14,8,19,10]]}

{"sheet":"Paramètres","index":13,"n_rows":182,"n_cols":12,"rows_kept":182,"cut":false,"hidden":false,"merged":[]}
["Viande","kgeqC / T",null,null,"oui"]
["Agneau",3832,null,null,"non"]
["Bœuf",4744]
["Canard",577]
["Cochon",1217]
["Dinde (fermière)",808]
["Dinde (industrielle)",449]
["Mouton",3832]
["Œuf",3476]
["Poisson (moyenne française)",440]
["Poissons tropicaux",884]
["Poulet (fermier)",640]
["Poulet (industriel)",399]
["Veau",12802]
[]
[]
["Département","Coefficient"]
[1,1.1399999999999999]
[2,1.1399999999999999]
[3,1.1399999999999999]
[4,0.82]
[5,1.1399999999999999]
[6,0.8]
[7,0.82]
[8,1.23]
[9,0.94]
[10,1.23]
[11,0.8]
[12,0.94]
[13,0.8]
[14,1.1399999999999999]
[15,1.1399999999999999]
[16,1]
[17,1]
[18,1]
[19,1.1399999999999999]
[21,1.1399999999999999]
[22,1.07]
[23,1.1399999999999999]
[24,0.94]
[25,1.1399999999999999]
[26,0.82]
[27,1.1399999999999999]
[28,1.1399999999999999]
[29,1.07]
[30,0.8]
[31,0.94]
[32,0.94]
[33,0.94]
[34,0.8]
[35,1.07]
[36,1]
[37,1]
[38,1.1399999999999999]
[39,1.1399999999999999]
[40,0.94]
[41,1]
[42,1.1399999999999999]
[43,1.1399999999999999]
[44,1]
[45,1.23]
[46,0.94]
[47,0.94]
[48,0.82]
[49,1]
[50,1.07]
[51,1.23]
[52,1.23]
[53,1]
[54,1.23]
[55,1.23]
[56,1.07]
[57,1.23]
[58,1.23]
[59,1.1399999999999999]
[60,1.1399999999999999]
[61,1.1399999999999999]
[62,1.1399999999999999]
[63,1.1399999999999999]
[64,0.94]
[65,0.94]
[66,0.8]
[67,1.23]
[68,1.23]
[69,1.1399999999999999]
[70,1.23]
[71,1.1399999999999999]
[72,1]
[73,1.1399999999999999]
[74,1.1399999999999999]
[75,1.1399999999999999]
[76,1.1399999999999999]
[77,1.1399999999999999]
[78,1.1399999999999999]
[79,1]
[80,1.1399999999999999]
[81,0.94]
[82,0.94]
[83,0.8]
[84,0.82]
[85,1]
[86,1]
[87,1.1399999999999999]
[88,1.23]
[89,1.23]
[90,1.23]
[91,1.1399999999999999]
[92,1.1399999999999999]
[93,1.1399999999999999]
[94,1.1399999999999999]
[95,1.1399999999999999]
["2A",0.8]
["2B",0.8]
[]
["Valeur DPE","kgeq.CO2/(m².an)"]
["A",5]
["B",10]
["C",20]
["D",35]
["E",55]
["F",80]
["G",110]
[]
["bâtiment antérieur à 1975",55]
["bâtiment construit après 2000",20]
["bâtiment construit entre 1975 et 2000",35]
["bâtiment neuf ou rénové après 2010",10]
["mobil home",55]
[]
[]
[]
[null,"bâtiment antérieur à 1975","bâtiment construit après 2000","bâtiment construit entre 1975 et 2000","bâtiment neuf ou rénové après 2010","mobil home"]
["automne",1,1,1,1,1]
["été",0.13,0.24,0.24,0.7,0.13]
["hiver",1.87,1.76,1.76,1.3,1.87]
["printemps",1,1,1,1,1]
[]
[]
["type de salle","Ratio de surface (1/m2 par personnes)"]
["d'un camping avec des mobil home.",0.21199999999999999]
["d'un hôtel \"1 étoile\" ou \"2 étoiles\".",0.12]
["d'un hôtel \"3 étoiles\" ou plus.",6.7000000000000004E-2]
["d'un restaurant.",1]
["d'une auberge de jeunesse.",0.15]
["d'une salle de concert où les participants sont assis.",0.84]
["d'une salle de concert où les participants sont debouts.",1.4]
["d'une salle de conférence.",0.9]
["d'une salle de réunion.",0.49]
["d'une salle de soirée.",1.5]
[]
[]
[]
[]
["Type de transport","kgeqC / T"]
["Autobus interurbain",1.1010169491525425E-2]
["Autobus urbain",2.7690000000000003E-2]
["Avion court courrier",{"$f":"0.037+0.034","v":7.1000000000000008E-2}]
["Avion long courrier",{"$f":"0.038+0.035","v":7.3000000000000009E-2}]
["Minibus",3.49E-2]
["TER",1.0201951837023078E-2]
["TGV",6.9976963703786944E-4]
["Train en France, moyenne",2.6292866228100169E-3]
["Voiture en parcours Extra-urbain",6.5000000000000002E-2]
["Voiture en parcours mixte",6.7000000000000004E-2]
["Voiture en parcours urbain",7.0000000000000007E-2]
[]
[]
[]
[]
[]
[]
[]
[]
[]
["ANCRAGE TERRITORIAL","BIODIVERSITE","CULTURE","ECONOMIE","EMPREINTE CARBONE","EQUITE","GESTION DES RESSOURCES","GOUVERN.","RESEPCT PARTICIPANT","SECURITE","SOLIDARITE","VOISINAGE"]
["Contextualisation de l'événement","Education à l'environnement","Apport culturel","Gestion du budget","Restauration","Accessibilité","alimentation","Ethique et cadre juridique","Intégrité","Alcool","Promotion de la solidarité","Impact paysager"]
["Economie locale","Gestion du lieu naturel","Echanges culturels","Impacts économiques indirects","Lieu","Diversité","eau","Gestion de l'événement","Qualité de l'évènement","Nuisances sonores","Liens humains","Nuisances sonores"]
["Identification des enjeux locaux","Impact dans la chaîne de valeur","Sensibilisation au développement durable","Investissement juste","Matériels","Equité des pratiques","énergie","Management de l'événement","Santé","Organisation","Sensibilisation","Nuisances olfactives"]
[null,"Impact sur l'éco système",null,"Rémunération et subordination","Déplacement de personnes",null,"management","Transparence","Vie privée","Parking","Soutien à des causes","Management"]
[null,null,null,null,"Communication",null,"matières premières et produits",null,null,"Risque de chute de plein pied",null,"Pollution lumineuse"]
[null,null,null,null,"Sensibilisation",null,null,null,null,"Risque électrique"]
[null,null,null,null,null,null,null,null,"Risque incendie"]

{"sheet":"Feuil2","index":14,"n_rows":14,"n_cols":1,"rows_kept":14,"cut":false,"hidden":false,"merged":[]}
[]
["THÈMATIQUES"]
["Ancrage territorial"]
["Biodiversité"]
["Culture"]
["Economie"]
["Empreinte carbone"]
["Equité"]
["gestion des ressources"]
["Gouvernance"]
["Respect des participants"]
["Sécurité"]
["Solidarité"]
["Voisinage"]